Workbook

Sheet Controllo_UPLOAD
A1: ID_ATO | B1: ID_Aeeg_Gestore | D1: SONO PRESENTI ATO E GESTORE ? | E1: il file può essere caricato ?
A2: =idato -> 1202 | B2: =Codice_ARERA -> 13989 | D2: =IF(A2*B2>0,"SI","NO") -> SI | E2: SI
D3: PRECOMPILATO
D4: 0
D5: 1 = precompilato; 0 = deve fornire tutti i dati
D7: Tipo_file
D8: RDT
D10: SI
D13: Versione_file
D14: Tool

Sheet Menu
B1: RACCOLTA DATI TARIFFARI | F1: Per la compilazione seguire l'ordine dei fogli | K1: RACCOLTA DATI "Qualità tecnica e contrattuale, PdI e POS"
B2: ATO | E2: GESTORE
B3: ID_ATO | C3: ATO | D3: campo_vuoto | E3: ID_Aeeg_Gestore | F3: Gestore | H3: DATA CALCOLO
B4: 1202 | C4: ATO 2 - LAZIO CENTRALE ROMA | E4: 13989 | F4: ACEA ATO2 S.P.A. | H4: Preview_RDT2024
F6: Indicare la natura dei dati forniti per l'anno 2023
F7: dati consuntivi
B8: Sono presenti Errori | C8: elenco schede: | G8: foglio | I8: nomi delle tabelle | K8: Sono presenti Errori | L8: elenco schede: | P8: foglio | R8: nomi delle tabelle
C9: Dati tecnici | G9: Dati_tecnici | H9: scrittura | L9: QT-Acquedotto | P9: QT-Acquedotto | Q9: lettura/scrittura
C10: Dati di conto economico | G10: Dati_conto_economico | H10: scrittura | L10: QT-Fognatura | P10: QT-Fognatura | Q10: lettura/scrittura
C11: Altri dati economico finanziari | G11: Altri_dati_eco_fin | H11: scrittura | L11: QT-Depurazione | P11: QT-Depurazione | Q11: lettura/scrittura
C12: Finanziamenti | G12: finanziamenti | H12: scrittura | I12: finanziamenti | L12: QT-Altri dati | P12: QT-Altri dati | Q12: lettura/scrittura
C13: Elenco soggetti proprietari | G13: soggetti_proprietari | H13: lettura/scrittura | I13: Elenco_Proprietari | L13: QT-Resilienza | P13: QT-Resilienza | Q13: lettura/scrittura
C14: Corrispettivi su infrastrutture di terzi | G14: Corrispettivi_proprietari | H14: lettura/scrittura | I14: Corrispettivi_Proprietari | L14: Riepilogo RQTI | P14: Riepilogo_RQTI | Q14: lettura/scrittura
C15: Servizi all'ingrosso: soggetti | G15: Soggetti_Scambio | H15: scrittura | I15: Soggetti_Elenco | L15: Programma degli Interventi: legenda | P15: PdI-legenda | Q15: lettura
C16: Servizi all'ingrosso: vendita | G16: Vendita_Servizi_ingrosso | H16: scrittura | I16: Vendita_Servizi | L16: Programma degli Interventi: cronoprogramma_investimenti | P16: PdI-crono_inv | Q16: lettura/scrittura | R16: crono_investimenti
C17: Servizi all'ingrosso: acquisto | G17: Acquisto_Servizi_ingrosso | H17: scrittura | I17: Acquisto_Servizi | L17: Programma degli Interventi: POS - Piano Opere Strategiche | P17: POS-Piano_Opere_Strategiche | Q17: lettura/scrittura | R17: crono_pos
C18: Nuovi investimenti | G18: Nuovi_Investimenti | H18: scrittura | I18: Nuovi_Investimenti | L18: Programma degli Interventi: cronoprogramma_gestionale | P18: PdI-crono_ges | Q18: lettura/scrittura | R18: crono_gestionale
C19: Dismissioni | G19: Dismissioni | H19: scrittura | I19: Dismissioni | L19: Programma degli Interventi: riepilogo | P19: PdI-riepilogo | Q19: lettura
C20: Ammortamento finanziario | G20: Ammortamento_Finanziario | H20: lettura/scrittura | I20: AmmortamentoFinanziario | L20: Riepilogo RQSII | P20: Riepilogo_RQSII | Q20: lettura/scrittura
C21: Informazioni su aggregazioni (anche ai fini dello schema di convergenza) | G21: Info_eventuali_aggregazioni | H21: scrittura | I21: Info_Soggetti_Aggregati
C22: Elenco Bacini Tariffari | G22: Elenco_Bacini_Tariffari | H22: scrittura | I22: BaciniTariffariElenco
C23: Bacini Tariffari e Comuni per Bacino Tariffario | G23: Bacini_Tariffari_Comuni | H23: scrittura | I23: Bacini_Tariffari_Comuni | L23: =+IF(Controllo_UPLOAD!E2="NO","ATTENZIONE, IL FILE NON PUÒ ESSERE CARICATO SUL PORTALE","") -> 
C24: Struttura dei corrispettivi | G24: Struttura_corrispettivi | H24: scrittura
C25: TIMSII - Consapevolezza nei consumi per utenze raggruppate | G25: Titolo 6 TIMSII ut_raggruppate | H25: scrittura
C26: Ricavi tariffari - Collettamento e depurazione reflui industriali | G26: Ricavi_Coll_Dep | H26: lettura/scrittura
C27: Ricavi tariffari totali per Bacino Tariffario | G27: Ricavi_bacini_tariffari | H27: lettura/scrittura | I27: Bacini_Tariffari_Ricavi
C28: Informazioni per completamento proposta tariffaria | G28: Input_per_calcoli_finali | H28: lettura/scrittura
C29: Vincolo riconosciuto ai ricavi del gestore: riepilogo | G29: VRG_riepilogo | H29: lettura/scrittura
C30: Dati anni precedenti | G30: Dati_Anni_precedenti | H30: lettura
C31: Frontiera efficiente | G31: Frontiera_efficiente | H31: lettura/scrittura
C32: Immobilizzazioni storiche | G32: IMN_cespiti_anni_precedenti | H32: lettura | I32: IMN_cespiti_anni_prec
C33: Conferma investimenti preconsuntivi | G33: Conferma_investimenti | H33: lettura/scrittura | I33: ConfermaInvestimenti
C34: Immobilizzazioni dei proprietari | G34: IMN_Proprietari | H34: lettura | I34: cespiti_proprietari
C35: DCUIT | G35: dcuit | H35: calcolo
C36: Ricostruzione immobilizzazioni del gestore | G36: IMN_consolidamento | H36: lettura
C37: Calcolo IMN gestore | G37: IMN_gestore | H37: lettura
C38: FRAMEWORK SCHEMI | G38: framework_schemi | H38: calcolo
C39: VRG TETA | G39: vrg_teta | H39: calcolo
C40: CAPEX | G40: capex | H40: calcolo
C41: FoNI | G41: FoNI | H41: calcolo
C42: OPEX | G42: opex | H42: calcolo
C43: ERC | G43: erc | H43: calcolo
C44: RC | G44: rc | H44: calcolo
C45: Schema di convergenza | G45: Schema di convergenza | H45: calcolo
C46: PEF - Piano tariffario | G46: piano_tariffario | H46: lettura/scrittura
C47: PEF - Conto economico | G47: conto_economico | H47: scrittura
C48: PEF - Stato patrimoniale | G48: Stato_patrimoniale | H48: scrittura
C49: PEF - Rendiconto finanziario | G49: rendiconto_finanziario | H49: scrittura
C50: Elenco Gestori | G50: TT_Gestori | H50: fogli di supporto
C51: Tabelle di supporto anagrafica territorio | G51: TT_Comuni_ATO | H51: fogli di supporto
C52: Tabelle di riferimento (per i menu) | G52: TT_Tabelle_Riferimento | H52: fogli di supporto
C53: Parametri | G53: TT_parametri | H53: sola lettura
C54: Riepilogo IMN | G54: TT_riepilogo_IMN | H54: sola lettura

Sheet Dati_tecnici
B1: DATI TECNICI
B2: FORNITURA ELETTRICA | E2: ANNO 2022 | F2: ANNO 2023 | G2: ANNO 2021 | M2: Errore compilazione | N2: Errore dati EE | O2: Errore dati pop | P2: Sono presenti errori
C3: Totale consumo di energia elettrica | D3: kWh | E3: =+E5+E6 -> 386165781.5 | F3: 335575639 | G3: 351522302.3 | M3: =+COUNTA(E5:F5,E8:F8,E10:F10,E12:F12,E35,E36,E37,E38,E39,E40,G5,G8,G12)<>17 -> FALSE | N3: =+MIN(E5:F5,E8:F8,E10:F10,G5,G8)<=0 -> FALSE | O3: =+OR(COUNT(E15,E23,E29)=0,COUNT(F15,F23,F29)=0) -> FALSE | P3: =+OR(M3:O3) -> FALSE
C4: di cui, in salvaguardia | D4: kWh | E4: 1133742 | F4: 201957
C5: Energia elettrica, quantità acquistata e consumata | D5: kWh | E5: 386165781.5 | F5: 335575639 | G5: 351522302.3
C6: Energia elettrica, quantità autoprodotta e consumata | D6: kWh | E6: 0 | F6: 0 | G6: 0
C7: I costi di produzione dell’energia elettrica autoprodotta e consumata, ivi compresi quelli di capitale, non sono coperti da altre componenti tariffarie | D7: SI/NO | E7: 0 | F7: 0
C8: Costo energia elettrica a bilancio | D8: Euro | E8: 44041129.76 | F8: 84306660.76 | G8: 47571281.95
C9: di cui, in salvaguardia | D9: Euro | E9: 427748.27 | F9: 72547
C10: Costo medio della fornitura elettrica | D10: Euro/kWh | E10: 0.1140472094 | F10: 0.251229979
C11: Costo medio della fornitura elettrica per l'acquisto in regime di salvaguardia | D11: Euro/kWh | E11: 0.3772888982 | F11: 0.359220032
C12: Si esclude di avere acquistato energia elettrica in regime di salvaguardia per almeno 4 mesi | D12: SI/NO | E12: NO | F12: NO | G12: NO
B13: SERVIZIO ACQUEDOTTO
C14: Numero di comuni serviti (ComA) | D14: N | E14: 105 | F14: 105
C15: Popolazione residente servita (PRA) | D15: N | E15: 3942214.606 | F15: 3942214.606
C16: Volume di acqua fatturato (A20) | D16: m3 | E16: 348457921 | F16: 347625497
C17: Utenze totali (UtT) | D17: N | E17: 751599 | F17: 757666
C18: Popolazione fluttuante (PFA) | D18: N | E18: 814927 | F18: 814927
C19: Superficie (SUA) | D19: km2 | E19: 4.874 | F19: 4.874
C20: Lunghezza rete (L) | D20: km | E20: 15950 | F20: 16380.86
B21: SERVIZIO FOGNATURA
C22: Numero di comuni serviti (ComF) | D22: N | E22: 95 | F22: 97
C23: Popolazione residente servita (PRF) | D23: N | E23: 3595406.132 | F23: 3610356.336
C24: Lunghezza rete fognaria (LL) | D24: km | E24: 7580 | F24: 7801.54
C25: Popolazione fluttuante (PFF) | D25: N | E25: 799395 | F25: 801247
C26: Superficie (SUF) | D26: km2 | E26: 4593 | F26: 4672
B27: SERVIZIO DEPURAZIONE | E27: 0 | F27: 0
C28: Numero di comuni serviti (ComD) | D28: N | E28: 91 | F28: 92
C29: Popolazione residente servita (PRD) | D29: N | E29: 3506213.296 | F29: 3547695.76
C30: Popolazione fluttuante (PFD) | D30: N | E30: 777993 | F30: 778839
C31: Superficie (SUD) | D31: km2 | E31: 4.489 | F31: 4528
C32: Abitanti Equivalenti serviti da depurazione | D32: A.E. | E32: 3699517 | F32: 3589427
B34: TERRITORIO GESTITO E AFFIDAMENTO
C35: Tipo affidamento | D35: - | E35: Affidamento del SII
C36: Data inizio affidamento | D36: gg/mm/aaaa | E36: 2003-01-01
C37: Data fine affidamento | D37: gg/mm/aaaa | E37: 2032-12-31
C38: Presenza Carta dei servizi | D38: SI/NO | E38: SI
C39: Assenza di un consumo minimo impegnato per la fatturazione delle utenze | D39: SI/NO | E39: SI
C40: Versamento delle componenti perequative a CSEA | D40: SI/NO | E40: SI

Sheet Dati_conto_economico
B1: DATI DI CONTO ECONOMICO | Q1: Sono presenti errori | R1: errore_voci_di_cui | S1: mancata_compilazione
C2: ANNO 2022 | I2: ANNO 2023 | Q2: =+OR(R2:S2) -> FALSE | R2: =+OR(P:P) -> FALSE | S2: =SUM(C:M)=0 -> FALSE
C3: Totale SII | D3: di cui ERC | E3: SII escluso ERC | F3: Altre attività idriche (c.d. Attività b) | G3: Attività diverse | I3: Totale SII | J3: di cui ERC | K3: SII escluso ERC | L3: Altre attività idriche (c.d. Attività b) | M3: Attività diverse | O3: n_riga | P3: errore compilazione
A4: VALORE DELLA PRODUZIONE (Euro) | C4: =C5+C7+C8+C9+C11 -> 798980973.9 | E4: =+C4-D4 -> 798980973.9 | F4: =F5+F7+F8+F9+F11 -> 12916140.18 | G4: =G5+G7+G8+G9+G11 -> 4749356.47 | I4: =I5+I7+I8+I9+I11 -> 867135602.6 | K4: =+I4-J4 -> 867135602.6 | L4: =L5+L7+L8+L9+L11 -> 15414520.53 | M4: =M5+M7+M8+M9+M11 -> 4630539.56 | O4: 0 | P4: =OR(C13>C4,F13>F4,G13>G4,I13>I4,L13>L4,M13>M4) -> FALSE
B5: A1) Ricavi delle vendite e delle prestazioni | C5: 698254987.9 | E5: =+C5-D5 -> 698254987.9 | F5: 5413657.63 | G5: 4000000 | I5: 759037150.5 | K5: =+I5-J5 -> 759037150.5 | L5: 6304681.71 | M5: 3800070 | O5: 1
B6: di cui da altre imprese del gruppo | C6: 5031758.77 | E6: =+C6-D6 -> 5031758.77 | F6: 94033.09 | G6: 0 | I6: 4967627.78 | K6: =+I6-J6 -> 4967627.78 | L6: 189034.59 | M6: 70 | O6: 2 | P6: =OR(C6>C5,F6>F5,G6>G5,I6>I5,L6>L5,M6>M5) -> FALSE
B7: A2) Variazioni rimanenze di prodotti in corso di lavorazione, semilavorati e finiti | C7: 0 | E7: 0 | F7: 0 | G7: 0 | I7: 0 | K7: 0 | L7: 0 | M7: 0 | O7: 3
B8: A3) Variazioni dei lavori in corso su ordinazione | C8: 0 | E8: 0 | F8: 0 | G8: 0 | I8: 0 | K8: 0 | L8: 0 | M8: 0 | O8: 4
B9: A4) Incrementi di immobilizzazioni per lavori interni (inclusi costi del personale) | C9: 65284541.6 | E9: 65284541.6 | F9: 41699.98 | G9: 41666.47 | I9: 67886985.32 | K9: 67886985.32 | L9: 77219.1 | M9: 66902.08 | O9: 5
B10: di cui per realizzazione allacciamenti idrici e fognari | C10: 3062372.72 | E10: 3062372.72 | I10: 2946617.64 | K10: 2946617.64 | O10: 6 | P10: =OR(C10>C9,F10>F9,G10>G9,I10>I9,L10>L9,M10>M9) -> FALSE
B11: A5) Altri ricavi e proventi | C11: 35441444.37 | E11: 35441444.37 | F11: 7460782.57 | G11: 707690 | I11: 40211466.8 | K11: 40211466.8 | L11: 9032619.72 | M11: 763567.48 | O11: 7
B12: di cui da altre imprese del gruppo | C12: 363627 | E12: 363627 | F12: 4799759.9 | G12: 52580.39 | I12: 1262519.22 | K12: 1262519.22 | L12: 4032976.11 | M12: 56213.92 | O12: 8 | P12: =OR(C12>C11,F12>F11,G12>G11,I12>I11,L12>L11,M12>M11) -> FALSE
A13: ULTERIORI SPECIFICAZIONI DEI RICAVI (Euro) | C13: =SUM(C14:C40) -> 733696432.3 | E13: =+C13-D13 -> 733696432.3 | F13: =SUM(F14:F40) -> 11668223.81 | G13: =SUM(G14:G40) -> 4707690 | I13: =SUM(I14:I40) -> 800149876.4 | K13: =+I13-J13 -> 800149876.4 | L13: =SUM(L14:L40) -> 12228525.97 | M13: =SUM(M14:M40) -> 4563637.48 | O13: 9
B14: Ricavi da articolazione tariffaria | C14: 683702203 | E14: =+C14-D14 -> 683702203 | I14: 744404201.2 | K14: =+I14-J14 -> 744404201.2 | O14: 10
B15: Vendita di acqua all’ingrosso | C15: 8511344.49 | E15: 8511344.49 | I15: 7539336 | K15: 7539336 | O15: 11
B16: Acquedotto (utenti non allacciati alla pubblica fognatura) | C16: 0 | E16: 0 | I16: 0 | K16: 0 | O16: 13
B17: Vendita di acqua non potabile o ad uso industriale | C17: 0 | E17: 0 | F17: 3479439.97 | I17: 0 | K17: 0 | L17: 3531103.65 | O17: 14
B18: Vendita di acqua forfetaria | C18: 0 | E18: 0 | I18: 0 | K18: 0 | O18: 15
B19: Fornitura bocche antincendio | C19: -2.273736754e-13 | E19: -2.273736754e-13 | I19: 1.278976924e-13 | K19: 1.278976924e-13 | O19: 16
B20: Fognatura e depurazione civile (approvvigionamento autonomo) | C20: 0 | E20: 0 | I20: 0 | K20: 0 | O20: 17
B21: Fognatura e depurazione di acque reflue industriali | C21: 63494.75 | E21: 63494.75 | I21: 45684.52 | K21: 45684.52 | O21: 18
B22: Contributi di allacciamento | C22: 2650567.97 | E22: 2650567.97 | I22: 3910677.14 | K22: 3910677.14 | O22: 19
B23: Prestazioni e servizi accessori | C23: 3732622.93 | E23: 3732622.93 | F23: 1400 | I23: 3531494.67 | K23: 3531494.67 | L23: 0 | O23: 20
B24: Vendita di acqua con autobotte | C24: 0 | E24: 0 | F24: 123124.51 | I24: 0 | K24: 0 | L24: 137066.29 | O24: 22
B25: Trattamento percolati | F25: 0 | L25: 0 | O25: 23
B26: Trattamento bottini | F26: 0 | L26: 0 | O26: 24
B27: Gestione fognature bianche (v. comma 1.1 All. A. del 639/2023/R/idr) | C27: 0 | E27: 0 | G27: 0 | I27: 0 | K27: =+I27-J27 -> 0 | M27: 0 | O27: 25
B28: Pulizia e manutenzione caditoie stradali (v. comma 1.1 All. A. del 639/2023/R/idr) | C28: 0 | E28: 0 | G28: 0 | I28: 0 | K28: 0 | M28: 0 | O28: 26
B29: Installazione/gestione bocche antincendio | F29: 0 | L29: 0 | O29: 27
B30: Vendita di servizi a terzi | F30: 189970.79 | G30: 4000000 | L30: 544022.74 | M30: 3800070 | O30: 28
B31: Lavori conto terzi | C31: 0 | E31: 0 | F31: 1590603.28 | G31: 0 | I31: 0 | K31: =+I31-J31 -> 0 | L31: 1876861.68 | M31: 0 | O31: 29
B32: Spurgo pozzi neri | F32: 0 | L32: 0 | O32: 30
B33: Rilascio autorizzazioni allo scarico | F33: 0 | L33: 0 | O33: 31
B34: Lottizzazioni | F34: 30519.02 | G34: 0 | L34: 215627.35 | M34: 0 | O34: 32
B35: Riuso delle acque di depurazione | F35: 0 | L35: 0 | O35: 33
B36: Case dell’acqua | F36: 0 | L36: 0 | O36: 34
B37: Proventi straordinari | C37: 33689685.78 | E37: 33689685.78 | F37: 1088629.51 | G37: 2986.55 | I37: 37929298.99 | K37: =+I37-J37 -> 37929298.99 | L37: 4050 | M37: 0 | O37: 35
B38: Contributi in conto esercizio | C38: 0 | E38: 0 | F38: 0 | G38: 0 | I38: 901259.09 | K38: 901259.09 | L38: 1293378.36 | M38: 0 | O38: 36
B39: Rimborsi e indennizzi | C39: 1345681.3 | E39: 1345681.3 | F39: 4708666.04 | G39: 52580.39 | I39: 1887924.78 | K39: 1887924.78 | L39: 4190177.31 | M39: 49999.98 | O39: 37
B40: Ricavi da altre attività (non inclusi nelle suddette voci) | C40: 832.07 | F40: 455870.69 | G40: 652123.06 | I40: 0 | L40: 436238.59 | M40: 713567.5 | O40: 38
O41: 39
A42: COSTI DELLA PRODUZIONE (Euro) | C42: =C43+C46++C59+C62+C65+SUM(C69:C72) -> 620952568.4 | D42: =D43+D46++D59+D62+D65+SUM(D69:D72) -> 29665618.74 | E42: =+C42-D42 -> 591286949.7 | F42: =F43+F46++F59+F62+F65+SUM(F69:F72) -> 4878162.82 | G42: =G43+G46++G59+G62+G65+SUM(G69:G72) -> 1751308.54 | I42: =I43+I46++I59+I62+I65+SUM(I69:I72) -> 648437598.7 | J42: =J43+J46++J59+J62+J65+SUM(J69:J72) -> 29863165.26 | K42: =+I42-J42 -> 618574433.5 | L42: =L43+L46++L59+L62+L65+SUM(L69:L72) -> 7063420.81 | M42: =M43+M46++M59+M62+M65+SUM(M69:M72) -> 1805141.34 | O42: 40 | P42: =+OR(C42<(C43+C46+C59+C62+C65+SUM(C69:C72)),D42<(D43+D46+D59+D62+D65+SUM(D69:D72)),F42<(F43+F46+F59+F62+F65+SUM(F69:F72)),G42<(G43+G46+G59+G62+G65+SUM(G69:G72)),I42<(I43+I46+I59+I62+I65+SUM(I69:I72)),J42<(J43+J46+J59+J62+J65+SUM(J69:J72)),L42<(L43+L46+L59+L62+L65+SUM(L69:L72)),M42<(M43+M46+M59+M62+M65+SUM(M69:M72))) -> FALSE
B43: B6) Per materie prime, sussidiarie, di consumo e merci | C43: 25282028.47 | D43: 0 | E43: =+C43-D43 -> 25282028.47 | F43: 7295.27 | G43: 29535.36 | I43: 26962621.47 | J43: 0 | K43: =+I43-J43 -> 26962621.47 | L43: 11072.87 | M43: 121201.52 | O43: 41
B44: di cui per materiali per manutenzioni | C44: 8354143.03 | D44: 0 | E44: =+C44-D44 -> 8354143.03 | F44: 2268.67 | G44: 0 | I44: 7642332.22 | J44: 0 | K44: =+I44-J44 -> 7642332.22 | L44: 4967.27 | M44: 0 | O44: 44
B45: di cui per reagenti | C45: 13133784.64 | D45: 0 | E45: =+C45-D45 -> 13133784.64 | F45: 5026.6 | G45: 29535.36 | I45: 13394215.66 | J45: 0 | K45: =+I45-J45 -> 13394215.66 | L45: 6105.6 | M45: 121201.52 | O45: 45
B46: B7) Per servizi | C46: =+SUM(C47:C58) -> 166097048.6 | D46: =+SUM(D47:D58) -> 10610293.86 | E46: =+C46-D46 -> 155486754.7 | F46: =+SUM(F47:F58) -> 1545518.7 | G46: =+SUM(G47:G58) -> 1671821.65 | I46: =+SUM(I47:I58) -> 209551499.2 | J46: =+SUM(J47:J58) -> 9817869.19 | K46: =+I46-J46 -> 199733630 | L46: =+SUM(L47:L58) -> 2164005.93 | M46: =+SUM(M47:M58) -> 1611303.64 | O46: 46
B47: energia elettrica da altre imprese del gruppo | C47: 43380641.02 | E47: =+C47-D47 -> 43380641.02 | F47: 667.7 | G47: 183295.69 | I47: =83292674.9+901259.09 -> 84193933.99 | K47: =+I47-J47 -> 84193933.99 | L47: 1180.16 | M47: 327412.55 | O47: 47
B48: energia elettrica da altre imprese | C48: 659821.05 | E48: 659821.05 | F48: 0 | G48: 0 | I48: 1012782.66 | K48: 1012782.66 | L48: 0 | M48: 0 | O48: 48
B49: ricerca perdite (da terzi) | C49: 0 | D49: 0 | E49: 0 | F49: 0 | G49: 0 | I49: 0 | J49: 0 | K49: 0 | L49: 0 | M49: 0 | O49: 49
B50: ricerca perdite (da altre imprese del gruppo) | C50: 0 | D50: 0 | E50: 0 | F50: 0 | G50: 0 | I50: 0 | J50: 0 | K50: 0 | L50: 0 | M50: 0 | O50: 50
B51: smaltimento rifiuti (da terzi) | C51: 364508.62 | D51: 0 | E51: 364508.62 | F51: 4387.89 | G51: 0 | I51: 370817.44 | J51: 0 | K51: 370817.44 | L51: 0 | M51: 0 | O51: 51
B52: smaltimento rifiuti (da altre imprese del gruppo) | C52: 0 | D52: 0 | E52: 0 | F52: 0 | G52: 0 | I52: 0 | J52: 0 | K52: 0 | L52: 0 | M52: 0 | O52: 52
B53: trasporto e smaltimento fanghi (da terzi) | C53: 0 | D53: 0 | E53: 0 | F53: 0 | G53: 0 | I53: 0 | J53: 0 | K53: 0 | L53: 0 | M53: 0 | O53: 53
B54: trasporto e smaltimento fanghi (da altre imprese del gruppo) | C54: 22884892.26 | D54: 0 | E54: 22884892.26 | F54: 648.23 | G54: 0 | I54: 26027823.31 | J54: 0 | K54: 26027823.31 | L54: 81108.04 | M54: 0 | O54: 54
B55: manutenzioni ordinarie (da terzi) | C55: 7322451.26 | D55: 0 | E55: 7322451.26 | F55: 1188825.55 | G55: 1459468.05 | I55: 9931370.6 | J55: 0 | K55: 9931370.6 | L55: 1705661.32 | M55: 1283891.09 | O55: 55
B56: manutenzioni ordinarie (da altre imprese del gruppo) | C56: 1.365697244e-08 | D56: 0 | E56: 1.365697244e-08 | F56: 0 | G56: 0 | I56: -3.572495189e-09 | J56: 0 | K56: -3.572495189e-09 | L56: 0 | M56: 0 | O56: 56
B57: altri servizi da altre imprese del gruppo | C57: 56387828.98 | D57: 0 | E57: 56387828.98 | F57: 85329.31 | G57: 29057.91 | I57: 56226601.36 | J57: 0 | K57: 56226601.36 | L57: 83601.64 | M57: 0 | O57: 57
B58: altri servizi da altre imprese | C58: 35096905.36 | D58: 10610293.86 | E58: 24486611.5 | F58: 265660.02 | G58: 0 | I58: 31788169.83 | J58: 9817869.19 | K58: 21970300.64 | L58: 292454.77 | M58: 0 | O58: 58
B59: B8) Per godimento beni di terzi | C59: 46038783.69 | D59: 8781265.1 | E59: 37257518.59 | F59: 0 | G59: 0 | I59: 45920079.84 | J59: 8986057.49 | K59: 36934022.35 | L59: 1019.29 | M59: 0 | O59: 59 | P59: =OR(C59<SUM(C60:C61),D59<SUM(D60:D61),F59<SUM(F60:F61),G59<SUM(G60:G61),I59<SUM(I60:I61),J59<SUM(J60:J61),L59<SUM(L60:L61),M59<SUM(M60:M61)) -> FALSE
B60: di cui per uso impianti di altre imprese del gruppo | C60: 1088349.54 | D60: 1088349.54 | E60: 0 | F60: 0 | G60: 0 | I60: 891386.77 | J60: 891386.77 | K60: 0 | L60: 0 | M60: 0
B61: di cui altre spese verso altre imprese del gruppo | C61: 117129.51 | D61: 0 | E61: 117129.51 | F61: 0 | G61: 0 | I61: 462138.03 | J61: 0 | K61: 462138.03 | L61: 0 | M61: 0
B62: B9) Per il personale | C62: 99204926.07 | D62: 0 | E62: 99204926.07 | F62: 4824284.32 | G62: 49751.53 | I62: 101724584.7 | J62: 0 | K62: 101724584.7 | L62: 4807356.96 | M62: 72636.18 | O62: 74 | P62: =+OR(C62<(C63+C64),D62<(D63+D64),F62<(F63+F64),G62<(G63+G64),I62<(I63+I64),J62<(J63+J64),L62<(L63+L64),M62<(M63+M64)) -> FALSE
B63: di cui per salari e stipendi | C63: 69936383.79 | D63: 0 | E63: 69936383.79 | F63: 3400970.225 | G63: 35073.27946 | I63: 72099464.39 | J63: 0 | K63: 72099464.39 | L63: 3407316.56 | M63: 51482.43848 | O63: 75
B64: di cui per trattamento di fine rapporto (inclusa rivalutazione) | C64: 5110524.006 | D64: 0 | E64: 5110524.006 | F64: 248522.1431 | G64: 2562.941161 | I64: 4492425.284 | J64: 0 | K64: 4492425.284 | L64: 212305.5309 | M64: 3207.804805 | O64: 76
B65: B10) Ammortamenti e svalutazioni | C65: 240002481.3 | D65: 0 | E65: 240002481.3 | F65: 0 | G65: 0 | I65: 232933311.9 | J65: 0 | K65: 232933311.9 | L65: 0 | M65: 0 | O65: 77 | P65: =OR(C65<SUM(C66:C68),D65<SUM(D66:D68),F65<SUM(F66:F68),G65<SUM(G66:G68),I65<SUM(I66:I68),J65<SUM(J66:J68),L65<SUM(L66:L68),M65<SUM(M66:M68)) -> FALSE
B66: di cui per altre svalutazioni delle immobilizzazioni | C66: 1140878.28 | D66: 0 | E66: 1140878.28 | F66: 0 | G66: 0 | I66: 3334499.6 | J66: 0 | K66: 3334499.6 | L66: 0 | M66: 0 | O66: 78
B67: di cui per svalutazione dei crediti compresi nell'attivo circolante e delle disponibilità liquide | C67: 25929605.34 | D67: 0 | E67: 25929605.34 | F67: 0 | G67: 0 | I67: 20143634 | J67: 0 | K67: 20143634 | L67: 0 | M67: 0 | O67: 79
B68: di cui per Immobilizzazioni immateriali: avviamenti, capitalizzazione concessione, etc. | C68: 37382474.4 | D68: 0 | E68: 37382474.4 | F68: 0 | G68: 0 | I68: 25204608.81 | J68: 0 | K68: 25204608.81 | L68: 0 | M68: 0 | O68: 80
B69: B11) Variazione delle rimanenze di materie prime, sussidiarie, di consumo e merci | C69: 473821.29 | E69: 473821.29 | F69: 6910.4 | G69: 0 | I69: -24414.32 | K69: -24414.32 | L69: 2158.91 | M69: 0 | O69: 81
B70: B12) Accantonamenti per rischi | C70: 3846392.09 | E70: 3846392.09 | F70: -1581950 | G70: 0 | I70: 9301445.25 | K70: 9301445.25 | L70: 0 | M70: 0 | O70: 82
B71: B13) Altri accantonamenti | C71: 0 | E71: 0 | F71: 0 | G71: 0 | I71: 0 | K71: 0 | L71: 0 | M71: 0 | O71: 83
B72: B14) Oneri diversi di gestione | C72: 40007086.94 | D72: 10274059.78 | E72: 29733027.16 | F72: 76104.13 | G72: 200 | I72: 22068470.73 | J72: 11059238.58 | K72: 11009232.15 | L72: 77806.85 | M72: -2.273736754e-13 | O72: 84
A73: ULTERIORI SPECIFICAZIONI DEI COSTI (Euro) | C73: =SUM(C74:C92)+C93+C97-C81 -> 102223608.5 | D73: =SUM(D74:D92)+D93+D97-D81 -> 29665618.74 | E73: 72557989.75 | F73: =SUM(F74:F92)+F93+F97-F81 -> 105046.24 | G73: 1560 | I73: =SUM(I74:I92)+I93+I97-I81 -> 80112791.36 | J73: =SUM(J74:J92)+J93+J97-J81 -> 29863165.26 | K73: 50249626.1 | L73: =SUM(L74:L92)+L93+L97-L81 -> 133373.99 | M73: 0 | O73: 85
B74: Accantonamenti e rettifiche in eccesso rispetto all'applicazione di norme tributarie | C74: 0 | E74: 0 | F74: 0 | G74: 0 | I74: 0 | K74: 0 | L74: 0 | M74: 0 | O74: 86
B75: Rettifiche di valori di attività finanziarie | C75: 0 | E75: 0 | F75: 0 | G75: 0 | I75: 0 | K75: 0 | L75: 0 | M75: 0 | O75: 87
B76: Costi connessi all'erogazione di liberalità | C76: 32609.5 | E76: 32609.5 | F76: 0 | G76: 0 | I76: 20691 | K76: 20691 | L76: 0 | M76: 0 | O76: 88
B77: Costi pubblicitari e di marketing (incluse le imposte connesse) | C77: 481378.76 | E77: 481378.76 | F77: 0 | G77: 0 | I77: 294426.4 | K77: 294426.4 | L77: 0 | M77: 0 | O77: 89
B78: Oneri per sanzioni, penalità, risarcimenti automatici e simili | C78: 623841.3 | E78: 623841.3 | F78: 4413.6 | G78: 0 | I78: 401653 | K78: 401653 | L78: 1765.32 | M78: 0 | O78: 90
B79: Oneri straordinari | C79: 24084203.43 | E79: 24084203.43 | F79: 70150.79 | G79: 0 | I79: 3926647.18 | K79: 3926647.18 | L79: 89102.62 | M79: 0 | O79: 91
B80: Spese processuali | C80: 252188.71 | E80: 252188.71 | F80: 0 | G80: 0 | I80: 264589.41 | K80: 264589.41 | L80: 0 | M80: 0 | O80: 115
B81: di cui spese processuali in cui la parte è risultata soccombente | C81: 252188.71 | E81: 252188.71 | F81: 0 | G81: 0 | I81: 264589.41 | K81: 264589.41 | L81: 0 | M81: 0 | O81: 92
B82: Contributi associativi | C82: 359827.91 | E82: 359827.91 | F82: 0 | G82: 0 | I82: 300373.26 | K82: 300373.26 | L82: 0 | M82: 0 | O82: 93
B83: Spese di viaggio e di rappresentanza | C83: 118279.69 | E83: 118279.69 | F83: 0 | G83: 0 | I83: 57059.99 | K83: 57059.99 | L83: 0 | M83: 0 | O83: 94
B84: Spese di funzionamento Ente di governo dell'ambito | C84: 1478673.985 | E84: 1478673.985 | F84: 0 | G84: 0 | I84: 1507612.716 | K84: 1507612.716 | L84: 0 | M84: 0 | O84: 95
B85: Canoni di affitto immobili non industriali | C85: 1216407.56 | E85: 1216407.56 | F85: 0 | G85: 0 | I85: 1272338.143 | K85: 1272338.143 | L85: 0 | M85: 0 | O85: 96
B86: Costi di realizzazione degli allacciamenti idrici e fognari | C86: 3062372.72 | E86: 3062372.72 | I86: 2946617.64 | K86: 2946617.64 | O86: 97
B87: Gestione fognature bianche (v. comma 1.1 All. A. del 639/2023/R/idr) | C87: 0 | E87: 0 | I87: 0 | K87: 0 | O87: 98
B88: Pulizia e manutenzione caditoie stradali (v. comma 1.1 All. A. del 639/2023/R/idr) | C88: 0 | E88: 0 | I88: 0 | K88: 0 | O88: 99
B89: Perdite su crediti per la sola quota parte eccedente l'utilizzo del fondo | C89: 0 | E89: 0 | F89: 0 | G89: 0 | I89: 0 | K89: 0 | L89: 0 | M89: 0 | O89: 100
B90: Costi di strutturazione dei progetti di finanziamento (non capitalizzati) | C90: 0 | E90: 0 | F90: 0 | G90: 0 | I90: 0 | K90: 0 | L90: 0 | M90: 0 | O90: 101
B91: di cui della voce B7): lavorazioni eseguite da terzi di tipo labour intensive (ad esempio gestione call center) e consulenze | C91: 8637227.29 | E91: 8637227.29 | F91: 30481.85 | G91: 1560 | I91: 6842913.29 | K91: 6842913.29 | L91: 42406.05 | M91: 0 | O91: 102 | P91: =OR(C91>C46,F91>F46,G91>G46,I91>I46,L91>L46,M91>M46) -> FALSE
B92: Trasporto e smaltimento fanghi non già inclusi nella voce B7) | C92: 0 | D92: 0 | E92: 0 | F92: 0 | G92: 0 | I92: 0 | J92: 0 | K92: 0 | L92: 0 | M92: 0 | O92: 103
B93: Uso infrastrutture di terzi | C93: =+SUM(C94:C96) -> 31306355.04 | D93: =+SUM(D94:D96) -> 0 | E93: 31306355.04 | F93: =+SUM(F94:F96) -> 0 | G93: =+SUM(G94:G96) -> 0 | I93: =+SUM(I94:I96) -> 31618571.61 | J93: =+SUM(J94:J96) -> 0 | K93: 31618571.61 | L93: =+SUM(L94:L96) -> 0 | M93: =+SUM(M94:M96) -> 0 | O93: 104
B94: rimborso mutui di comuni, aziende speciali, società patrimoniali | C94: 989130.76 | E94: 989130.76 | F94: 0 | G94: 0 | I94: 954805.91 | K94: 954805.91 | L94: 0 | M94: 0 | O94: 105
B95: altri corrispettivi a comuni, aziende speciali, società patrimoniali | C95: 30317224.28 | E95: 30317224.28 | F95: 0 | G95: 0 | I95: 30663765.7 | K95: 30663765.7 | L95: 0 | M95: 0 | O95: 106
B96: corrispettivi a gestori preesistenti, altri proprietari | C96: 0 | E96: 0 | F96: 0 | G96: 0 | I96: 0 | K96: 0 | L96: 0 | M96: 0 | O96: 107
B97: Oneri locali | C97: =+SUM(C98:C103) -> 30570242.59 | D97: =+SUM(D98:D103) -> 29665618.74 | E97: 904623.85 | F97: =+SUM(F98:F103) -> 0 | G97: =+SUM(G98:G103) -> 0 | I97: =+SUM(I98:I103) -> 30659297.72 | J97: =+SUM(J98:J103) -> 29863165.26 | K97: 796132.46 | L97: =+SUM(L98:L103) -> 100 | M97: =+SUM(M98:M103) -> 0 | O97: 108
B98: canoni di derivazione/sottensione idrica | C98: 11773592.73 | D98: 11773592.73 | E98: 0 | F98: 0 | G98: 0 | I98: 10796451.68 | J98: 10796451.68 | K98: 0 | L98: 0 | M98: 0 | O98: 109
B99: contributi per consorzi di bonifica | C99: 7617966.23 | D99: 7617966.23 | E99: 0 | F99: 0 | G99: 0 | I99: 8007475 | J99: 8007475 | K99: 0 | L99: 0 | M99: 0 | O99: 110
B100: contributi a comunità montane | C100: 0 | D100: 0 | E100: 0 | F100: 0 | G100: 0 | I100: 0 | J100: 0 | K100: 0 | L100: 0 | M100: 0 | O100: 111
B101: canoni per restituzione acque | C101: 0 | D101: 0 | E101: 0 | F101: 0 | G101: 0 | I101: 0 | J101: 0 | K101: 0 | L101: 0 | M101: 0 | O101: 112
B102: oneri per la gestione di aree di salvaguardia | C102: 10274059.78 | D102: 10274059.78 | E102: 0 | F102: 0 | G102: 0 | I102: 11059238.58 | J102: 11059238.58 | K102: 0 | L102: 0 | M102: 0 | O102: 113
B103: Altri oneri locali (Canone unico, IMU, TARI) | C103: 904623.85 | E103: 904623.85 | F103: 0 | G103: 0 | I103: 796132.46 | K103: 796132.46 | L103: 100 | M103: 0 | O103: 114
A107: ULTERIORI SPECIFICAZIONI DELLE ALTRE ATTIVITÀ IDRICHE (Euro) | D107: ANNO 2022 | J107: ANNO 2023
A109: Altre attività idriche relative ai seguenti obiettivi di sostenibilità energetica ed ambientale | D109: Ricavi | F109: Costi | J109: Ricavi | L109: Costi
B111: a) efficienza energetica nelle attività e nelle infrastrutture qualora non riconducibile al servizio idrico integrato
B112: b) riduzione dell’utilizzo della plastica mediante la promozione del consumo di acqua potabile anche tramite l’installazione di fontanelle
B113: c) recupero di energia - elettrica e termica - e di materie prime mediante impianti o specifici trattamenti integrati nelle infrastrutture idriche, nonché diffusione di energia da fonti rinnovabili per l’alimentazione degli impianti del servizio idrico integrato
B114: d) riuso dell’acqua trattata (ad esempio ai fini agricoli e industriali) al fine di promuovere una maggiore razionalizzazione della risorsa in particolare in contesti caratterizzati da fenomeni di siccità
O115: 115 | P115: =+OR(SUM(D111:D114)>F4,SUM(J111:J114)>L4,SUM(F111:F114)>F42,SUM(L111:L114)>L42) -> FALSE

Sheet Altri_dati_eco_fin
B1: FONTI DI FINANZIAMENTO
E2: ANNO 2022 | F2: ANNO 2023 | O2: errore nei dati per morosità | P2: errore nei dati in valore assoluto | Q2: errore nelle voci "di cui" | R2: Sono presenti errori
C3: Mezzi Propri | D3: Euro | E3: 896095063.4 | F3: 965350098 | O3: =+OR(E31*F31=0,E31="",F31="") -> FALSE | P3: =+OR(E17:F19="",E24:F26="",E27:F27="",E31:F32="",E48:E53="",F48:F49,F51:F53,E54:F55="",E69:F74="",E66="",E75:F75="") -> TRUE | Q3: =OR(E6>E5,F6>F5,E12>E11,F12>F11,ABS(E51+E50)>ABS(E49),ABS(F51+F50)>ABS(F49)) -> FALSE | R3: =+OR(O3:Q3) -> TRUE
B4: MEZZI DI TERZI
C5: Finanziamenti a medio-lungo termine | D5: Euro | E5: 1422764882 | F5: 1514537470
C6: di cui verso società controllate e collegate e verso controllanti | D6: Euro | E6: 1413818951 | F6: 1506745722
C7: Tasso medio finanziamenti a medio-lungo termine | D7: % | E7: 0.0217 | F7: 0.0218
C8: Prestiti obbligazionari | D8: Euro | E8: 0 | F8: 0
C9: Tasso medio Prestiti obbligazionari | D9: % | E9: 0 | F9: 0
C10: Altre passitivtà consolidate | D10: Euro | E10: 147823710.1 | F10: 171007136.4
C11: Finanziamenti a breve termine | D11: Euro | E11: 39476938.64 | F11: 39433686.98
C12: di cui verso società controllate e collegate e verso controllanti | D12: Euro | E12: 27030229.56 | F12: 28758072.31
C13: Tasso medio Finanziamenti a breve termine | D13: % | E13: 0.0217 | F13: 0.0218
C14: Altre passività correnti | D14: Euro | E14: 424164195.1 | F14: 425015333.7
C15: Debiti tributari | D15: Euro | E15: 11839853.95 | F15: 27151221.39
B16: TFR, FONDO RISCHI E ALTRI
C17: TFR | D17: Euro | E17: 23728667.2 | F17: 23028890.09
C18: Fondo di quiescenza | D18: Euro | E18: 0 | F18: 0
C19: Fondo rischi e oneri | D19: Euro | E19: 13240733.61 | F19: 16512124.57
C20: Fondo rischi su crediti | D20: Euro | E20: 0 | F20: 0
C21: Fondo svalutazione crediti | D21: Euro | E21: 121051404.7 | F21: 128534416
C22: Valore Deposito cauzionale | D22: Euro | E22: 68083160.62 | F22: 70695017.07
C23: Fondo imposte e tasse (anche differite) | D23: Euro | E23: 10501831.3 | F23: 12366547.97
C24: Fondo sentenza Corte Costituzionale 335/2008 | D24: Euro | E24: 0 | F24: 0
C25: Fondo per il ripristino di beni di terzi | D25: Euro | E25: 0 | F25: 0
C26: Fondo vincolato al finanziamento della spesa per investimenti comma 10.1 lett. f) MTI-4 | D26: Euro | E26: 0 | F26: 0
C27: Fondo per il finanziamento di tariffe sociali o di solidarietà | D27: Euro | E27: 0 | F27: 0
B29: ALTRI DATI ECONOMICO FINANZIARI
B30: MOROSITA' | E30: ANNO 2022 | F30: ANNO 2023
C31: Unpaid Ratio (UR) a 24 mesi effettivamente rilevato | D31: % | E31: 0.0320572301 | F31: 0.02485336832
C32: Rimborsi dagli utenti finali relativi alla gestione della morosità | D32: Euro | E32: 0 | F32: 0
C33: Percentuale al fatturato per COdil (comma 28.4 MTI-3) | D33: % | E33: 0 | F33: 0
B34: IMPOSTE
C35: IRES | D35: Euro | E35: 39773680.01 | F35: 45684941.32
C36: IRAP | D36: Euro | E36: 11219403.1 | F36: 12793836.53
C37: Imposte differite | D37: Euro | E37: 2318170.268 | F37: 2976298.644
C38: Imposte anticipate | D38: Euro | E38: 2278.543385 | F38: -3549154.71
C39: Aliquota media di tassazione, IRAP inclusa | D39: % | E39: 0.3076469974 | F39: 0.2975434549
B40: ALTRI IMPORTI IN BOLLETTA
C41: Ui1 (importo fatturato componente Ui1) | D41: Euro | E41: 3651884.01 | F41: 4546219.64
C42: Ui2 (importo fatturato componente Ui2) | D42: Euro | E42: 8195914.213 | F42: 8316757.013
C43: Ui3 (importo fatturato componente Ui3) | D43: Euro | E43: 15539585.6 | F43: 16360307.61
C44: Ui4 (importo fatturato componente Ui4) | D44: Euro | E44: 3660238.31 | F44: 2033660.92
C45: Componente [(1+γOPi,j)*max{0;ΔOpex}] (importo fatturato) | D45: Euro | E45: 3649418.167 | F45: 3695783.071
C46: Altre componenti perequative | D46: Euro
B47: ALTRI DATI PER CALCOLO RC
C48: Contributo versato ad ARERA | D48: Euro | E48: 186447.7 | F48: 191149.31
C49: Costi per variazioni sistemiche o per eventi eccezionali | D49: Euro | E49: 11979774.83 | F49: 15267498.3
C50: di cui: per eventi eccezionali, energia elettrica | D50: Euro | E50: 0
C51: di cui: per eventi eccezionali, altro | D51: Euro | E51: 0 | F51: 0
C52: Costo delle forniture all’ingrosso transfrontaliere | D52: Euro | E52: 0 | F52: 0
C53: Rimborsi effettuati ai sensi sentenza CC 335/2008 ed eccedenti la quota riconosciuta in tariffa | D53: Euro | E53: 0 | F53: 0
C54: FONInoninv - riportare il dato in eccedenza rispetto alle componenti DCUITFoNI e AMMFoNI - comma 28.1 lett. e) MTI-4 | D54: Euro | E54: 0 | F54: 0
C55: FoNIspesa ai sensi del comma 36.3 MTI-4 | D55: Euro | E55: 70004741.8 | F55: 74458337.06
C56: Scostamento in ordine ai volumi fatturati comma 28.3 lett. a) MTI-4 | D56: Euro | F56: 0
C57: Costi operativi e conguagli comma 28.3 lett. b) MTI-4 | D57: Euro | F57: 258021063
B58: ALTRI DATI PER CALCOLO RC | E58: per tariffe 2024 | F58: per tariffe 2025
C59: RCARC - art. 29 lett a) MTI-4 (valori a moneta 2022/2023) | D59: Euro | E59: 0 | F59: 0
C60: RCARC - art. 29 lett b) MTI-4 (valori a moneta 2022/2023) | D60: Euro | E60: 335418.4151 | F60: 79527.24302
C61: RCARC - art. 29 lett c) MTI-4 (valori a moneta 2022/2023) | D61: Euro | E61: 0 | F61: 0
C62: Penalità RQSII - Delibera 476/2023/R/IDR (decurtazione VRG) | D62: Euro | E62: 0 | F62: 0
C63: Penalità RQTI - Delibera 477/2023/R/IDR (decurtazione VRG) | D63: Euro | E63: 0 | F63: 0
B64: ALTRI DATI PER IL CALCOLO DELLA COMPONENTE CAPEX | E64: ANNO 2022 | F64: ANNO 2023 | G64: ANNO 2024 | H64: ANNO 2025 | I64: ANNO 2026 | J64: ANNO 2027 | K64: ANNO 2028 | L64: ANNO 2029
C65: DCUIT capex (dettagliare nella relazione le motivazioni della collocazione tra i capex) | D65: Euro | G65: 0 | H65: 0 | I65: 0 | J65: 0 | K65: 0 | L65: 0
C66: Ammortamento finanziario ammissibile ai sensi del comma 11.8 lettera a) MTI-4 | D66: SI/NO | E66: SI
B67: ALTRI DATI PER IL CALCOLO DELLE COMPONENTI OPEX E RC | E67: ANNO 2022 | F67: ANNO 2023
C68: OpexQT effettivamente sostenuti dal gestore (al lordo degli ERC) (commi 19.8 lett. a) e 28.1 MTI-4) | D68: Euro | E68: ='PdI-riepilogo'!D39+'PdI-riepilogo'!E39+'PdI-riepilogo'!F39 -> 1505623.324 | F68: ='PdI-riepilogo'!I39+'PdI-riepilogo'!G39+'PdI-riepilogo'!H39 -> 1273658.085
C69: OpexaQC - effettivamente sostenuti per adeguamenti agli standard di qualità contrattuale di cui alla deliberazione 655/2015/R/IDR (commi 19.9 lett. a) e 28.1 MTI-4) | D69: Euro | E69: 0 | F69: 0
C70: OpexaQC - effettivamente sostenuti per l'adeguamento agli obiettivi di cui alla deliberazione 547/2019/R/IDR (commi 19.9 lett. a) e 28.1 MTI-4) | D70: Euro | E70: 1749207 | F70: 1715257
C71: OpexQC effettivamente sostenuti dal gestore (commi 18.9 lett. b) MTI-4) | D71: Euro | E71: . | F71: .
C72: Opsocial effettivamente sostenuti dal gestore per bonus integrativo (comma 28.1 MTI-4) | D72: Euro | E72: 835241.48 | F72: 646775.47
C73: Opsocial effettivamente sostenuti dal gestore ex comma 7.3 lett. a), REMSII (comma 28.1 MTI-4) | D73: Euro | E73: 238 | F73: 850
C74: Opmis effettivamente sostenuti dal gestore (comma 28.1 MTI-4) | D74: Euro | E74: 0 | F74: 0
C75: COΔfanghi (rispetto condizionalità comma 23.2 MTI-4) | D75: SI/NO | E75: SI | F75: SI
B76: ULTERIORI SPECIFICAZIONI PER LE COMPONENTI OPEXtel | E76: ANNO 2022 | F76: ANNO 2023 | G76: ANNO 2024 | H76: ANNO 2025 | I76: ANNO 2026 | J76: ANNO 2027 | K76: ANNO 2028 | L76: ANNO 2029
C77: Opexqc - comma 19.9 lettera b) MTI-4 | D77: Euro | G77: 0 | H77: 0 | I77: 0 | J77: 0 | K77: 0 | L77: 0
C78: Opsocial - comma 19.10 lettera a), MTI-4 | D78: Euro | G78: 2500000 | H78: 2500000 | I78: 2500000 | J78: 2500000 | K78: 2500000 | L78: 2500000
C79: Opsocial - comma 19.10 lettera b), MTI-4 | D79: Euro | G79: 0 | H79: 0 | I79: 0 | J79: 0 | K79: 0 | L79: 0
C80: Opmis - comma 19.11 MTI-4 | D80: Euro | G80: 50000 | H80: 125000 | I80: 0 | J80: 0 | K80: 0 | L80: 0
C81: Opwsexp,a - comma 22.2 MTI-4 | D81: Euro | G81: 0 | H81: 0 | I81: 0 | J81: 0 | K81: 0 | L81: 0
C82: Opnew- comma 19.2 MTI-4 (al lordo degli ERC) | D82: Euro | G82: =Input_per_calcoli_finali!I32 -> 0 | H82: =Input_per_calcoli_finali!J32 -> 0 | I82: =Input_per_calcoli_finali!K32 -> 0 | J82: =Input_per_calcoli_finali!L32 -> 0 | K82: =Input_per_calcoli_finali!M32 -> 0 | L82: =Input_per_calcoli_finali!N32 -> 0
C83: Opnew esplicitati come ERC, comma 27.1 MTI-4 | D83: Euro | G83: 0 | H83: 0 | I83: 0 | J83: 0 | K83: 0 | L83: 0
B84: ULTERIORI SPECIFICAZIONI PER I CALCOLI TARIFFARI | G84: ANNO 2024 | H84: ANNO 2025 | I84: ANNO 2026 | J84: ANNO 2027 | K84: ANNO 2028 | L84: ANNO 2029
C85: Anticipazione trend di diminuzione costo energia (in riduzione del costo massimo ammissibile di energia elettrica) | D85: Euro | G85: 0 | H85: 0 | I85: 0 | J85: 0 | K85: 0 | L85: 0
C86: Contributi in c/e (eventuale correzione double counting) | D86: Euro | G86: 0 | H86: =1293378.36+901259.09 -> 2194637.45 | I86: 0 | J86: 0 | K86: 0 | L86: 0
C87: ERCopex da piano tariffario | D87: Euro | G87: =+ERC!C219 -> 30038819.79 | H87: =+ERC!D219 -> 30236366.31 | I87: =+ERC!E219 -> 30236366.31 | J87: =+ERC!F219 -> 30236366.31 | K87: =+ERC!G219 -> 30236366.31 | L87: =+ERC!H219 -> 30236366.31
C88: Resopex - comma 27.2 MTI-4 | D88: Euro | G88: 0 | H88: 0 | I88: 0 | J88: 0 | K88: 0 | L88: 0
B90: ALTRI DATI RELATIVI ALLA GESTIONE
B91: CONSISTENZA DEL PERSONALE | E91: ANNO 2022 | F91: ANNO 2023
C92: Dirigenti | D92: N. | E92: 9 | F92: 12
C93: Quadri | D93: N. | E93: 93 | F93: 86
C94: Impiegati | D94: N. | E94: 942 | F94: 924
C95: Operai | D95: N. | E95: 597 | F95: 599
C96: Collaboratori | D96: N. | E96: 0 | F96: 0
B97: COSTI DEL PERSONALE | E97: ANNO 2022 | F97: ANNO 2023
C98: Dirigenti | D98: Euro | E98: 2124587.18 | F98: 2214529.11
C99: Quadri | D99: Euro | E99: 5101360.51 | F99: 5216959.73
C100: Impiegati | D100: Euro | E100: 57183700.83 | F100: 58604850.34
C101: Operai | D101: Euro | E101: 39669313.4 | F101: 40568238.66
C102: Collaboratori | D102: Euro | E102: 0 | F102: 0
B103: SPESA IN RICERCA E SVILUPPO | E103: ANNO 2022 | F103: ANNO 2023
C104: Totale spesa in ricerca e sviluppo | D104: Euro | E104: 765833.33 | F104: 602619.98

Sheet Finanziamenti
B1: Finanziamenti (capitale di terzi)
A7: n_riga | B7: Importo finanziato (€) | C7: Soggetto finanziatore | D7: Data di sottoscrizione del finanziamento (gg/mm/aaaa) | E7: Data di scadenza del finanziamento (gg/mm/aaaa) | F7: Garanzie richieste | G7: Anno | H7: Quota capitale | I7: Tasso medio d'interesse (%) | J7: Quota interessi (€) | K7: Debito residuo (€)
A8: =+ROW()-7 -> 1 | B8: 1506732383 | C8: società capogruppo | D8: 2020-02-06 | E8: 2032-12-31 | F8: nessuna | G8: 2022 | H8: 0 | I8: 0.0217 | J8: 30806475.01 | K8: 1412372677
A9: =+ROW()-7 -> 2 | B9: 1506732383 | C9: società capogruppo | D9: 2020-02-06 | E9: 2032-12-31 | F9: nessuna | G9: 2023 | H9: 0 | I9: 0.0218 | J9: 33928596.88 | K9: 1506732383

Sheet Soggetti_proprietari
B1: ELENCO SOGGETTI PROPRIETARI
C3: Elenco proprietari infrastrutture per calcolo Mutui/Altri corrispettivi ed eventuale Stratificazione di terzi | O3: Sono presenti Errori
O4: =+OR(O5:Q5) -> FALSE
O5: =OR(INDEX(Elenco_Proprietari,0,15)=TRUE) -> FALSE | P5: =OR(INDEX(Elenco_Proprietari,0,16)) -> FALSE | Q5: =OR(INDEX(Elenco_Proprietari,0,17)) -> FALSE
A7: N_riga | B7: Key_Prop | C7: Soggetto Proprietario | D7: Tipologia di proprietario | E7: P. IVA Proprietario | F7: Codice Istat Comune proprietario | G7: Proprietario ai fini dei corrispettivi AC/MT | H7: Proprietario non più presente ai fini della RAB di terzi | I7: Fusione | J7: Numero Cespiti | K7: Key_Prop_bis | L7: New_Key_prop | M7: Proprietario risultante dalla fusione | N7: per costruzione | O7: Errore Proprietari duplicati | P7: Errore PIVA o CodiceISTAT | Q7: Errore tipologia
A8: =+ROW(A8)-7 -> 1 | B8: =idato & "_" & idgestore & "-" & IF($D8="Comune",$F8,"") & "-" &IF($D8="Comune","",$E8) -> 1202_13989-058001- | C8: Affile | D8: Comune | F8: 058001 | G8: SI | H8: 0 | I8: NO | K8: =B8 -> 1202_13989-058001- | L8: =IF(I8="SI",VLOOKUP(M8,C:K,9,0),K8) -> 1202_13989-058001- | M8: Nuovo comune | N8: =+IF(H8="SI",L8,0) -> 0 | O8: =IF(COUNTIF(B:B,B8)>1,IF(COUNTA(C8:H8)=0,FALSE,TRUE),FALSE) -> FALSE | P8: =IF(COUNTA(E8:F8)<1,IF(COUNTA(C8:H8)=0,FALSE,TRUE),FALSE) -> FALSE | Q8: =IF(COUNTA(D8)<1,IF(COUNTA(C8:H8)=0,FALSE,TRUE),FALSE) -> FALSE
A9: =+ROW(A9)-7 -> 2 | B9: 1202_13989-058002- | C9: Agosta | D9: Comune | F9: 058002 | G9: SI | H9: 0 | K9: =B9 -> 1202_13989-058002- | L9: =IF(I9="SI",VLOOKUP(M9,C:K,9,0),K9) -> 1202_13989-058002- | M9: Nuovo comune | N9: =+IF(H9="SI",L9,0) -> 0 | O9: =IF(COUNTIF(B:B,B9)>1,IF(COUNTA(C9:H9)=0,FALSE,TRUE),FALSE) -> FALSE | P9: =IF(COUNTA(E9:F9)<1,IF(COUNTA(C9:H9)=0,FALSE,TRUE),FALSE) -> FALSE | Q9: =IF(COUNTA(D9)<1,IF(COUNTA(C9:H9)=0,FALSE,TRUE),FALSE) -> FALSE
A10: 3 | B10: 1202_13989-058003- | C10: Albano Laziale | D10: Comune | F10: 058003 | G10: SI | H10: 0 | K10: 1202_13989-058003- | L10: 1202_13989-058003- | M10: Nuovo comune | N10: 0 | O10: FALSE | P10: FALSE | Q10: FALSE
A11: 4 | B11: 1202_13989-058004- | C11: Allumiere | D11: Comune | F11: 058004 | G11: SI | H11: 0 | K11: 1202_13989-058004- | L11: 1202_13989-058004- | M11: Nuovo comune | N11: 0 | O11: FALSE | P11: FALSE | Q11: FALSE
A12: 5 | B12: 1202_13989-058005- | C12: Anguillara Sabazia | D12: Comune | F12: 058005 | G12: SI | H12: 0 | K12: 1202_13989-058005- | L12: 1202_13989-058005- | M12: Nuovo comune | N12: 0 | O12: FALSE | P12: FALSE | Q12: FALSE
A13: 6 | B13: 1202_13989-058006- | C13: Anticoli Corrado | D13: Comune | F13: 058006 | G13: SI | H13: 0 | K13: 1202_13989-058006- | L13: 1202_13989-058006- | M13: Nuovo comune | N13: 0 | O13: FALSE | P13: FALSE | Q13: FALSE
A14: 7 | B14: 1202_13989-058008- | C14: Arcinazzo Romano | D14: Comune | F14: 058008 | G14: SI | H14: 0 | K14: 1202_13989-058008- | L14: 1202_13989-058008- | M14: Nuovo comune | N14: 0 | O14: FALSE | P14: FALSE | Q14: FALSE
A15: 8 | B15: 1202_13989-058117- | C15: Ardea | D15: Comune | F15: 058117 | G15: SI | H15: 0 | K15: 1202_13989-058117- | L15: 1202_13989-058117- | M15: Nuovo comune | N15: 0 | O15: FALSE | P15: FALSE | Q15: FALSE
A16: 9 | B16: 1202_13989-058009- | C16: Ariccia | D16: Comune | F16: 058009 | G16: SI | H16: 0 | K16: 1202_13989-058009- | L16: 1202_13989-058009- | M16: Nuovo comune | N16: 0 | O16: FALSE | P16: FALSE | Q16: FALSE
A17: 10 | B17: 1202_13989-058010- | C17: Arsoli | D17: Comune | F17: 058010 | G17: SI | H17: 0 | K17: 1202_13989-058010- | L17: 1202_13989-058010- | M17: Nuovo comune | N17: 0 | O17: FALSE | P17: FALSE | Q17: FALSE
A18: 11 | B18: 1202_13989-058011- | C18: Artena | D18: Comune | F18: 058011 | G18: SI | H18: 0 | K18: 1202_13989-058011- | L18: 1202_13989-058011- | M18: Nuovo comune | N18: 0 | O18: FALSE | P18: FALSE | Q18: FALSE
A19: 12 | B19: 1202_13989-058012- | C19: Bellegra | D19: Comune | F19: 058012 | G19: SI | H19: 0 | K19: 1202_13989-058012- | L19: 1202_13989-058012- | M19: Nuovo comune | N19: 0 | O19: FALSE | P19: FALSE | Q19: FALSE
A20: 13 | B20: 1202_13989-058013- | C20: Bracciano | D20: Comune | F20: 058013 | G20: SI | H20: 0 | K20: 1202_13989-058013- | L20: 1202_13989-058013- | M20: Nuovo comune | N20: 0 | O20: FALSE | P20: FALSE | Q20: FALSE
A21: 14 | B21: 1202_13989-058014- | C21: Camerata Nuova | D21: Comune | F21: 058014 | G21: SI | H21: 0 | K21: 1202_13989-058014- | L21: 1202_13989-058014- | M21: Nuovo comune | N21: 0 | O21: FALSE | P21: FALSE | Q21: FALSE
A22: 15 | B22: 1202_13989-058015- | C22: Campagnano di Roma | D22: Comune | F22: 058015 | G22: SI | H22: 0 | K22: 1202_13989-058015- | L22: 1202_13989-058015- | M22: Nuovo comune | N22: 0 | O22: FALSE | P22: FALSE | Q22: FALSE
A23: 16 | B23: 1202_13989-058016- | C23: Canale Monterano | D23: Comune | F23: 058016 | G23: SI | H23: 0 | K23: 1202_13989-058016- | L23: 1202_13989-058016- | M23: Nuovo comune | N23: 0 | O23: FALSE | P23: FALSE | Q23: FALSE
A24: 17 | B24: 1202_13989-058017- | C24: Canterano | D24: Comune | F24: 058017 | G24: SI | H24: 0 | K24: 1202_13989-058017- | L24: 1202_13989-058017- | M24: Nuovo comune | N24: 0 | O24: FALSE | P24: FALSE | Q24: FALSE
A25: 18 | B25: 1202_13989-058018- | C25: Capena | D25: Comune | F25: 058018 | G25: SI | H25: 0 | K25: 1202_13989-058018- | L25: 1202_13989-058018- | M25: Nuovo comune | N25: 0 | O25: FALSE | P25: FALSE | Q25: FALSE
A26: 19 | B26: 1202_13989-058019- | C26: Capranica Prenestina | D26: Comune | F26: 058019 | G26: SI | H26: 0 | K26: 1202_13989-058019- | L26: 1202_13989-058019- | M26: Nuovo comune | N26: 0 | O26: FALSE | P26: FALSE | Q26: FALSE
A27: 20 | B27: 1202_13989-058020- | C27: Carpineto Romano | D27: Comune | F27: 058020 | G27: SI | H27: 0 | K27: 1202_13989-058020- | L27: 1202_13989-058020- | M27: Nuovo comune | N27: 0 | O27: FALSE | P27: FALSE | Q27: FALSE
A28: 21 | B28: 1202_13989-058021- | C28: Casape | D28: Comune | F28: 058021 | G28: SI | H28: 0 | K28: 1202_13989-058021- | L28: 1202_13989-058021- | M28: Nuovo comune | N28: 0 | O28: FALSE | P28: FALSE | Q28: FALSE
A29: 22 | B29: 1202_13989-058022- | C29: Castel Gandolfo | D29: Comune | F29: 058022 | G29: SI | H29: 0 | K29: 1202_13989-058022- | L29: 1202_13989-058022- | M29: Nuovo comune | N29: 0 | O29: FALSE | P29: FALSE | Q29: FALSE
A30: 23 | B30: 1202_13989-058023- | C30: Castel Madama | D30: Comune | F30: 058023 | G30: SI | H30: 0 | K30: 1202_13989-058023- | L30: 1202_13989-058023- | M30: Nuovo comune | N30: 0 | O30: FALSE | P30: FALSE | Q30: FALSE
A31: 24 | B31: 1202_13989-058025- | C31: Castel San Pietro Romano | D31: Comune | F31: 058025 | G31: SI | H31: 0 | K31: 1202_13989-058025- | L31: 1202_13989-058025- | M31: Nuovo comune | N31: 0 | O31: FALSE | P31: FALSE | Q31: FALSE
A32: 25 | B32: 1202_13989-058024- | C32: Castelnuovo di Porto | D32: Comune | F32: 058024 | G32: SI | H32: 0 | K32: 1202_13989-058024- | L32: 1202_13989-058024- | M32: Nuovo comune | N32: 0 | O32: FALSE | P32: FALSE | Q32: FALSE
A33: 26 | B33: 1202_13989-058026- | C33: Cave | D33: Comune | F33: 058026 | G33: SI | H33: 0 | K33: 1202_13989-058026- | L33: 1202_13989-058026- | M33: Nuovo comune | N33: 0 | O33: FALSE | P33: FALSE | Q33: FALSE
A34: 27 | B34: 1202_13989-058027- | C34: Cerreto Laziale | D34: Comune | F34: 058027 | G34: SI | H34: 0 | K34: 1202_13989-058027- | L34: 1202_13989-058027- | M34: Nuovo comune | N34: 0 | O34: FALSE | P34: FALSE | Q34: FALSE
A35: 28 | B35: 1202_13989-058028- | C35: Cervara di Roma | D35: Comune | F35: 058028 | G35: SI | H35: 0 | K35: 1202_13989-058028- | L35: 1202_13989-058028- | M35: Nuovo comune | N35: 0 | O35: FALSE | P35: FALSE | Q35: FALSE
A36: 29 | B36: 1202_13989-058029- | C36: Cerveteri | D36: Comune | F36: 058029 | G36: SI | H36: 0 | K36: 1202_13989-058029- | L36: 1202_13989-058029- | M36: Nuovo comune | N36: 0 | O36: FALSE | P36: FALSE | Q36: FALSE
A37: 30 | B37: 1202_13989-058118- | C37: Ciampino | D37: Comune | F37: 058118 | G37: SI | H37: 0 | K37: 1202_13989-058118- | L37: 1202_13989-058118- | M37: Nuovo comune | N37: 0 | O37: FALSE | P37: FALSE | Q37: FALSE
A38: 31 | B38: 1202_13989-058030- | C38: Ciciliano | D38: Comune | F38: 058030 | G38: SI | H38: 0 | K38: 1202_13989-058030- | L38: 1202_13989-058030- | M38: Nuovo comune | N38: 0 | O38: FALSE | P38: FALSE | Q38: FALSE
A39: 32 | B39: 1202_13989-058031- | C39: Cineto Romano | D39: Comune | F39: 058031 | G39: SI | H39: 0 | K39: 1202_13989-058031- | L39: 1202_13989-058031- | M39: Nuovo comune | N39: 0 | O39: FALSE | P39: FALSE | Q39: FALSE
A40: 33 | B40: =idato & "_" & idgestore & "-" & IF($D40="Comune",$F40,"") & "-" &IF($D40="Comune","",$E40) -> 1202_13989-058032- | C40: Civitavecchia | D40: Comune | F40: 058032 | G40: SI | H40: 0 | K40: 1202_13989-058032- | L40: 1202_13989-058032- | M40: Nuovo comune | N40: 0 | O40: FALSE | P40: FALSE | Q40: FALSE
A41: 34 | B41: 1202_13989-058033- | C41: Civitella San Paolo | D41: Comune | F41: 058033 | G41: SI | H41: 0 | K41: 1202_13989-058033- | L41: 1202_13989-058033- | M41: Nuovo comune | N41: 0 | O41: FALSE | P41: FALSE | Q41: FALSE
A42: 35 | B42: 1202_13989-058034- | C42: Colleferro | D42: Comune | F42: 058034 | G42: SI | H42: 0 | K42: 1202_13989-058034- | L42: 1202_13989-058034- | M42: Nuovo comune | N42: 0 | O42: FALSE | P42: FALSE | Q42: FALSE
A43: 36 | B43: 1202_13989-058035- | C43: Colonna | D43: Comune | F43: 058035 | G43: SI | H43: 0 | K43: 1202_13989-058035- | L43: 1202_13989-058035- | M43: Nuovo comune | N43: 0 | O43: FALSE | P43: FALSE | Q43: FALSE
A44: 37 | B44: 1202_13989-058036- | C44: Fiano Romano | D44: Comune | F44: 058036 | G44: SI | H44: 0 | K44: 1202_13989-058036- | L44: 1202_13989-058036- | M44: Nuovo comune | N44: 0 | O44: FALSE | P44: FALSE | Q44: FALSE
A45: 38 | B45: 1202_13989-058037- | C45: Filacciano | D45: Comune | F45: 058037 | G45: SI | H45: 0 | K45: 1202_13989-058037- | L45: 1202_13989-058037- | M45: Nuovo comune | N45: 0 | O45: FALSE | P45: FALSE | Q45: FALSE
A46: 39 | B46: 1202_13989-060034- | C46: Filettino | D46: Comune | F46: 060034 | G46: SI | H46: 0 | K46: 1202_13989-060034- | L46: 1202_13989-060034- | M46: Nuovo comune | N46: 0 | O46: FALSE | P46: FALSE | Q46: FALSE
A47: 40 | B47: 1202_13989-058120- | C47: Fiumicino | D47: Comune | F47: 058120 | G47: SI | H47: 0 | K47: 1202_13989-058120- | L47: 1202_13989-058120- | M47: Nuovo comune | N47: 0 | O47: FALSE | P47: FALSE | Q47: FALSE
A48: 41 | B48: 1202_13989-058122- | C48: Fonte Nuova | D48: Comune | F48: 058122 | G48: SI | H48: 0 | K48: 1202_13989-058122- | L48: 1202_13989-058122- | M48: Nuovo comune | N48: 0 | O48: FALSE | P48: FALSE | Q48: FALSE
A49: 42 | B49: 1202_13989-058038- | C49: Formello | D49: Comune | F49: 058038 | G49: SI | H49: 0 | K49: 1202_13989-058038- | L49: 1202_13989-058038- | M49: Nuovo comune | N49: 0 | O49: FALSE | P49: FALSE | Q49: FALSE
A50: 43 | B50: 1202_13989-058039- | C50: Frascati | D50: Comune | F50: 058039 | G50: SI | H50: 0 | K50: 1202_13989-058039- | L50: 1202_13989-058039- | M50: Nuovo comune | N50: 0 | O50: FALSE | P50: FALSE | Q50: FALSE
A51: 44 | B51: 1202_13989-058040- | C51: Gallicano nel Lazio | D51: Comune | F51: 058040 | G51: SI | H51: 0 | K51: 1202_13989-058040- | L51: 1202_13989-058040- | M51: Nuovo comune | N51: 0 | O51: FALSE | P51: FALSE | Q51: FALSE
A52: 45 | B52: 1202_13989-058041- | C52: Gavignano | D52: Comune | F52: 058041 | G52: SI | H52: 0 | K52: 1202_13989-058041- | L52: 1202_13989-058041- | M52: Nuovo comune | N52: 0 | O52: FALSE | P52: FALSE | Q52: FALSE
A53: 46 | B53: 1202_13989-058042- | C53: Genazzano | D53: Comune | F53: 058042 | G53: SI | H53: 0 | K53: 1202_13989-058042- | L53: 1202_13989-058042- | M53: Nuovo comune | N53: 0 | O53: FALSE | P53: FALSE | Q53: FALSE
A54: 47 | B54: 1202_13989-058043- | C54: Genzano di Roma | D54: Comune | F54: 058043 | G54: SI | H54: 0 | K54: 1202_13989-058043- | L54: 1202_13989-058043- | M54: Nuovo comune | N54: 0 | O54: FALSE | P54: FALSE | Q54: FALSE
A55: 48 | B55: 1202_13989-058044- | C55: Gerano | D55: Comune | F55: 058044 | G55: SI | H55: 0 | K55: 1202_13989-058044- | L55: 1202_13989-058044- | M55: Nuovo comune | N55: 0 | O55: FALSE | P55: FALSE | Q55: FALSE
A56: 49 | B56: 1202_13989-058045- | C56: Gorga | D56: Comune | F56: 058045 | G56: SI | H56: 0 | K56: 1202_13989-058045- | L56: 1202_13989-058045- | M56: Nuovo comune | N56: 0 | O56: FALSE | P56: FALSE | Q56: FALSE
A57: 50 | B57: 1202_13989-058046- | C57: Grottaferrata | D57: Comune | F57: 058046 | G57: SI | H57: 0 | K57: 1202_13989-058046- | L57: 1202_13989-058046- | M57: Nuovo comune | N57: 0 | O57: FALSE | P57: FALSE | Q57: FALSE
A58: 51 | B58: 1202_13989-058047- | C58: Guidonia Montecelio | D58: Comune | F58: 058047 | G58: SI | H58: 0 | K58: 1202_13989-058047- | L58: 1202_13989-058047- | M58: Nuovo comune | N58: 0 | O58: FALSE | P58: FALSE | Q58: FALSE
A59: 52 | B59: 1202_13989-058048- | C59: Jenne | D59: Comune | F59: 058048 | G59: SI | H59: 0 | K59: 1202_13989-058048- | L59: 1202_13989-058048- | M59: Nuovo comune | N59: 0 | O59: FALSE | P59: FALSE | Q59: FALSE
A60: 53 | B60: 1202_13989-058049- | C60: Labico | D60: Comune | F60: 058049 | G60: SI | H60: 0 | K60: 1202_13989-058049- | L60: 1202_13989-058049- | M60: Nuovo comune | N60: 0 | O60: FALSE | P60: FALSE | Q60: FALSE
A61: 54 | B61: 1202_13989-058116- | C61: Ladispoli | D61: Comune | F61: 058116 | G61: SI | H61: 0 | K61: 1202_13989-058116- | L61: 1202_13989-058116- | M61: Nuovo comune | N61: 0 | O61: FALSE | P61: FALSE | Q61: FALSE
A62: 55 | B62: 1202_13989-058050- | C62: Lanuvio | D62: Comune | F62: 058050 | G62: SI | H62: 0 | K62: 1202_13989-058050- | L62: 1202_13989-058050- | M62: Nuovo comune | N62: 0 | O62: FALSE | P62: FALSE | Q62: FALSE
A63: 56 | B63: 1202_13989-058115- | C63: Lariano | D63: Comune | F63: 058115 | G63: SI | H63: 0 | K63: 1202_13989-058115- | L63: 1202_13989-058115- | M63: Nuovo comune | N63: 0 | O63: FALSE | P63: FALSE | Q63: FALSE
A64: 57 | B64: 1202_13989-058051- | C64: Licenza | D64: Comune | F64: 058051 | G64: SI | H64: 0 | K64: 1202_13989-058051- | L64: 1202_13989-058051- | M64: Nuovo comune | N64: 0 | O64: FALSE | P64: FALSE | Q64: FALSE
A65: 58 | B65: 1202_13989-058053- | C65: Mandela | D65: Comune | F65: 058053 | G65: SI | H65: 0 | K65: 1202_13989-058053- | L65: 1202_13989-058053- | M65: Nuovo comune | N65: 0 | O65: FALSE | P65: FALSE | Q65: FALSE
A66: 59 | B66: 1202_13989-058054- | C66: Manziana | D66: Comune | F66: 058054 | G66: SI | H66: 0 | K66: 1202_13989-058054- | L66: 1202_13989-058054- | M66: Nuovo comune | N66: 0 | O66: FALSE | P66: FALSE | Q66: FALSE
A67: 60 | B67: 1202_13989-058055- | C67: Marano Equo | D67: Comune | F67: 058055 | G67: SI | H67: 0 | K67: 1202_13989-058055- | L67: 1202_13989-058055- | M67: Nuovo comune | N67: 0 | O67: FALSE | P67: FALSE | Q67: FALSE
A68: 61 | B68: 1202_13989-058056- | C68: Marcellina | D68: Comune | F68: 058056 | G68: SI | H68: 0 | K68: 1202_13989-058056- | L68: 1202_13989-058056- | M68: Nuovo comune | N68: 0 | O68: FALSE | P68: FALSE | Q68: FALSE
A69: 62 | B69: 1202_13989-058057- | C69: Marino | D69: Comune | F69: 058057 | G69: SI | H69: 0 | K69: 1202_13989-058057- | L69: 1202_13989-058057- | M69: Nuovo comune | N69: 0 | O69: FALSE | P69: FALSE | Q69: FALSE
A70: 63 | B70: 1202_13989-058059- | C70: Mentana | D70: Comune | F70: 058059 | G70: SI | H70: 0 | K70: 1202_13989-058059- | L70: 1202_13989-058059- | M70: Nuovo comune | N70: 0 | O70: FALSE | P70: FALSE | Q70: FALSE
A71: 64 | B71: 1202_13989-058064- | C71: Monte Porzio Catone | D71: Comune | F71: 058064 | G71: SI | H71: 0 | K71: 1202_13989-058064- | L71: 1202_13989-058064- | M71: Nuovo comune | N71: 0 | O71: FALSE | P71: FALSE | Q71: FALSE
A72: 65 | B72: =idato & "_" & idgestore & "-" & IF($D72="Comune",$F72,"") & "-" &IF($D72="Comune","",$E72) -> 1202_13989-058060- | C72: Monte Compatri | D72: Comune | F72: 058060 | G72: SI | H72: 0 | K72: 1202_13989-058060- | L72: 1202_13989-058060- | M72: Nuovo comune | N72: 0 | O72: FALSE | P72: FALSE | Q72: FALSE
A73: =+ROW(A73)-7 -> 66 | B73: 1202_13989-058062- | C73: Montelanico | D73: Comune | F73: 058062 | G73: SI | H73: 0 | K73: =B73 -> 1202_13989-058062- | L73: =IF(I73="SI",VLOOKUP(M73,C:K,9,0),K73) -> 1202_13989-058062- | M73: Nuovo comune | N73: =+IF(H73="SI",L73,0) -> 0 | O73: =IF(COUNTIF(B:B,B73)>1,IF(COUNTA(C73:H73)=0,FALSE,TRUE),FALSE) -> FALSE | P73: =IF(COUNTA(E73:F73)<1,IF(COUNTA(C73:H73)=0,FALSE,TRUE),FALSE) -> FALSE | Q73: =IF(COUNTA(D73)<1,IF(COUNTA(C73:H73)=0,FALSE,TRUE),FALSE) -> FALSE
A74: 67 | B74: 1202_13989-058065- | C74: Monterotondo | D74: Comune | F74: 058065 | G74: SI | H74: 0 | K74: 1202_13989-058065- | L74: 1202_13989-058065- | M74: Nuovo comune | N74: 0 | O74: FALSE | P74: FALSE | Q74: FALSE
A75: 68 | B75: 1202_13989-058068- | C75: Morlupo | D75: Comune | F75: 058068 | G75: SI | H75: 0 | K75: 1202_13989-058068- | L75: 1202_13989-058068- | M75: Nuovo comune | N75: 0 | O75: FALSE | P75: FALSE | Q75: FALSE
A76: 69 | B76: 1202_13989-058069- | C76: Nazzano | D76: Comune | F76: 058069 | G76: SI | H76: 0 | K76: 1202_13989-058069- | L76: 1202_13989-058069- | M76: Nuovo comune | N76: 0 | O76: FALSE | P76: FALSE | Q76: FALSE
A77: 70 | B77: 1202_13989-058070- | C77: Nemi | D77: Comune | F77: 058070 | G77: SI | H77: 0 | K77: 1202_13989-058070- | L77: 1202_13989-058070- | M77: Nuovo comune | N77: 0 | O77: FALSE | P77: FALSE | Q77: FALSE
A78: 71 | B78: 1202_13989-058073- | C78: Olevano Romano | D78: Comune | F78: 058073 | G78: SI | H78: 0 | K78: 1202_13989-058073- | L78: 1202_13989-058073- | M78: Nuovo comune | N78: 0 | O78: FALSE | P78: FALSE | Q78: FALSE
A79: 72 | B79: 1202_13989-056041- | C79: Oriolo Romano | D79: Comune | F79: 056041 | G79: SI | H79: SI | K79: 1202_13989-056041- | L79: 1202_13989-056041- | M79: Nuovo comune | N79: 1202_13989-056041- | O79: FALSE | P79: FALSE | Q79: FALSE
A80: 73 | B80: 1202_13989-058074- | C80: Palestrina | D80: Comune | F80: 058074 | G80: SI | H80: 0 | K80: 1202_13989-058074- | L80: 1202_13989-058074- | M80: Nuovo comune | N80: 0 | O80: FALSE | P80: FALSE | Q80: FALSE
A81: 74 | B81: 1202_13989-058076- | C81: Percile | D81: Comune | F81: 058076 | G81: SI | H81: 0 | K81: 1202_13989-058076- | L81: 1202_13989-058076- | M81: Nuovo comune | N81: 0 | O81: FALSE | P81: FALSE | Q81: FALSE
A82: 75 | B82: 1202_13989-058077- | C82: Pisoniano | D82: Comune | F82: 058077 | G82: SI | H82: 0 | K82: 1202_13989-058077- | L82: 1202_13989-058077- | M82: Nuovo comune | N82: 0 | O82: FALSE | P82: FALSE | Q82: FALSE
A83: 76 | B83: 1202_13989-058078- | C83: Poli | D83: Comune | F83: 058078 | G83: SI | H83: 0 | K83: 1202_13989-058078- | L83: 1202_13989-058078- | M83: Nuovo comune | N83: 0 | O83: FALSE | P83: FALSE | Q83: FALSE
A84: 77 | B84: 1202_13989-058079- | C84: Pomezia | D84: Comune | F84: 058079 | G84: SI | H84: 0 | K84: 1202_13989-058079- | L84: 1202_13989-058079- | M84: Nuovo comune | N84: 0 | O84: FALSE | P84: FALSE | Q84: FALSE
A85: 78 | B85: 1202_13989-058080- | C85: Ponzano Romano | D85: Comune | F85: 058080 | G85: SI | H85: 0 | K85: 1202_13989-058080- | L85: 1202_13989-058080- | M85: Nuovo comune | N85: 0 | O85: FALSE | P85: FALSE | Q85: FALSE
A86: 79 | B86: 1202_13989-058081- | C86: Riano | D86: Comune | F86: 058081 | G86: SI | H86: 0 | K86: 1202_13989-058081- | L86: 1202_13989-058081- | M86: Nuovo comune | N86: 0 | O86: FALSE | P86: FALSE | Q86: FALSE
A87: 80 | B87: 1202_13989-058082- | C87: Rignano Flaminio | D87: Comune | F87: 058082 | G87: SI | H87: 0 | K87: 1202_13989-058082- | L87: 1202_13989-058082- | M87: Nuovo comune | N87: 0 | O87: FALSE | P87: FALSE | Q87: FALSE
A88: 81 | B88: 1202_13989-058083- | C88: Riofreddo | D88: Comune | F88: 058083 | G88: SI | H88: 0 | K88: 1202_13989-058083- | L88: 1202_13989-058083- | M88: Nuovo comune | N88: 0 | O88: FALSE | P88: FALSE | Q88: FALSE
A89: 82 | B89: 1202_13989-058084- | C89: Rocca Canterano | D89: Comune | F89: 058084 | G89: SI | H89: 0 | K89: 1202_13989-058084- | L89: 1202_13989-058084- | M89: Nuovo comune | N89: 0 | O89: FALSE | P89: FALSE | Q89: FALSE
A90: 83 | B90: 1202_13989-058085- | C90: Rocca di Cave | D90: Comune | F90: 058085 | G90: SI | H90: 0 | K90: 1202_13989-058085- | L90: 1202_13989-058085- | M90: Nuovo comune | N90: 0 | O90: FALSE | P90: FALSE | Q90: FALSE
A91: 84 | B91: 1202_13989-058086- | C91: Rocca di Papa | D91: Comune | F91: 058086 | G91: SI | H91: 0 | K91: 1202_13989-058086- | L91: 1202_13989-058086- | M91: Nuovo comune | N91: 0 | O91: FALSE | P91: FALSE | Q91: FALSE
A92: 85 | B92: 1202_13989-058088- | C92: Rocca Priora | D92: Comune | F92: 058088 | G92: SI | H92: 0 | K92: 1202_13989-058088- | L92: 1202_13989-058088- | M92: Nuovo comune | N92: 0 | O92: FALSE | P92: FALSE | Q92: FALSE
A93: 86 | B93: 1202_13989-058089- | C93: Rocca Santo Stefano | D93: Comune | F93: 058089 | G93: SI | H93: 0 | K93: 1202_13989-058089- | L93: 1202_13989-058089- | M93: Nuovo comune | N93: 0 | O93: FALSE | P93: FALSE | Q93: FALSE
A94: 87 | B94: 1202_13989-058087- | C94: Roccagiovine | D94: Comune | F94: 058087 | G94: SI | H94: 0 | K94: 1202_13989-058087- | L94: 1202_13989-058087- | M94: Nuovo comune | N94: 0 | O94: FALSE | P94: FALSE | Q94: FALSE
A95: 88 | B95: 1202_13989-058090- | C95: Roiate | D95: Comune | F95: 058090 | G95: SI | H95: 0 | K95: 1202_13989-058090- | L95: 1202_13989-058090- | M95: Nuovo comune | N95: 0 | O95: FALSE | P95: FALSE | Q95: FALSE
A96: 89 | B96: 1202_13989-058091- | C96: Roma | D96: Comune | F96: 058091 | G96: SI | H96: 0 | K96: 1202_13989-058091- | L96: 1202_13989-058091- | M96: Nuovo comune | N96: 0 | O96: FALSE | P96: FALSE | Q96: FALSE
A97: 90 | B97: 1202_13989-058092- | C97: Roviano | D97: Comune | F97: 058092 | G97: SI | H97: 0 | K97: 1202_13989-058092- | L97: 1202_13989-058092- | M97: Nuovo comune | N97: 0 | O97: FALSE | P97: FALSE | Q97: FALSE
A98: 91 | B98: 1202_13989-058093- | C98: Sacrofano | D98: Comune | F98: 058093 | G98: SI | H98: 0 | K98: 1202_13989-058093- | L98: 1202_13989-058093- | M98: Nuovo comune | N98: 0 | O98: FALSE | P98: FALSE | Q98: FALSE
A99: 92 | B99: 1202_13989-058094- | C99: Sambuci | D99: Comune | F99: 058094 | G99: SI | H99: 0 | K99: 1202_13989-058094- | L99: 1202_13989-058094- | M99: Nuovo comune | N99: 0 | O99: FALSE | P99: FALSE | Q99: FALSE
A100: 93 | B100: 1202_13989-058119- | C100: San Cesareo | D100: Comune | F100: 058119 | G100: SI | H100: 0 | K100: 1202_13989-058119- | L100: 1202_13989-058119- | M100: Nuovo comune | N100: 0 | O100: FALSE | P100: FALSE | Q100: FALSE
A101: 94 | B101: 1202_13989-058095- | C101: San Gregorio da Sassola | D101: Comune | F101: 058095 | G101: SI | H101: 0 | K101: 1202_13989-058095- | L101: 1202_13989-058095- | M101: Nuovo comune | N101: 0 | O101: FALSE | P101: FALSE | Q101: FALSE
A102: 95 | B102: 1202_13989-058096- | C102: San Polo dei Cavalieri | D102: Comune | F102: 058096 | G102: SI | H102: 0 | K102: 1202_13989-058096- | L102: 1202_13989-058096- | M102: Nuovo comune | N102: 0 | O102: FALSE | P102: FALSE | Q102: FALSE
A103: 96 | B103: 1202_13989-058100- | C103: San Vito Romano | D103: Comune | F103: 058100 | G103: SI | H103: 0 | K103: 1202_13989-058100- | L103: 1202_13989-058100- | M103: Nuovo comune | N103: 0 | O103: FALSE | P103: FALSE | Q103: FALSE
A104: 97 | B104: =idato & "_" & idgestore & "-" & IF($D104="Comune",$F104,"") & "-" &IF($D104="Comune","",$E104) -> 1202_13989-058097- | C104: Santa Marinella | D104: Comune | F104: 058097 | G104: SI | H104: 0 | K104: 1202_13989-058097- | L104: 1202_13989-058097- | M104: Nuovo comune | N104: 0 | O104: FALSE | P104: FALSE | Q104: FALSE
A105: 98 | B105: 1202_13989-058098- | C105: Sant'Angelo Romano | D105: Comune | F105: 058098 | G105: SI | H105: 0 | K105: 1202_13989-058098- | L105: 1202_13989-058098- | M105: Nuovo comune | N105: 0 | O105: FALSE | P105: FALSE | Q105: FALSE
A106: 99 | B106: 1202_13989-058099- | C106: Sant'Oreste | D106: Comune | F106: 058099 | G106: SI | H106: 0 | K106: 1202_13989-058099- | L106: 1202_13989-058099- | M106: Nuovo comune | N106: 0 | O106: FALSE | P106: FALSE | Q106: FALSE
A107: 100 | B107: 1202_13989-058101- | C107: Saracinesco | D107: Comune | F107: 058101 | G107: SI | H107: 0 | K107: 1202_13989-058101- | L107: 1202_13989-058101- | M107: Nuovo comune | N107: 0 | O107: FALSE | P107: FALSE | Q107: FALSE
A108: 101 | B108: 1202_13989-058102- | C108: Segni | D108: Comune | F108: 058102 | G108: SI | H108: 0 | K108: 1202_13989-058102- | L108: 1202_13989-058102- | M108: Nuovo comune | N108: 0 | O108: FALSE | P108: FALSE | Q108: FALSE
A109: 102 | B109: 1202_13989-058103- | C109: Subiaco | D109: Comune | F109: 058103 | G109: SI | H109: 0 | K109: 1202_13989-058103- | L109: 1202_13989-058103- | M109: Nuovo comune | N109: 0 | O109: FALSE | P109: FALSE | Q109: FALSE
A110: 103 | B110: 1202_13989-058104- | C110: Tivoli | D110: Comune | F110: 058104 | G110: SI | H110: 0 | K110: 1202_13989-058104- | L110: 1202_13989-058104- | M110: Nuovo comune | N110: 0 | O110: FALSE | P110: FALSE | Q110: FALSE
A111: 104 | B111: 1202_13989-058105- | C111: Tolfa | D111: Comune | F111: 058105 | G111: SI | H111: 0 | K111: 1202_13989-058105- | L111: 1202_13989-058105- | M111: Nuovo comune | N111: 0 | O111: FALSE | P111: FALSE | Q111: FALSE
A112: 105 | B112: 1202_13989-058106- | C112: Torrita Tiberina | D112: Comune | F112: 058106 | G112: SI | H112: 0 | K112: 1202_13989-058106- | L112: 1202_13989-058106- | M112: Nuovo comune | N112: 0 | O112: FALSE | P112: FALSE | Q112: FALSE
A113: 106 | B113: 1202_13989-060080- | C113: Trevi nel Lazio | D113: Comune | F113: 060080 | G113: SI | H113: 0 | K113: 1202_13989-060080- | L113: 1202_13989-060080- | M113: Nuovo comune | N113: 0 | O113: FALSE | P113: FALSE | Q113: FALSE
A114: 107 | B114: 1202_13989-058107- | C114: Trevignano Romano | D114: Comune | F114: 058107 | G114: SI | H114: 0 | K114: 1202_13989-058107- | L114: 1202_13989-058107- | M114: Nuovo comune | N114: 0 | O114: FALSE | P114: FALSE | Q114: FALSE
A115: 108 | B115: 1202_13989-058108- | C115: Vallepietra | D115: Comune | F115: 058108 | G115: SI | H115: 0 | K115: 1202_13989-058108- | L115: 1202_13989-058108- | M115: Nuovo comune | N115: 0 | O115: FALSE | P115: FALSE | Q115: FALSE
A116: 109 | B116: 1202_13989-058110- | C116: Valmontone | D116: Comune | F116: 058110 | G116: SI | H116: 0 | K116: 1202_13989-058110- | L116: 1202_13989-058110- | M116: Nuovo comune | N116: 0 | O116: FALSE | P116: FALSE | Q116: FALSE
A117: 110 | B117: 1202_13989-056056- | C117: Vejano | D117: Comune | F117: 056056 | G117: SI | H117: 0 | K117: 1202_13989-056056- | L117: 1202_13989-056056- | M117: Nuovo comune | N117: 0 | O117: FALSE | P117: FALSE | Q117: FALSE
A118: 111 | B118: 1202_13989-058111- | C118: Velletri | D118: Comune | F118: 058111 | G118: SI | H118: 0 | K118: 1202_13989-058111- | L118: 1202_13989-058111- | M118: Nuovo comune | N118: 0 | O118: FALSE | P118: FALSE | Q118: FALSE
A119: 112 | B119: 1202_13989-058112- | C119: Vicovaro | D119: Comune | F119: 058112 | G119: SI | H119: 0 | K119: 1202_13989-058112- | L119: 1202_13989-058112- | M119: Nuovo comune | N119: 0 | O119: FALSE | P119: FALSE | Q119: FALSE
A120: 113 | B120: 1202_13989-058114- | C120: Zagarolo | D120: Comune | F120: 058114 | G120: SI | H120: 0 | K120: 1202_13989-058114- | L120: 1202_13989-058114- | M120: Nuovo comune | N120: 0 | O120: FALSE | P120: FALSE | Q120: FALSE

Sheet Corrispettivi_proprietari
B1: COSTI ASSOCIATI AI SOGGETTI PROPRIETARI
C3: Imputare per ciascun soggetto proprietario il valore dei Mutui MT e altri corrispettivi AC
AK4: Sono presenti errori
AK5: =OR(INDEX(Corrispettivi_Proprietari,0,COLUMN($AK$8)-COLUMN($A$8)+1)) -> FALSE
G6: Rimborso della rata dei mutui (MT) | N6: Altri corrispettivi (AC) | W6: MT - controllo Anno deliberazione e Tipologia Proprietario | AD6: AC - controllo Anno deliberazione e Tipologia Proprietario
A7: N_riga | B7: Key_Prop | C7: Soggetto Proprietario | D7: Tipologia di proprietario | E7: P. IVA Proprietario | F7: Codice Istat Comune proprietario | G7: Anno di deliberazione | H7: previsto 2024 (€) | I7: previsto 2025 (€) | J7: previsto 2026 (€) | K7: previsto 2027 (€) | L7: previsto 2028 (€) | M7: previsto 2029 (€) | N7: Anno di deliberazione | O7: Canoni connessi alla stipula di ulteriori contratti di finanziamento (tipo contratti di locazione finanziaria di opere di pubblica utilità) | P7: previsto 2024 (€) | Q7: previsto 2025 (€) | R7: previsto 2026 (€) | S7: previsto 2027 (€) | T7: previsto 2028 (€) | U7: previsto 2029 (€) | W7: MT 2024 | X7: MT 2025 | Y7: MT 2026 | Z7: MT 2027 | AA7: MT 2028 | AB7: MT 2029 | AD7: AC 2024 | AE7: AC 2025 | AF7: AC 2026 | AG7: AC 2027 | AH7: AC 2028 | AI7: AC 2029 | AK7: Errore duplicazione soggetto
A8: =+ROW(A8)-7 -> 1 | B8: =IFERROR(IF(VLOOKUP(C8,Soggetti_proprietari!C:K,9,0)=0,"",VLOOKUP(C8,Soggetti_proprietari!C:K,9,0)),"") -> 1202_13989-058001- | C8: Affile | D8: =IFERROR(IF(VLOOKUP(C8,Soggetti_proprietari!C:K,2,0)=0,"",VLOOKUP(C8,Soggetti_proprietari!C:K,2,0)),"") -> Comune | E8: =IFERROR(IF(VLOOKUP(C8,Soggetti_proprietari!C:K,3,0)=0,"",VLOOKUP(C8,Soggetti_proprietari!C:K,3,0)),"") ->  | F8: =IFERROR(IF(VLOOKUP(C8,Soggetti_proprietari!C:K,4,0)=0,"",VLOOKUP(C8,Soggetti_proprietari!C:K,4,0)),"") -> 058001 | G8: 0 | H8: 0 | I8: 0 | J8: 0 | K8: 0 | L8: 0 | M8: 0 | N8: 2002 | O8: NO | P8: 11069.69 | Q8: 11069.69 | R8: 11069.69 | S8: 11069.69 | T8: 11069.69 | U8: 11069.69 | W8: =+IF(AND($G8<=2023,$G8<>"",$D8<>"Altra società privata",$B8<>""),H8,0) -> 0 | X8: 0 | Y8: 0 | Z8: 0 | AA8: 0 | AB8: 0 | AD8: =+IF(AND($N8<=2006,$N8<>"",$D8<>"Altra società privata",$B8<>""),P8,IF($O8="SI",P8,0)) -> 11069.69 | AE8: 11069.69 | AF8: 11069.69 | AG8: 11069.69 | AH8: 11069.69 | AI8: 11069.69 | AK8: =IF(COUNTIF(B:B,B8)>1,IF(AND(G8="",H8="",I8="",N8="",P8="",Q8="",C8=""),FALSE,TRUE),FALSE) -> FALSE
A9: =+ROW(A9)-7 -> 2 | B9: =IFERROR(IF(VLOOKUP(C9,Soggetti_proprietari!C:K,9,0)=0,"",VLOOKUP(C9,Soggetti_proprietari!C:K,9,0)),"") -> 1202_13989-058002- | C9: Agosta | D9: =IFERROR(IF(VLOOKUP(C9,Soggetti_proprietari!C:K,2,0)=0,"",VLOOKUP(C9,Soggetti_proprietari!C:K,2,0)),"") -> Comune | E9: =IFERROR(IF(VLOOKUP(C9,Soggetti_proprietari!C:K,3,0)=0,"",VLOOKUP(C9,Soggetti_proprietari!C:K,3,0)),"") ->  | F9: =IFERROR(IF(VLOOKUP(C9,Soggetti_proprietari!C:K,4,0)=0,"",VLOOKUP(C9,Soggetti_proprietari!C:K,4,0)),"") -> 058002 | G9: 0 | H9: 0 | I9: 0 | J9: 0 | K9: 0 | L9: 0 | M9: 0 | N9: 2002 | O9: NO | P9: 10544.98 | Q9: 10544.98 | R9: 10544.98 | S9: 10544.98 | T9: 10544.98 | U9: 10544.98 | W9: =+IF(AND($G9<=2023,$G9<>"",$D9<>"Altra società privata",$B9<>""),H9,0) -> 0 | X9: =+IF(AND($G9<=2023,$G9<>"",$D9<>"Altra società privata",$B9<>""),I9,0) -> 0 | Y9: =+IF(AND($G9<=2023,$G9<>"",$D9<>"Altra società privata",$B9<>""),J9,0) -> 0 | Z9: =+IF(AND($G9<=2023,$G9<>"",$D9<>"Altra società privata",$B9<>""),K9,0) -> 0 | AA9: =+IF(AND($G9<=2023,$G9<>"",$D9<>"Altra società privata",$B9<>""),L9,0) -> 0 | AB9: =+IF(AND($G9<=2023,$G9<>"",$D9<>"Altra società privata",$B9<>""),M9,0) -> 0 | AD9: =+IF(AND($N9<=2006,$N9<>"",$D9<>"Altra società privata",$B9<>""),P9,IF($O9="SI",P9,0)) -> 10544.98 | AE9: =+IF(AND($N9<=2006,$N9<>"",$D9<>"Altra società privata",$B9<>""),Q9,IF($O9="SI",Q9,0)) -> 10544.98 | AF9: =+IF(AND($N9<=2006,$N9<>"",$D9<>"Altra società privata",$B9<>""),R9,IF($O9="SI",R9,0)) -> 10544.98 | AG9: =+IF(AND($N9<=2006,$N9<>"",$D9<>"Altra società privata",$B9<>""),S9,IF($O9="SI",S9,0)) -> 10544.98 | AH9: =+IF(AND($N9<=2006,$N9<>"",$D9<>"Altra società privata",$B9<>""),T9,IF($O9="SI",T9,0)) -> 10544.98 | AI9: =+IF(AND($N9<=2006,$N9<>"",$D9<>"Altra società privata",$B9<>""),U9,IF($O9="SI",U9,0)) -> 10544.98 | AK9: =IF(COUNTIF(B:B,B9)>1,IF(AND(G9="",H9="",I9="",N9="",P9="",Q9="",C9=""),FALSE,TRUE),FALSE) -> FALSE
A10: 3 | B10: =IFERROR(IF(VLOOKUP(C10,Soggetti_proprietari!C:K,9,0)=0,"",VLOOKUP(C10,Soggetti_proprietari!C:K,9,0)),"") -> 1202_13989-058003- | C10: Albano Laziale | D10: =IFERROR(IF(VLOOKUP(C10,Soggetti_proprietari!C:K,2,0)=0,"",VLOOKUP(C10,Soggetti_proprietari!C:K,2,0)),"") -> Comune | E10: =IFERROR(IF(VLOOKUP(C10,Soggetti_proprietari!C:K,3,0)=0,"",VLOOKUP(C10,Soggetti_proprietari!C:K,3,0)),"") ->  | F10: =IFERROR(IF(VLOOKUP(C10,Soggetti_proprietari!C:K,4,0)=0,"",VLOOKUP(C10,Soggetti_proprietari!C:K,4,0)),"") -> 058003 | G10: 0 | H10: 0 | I10: 0 | J10: 0 | K10: 0 | L10: 0 | M10: 0 | N10: 2002 | O10: NO | P10: 215855.86 | Q10: 215855.86 | R10: 215855.86 | S10: 215855.86 | T10: 215855.86 | U10: 215855.86 | W10: 0 | X10: 0 | Y10: 0 | Z10: 0 | AA10: 0 | AB10: 0 | AD10: 215855.86 | AE10: 215855.86 | AF10: 215855.86 | AG10: 215855.86 | AH10: 215855.86 | AI10: 215855.86 | AK10: FALSE
A11: 4 | B11: =IFERROR(IF(VLOOKUP(C11,Soggetti_proprietari!C:K,9,0)=0,"",VLOOKUP(C11,Soggetti_proprietari!C:K,9,0)),"") -> 1202_13989-058004- | C11: Allumiere | D11: =IFERROR(IF(VLOOKUP(C11,Soggetti_proprietari!C:K,2,0)=0,"",VLOOKUP(C11,Soggetti_proprietari!C:K,2,0)),"") -> Comune | E11: =IFERROR(IF(VLOOKUP(C11,Soggetti_proprietari!C:K,3,0)=0,"",VLOOKUP(C11,Soggetti_proprietari!C:K,3,0)),"") ->  | F11: =IFERROR(IF(VLOOKUP(C11,Soggetti_proprietari!C:K,4,0)=0,"",VLOOKUP(C11,Soggetti_proprietari!C:K,4,0)),"") -> 058004 | G11: 0 | H11: 0 | I11: 0 | J11: 0 | K11: 0 | L11: 0 | M11: 0 | N11: 2002 | O11: NO | P11: 27247.5 | Q11: 27247.5 | R11: 27247.5 | S11: 27247.5 | T11: 27247.5 | U11: 27247.5 | W11: 0 | X11: 0 | Y11: 0 | Z11: 0 | AA11: 0 | AB11: 0 | AD11: 27247.5 | AE11: 27247.5 | AF11: 27247.5 | AG11: 27247.5 | AH11: 27247.5 | AI11: 27247.5 | AK11: FALSE
A12: 5 | B12: =IFERROR(IF(VLOOKUP(C12,Soggetti_proprietari!C:K,9,0)=0,"",VLOOKUP(C12,Soggetti_proprietari!C:K,9,0)),"") -> 1202_13989-058005- | C12: Anguillara Sabazia | D12: =IFERROR(IF(VLOOKUP(C12,Soggetti_proprietari!C:K,2,0)=0,"",VLOOKUP(C12,Soggetti_proprietari!C:K,2,0)),"") -> Comune | E12: =IFERROR(IF(VLOOKUP(C12,Soggetti_proprietari!C:K,3,0)=0,"",VLOOKUP(C12,Soggetti_proprietari!C:K,3,0)),"") ->  | F12: =IFERROR(IF(VLOOKUP(C12,Soggetti_proprietari!C:K,4,0)=0,"",VLOOKUP(C12,Soggetti_proprietari!C:K,4,0)),"") -> 058005 | G12: 0 | H12: 0 | I12: 0 | J12: 0 | K12: 0 | L12: 0 | M12: 0 | N12: 2002 | O12: NO | P12: 81451.7 | Q12: 81451.7 | R12: 81451.7 | S12: 81451.7 | T12: 81451.7 | U12: 81451.7 | W12: 0 | X12: 0 | Y12: 0 | Z12: 0 | AA12: 0 | AB12: 0 | AD12: 81451.7 | AE12: 81451.7 | AF12: 81451.7 | AG12: 81451.7 | AH12: 81451.7 | AI12: 81451.7 | AK12: FALSE
A13: 6 | B13: =IFERROR(IF(VLOOKUP(C13,Soggetti_proprietari!C:K,9,0)=0,"",VLOOKUP(C13,Soggetti_proprietari!C:K,9,0)),"") -> 1202_13989-058006- | C13: Anticoli Corrado | D13: =IFERROR(IF(VLOOKUP(C13,Soggetti_proprietari!C:K,2,0)=0,"",VLOOKUP(C13,Soggetti_proprietari!C:K,2,0)),"") -> Comune | E13: =IFERROR(IF(VLOOKUP(C13,Soggetti_proprietari!C:K,3,0)=0,"",VLOOKUP(C13,Soggetti_proprietari!C:K,3,0)),"") ->  | F13: =IFERROR(IF(VLOOKUP(C13,Soggetti_proprietari!C:K,4,0)=0,"",VLOOKUP(C13,Soggetti_proprietari!C:K,4,0)),"") -> 058006 | G13: 0 | H13: 0 | I13: 0 | J13: 0 | K13: 0 | L13: 0 | M13: 0 | N13: 2002 | O13: NO | P13: 5885.72 | Q13: 5885.72 | R13: 5885.72 | S13: 5885.72 | T13: 5885.72 | U13: 5885.72 | W13: 0 | X13: 0 | Y13: 0 | Z13: 0 | AA13: 0 | AB13: 0 | AD13: 5885.72 | AE13: 5885.72 | AF13: 5885.72 | AG13: 5885.72 | AH13: 5885.72 | AI13: 5885.72 | AK13: FALSE
A14: 7 | B14: =IFERROR(IF(VLOOKUP(C14,Soggetti_proprietari!C:K,9,0)=0,"",VLOOKUP(C14,Soggetti_proprietari!C:K,9,0)),"") -> 1202_13989-058008- | C14: Arcinazzo Romano | D14: =IFERROR(IF(VLOOKUP(C14,Soggetti_proprietari!C:K,2,0)=0,"",VLOOKUP(C14,Soggetti_proprietari!C:K,2,0)),"") -> Comune | E14: =IFERROR(IF(VLOOKUP(C14,Soggetti_proprietari!C:K,3,0)=0,"",VLOOKUP(C14,Soggetti_proprietari!C:K,3,0)),"") ->  | F14: =IFERROR(IF(VLOOKUP(C14,Soggetti_proprietari!C:K,4,0)=0,"",VLOOKUP(C14,Soggetti_proprietari!C:K,4,0)),"") -> 058008 | G14: 0 | H14: 0 | I14: 0 | J14: 0 | K14: 0 | L14: 0 | M14: 0 | N14: 2002 | O14: NO | P14: 8996.11 | Q14: 8996.11 | R14: 8996.11 | S14: 8996.11 | T14: 8996.11 | U14: 8996.11 | W14: 0 | X14: 0 | Y14: 0 | Z14: 0 | AA14: 0 | AB14: 0 | AD14: 8996.11 | AE14: 8996.11 | AF14: 8996.11 | AG14: 8996.11 | AH14: 8996.11 | AI14: 8996.11 | AK14: FALSE
A15: 8 | B15: =IFERROR(IF(VLOOKUP(C15,Soggetti_proprietari!C:K,9,0)=0,"",VLOOKUP(C15,Soggetti_proprietari!C:K,9,0)),"") -> 1202_13989-058117- | C15: Ardea | D15: =IFERROR(IF(VLOOKUP(C15,Soggetti_proprietari!C:K,2,0)=0,"",VLOOKUP(C15,Soggetti_proprietari!C:K,2,0)),"") -> Comune | E15: =IFERROR(IF(VLOOKUP(C15,Soggetti_proprietari!C:K,3,0)=0,"",VLOOKUP(C15,Soggetti_proprietari!C:K,3,0)),"") ->  | F15: =IFERROR(IF(VLOOKUP(C15,Soggetti_proprietari!C:K,4,0)=0,"",VLOOKUP(C15,Soggetti_proprietari!C:K,4,0)),"") -> 058117 | G15: 0 | H15: 0 | I15: 0 | J15: 0 | K15: 0 | L15: 0 | M15: 0 | N15: 2002 | O15: NO | P15: 0 | Q15: 0 | R15: 166841.96 | S15: 166841.96 | T15: 166841.96 | U15: 166841.96 | W15: 0 | X15: 0 | Y15: 0 | Z15: 0 | AA15: 0 | AB15: 0 | AD15: 0 | AE15: 0 | AF15: 166841.96 | AG15: 166841.96 | AH15: 166841.96 | AI15: 166841.96 | AK15: FALSE
A16: 9 | B16: =IFERROR(IF(VLOOKUP(C16,Soggetti_proprietari!C:K,9,0)=0,"",VLOOKUP(C16,Soggetti_proprietari!C:K,9,0)),"") -> 1202_13989-058009- | C16: Ariccia | D16: =IFERROR(IF(VLOOKUP(C16,Soggetti_proprietari!C:K,2,0)=0,"",VLOOKUP(C16,Soggetti_proprietari!C:K,2,0)),"") -> Comune | E16: =IFERROR(IF(VLOOKUP(C16,Soggetti_proprietari!C:K,3,0)=0,"",VLOOKUP(C16,Soggetti_proprietari!C:K,3,0)),"") ->  | F16: =IFERROR(IF(VLOOKUP(C16,Soggetti_proprietari!C:K,4,0)=0,"",VLOOKUP(C16,Soggetti_proprietari!C:K,4,0)),"") -> 058009 | G16: 2002 | H16: 232676.54 | I16: 232676.54 | J16: 232676.54 | K16: 232676.54 | L16: 232676.54 | M16: 232676.54 | N16: 2002 | O16: NO | P16: 0 | Q16: 0 | R16: 0 | S16: 0 | T16: 0 | U16: 0 | W16: 232676.54 | X16: 232676.54 | Y16: 232676.54 | Z16: 232676.54 | AA16: 232676.54 | AB16: 232676.54 | AD16: 0 | AE16: 0 | AF16: 0 | AG16: 0 | AH16: 0 | AI16: 0 | AK16: FALSE
A17: 10 | B17: =IFERROR(IF(VLOOKUP(C17,Soggetti_proprietari!C:K,9,0)=0,"",VLOOKUP(C17,Soggetti_proprietari!C:K,9,0)),"") -> 1202_13989-058010- | C17: Arsoli | D17: =IFERROR(IF(VLOOKUP(C17,Soggetti_proprietari!C:K,2,0)=0,"",VLOOKUP(C17,Soggetti_proprietari!C:K,2,0)),"") -> Comune | E17: =IFERROR(IF(VLOOKUP(C17,Soggetti_proprietari!C:K,3,0)=0,"",VLOOKUP(C17,Soggetti_proprietari!C:K,3,0)),"") ->  | F17: =IFERROR(IF(VLOOKUP(C17,Soggetti_proprietari!C:K,4,0)=0,"",VLOOKUP(C17,Soggetti_proprietari!C:K,4,0)),"") -> 058010 | G17: 0 | H17: 0 | I17: 0 | J17: 0 | K17: 0 | L17: 0 | M17: 0 | N17: 2002 | O17: NO | P17: 10083.47 | Q17: 10083.47 | R17: 10083.47 | S17: 10083.47 | T17: 10083.47 | U17: 10083.47 | W17: 0 | X17: 0 | Y17: 0 | Z17: 0 | AA17: 0 | AB17: 0 | AD17: 10083.47 | AE17: 10083.47 | AF17: 10083.47 | AG17: 10083.47 | AH17: 10083.47 | AI17: 10083.47 | AK17: FALSE
A18: 11 | B18: =IFERROR(IF(VLOOKUP(C18,Soggetti_proprietari!C:K,9,0)=0,"",VLOOKUP(C18,Soggetti_proprietari!C:K,9,0)),"") -> 1202_13989-058011- | C18: Artena | D18: =IFERROR(IF(VLOOKUP(C18,Soggetti_proprietari!C:K,2,0)=0,"",VLOOKUP(C18,Soggetti_proprietari!C:K,2,0)),"") -> Comune | E18: =IFERROR(IF(VLOOKUP(C18,Soggetti_proprietari!C:K,3,0)=0,"",VLOOKUP(C18,Soggetti_proprietari!C:K,3,0)),"") ->  | F18: =IFERROR(IF(VLOOKUP(C18,Soggetti_proprietari!C:K,4,0)=0,"",VLOOKUP(C18,Soggetti_proprietari!C:K,4,0)),"") -> 058011 | G18: 0 | H18: 0 | I18: 0 | J18: 0 | K18: 0 | L18: 0 | M18: 0 | N18: 2002 | O18: NO | P18: 71235.47 | Q18: 71235.47 | R18: 71235.47 | S18: 71235.47 | T18: 71235.47 | U18: 71235.47 | W18: 0 | X18: 0 | Y18: 0 | Z18: 0 | AA18: 0 | AB18: 0 | AD18: 71235.47 | AE18: 71235.47 | AF18: 71235.47 | AG18: 71235.47 | AH18: 71235.47 | AI18: 71235.47 | AK18: FALSE
A19: 12 | B19: =IFERROR(IF(VLOOKUP(C19,Soggetti_proprietari!C:K,9,0)=0,"",VLOOKUP(C19,Soggetti_proprietari!C:K,9,0)),"") -> 1202_13989-058012- | C19: Bellegra | D19: =IFERROR(IF(VLOOKUP(C19,Soggetti_proprietari!C:K,2,0)=0,"",VLOOKUP(C19,Soggetti_proprietari!C:K,2,0)),"") -> Comune | E19: =IFERROR(IF(VLOOKUP(C19,Soggetti_proprietari!C:K,3,0)=0,"",VLOOKUP(C19,Soggetti_proprietari!C:K,3,0)),"") ->  | F19: =IFERROR(IF(VLOOKUP(C19,Soggetti_proprietari!C:K,4,0)=0,"",VLOOKUP(C19,Soggetti_proprietari!C:K,4,0)),"") -> 058012 | G19: 0 | H19: 0 | I19: 0 | J19: 0 | K19: 0 | L19: 0 | M19: 0 | N19: 2002 | O19: NO | P19: 19686.48 | Q19: 19686.48 | R19: 19686.48 | S19: 19686.48 | T19: 19686.48 | U19: 19686.48 | W19: 0 | X19: 0 | Y19: 0 | Z19: 0 | AA19: 0 | AB19: 0 | AD19: 19686.48 | AE19: 19686.48 | AF19: 19686.48 | AG19: 19686.48 | AH19: 19686.48 | AI19: 19686.48 | AK19: FALSE
A20: 13 | B20: =IFERROR(IF(VLOOKUP(C20,Soggetti_proprietari!C:K,9,0)=0,"",VLOOKUP(C20,Soggetti_proprietari!C:K,9,0)),"") -> 1202_13989-058013- | C20: Bracciano | D20: =IFERROR(IF(VLOOKUP(C20,Soggetti_proprietari!C:K,2,0)=0,"",VLOOKUP(C20,Soggetti_proprietari!C:K,2,0)),"") -> Comune | E20: =IFERROR(IF(VLOOKUP(C20,Soggetti_proprietari!C:K,3,0)=0,"",VLOOKUP(C20,Soggetti_proprietari!C:K,3,0)),"") ->  | F20: =IFERROR(IF(VLOOKUP(C20,Soggetti_proprietari!C:K,4,0)=0,"",VLOOKUP(C20,Soggetti_proprietari!C:K,4,0)),"") -> 058013 | G20: 2002 | H20: 210069.3 | I20: 210069.3 | J20: 209236.18 | K20: 207338.74 | L20: 207338.74 | M20: 207338.74 | N20: 2002 | O20: NO | P20: 0 | Q20: 0 | R20: 0 | S20: 0 | T20: 0 | U20: 0 | W20: 210069.3 | X20: 210069.3 | Y20: 209236.18 | Z20: 207338.74 | AA20: 207338.74 | AB20: 207338.74 | AD20: 0 | AE20: 0 | AF20: 0 | AG20: 0 | AH20: 0 | AI20: 0 | AK20: FALSE
A21: 14 | B21: =IFERROR(IF(VLOOKUP(C21,Soggetti_proprietari!C:K,9,0)=0,"",VLOOKUP(C21,Soggetti_proprietari!C:K,9,0)),"") -> 1202_13989-058014- | C21: Camerata Nuova | D21: =IFERROR(IF(VLOOKUP(C21,Soggetti_proprietari!C:K,2,0)=0,"",VLOOKUP(C21,Soggetti_proprietari!C:K,2,0)),"") -> Comune | E21: =IFERROR(IF(VLOOKUP(C21,Soggetti_proprietari!C:K,3,0)=0,"",VLOOKUP(C21,Soggetti_proprietari!C:K,3,0)),"") ->  | F21: =IFERROR(IF(VLOOKUP(C21,Soggetti_proprietari!C:K,4,0)=0,"",VLOOKUP(C21,Soggetti_proprietari!C:K,4,0)),"") -> 058014 | G21: 0 | H21: 0 | I21: 0 | J21: 0 | K21: 0 | L21: 0 | M21: 0 | N21: 2002 | O21: NO | P21: 0 | Q21: 0 | R21: 0 | S21: 0 | T21: 0 | U21: 0 | W21: 0 | X21: 0 | Y21: 0 | Z21: 0 | AA21: 0 | AB21: 0 | AD21: 0 | AE21: 0 | AF21: 0 | AG21: 0 | AH21: 0 | AI21: 0 | AK21: FALSE
A22: 15 | B22: =IFERROR(IF(VLOOKUP(C22,Soggetti_proprietari!C:K,9,0)=0,"",VLOOKUP(C22,Soggetti_proprietari!C:K,9,0)),"") -> 1202_13989-058015- | C22: Campagnano di Roma | D22: =IFERROR(IF(VLOOKUP(C22,Soggetti_proprietari!C:K,2,0)=0,"",VLOOKUP(C22,Soggetti_proprietari!C:K,2,0)),"") -> Comune | E22: =IFERROR(IF(VLOOKUP(C22,Soggetti_proprietari!C:K,3,0)=0,"",VLOOKUP(C22,Soggetti_proprietari!C:K,3,0)),"") ->  | F22: =IFERROR(IF(VLOOKUP(C22,Soggetti_proprietari!C:K,4,0)=0,"",VLOOKUP(C22,Soggetti_proprietari!C:K,4,0)),"") -> 058015 | G22: 0 | H22: 0 | I22: 0 | J22: 0 | K22: 0 | L22: 0 | M22: 0 | N22: 2002 | O22: NO | P22: 46244.89 | Q22: 46244.89 | R22: 46244.89 | S22: 46244.89 | T22: 46244.89 | U22: 46244.89 | W22: 0 | X22: 0 | Y22: 0 | Z22: 0 | AA22: 0 | AB22: 0 | AD22: 46244.89 | AE22: 46244.89 | AF22: 46244.89 | AG22: 46244.89 | AH22: 46244.89 | AI22: 46244.89 | AK22: FALSE
A23: 16 | B23: =IFERROR(IF(VLOOKUP(C23,Soggetti_proprietari!C:K,9,0)=0,"",VLOOKUP(C23,Soggetti_proprietari!C:K,9,0)),"") -> 1202_13989-058016- | C23: Canale Monterano | D23: =IFERROR(IF(VLOOKUP(C23,Soggetti_proprietari!C:K,2,0)=0,"",VLOOKUP(C23,Soggetti_proprietari!C:K,2,0)),"") -> Comune | E23: =IFERROR(IF(VLOOKUP(C23,Soggetti_proprietari!C:K,3,0)=0,"",VLOOKUP(C23,Soggetti_proprietari!C:K,3,0)),"") ->  | F23: =IFERROR(IF(VLOOKUP(C23,Soggetti_proprietari!C:K,4,0)=0,"",VLOOKUP(C23,Soggetti_proprietari!C:K,4,0)),"") -> 058016 | G23: 0 | H23: 0 | I23: 0 | J23: 0 | K23: 0 | L23: 0 | M23: 0 | N23: 2002 | O23: NO | P23: 20154.3 | Q23: 20154.3 | R23: 20154.3 | S23: 20154.3 | T23: 20154.3 | U23: 20154.3 | W23: 0 | X23: 0 | Y23: 0 | Z23: 0 | AA23: 0 | AB23: 0 | AD23: 20154.3 | AE23: 20154.3 | AF23: 20154.3 | AG23: 20154.3 | AH23: 20154.3 | AI23: 20154.3 | AK23: FALSE
A24: 17 | B24: =IFERROR(IF(VLOOKUP(C24,Soggetti_proprietari!C:K,9,0)=0,"",VLOOKUP(C24,Soggetti_proprietari!C:K,9,0)),"") -> 1202_13989-058017- | C24: Canterano | D24: =IFERROR(IF(VLOOKUP(C24,Soggetti_proprietari!C:K,2,0)=0,"",VLOOKUP(C24,Soggetti_proprietari!C:K,2,0)),"") -> Comune | E24: =IFERROR(IF(VLOOKUP(C24,Soggetti_proprietari!C:K,3,0)=0,"",VLOOKUP(C24,Soggetti_proprietari!C:K,3,0)),"") ->  | F24: =IFERROR(IF(VLOOKUP(C24,Soggetti_proprietari!C:K,4,0)=0,"",VLOOKUP(C24,Soggetti_proprietari!C:K,4,0)),"") -> 058017 | G24: 0 | H24: 0 | I24: 0 | J24: 0 | K24: 0 | L24: 0 | M24: 0 | N24: 2002 | O24: NO | P24: 2528.77 | Q24: 2528.77 | R24: 2528.77 | S24: 2528.77 | T24: 2528.77 | U24: 2528.77 | W24: 0 | X24: 0 | Y24: 0 | Z24: 0 | AA24: 0 | AB24: 0 | AD24: 2528.77 | AE24: 2528.77 | AF24: 2528.77 | AG24: 2528.77 | AH24: 2528.77 | AI24: 2528.77 | AK24: FALSE
A25: 18 | B25: =IFERROR(IF(VLOOKUP(C25,Soggetti_proprietari!C:K,9,0)=0,"",VLOOKUP(C25,Soggetti_proprietari!C:K,9,0)),"") -> 1202_13989-058018- | C25: Capena | D25: =IFERROR(IF(VLOOKUP(C25,Soggetti_proprietari!C:K,2,0)=0,"",VLOOKUP(C25,Soggetti_proprietari!C:K,2,0)),"") -> Comune | E25: =IFERROR(IF(VLOOKUP(C25,Soggetti_proprietari!C:K,3,0)=0,"",VLOOKUP(C25,Soggetti_proprietari!C:K,3,0)),"") ->  | F25: =IFERROR(IF(VLOOKUP(C25,Soggetti_proprietari!C:K,4,0)=0,"",VLOOKUP(C25,Soggetti_proprietari!C:K,4,0)),"") -> 058018 | G25: 0 | H25: 0 | I25: 0 | J25: 0 | K25: 0 | L25: 0 | M25: 0 | N25: 2002 | O25: NO | P25: 36148.77 | Q25: 36148.77 | R25: 36148.77 | S25: 36148.77 | T25: 36148.77 | U25: 36148.77 | W25: 0 | X25: 0 | Y25: 0 | Z25: 0 | AA25: 0 | AB25: 0 | AD25: 36148.77 | AE25: 36148.77 | AF25: 36148.77 | AG25: 36148.77 | AH25: 36148.77 | AI25: 36148.77 | AK25: FALSE
A26: 19 | B26: =IFERROR(IF(VLOOKUP(C26,Soggetti_proprietari!C:K,9,0)=0,"",VLOOKUP(C26,Soggetti_proprietari!C:K,9,0)),"") -> 1202_13989-058019- | C26: Capranica Prenestina | D26: =IFERROR(IF(VLOOKUP(C26,Soggetti_proprietari!C:K,2,0)=0,"",VLOOKUP(C26,Soggetti_proprietari!C:K,2,0)),"") -> Comune | E26: =IFERROR(IF(VLOOKUP(C26,Soggetti_proprietari!C:K,3,0)=0,"",VLOOKUP(C26,Soggetti_proprietari!C:K,3,0)),"") ->  | F26: =IFERROR(IF(VLOOKUP(C26,Soggetti_proprietari!C:K,4,0)=0,"",VLOOKUP(C26,Soggetti_proprietari!C:K,4,0)),"") -> 058019 | G26: 0 | H26: 0 | I26: 0 | J26: 0 | K26: 0 | L26: 0 | M26: 0 | N26: 2002 | O26: NO | P26: 2041.98 | Q26: 2041.98 | R26: 2041.98 | S26: 2041.98 | T26: 2041.98 | U26: 2041.98 | W26: 0 | X26: 0 | Y26: 0 | Z26: 0 | AA26: 0 | AB26: 0 | AD26: 2041.98 | AE26: 2041.98 | AF26: 2041.98 | AG26: 2041.98 | AH26: 2041.98 | AI26: 2041.98 | AK26: FALSE
A27: 20 | B27: =IFERROR(IF(VLOOKUP(C27,Soggetti_proprietari!C:K,9,0)=0,"",VLOOKUP(C27,Soggetti_proprietari!C:K,9,0)),"") -> 1202_13989-058020- | C27: Carpineto Romano | D27: =IFERROR(IF(VLOOKUP(C27,Soggetti_proprietari!C:K,2,0)=0,"",VLOOKUP(C27,Soggetti_proprietari!C:K,2,0)),"") -> Comune | E27: =IFERROR(IF(VLOOKUP(C27,Soggetti_proprietari!C:K,3,0)=0,"",VLOOKUP(C27,Soggetti_proprietari!C:K,3,0)),"") ->  | F27: =IFERROR(IF(VLOOKUP(C27,Soggetti_proprietari!C:K,4,0)=0,"",VLOOKUP(C27,Soggetti_proprietari!C:K,4,0)),"") -> 058020 | G27: 0 | H27: 0 | I27: 0 | J27: 0 | K27: 0 | L27: 0 | M27: 0 | N27: 2002 | O27: NO | P27: 32071.14 | Q27: 32071.14 | R27: 32071.14 | S27: 32071.14 | T27: 32071.14 | U27: 32071.14 | W27: 0 | X27: 0 | Y27: 0 | Z27: 0 | AA27: 0 | AB27: 0 | AD27: 32071.14 | AE27: 32071.14 | AF27: 32071.14 | AG27: 32071.14 | AH27: 32071.14 | AI27: 32071.14 | AK27: FALSE
A28: 21 | B28: =IFERROR(IF(VLOOKUP(C28,Soggetti_proprietari!C:K,9,0)=0,"",VLOOKUP(C28,Soggetti_proprietari!C:K,9,0)),"") -> 1202_13989-058021- | C28: Casape | D28: =IFERROR(IF(VLOOKUP(C28,Soggetti_proprietari!C:K,2,0)=0,"",VLOOKUP(C28,Soggetti_proprietari!C:K,2,0)),"") -> Comune | E28: =IFERROR(IF(VLOOKUP(C28,Soggetti_proprietari!C:K,3,0)=0,"",VLOOKUP(C28,Soggetti_proprietari!C:K,3,0)),"") ->  | F28: =IFERROR(IF(VLOOKUP(C28,Soggetti_proprietari!C:K,4,0)=0,"",VLOOKUP(C28,Soggetti_proprietari!C:K,4,0)),"") -> 058021 | G28: 0 | H28: 0 | I28: 0 | J28: 0 | K28: 0 | L28: 0 | M28: 0 | N28: 2002 | O28: NO | P28: 5127.09 | Q28: 5127.09 | R28: 5127.09 | S28: 5127.09 | T28: 5127.09 | U28: 5127.09 | W28: 0 | X28: 0 | Y28: 0 | Z28: 0 | AA28: 0 | AB28: 0 | AD28: 5127.09 | AE28: 5127.09 | AF28: 5127.09 | AG28: 5127.09 | AH28: 5127.09 | AI28: 5127.09 | AK28: FALSE
A29: 22 | B29: =IFERROR(IF(VLOOKUP(C29,Soggetti_proprietari!C:K,9,0)=0,"",VLOOKUP(C29,Soggetti_proprietari!C:K,9,0)),"") -> 1202_13989-058022- | C29: Castel Gandolfo | D29: =IFERROR(IF(VLOOKUP(C29,Soggetti_proprietari!C:K,2,0)=0,"",VLOOKUP(C29,Soggetti_proprietari!C:K,2,0)),"") -> Comune | E29: =IFERROR(IF(VLOOKUP(C29,Soggetti_proprietari!C:K,3,0)=0,"",VLOOKUP(C29,Soggetti_proprietari!C:K,3,0)),"") ->  | F29: =IFERROR(IF(VLOOKUP(C29,Soggetti_proprietari!C:K,4,0)=0,"",VLOOKUP(C29,Soggetti_proprietari!C:K,4,0)),"") -> 058022 | G29: 0 | H29: 0 | I29: 0 | J29: 0 | K29: 0 | L29: 0 | M29: 0 | N29: 2002 | O29: NO | P29: 49627.13 | Q29: 49627.13 | R29: 49627.13 | S29: 49627.13 | T29: 49627.13 | U29: 49627.13 | W29: 0 | X29: 0 | Y29: 0 | Z29: 0 | AA29: 0 | AB29: 0 | AD29: 49627.13 | AE29: 49627.13 | AF29: 49627.13 | AG29: 49627.13 | AH29: 49627.13 | AI29: 49627.13 | AK29: FALSE
A30: 23 | B30: =IFERROR(IF(VLOOKUP(C30,Soggetti_proprietari!C:K,9,0)=0,"",VLOOKUP(C30,Soggetti_proprietari!C:K,9,0)),"") -> 1202_13989-058023- | C30: Castel Madama | D30: =IFERROR(IF(VLOOKUP(C30,Soggetti_proprietari!C:K,2,0)=0,"",VLOOKUP(C30,Soggetti_proprietari!C:K,2,0)),"") -> Comune | E30: =IFERROR(IF(VLOOKUP(C30,Soggetti_proprietari!C:K,3,0)=0,"",VLOOKUP(C30,Soggetti_proprietari!C:K,3,0)),"") ->  | F30: =IFERROR(IF(VLOOKUP(C30,Soggetti_proprietari!C:K,4,0)=0,"",VLOOKUP(C30,Soggetti_proprietari!C:K,4,0)),"") -> 058023 | G30: 2002 | H30: 14268.53 | I30: 14268.53 | J30: 14268.53 | K30: 14268.53 | L30: 14268.53 | M30: 14268.53 | N30: 2002 | O30: NO | P30: 27873.43 | Q30: 27873.43 | R30: 27873.43 | S30: 27873.43 | T30: 27873.43 | U30: 27873.43 | W30: 14268.53 | X30: 14268.53 | Y30: 14268.53 | Z30: 14268.53 | AA30: 14268.53 | AB30: 14268.53 | AD30: 27873.43 | AE30: 27873.43 | AF30: 27873.43 | AG30: 27873.43 | AH30: 27873.43 | AI30: 27873.43 | AK30: FALSE
A31: 24 | B31: =IFERROR(IF(VLOOKUP(C31,Soggetti_proprietari!C:K,9,0)=0,"",VLOOKUP(C31,Soggetti_proprietari!C:K,9,0)),"") -> 1202_13989-058025- | C31: Castel San Pietro Romano | D31: =IFERROR(IF(VLOOKUP(C31,Soggetti_proprietari!C:K,2,0)=0,"",VLOOKUP(C31,Soggetti_proprietari!C:K,2,0)),"") -> Comune | E31: =IFERROR(IF(VLOOKUP(C31,Soggetti_proprietari!C:K,3,0)=0,"",VLOOKUP(C31,Soggetti_proprietari!C:K,3,0)),"") ->  | F31: =IFERROR(IF(VLOOKUP(C31,Soggetti_proprietari!C:K,4,0)=0,"",VLOOKUP(C31,Soggetti_proprietari!C:K,4,0)),"") -> 058025 | G31: 0 | H31: 0 | I31: 0 | J31: 0 | K31: 0 | L31: 0 | M31: 0 | N31: 2002 | O31: NO | P31: 4779.38 | Q31: 4779.38 | R31: 4779.38 | S31: 4779.38 | T31: 4779.38 | U31: 4779.38 | W31: 0 | X31: 0 | Y31: 0 | Z31: 0 | AA31: 0 | AB31: 0 | AD31: 4779.38 | AE31: 4779.38 | AF31: 4779.38 | AG31: 4779.38 | AH31: 4779.38 | AI31: 4779.38 | AK31: FALSE
A32: 25 | B32: =IFERROR(IF(VLOOKUP(C32,Soggetti_proprietari!C:K,9,0)=0,"",VLOOKUP(C32,Soggetti_proprietari!C:K,9,0)),"") -> 1202_13989-058024- | C32: Castelnuovo di Porto | D32: =IFERROR(IF(VLOOKUP(C32,Soggetti_proprietari!C:K,2,0)=0,"",VLOOKUP(C32,Soggetti_proprietari!C:K,2,0)),"") -> Comune | E32: =IFERROR(IF(VLOOKUP(C32,Soggetti_proprietari!C:K,3,0)=0,"",VLOOKUP(C32,Soggetti_proprietari!C:K,3,0)),"") ->  | F32: =IFERROR(IF(VLOOKUP(C32,Soggetti_proprietari!C:K,4,0)=0,"",VLOOKUP(C32,Soggetti_proprietari!C:K,4,0)),"") -> 058024 | G32: 0 | H32: 0 | I32: 0 | J32: 0 | K32: 0 | L32: 0 | M32: 0 | N32: 2002 | O32: NO | P32: 44221.88 | Q32: 44221.88 | R32: 44221.88 | S32: 44221.88 | T32: 44221.88 | U32: 44221.88 | W32: 0 | X32: 0 | Y32: 0 | Z32: 0 | AA32: 0 | AB32: 0 | AD32: 44221.88 | AE32: 44221.88 | AF32: 44221.88 | AG32: 44221.88 | AH32: 44221.88 | AI32: 44221.88 | AK32: FALSE
A33: 26 | B33: =IFERROR(IF(VLOOKUP(C33,Soggetti_proprietari!C:K,9,0)=0,"",VLOOKUP(C33,Soggetti_proprietari!C:K,9,0)),"") -> 1202_13989-058026- | C33: Cave | D33: =IFERROR(IF(VLOOKUP(C33,Soggetti_proprietari!C:K,2,0)=0,"",VLOOKUP(C33,Soggetti_proprietari!C:K,2,0)),"") -> Comune | E33: =IFERROR(IF(VLOOKUP(C33,Soggetti_proprietari!C:K,3,0)=0,"",VLOOKUP(C33,Soggetti_proprietari!C:K,3,0)),"") ->  | F33: =IFERROR(IF(VLOOKUP(C33,Soggetti_proprietari!C:K,4,0)=0,"",VLOOKUP(C33,Soggetti_proprietari!C:K,4,0)),"") -> 058026 | G33: 0 | H33: 0 | I33: 0 | J33: 0 | K33: 0 | L33: 0 | M33: 0 | N33: 2002 | O33: NO | P33: 58787.59 | Q33: 58787.59 | R33: 58787.59 | S33: 58787.59 | T33: 58787.59 | U33: 58787.59 | W33: 0 | X33: 0 | Y33: 0 | Z33: 0 | AA33: 0 | AB33: 0 | AD33: 58787.59 | AE33: 58787.59 | AF33: 58787.59 | AG33: 58787.59 | AH33: 58787.59 | AI33: 58787.59 | AK33: FALSE
A34: 27 | B34: =IFERROR(IF(VLOOKUP(C34,Soggetti_proprietari!C:K,9,0)=0,"",VLOOKUP(C34,Soggetti_proprietari!C:K,9,0)),"") -> 1202_13989-058027- | C34: Cerreto Laziale | D34: =IFERROR(IF(VLOOKUP(C34,Soggetti_proprietari!C:K,2,0)=0,"",VLOOKUP(C34,Soggetti_proprietari!C:K,2,0)),"") -> Comune | E34: =IFERROR(IF(VLOOKUP(C34,Soggetti_proprietari!C:K,3,0)=0,"",VLOOKUP(C34,Soggetti_proprietari!C:K,3,0)),"") ->  | F34: =IFERROR(IF(VLOOKUP(C34,Soggetti_proprietari!C:K,4,0)=0,"",VLOOKUP(C34,Soggetti_proprietari!C:K,4,0)),"") -> 058027 | G34: 0 | H34: 0 | I34: 0 | J34: 0 | K34: 0 | L34: 0 | M34: 0 | N34: 2002 | O34: NO | P34: 6802.39 | Q34: 6802.39 | R34: 6802.39 | S34: 6802.39 | T34: 6802.39 | U34: 6802.39 | W34: 0 | X34: 0 | Y34: 0 | Z34: 0 | AA34: 0 | AB34: 0 | AD34: 6802.39 | AE34: 6802.39 | AF34: 6802.39 | AG34: 6802.39 | AH34: 6802.39 | AI34: 6802.39 | AK34: FALSE
A35: 28 | B35: =IFERROR(IF(VLOOKUP(C35,Soggetti_proprietari!C:K,9,0)=0,"",VLOOKUP(C35,Soggetti_proprietari!C:K,9,0)),"") -> 1202_13989-058028- | C35: Cervara di Roma | D35: =IFERROR(IF(VLOOKUP(C35,Soggetti_proprietari!C:K,2,0)=0,"",VLOOKUP(C35,Soggetti_proprietari!C:K,2,0)),"") -> Comune | E35: =IFERROR(IF(VLOOKUP(C35,Soggetti_proprietari!C:K,3,0)=0,"",VLOOKUP(C35,Soggetti_proprietari!C:K,3,0)),"") ->  | F35: =IFERROR(IF(VLOOKUP(C35,Soggetti_proprietari!C:K,4,0)=0,"",VLOOKUP(C35,Soggetti_proprietari!C:K,4,0)),"") -> 058028 | G35: 0 | H35: 0 | I35: 0 | J35: 0 | K35: 0 | L35: 0 | M35: 0 | N35: 2002 | O35: NO | P35: 3072.46 | Q35: 3072.46 | R35: 3072.46 | S35: 3072.46 | T35: 3072.46 | U35: 3072.46 | W35: 0 | X35: 0 | Y35: 0 | Z35: 0 | AA35: 0 | AB35: 0 | AD35: 3072.46 | AE35: 3072.46 | AF35: 3072.46 | AG35: 3072.46 | AH35: 3072.46 | AI35: 3072.46 | AK35: FALSE
A36: 29 | B36: =IFERROR(IF(VLOOKUP(C36,Soggetti_proprietari!C:K,9,0)=0,"",VLOOKUP(C36,Soggetti_proprietari!C:K,9,0)),"") -> 1202_13989-058029- | C36: Cerveteri | D36: =IFERROR(IF(VLOOKUP(C36,Soggetti_proprietari!C:K,2,0)=0,"",VLOOKUP(C36,Soggetti_proprietari!C:K,2,0)),"") -> Comune | E36: =IFERROR(IF(VLOOKUP(C36,Soggetti_proprietari!C:K,3,0)=0,"",VLOOKUP(C36,Soggetti_proprietari!C:K,3,0)),"") ->  | F36: =IFERROR(IF(VLOOKUP(C36,Soggetti_proprietari!C:K,4,0)=0,"",VLOOKUP(C36,Soggetti_proprietari!C:K,4,0)),"") -> 058029 | G36: 0 | H36: 0 | I36: 0 | J36: 0 | K36: 0 | L36: 0 | M36: 0 | N36: 2002 | O36: NO | P36: 154558.46 | Q36: 154558.46 | R36: 154558.46 | S36: 154558.46 | T36: 154558.46 | U36: 154558.46 | W36: 0 | X36: 0 | Y36: 0 | Z36: 0 | AA36: 0 | AB36: 0 | AD36: 154558.46 | AE36: 154558.46 | AF36: 154558.46 | AG36: 154558.46 | AH36: 154558.46 | AI36: 154558.46 | AK36: FALSE
A37: 30 | B37: =IFERROR(IF(VLOOKUP(C37,Soggetti_proprietari!C:K,9,0)=0,"",VLOOKUP(C37,Soggetti_proprietari!C:K,9,0)),"") -> 1202_13989-058118- | C37: Ciampino | D37: =IFERROR(IF(VLOOKUP(C37,Soggetti_proprietari!C:K,2,0)=0,"",VLOOKUP(C37,Soggetti_proprietari!C:K,2,0)),"") -> Comune | E37: =IFERROR(IF(VLOOKUP(C37,Soggetti_proprietari!C:K,3,0)=0,"",VLOOKUP(C37,Soggetti_proprietari!C:K,3,0)),"") ->  | F37: =IFERROR(IF(VLOOKUP(C37,Soggetti_proprietari!C:K,4,0)=0,"",VLOOKUP(C37,Soggetti_proprietari!C:K,4,0)),"") -> 058118 | G37: 0 | H37: 0 | I37: 0 | J37: 0 | K37: 0 | L37: 0 | M37: 0 | N37: 2002 | O37: NO | P37: 230522.73 | Q37: 230522.73 | R37: 230522.73 | S37: 230522.73 | T37: 230522.73 | U37: 230522.73 | W37: 0 | X37: 0 | Y37: 0 | Z37: 0 | AA37: 0 | AB37: 0 | AD37: 230522.73 | AE37: 230522.73 | AF37: 230522.73 | AG37: 230522.73 | AH37: 230522.73 | AI37: 230522.73 | AK37: FALSE
A38: 31 | B38: =IFERROR(IF(VLOOKUP(C38,Soggetti_proprietari!C:K,9,0)=0,"",VLOOKUP(C38,Soggetti_proprietari!C:K,9,0)),"") -> 1202_13989-058030- | C38: Ciciliano | D38: =IFERROR(IF(VLOOKUP(C38,Soggetti_proprietari!C:K,2,0)=0,"",VLOOKUP(C38,Soggetti_proprietari!C:K,2,0)),"") -> Comune | E38: =IFERROR(IF(VLOOKUP(C38,Soggetti_proprietari!C:K,3,0)=0,"",VLOOKUP(C38,Soggetti_proprietari!C:K,3,0)),"") ->  | F38: =IFERROR(IF(VLOOKUP(C38,Soggetti_proprietari!C:K,4,0)=0,"",VLOOKUP(C38,Soggetti_proprietari!C:K,4,0)),"") -> 058030 | G38: 0 | H38: 0 | I38: 0 | J38: 0 | K38: 0 | L38: 0 | M38: 0 | N38: 2002 | O38: NO | P38: 7251.25 | Q38: 7251.25 | R38: 7251.25 | S38: 7251.25 | T38: 7251.25 | U38: 7251.25 | W38: 0 | X38: 0 | Y38: 0 | Z38: 0 | AA38: 0 | AB38: 0 | AD38: 7251.25 | AE38: 7251.25 | AF38: 7251.25 | AG38: 7251.25 | AH38: 7251.25 | AI38: 7251.25 | AK38: FALSE
A39: 32 | B39: =IFERROR(IF(VLOOKUP(C39,Soggetti_proprietari!C:K,9,0)=0,"",VLOOKUP(C39,Soggetti_proprietari!C:K,9,0)),"") -> 1202_13989-058031- | C39: Cineto Romano | D39: =IFERROR(IF(VLOOKUP(C39,Soggetti_proprietari!C:K,2,0)=0,"",VLOOKUP(C39,Soggetti_proprietari!C:K,2,0)),"") -> Comune | E39: =IFERROR(IF(VLOOKUP(C39,Soggetti_proprietari!C:K,3,0)=0,"",VLOOKUP(C39,Soggetti_proprietari!C:K,3,0)),"") ->  | F39: =IFERROR(IF(VLOOKUP(C39,Soggetti_proprietari!C:K,4,0)=0,"",VLOOKUP(C39,Soggetti_proprietari!C:K,4,0)),"") -> 058031 | G39: 0 | H39: 0 | I39: 0 | J39: 0 | K39: 0 | L39: 0 | M39: 0 | N39: 2002 | O39: NO | P39: 0 | Q39: 0 | R39: 0 | S39: 0 | T39: 0 | U39: 0 | W39: 0 | X39: 0 | Y39: 0 | Z39: 0 | AA39: 0 | AB39: 0 | AD39: 0 | AE39: 0 | AF39: 0 | AG39: 0 | AH39: 0 | AI39: 0 | AK39: FALSE
A40: 33 | B40: =IFERROR(IF(VLOOKUP(C40,Soggetti_proprietari!C:K,9,0)=0,"",VLOOKUP(C40,Soggetti_proprietari!C:K,9,0)),"") -> 1202_13989-058032- | C40: Civitavecchia | D40: =IFERROR(IF(VLOOKUP(C40,Soggetti_proprietari!C:K,2,0)=0,"",VLOOKUP(C40,Soggetti_proprietari!C:K,2,0)),"") -> Comune | E40: =IFERROR(IF(VLOOKUP(C40,Soggetti_proprietari!C:K,3,0)=0,"",VLOOKUP(C40,Soggetti_proprietari!C:K,3,0)),"") ->  | F40: =IFERROR(IF(VLOOKUP(C40,Soggetti_proprietari!C:K,4,0)=0,"",VLOOKUP(C40,Soggetti_proprietari!C:K,4,0)),"") -> 058032 | G40: 0 | H40: 0 | I40: 0 | J40: 0 | K40: 0 | L40: 0 | M40: 0 | N40: 2002 | O40: NO | P40: 326186.12 | Q40: 326186.12 | R40: 326186.12 | S40: 326186.12 | T40: 326186.12 | U40: 326186.12 | W40: 0 | X40: 0 | Y40: 0 | Z40: 0 | AA40: 0 | AB40: 0 | AD40: 326186.12 | AE40: 326186.12 | AF40: 326186.12 | AG40: 326186.12 | AH40: 326186.12 | AI40: 326186.12 | AK40: FALSE
A41: 34 | B41: =IFERROR(IF(VLOOKUP(C41,Soggetti_proprietari!C:K,9,0)=0,"",VLOOKUP(C41,Soggetti_proprietari!C:K,9,0)),"") -> 1202_13989-058033- | C41: Civitella San Paolo | D41: =IFERROR(IF(VLOOKUP(C41,Soggetti_proprietari!C:K,2,0)=0,"",VLOOKUP(C41,Soggetti_proprietari!C:K,2,0)),"") -> Comune | E41: =IFERROR(IF(VLOOKUP(C41,Soggetti_proprietari!C:K,3,0)=0,"",VLOOKUP(C41,Soggetti_proprietari!C:K,3,0)),"") ->  | F41: =IFERROR(IF(VLOOKUP(C41,Soggetti_proprietari!C:K,4,0)=0,"",VLOOKUP(C41,Soggetti_proprietari!C:K,4,0)),"") -> 058033 | G41: 0 | H41: 0 | I41: 0 | J41: 0 | K41: 0 | L41: 0 | M41: 0 | N41: 2002 | O41: NO | P41: 9666.22 | Q41: 9666.22 | R41: 9666.22 | S41: 9666.22 | T41: 9666.22 | U41: 9666.22 | W41: 0 | X41: 0 | Y41: 0 | Z41: 0 | AA41: 0 | AB41: 0 | AD41: 9666.22 | AE41: 9666.22 | AF41: 9666.22 | AG41: 9666.22 | AH41: 9666.22 | AI41: 9666.22 | AK41: FALSE
A42: 35 | B42: =IFERROR(IF(VLOOKUP(C42,Soggetti_proprietari!C:K,9,0)=0,"",VLOOKUP(C42,Soggetti_proprietari!C:K,9,0)),"") -> 1202_13989-058034- | C42: Colleferro | D42: =IFERROR(IF(VLOOKUP(C42,Soggetti_proprietari!C:K,2,0)=0,"",VLOOKUP(C42,Soggetti_proprietari!C:K,2,0)),"") -> Comune | E42: =IFERROR(IF(VLOOKUP(C42,Soggetti_proprietari!C:K,3,0)=0,"",VLOOKUP(C42,Soggetti_proprietari!C:K,3,0)),"") ->  | F42: =IFERROR(IF(VLOOKUP(C42,Soggetti_proprietari!C:K,4,0)=0,"",VLOOKUP(C42,Soggetti_proprietari!C:K,4,0)),"") -> 058034 | G42: 0 | H42: 0 | I42: 0 | J42: 0 | K42: 0 | L42: 0 | M42: 0 | N42: 2002 | O42: NO | P42: 136465.11 | Q42: 136465.11 | R42: 136465.11 | S42: 136465.11 | T42: 136465.11 | U42: 136465.11 | W42: 0 | X42: 0 | Y42: 0 | Z42: 0 | AA42: 0 | AB42: 0 | AD42: 136465.11 | AE42: 136465.11 | AF42: 136465.11 | AG42: 136465.11 | AH42: 136465.11 | AI42: 136465.11 | AK42: FALSE
A43: 36 | B43: =IFERROR(IF(VLOOKUP(C43,Soggetti_proprietari!C:K,9,0)=0,"",VLOOKUP(C43,Soggetti_proprietari!C:K,9,0)),"") -> 1202_13989-058035- | C43: Colonna | D43: =IFERROR(IF(VLOOKUP(C43,Soggetti_proprietari!C:K,2,0)=0,"",VLOOKUP(C43,Soggetti_proprietari!C:K,2,0)),"") -> Comune | E43: =IFERROR(IF(VLOOKUP(C43,Soggetti_proprietari!C:K,3,0)=0,"",VLOOKUP(C43,Soggetti_proprietari!C:K,3,0)),"") ->  | F43: =IFERROR(IF(VLOOKUP(C43,Soggetti_proprietari!C:K,4,0)=0,"",VLOOKUP(C43,Soggetti_proprietari!C:K,4,0)),"") -> 058035 | G43: 0 | H43: 0 | I43: 0 | J43: 0 | K43: 0 | L43: 0 | M43: 0 | N43: 2002 | O43: NO | P43: 20539.94 | Q43: 20539.94 | R43: 20539.94 | S43: 20539.94 | T43: 20539.94 | U43: 20539.94 | W43: 0 | X43: 0 | Y43: 0 | Z43: 0 | AA43: 0 | AB43: 0 | AD43: 20539.94 | AE43: 20539.94 | AF43: 20539.94 | AG43: 20539.94 | AH43: 20539.94 | AI43: 20539.94 | AK43: FALSE
A44: 37 | B44: =IFERROR(IF(VLOOKUP(C44,Soggetti_proprietari!C:K,9,0)=0,"",VLOOKUP(C44,Soggetti_proprietari!C:K,9,0)),"") -> 1202_13989-058036- | C44: Fiano Romano | D44: =IFERROR(IF(VLOOKUP(C44,Soggetti_proprietari!C:K,2,0)=0,"",VLOOKUP(C44,Soggetti_proprietari!C:K,2,0)),"") -> Comune | E44: =IFERROR(IF(VLOOKUP(C44,Soggetti_proprietari!C:K,3,0)=0,"",VLOOKUP(C44,Soggetti_proprietari!C:K,3,0)),"") ->  | F44: =IFERROR(IF(VLOOKUP(C44,Soggetti_proprietari!C:K,4,0)=0,"",VLOOKUP(C44,Soggetti_proprietari!C:K,4,0)),"") -> 058036 | G44: 0 | H44: 0 | I44: 0 | J44: 0 | K44: 0 | L44: 0 | M44: 0 | N44: 2002 | O44: NO | P44: 47408.13 | Q44: 47408.13 | R44: 47408.13 | S44: 47408.13 | T44: 47408.13 | U44: 47408.13 | W44: 0 | X44: 0 | Y44: 0 | Z44: 0 | AA44: 0 | AB44: 0 | AD44: 47408.13 | AE44: 47408.13 | AF44: 47408.13 | AG44: 47408.13 | AH44: 47408.13 | AI44: 47408.13 | AK44: FALSE
A45: 38 | B45: =IFERROR(IF(VLOOKUP(C45,Soggetti_proprietari!C:K,9,0)=0,"",VLOOKUP(C45,Soggetti_proprietari!C:K,9,0)),"") -> 1202_13989-058037- | C45: Filacciano | D45: =IFERROR(IF(VLOOKUP(C45,Soggetti_proprietari!C:K,2,0)=0,"",VLOOKUP(C45,Soggetti_proprietari!C:K,2,0)),"") -> Comune | E45: =IFERROR(IF(VLOOKUP(C45,Soggetti_proprietari!C:K,3,0)=0,"",VLOOKUP(C45,Soggetti_proprietari!C:K,3,0)),"") ->  | F45: =IFERROR(IF(VLOOKUP(C45,Soggetti_proprietari!C:K,4,0)=0,"",VLOOKUP(C45,Soggetti_proprietari!C:K,4,0)),"") -> 058037 | G45: 0 | H45: 0 | I45: 0 | J45: 0 | K45: 0 | L45: 0 | M45: 0 | N45: 2002 | O45: NO | P45: 3002.92 | Q45: 3002.92 | R45: 3002.92 | S45: 3002.92 | T45: 3002.92 | U45: 3002.92 | W45: 0 | X45: 0 | Y45: 0 | Z45: 0 | AA45: 0 | AB45: 0 | AD45: 3002.92 | AE45: 3002.92 | AF45: 3002.92 | AG45: 3002.92 | AH45: 3002.92 | AI45: 3002.92 | AK45: FALSE
A46: 39 | B46: =IFERROR(IF(VLOOKUP(C46,Soggetti_proprietari!C:K,9,0)=0,"",VLOOKUP(C46,Soggetti_proprietari!C:K,9,0)),"") -> 1202_13989-060034- | C46: Filettino | D46: =IFERROR(IF(VLOOKUP(C46,Soggetti_proprietari!C:K,2,0)=0,"",VLOOKUP(C46,Soggetti_proprietari!C:K,2,0)),"") -> Comune | E46: =IFERROR(IF(VLOOKUP(C46,Soggetti_proprietari!C:K,3,0)=0,"",VLOOKUP(C46,Soggetti_proprietari!C:K,3,0)),"") ->  | F46: =IFERROR(IF(VLOOKUP(C46,Soggetti_proprietari!C:K,4,0)=0,"",VLOOKUP(C46,Soggetti_proprietari!C:K,4,0)),"") -> 060034 | G46: 0 | H46: 0 | I46: 0 | J46: 0 | K46: 0 | L46: 0 | M46: 0 | N46: 2002 | O46: NO | P46: 0 | Q46: 0 | R46: 0 | S46: 0 | T46: 0 | U46: 0 | W46: 0 | X46: 0 | Y46: 0 | Z46: 0 | AA46: 0 | AB46: 0 | AD46: 0 | AE46: 0 | AF46: 0 | AG46: 0 | AH46: 0 | AI46: 0 | AK46: FALSE
A47: 40 | B47: =IFERROR(IF(VLOOKUP(C47,Soggetti_proprietari!C:K,9,0)=0,"",VLOOKUP(C47,Soggetti_proprietari!C:K,9,0)),"") -> 1202_13989-058120- | C47: Fiumicino | D47: =IFERROR(IF(VLOOKUP(C47,Soggetti_proprietari!C:K,2,0)=0,"",VLOOKUP(C47,Soggetti_proprietari!C:K,2,0)),"") -> Comune | E47: =IFERROR(IF(VLOOKUP(C47,Soggetti_proprietari!C:K,3,0)=0,"",VLOOKUP(C47,Soggetti_proprietari!C:K,3,0)),"") ->  | F47: =IFERROR(IF(VLOOKUP(C47,Soggetti_proprietari!C:K,4,0)=0,"",VLOOKUP(C47,Soggetti_proprietari!C:K,4,0)),"") -> 058120 | G47: 0 | H47: 0 | I47: 0 | J47: 0 | K47: 0 | L47: 0 | M47: 0 | N47: 2002 | O47: NO | P47: 317221.63 | Q47: 317221.63 | R47: 317221.63 | S47: 317221.63 | T47: 317221.63 | U47: 317221.63 | W47: 0 | X47: 0 | Y47: 0 | Z47: 0 | AA47: 0 | AB47: 0 | AD47: 317221.63 | AE47: 317221.63 | AF47: 317221.63 | AG47: 317221.63 | AH47: 317221.63 | AI47: 317221.63 | AK47: FALSE
A48: 41 | B48: =IFERROR(IF(VLOOKUP(C48,Soggetti_proprietari!C:K,9,0)=0,"",VLOOKUP(C48,Soggetti_proprietari!C:K,9,0)),"") -> 1202_13989-058122- | C48: Fonte Nuova | D48: =IFERROR(IF(VLOOKUP(C48,Soggetti_proprietari!C:K,2,0)=0,"",VLOOKUP(C48,Soggetti_proprietari!C:K,2,0)),"") -> Comune | E48: =IFERROR(IF(VLOOKUP(C48,Soggetti_proprietari!C:K,3,0)=0,"",VLOOKUP(C48,Soggetti_proprietari!C:K,3,0)),"") ->  | F48: =IFERROR(IF(VLOOKUP(C48,Soggetti_proprietari!C:K,4,0)=0,"",VLOOKUP(C48,Soggetti_proprietari!C:K,4,0)),"") -> 058122 | G48: 0 | H48: 0 | I48: 0 | J48: 0 | K48: 0 | L48: 0 | M48: 0 | N48: 2002 | O48: NO | P48: 124877.02 | Q48: 124877.02 | R48: 124877.02 | S48: 124877.02 | T48: 124877.02 | U48: 124877.02 | W48: 0 | X48: 0 | Y48: 0 | Z48: 0 | AA48: 0 | AB48: 0 | AD48: 124877.02 | AE48: 124877.02 | AF48: 124877.02 | AG48: 124877.02 | AH48: 124877.02 | AI48: 124877.02 | AK48: FALSE
A49: 42 | B49: =IFERROR(IF(VLOOKUP(C49,Soggetti_proprietari!C:K,9,0)=0,"",VLOOKUP(C49,Soggetti_proprietari!C:K,9,0)),"") -> 1202_13989-058038- | C49: Formello | D49: =IFERROR(IF(VLOOKUP(C49,Soggetti_proprietari!C:K,2,0)=0,"",VLOOKUP(C49,Soggetti_proprietari!C:K,2,0)),"") -> Comune | E49: =IFERROR(IF(VLOOKUP(C49,Soggetti_proprietari!C:K,3,0)=0,"",VLOOKUP(C49,Soggetti_proprietari!C:K,3,0)),"") ->  | F49: =IFERROR(IF(VLOOKUP(C49,Soggetti_proprietari!C:K,4,0)=0,"",VLOOKUP(C49,Soggetti_proprietari!C:K,4,0)),"") -> 058038 | G49: 0 | H49: 0 | I49: 0 | J49: 0 | K49: 0 | L49: 0 | M49: 0 | N49: 2002 | O49: NO | P49: 56808.83 | Q49: 56808.83 | R49: 56808.83 | S49: 56808.83 | T49: 56808.83 | U49: 56808.83 | W49: 0 | X49: 0 | Y49: 0 | Z49: 0 | AA49: 0 | AB49: 0 | AD49: 56808.83 | AE49: 56808.83 | AF49: 56808.83 | AG49: 56808.83 | AH49: 56808.83 | AI49: 56808.83 | AK49: FALSE
A50: 43 | B50: =IFERROR(IF(VLOOKUP(C50,Soggetti_proprietari!C:K,9,0)=0,"",VLOOKUP(C50,Soggetti_proprietari!C:K,9,0)),"") -> 1202_13989-058039- | C50: Frascati | D50: =IFERROR(IF(VLOOKUP(C50,Soggetti_proprietari!C:K,2,0)=0,"",VLOOKUP(C50,Soggetti_proprietari!C:K,2,0)),"") -> Comune | E50: =IFERROR(IF(VLOOKUP(C50,Soggetti_proprietari!C:K,3,0)=0,"",VLOOKUP(C50,Soggetti_proprietari!C:K,3,0)),"") ->  | F50: =IFERROR(IF(VLOOKUP(C50,Soggetti_proprietari!C:K,4,0)=0,"",VLOOKUP(C50,Soggetti_proprietari!C:K,4,0)),"") -> 058039 | G50: 0 | H50: 0 | I50: 0 | J50: 0 | K50: 0 | L50: 0 | M50: 0 | N50: 2002 | O50: NO | P50: 132216.78 | Q50: 132216.78 | R50: 132216.78 | S50: 132216.78 | T50: 132216.78 | U50: 132216.78 | W50: 0 | X50: 0 | Y50: 0 | Z50: 0 | AA50: 0 | AB50: 0 | AD50: 132216.78 | AE50: 132216.78 | AF50: 132216.78 | AG50: 132216.78 | AH50: 132216.78 | AI50: 132216.78 | AK50: FALSE
A51: 44 | B51: =IFERROR(IF(VLOOKUP(C51,Soggetti_proprietari!C:K,9,0)=0,"",VLOOKUP(C51,Soggetti_proprietari!C:K,9,0)),"") -> 1202_13989-058040- | C51: Gallicano nel Lazio | D51: =IFERROR(IF(VLOOKUP(C51,Soggetti_proprietari!C:K,2,0)=0,"",VLOOKUP(C51,Soggetti_proprietari!C:K,2,0)),"") -> Comune | E51: =IFERROR(IF(VLOOKUP(C51,Soggetti_proprietari!C:K,3,0)=0,"",VLOOKUP(C51,Soggetti_proprietari!C:K,3,0)),"") ->  | F51: =IFERROR(IF(VLOOKUP(C51,Soggetti_proprietari!C:K,4,0)=0,"",VLOOKUP(C51,Soggetti_proprietari!C:K,4,0)),"") -> 058040 | G51: 0 | H51: 0 | I51: 0 | J51: 0 | K51: 0 | L51: 0 | M51: 0 | N51: 2002 | O51: NO | P51: 26280.25 | Q51: 26280.25 | R51: 26280.25 | S51: 26280.25 | T51: 26280.25 | U51: 26280.25 | W51: 0 | X51: 0 | Y51: 0 | Z51: 0 | AA51: 0 | AB51: 0 | AD51: 26280.25 | AE51: 26280.25 | AF51: 26280.25 | AG51: 26280.25 | AH51: 26280.25 | AI51: 26280.25 | AK51: FALSE
A52: 45 | B52: =IFERROR(IF(VLOOKUP(C52,Soggetti_proprietari!C:K,9,0)=0,"",VLOOKUP(C52,Soggetti_proprietari!C:K,9,0)),"") -> 1202_13989-058041- | C52: Gavignano | D52: =IFERROR(IF(VLOOKUP(C52,Soggetti_proprietari!C:K,2,0)=0,"",VLOOKUP(C52,Soggetti_proprietari!C:K,2,0)),"") -> Comune | E52: =IFERROR(IF(VLOOKUP(C52,Soggetti_proprietari!C:K,3,0)=0,"",VLOOKUP(C52,Soggetti_proprietari!C:K,3,0)),"") ->  | F52: =IFERROR(IF(VLOOKUP(C52,Soggetti_proprietari!C:K,4,0)=0,"",VLOOKUP(C52,Soggetti_proprietari!C:K,4,0)),"") -> 058041 | G52: 0 | H52: 0 | I52: 0 | J52: 0 | K52: 0 | L52: 0 | M52: 0 | N52: 2002 | O52: NO | P52: 10842.1 | Q52: 10842.1 | R52: 10842.1 | S52: 10842.1 | T52: 10842.1 | U52: 10842.1 | W52: 0 | X52: 0 | Y52: 0 | Z52: 0 | AA52: 0 | AB52: 0 | AD52: 10842.1 | AE52: 10842.1 | AF52: 10842.1 | AG52: 10842.1 | AH52: 10842.1 | AI52: 10842.1 | AK52: FALSE
A53: 46 | B53: =IFERROR(IF(VLOOKUP(C53,Soggetti_proprietari!C:K,9,0)=0,"",VLOOKUP(C53,Soggetti_proprietari!C:K,9,0)),"") -> 1202_13989-058042- | C53: Genazzano | D53: =IFERROR(IF(VLOOKUP(C53,Soggetti_proprietari!C:K,2,0)=0,"",VLOOKUP(C53,Soggetti_proprietari!C:K,2,0)),"") -> Comune | E53: =IFERROR(IF(VLOOKUP(C53,Soggetti_proprietari!C:K,3,0)=0,"",VLOOKUP(C53,Soggetti_proprietari!C:K,3,0)),"") ->  | F53: =IFERROR(IF(VLOOKUP(C53,Soggetti_proprietari!C:K,4,0)=0,"",VLOOKUP(C53,Soggetti_proprietari!C:K,4,0)),"") -> 058042 | G53: 2002 | H53: 29827.22 | I53: 29827.22 | J53: 29827.22 | K53: 29827.22 | L53: 29827.22 | M53: 29827.22 | N53: 2002 | O53: NO | P53: 4203.71 | Q53: 4203.71 | R53: 4203.71 | S53: 4203.71 | T53: 4203.71 | U53: 4203.71 | W53: 29827.22 | X53: 29827.22 | Y53: 29827.22 | Z53: 29827.22 | AA53: 29827.22 | AB53: 29827.22 | AD53: 4203.71 | AE53: 4203.71 | AF53: 4203.71 | AG53: 4203.71 | AH53: 4203.71 | AI53: 4203.71 | AK53: FALSE
A54: 47 | B54: =IFERROR(IF(VLOOKUP(C54,Soggetti_proprietari!C:K,9,0)=0,"",VLOOKUP(C54,Soggetti_proprietari!C:K,9,0)),"") -> 1202_13989-058043- | C54: Genzano di Roma | D54: =IFERROR(IF(VLOOKUP(C54,Soggetti_proprietari!C:K,2,0)=0,"",VLOOKUP(C54,Soggetti_proprietari!C:K,2,0)),"") -> Comune | E54: =IFERROR(IF(VLOOKUP(C54,Soggetti_proprietari!C:K,3,0)=0,"",VLOOKUP(C54,Soggetti_proprietari!C:K,3,0)),"") ->  | F54: =IFERROR(IF(VLOOKUP(C54,Soggetti_proprietari!C:K,4,0)=0,"",VLOOKUP(C54,Soggetti_proprietari!C:K,4,0)),"") -> 058043 | G54: 0 | H54: 0 | I54: 0 | J54: 0 | K54: 0 | L54: 0 | M54: 0 | N54: 2002 | O54: NO | P54: 140416.31 | Q54: 140416.31 | R54: 140416.31 | S54: 140416.31 | T54: 140416.31 | U54: 140416.31 | W54: 0 | X54: 0 | Y54: 0 | Z54: 0 | AA54: 0 | AB54: 0 | AD54: 140416.31 | AE54: 140416.31 | AF54: 140416.31 | AG54: 140416.31 | AH54: 140416.31 | AI54: 140416.31 | AK54: FALSE
A55: 48 | B55: =IFERROR(IF(VLOOKUP(C55,Soggetti_proprietari!C:K,9,0)=0,"",VLOOKUP(C55,Soggetti_proprietari!C:K,9,0)),"") -> 1202_13989-058044- | C55: Gerano | D55: =IFERROR(IF(VLOOKUP(C55,Soggetti_proprietari!C:K,2,0)=0,"",VLOOKUP(C55,Soggetti_proprietari!C:K,2,0)),"") -> Comune | E55: =IFERROR(IF(VLOOKUP(C55,Soggetti_proprietari!C:K,3,0)=0,"",VLOOKUP(C55,Soggetti_proprietari!C:K,3,0)),"") ->  | F55: =IFERROR(IF(VLOOKUP(C55,Soggetti_proprietari!C:K,4,0)=0,"",VLOOKUP(C55,Soggetti_proprietari!C:K,4,0)),"") -> 058044 | G55: 0 | H55: 0 | I55: 0 | J55: 0 | K55: 0 | L55: 0 | M55: 0 | N55: 2002 | O55: NO | P55: 7681.14 | Q55: 7681.14 | R55: 7681.14 | S55: 7681.14 | T55: 7681.14 | U55: 7681.14 | W55: 0 | X55: 0 | Y55: 0 | Z55: 0 | AA55: 0 | AB55: 0 | AD55: 7681.14 | AE55: 7681.14 | AF55: 7681.14 | AG55: 7681.14 | AH55: 7681.14 | AI55: 7681.14 | AK55: FALSE
A56: 49 | B56: =IFERROR(IF(VLOOKUP(C56,Soggetti_proprietari!C:K,9,0)=0,"",VLOOKUP(C56,Soggetti_proprietari!C:K,9,0)),"") -> 1202_13989-058045- | C56: Gorga | D56: =IFERROR(IF(VLOOKUP(C56,Soggetti_proprietari!C:K,2,0)=0,"",VLOOKUP(C56,Soggetti_proprietari!C:K,2,0)),"") -> Comune | E56: =IFERROR(IF(VLOOKUP(C56,Soggetti_proprietari!C:K,3,0)=0,"",VLOOKUP(C56,Soggetti_proprietari!C:K,3,0)),"") ->  | F56: =IFERROR(IF(VLOOKUP(C56,Soggetti_proprietari!C:K,4,0)=0,"",VLOOKUP(C56,Soggetti_proprietari!C:K,4,0)),"") -> 058045 | G56: 0 | H56: 0 | I56: 0 | J56: 0 | K56: 0 | L56: 0 | M56: 0 | N56: 2002 | O56: NO | P56: 4741.45 | Q56: 4741.45 | R56: 4741.45 | S56: 4741.45 | T56: 4741.45 | U56: 4741.45 | W56: 0 | X56: 0 | Y56: 0 | Z56: 0 | AA56: 0 | AB56: 0 | AD56: 4741.45 | AE56: 4741.45 | AF56: 4741.45 | AG56: 4741.45 | AH56: 4741.45 | AI56: 4741.45 | AK56: FALSE
A57: 50 | B57: =IFERROR(IF(VLOOKUP(C57,Soggetti_proprietari!C:K,9,0)=0,"",VLOOKUP(C57,Soggetti_proprietari!C:K,9,0)),"") -> 1202_13989-058046- | C57: Grottaferrata | D57: =IFERROR(IF(VLOOKUP(C57,Soggetti_proprietari!C:K,2,0)=0,"",VLOOKUP(C57,Soggetti_proprietari!C:K,2,0)),"") -> Comune | E57: =IFERROR(IF(VLOOKUP(C57,Soggetti_proprietari!C:K,3,0)=0,"",VLOOKUP(C57,Soggetti_proprietari!C:K,3,0)),"") ->  | F57: =IFERROR(IF(VLOOKUP(C57,Soggetti_proprietari!C:K,4,0)=0,"",VLOOKUP(C57,Soggetti_proprietari!C:K,4,0)),"") -> 058046 | G57: 0 | H57: 0 | I57: 0 | J57: 0 | K57: 0 | L57: 0 | M57: 0 | N57: 2002 | O57: NO | P57: 111525.11 | Q57: 111525.11 | R57: 111525.11 | S57: 111525.11 | T57: 111525.11 | U57: 111525.11 | W57: 0 | X57: 0 | Y57: 0 | Z57: 0 | AA57: 0 | AB57: 0 | AD57: 111525.11 | AE57: 111525.11 | AF57: 111525.11 | AG57: 111525.11 | AH57: 111525.11 | AI57: 111525.11 | AK57: FALSE
A58: 51 | B58: =IFERROR(IF(VLOOKUP(C58,Soggetti_proprietari!C:K,9,0)=0,"",VLOOKUP(C58,Soggetti_proprietari!C:K,9,0)),"") -> 1202_13989-058047- | C58: Guidonia Montecelio | D58: =IFERROR(IF(VLOOKUP(C58,Soggetti_proprietari!C:K,2,0)=0,"",VLOOKUP(C58,Soggetti_proprietari!C:K,2,0)),"") -> Comune | E58: =IFERROR(IF(VLOOKUP(C58,Soggetti_proprietari!C:K,3,0)=0,"",VLOOKUP(C58,Soggetti_proprietari!C:K,3,0)),"") ->  | F58: =IFERROR(IF(VLOOKUP(C58,Soggetti_proprietari!C:K,4,0)=0,"",VLOOKUP(C58,Soggetti_proprietari!C:K,4,0)),"") -> 058047 | G58: 0 | H58: 0 | I58: 0 | J58: 0 | K58: 0 | L58: 0 | M58: 0 | N58: 2002 | O58: NO | P58: 409667.16 | Q58: 409667.16 | R58: 409667.16 | S58: 409667.16 | T58: 409667.16 | U58: 409667.16 | W58: 0 | X58: 0 | Y58: 0 | Z58: 0 | AA58: 0 | AB58: 0 | AD58: 409667.16 | AE58: 409667.16 | AF58: 409667.16 | AG58: 409667.16 | AH58: 409667.16 | AI58: 409667.16 | AK58: FALSE
A59: 52 | B59: =IFERROR(IF(VLOOKUP(C59,Soggetti_proprietari!C:K,9,0)=0,"",VLOOKUP(C59,Soggetti_proprietari!C:K,9,0)),"") -> 1202_13989-058048- | C59: Jenne | D59: =IFERROR(IF(VLOOKUP(C59,Soggetti_proprietari!C:K,2,0)=0,"",VLOOKUP(C59,Soggetti_proprietari!C:K,2,0)),"") -> Comune | E59: =IFERROR(IF(VLOOKUP(C59,Soggetti_proprietari!C:K,3,0)=0,"",VLOOKUP(C59,Soggetti_proprietari!C:K,3,0)),"") ->  | F59: =IFERROR(IF(VLOOKUP(C59,Soggetti_proprietari!C:K,4,0)=0,"",VLOOKUP(C59,Soggetti_proprietari!C:K,4,0)),"") -> 058048 | G59: 0 | H59: 0 | I59: 0 | J59: 0 | K59: 0 | L59: 0 | M59: 0 | N59: 2002 | O59: NO | P59: 3312.69 | Q59: 3312.69 | R59: 3312.69 | S59: 3312.69 | T59: 3312.69 | U59: 3312.69 | W59: 0 | X59: 0 | Y59: 0 | Z59: 0 | AA59: 0 | AB59: 0 | AD59: 3312.69 | AE59: 3312.69 | AF59: 3312.69 | AG59: 3312.69 | AH59: 3312.69 | AI59: 3312.69 | AK59: FALSE
A60: 53 | B60: =IFERROR(IF(VLOOKUP(C60,Soggetti_proprietari!C:K,9,0)=0,"",VLOOKUP(C60,Soggetti_proprietari!C:K,9,0)),"") -> 1202_13989-058049- | C60: Labico | D60: =IFERROR(IF(VLOOKUP(C60,Soggetti_proprietari!C:K,2,0)=0,"",VLOOKUP(C60,Soggetti_proprietari!C:K,2,0)),"") -> Comune | E60: =IFERROR(IF(VLOOKUP(C60,Soggetti_proprietari!C:K,3,0)=0,"",VLOOKUP(C60,Soggetti_proprietari!C:K,3,0)),"") ->  | F60: =IFERROR(IF(VLOOKUP(C60,Soggetti_proprietari!C:K,4,0)=0,"",VLOOKUP(C60,Soggetti_proprietari!C:K,4,0)),"") -> 058049 | G60: 0 | H60: 0 | I60: 0 | J60: 0 | K60: 0 | L60: 0 | M60: 0 | N60: 2002 | O60: NO | P60: 19895.11 | Q60: 19895.11 | R60: 19895.11 | S60: 19895.11 | T60: 19895.11 | U60: 19895.11 | W60: 0 | X60: 0 | Y60: 0 | Z60: 0 | AA60: 0 | AB60: 0 | AD60: 19895.11 | AE60: 19895.11 | AF60: 19895.11 | AG60: 19895.11 | AH60: 19895.11 | AI60: 19895.11 | AK60: FALSE
A61: 54 | B61: =IFERROR(IF(VLOOKUP(C61,Soggetti_proprietari!C:K,9,0)=0,"",VLOOKUP(C61,Soggetti_proprietari!C:K,9,0)),"") -> 1202_13989-058116- | C61: Ladispoli | D61: =IFERROR(IF(VLOOKUP(C61,Soggetti_proprietari!C:K,2,0)=0,"",VLOOKUP(C61,Soggetti_proprietari!C:K,2,0)),"") -> Comune | E61: =IFERROR(IF(VLOOKUP(C61,Soggetti_proprietari!C:K,3,0)=0,"",VLOOKUP(C61,Soggetti_proprietari!C:K,3,0)),"") ->  | F61: =IFERROR(IF(VLOOKUP(C61,Soggetti_proprietari!C:K,4,0)=0,"",VLOOKUP(C61,Soggetti_proprietari!C:K,4,0)),"") -> 058116 | G61: 0 | H61: 0 | I61: 0 | J61: 0 | K61: 0 | L61: 0 | M61: 0 | N61: 2002 | O61: NO | P61: 153211.89 | Q61: 153211.89 | R61: 153211.89 | S61: 153211.89 | T61: 153211.89 | U61: 153211.89 | W61: 0 | X61: 0 | Y61: 0 | Z61: 0 | AA61: 0 | AB61: 0 | AD61: 153211.89 | AE61: 153211.89 | AF61: 153211.89 | AG61: 153211.89 | AH61: 153211.89 | AI61: 153211.89 | AK61: FALSE
A62: 55 | B62: =IFERROR(IF(VLOOKUP(C62,Soggetti_proprietari!C:K,9,0)=0,"",VLOOKUP(C62,Soggetti_proprietari!C:K,9,0)),"") -> 1202_13989-058050- | C62: Lanuvio | D62: =IFERROR(IF(VLOOKUP(C62,Soggetti_proprietari!C:K,2,0)=0,"",VLOOKUP(C62,Soggetti_proprietari!C:K,2,0)),"") -> Comune | E62: =IFERROR(IF(VLOOKUP(C62,Soggetti_proprietari!C:K,3,0)=0,"",VLOOKUP(C62,Soggetti_proprietari!C:K,3,0)),"") ->  | F62: =IFERROR(IF(VLOOKUP(C62,Soggetti_proprietari!C:K,4,0)=0,"",VLOOKUP(C62,Soggetti_proprietari!C:K,4,0)),"") -> 058050 | G62: 2002 | H62: 48296.4 | I62: 48296.4 | J62: 48296.4 | K62: 48296.4 | L62: 48296.4 | M62: 48296.4 | N62: 2002 | O62: NO | P62: 9555.55 | Q62: 9555.55 | R62: 9555.55 | S62: 9555.55 | T62: 9555.55 | U62: 9555.55 | W62: 48296.4 | X62: 48296.4 | Y62: 48296.4 | Z62: 48296.4 | AA62: 48296.4 | AB62: 48296.4 | AD62: 9555.55 | AE62: 9555.55 | AF62: 9555.55 | AG62: 9555.55 | AH62: 9555.55 | AI62: 9555.55 | AK62: FALSE
A63: 56 | B63: =IFERROR(IF(VLOOKUP(C63,Soggetti_proprietari!C:K,9,0)=0,"",VLOOKUP(C63,Soggetti_proprietari!C:K,9,0)),"") -> 1202_13989-058115- | C63: Lariano | D63: =IFERROR(IF(VLOOKUP(C63,Soggetti_proprietari!C:K,2,0)=0,"",VLOOKUP(C63,Soggetti_proprietari!C:K,2,0)),"") -> Comune | E63: =IFERROR(IF(VLOOKUP(C63,Soggetti_proprietari!C:K,3,0)=0,"",VLOOKUP(C63,Soggetti_proprietari!C:K,3,0)),"") ->  | F63: =IFERROR(IF(VLOOKUP(C63,Soggetti_proprietari!C:K,4,0)=0,"",VLOOKUP(C63,Soggetti_proprietari!C:K,4,0)),"") -> 058115 | G63: 2002 | H63: 66265.75 | I63: 66265.75 | J63: 66265.75 | K63: 66265.75 | L63: 66265.75 | M63: 35340.385 | N63: 2002 | O63: NO | P63: 0 | Q63: 0 | R63: 0 | S63: 0 | T63: 0 | U63: 24717.915 | W63: 66265.75 | X63: 66265.75 | Y63: 66265.75 | Z63: 66265.75 | AA63: 66265.75 | AB63: 35340.385 | AD63: 0 | AE63: 0 | AF63: 0 | AG63: 0 | AH63: 0 | AI63: 24717.915 | AK63: FALSE
A64: 57 | B64: =IFERROR(IF(VLOOKUP(C64,Soggetti_proprietari!C:K,9,0)=0,"",VLOOKUP(C64,Soggetti_proprietari!C:K,9,0)),"") -> 1202_13989-058051- | C64: Licenza | D64: =IFERROR(IF(VLOOKUP(C64,Soggetti_proprietari!C:K,2,0)=0,"",VLOOKUP(C64,Soggetti_proprietari!C:K,2,0)),"") -> Comune | E64: =IFERROR(IF(VLOOKUP(C64,Soggetti_proprietari!C:K,3,0)=0,"",VLOOKUP(C64,Soggetti_proprietari!C:K,3,0)),"") ->  | F64: =IFERROR(IF(VLOOKUP(C64,Soggetti_proprietari!C:K,4,0)=0,"",VLOOKUP(C64,Soggetti_proprietari!C:K,4,0)),"") -> 058051 | G64: 0 | H64: 0 | I64: 0 | J64: 0 | K64: 0 | L64: 0 | M64: 0 | N64: 2002 | O64: NO | P64: 5879.39 | Q64: 5879.39 | R64: 5879.39 | S64: 5879.39 | T64: 5879.39 | U64: 5879.39 | W64: 0 | X64: 0 | Y64: 0 | Z64: 0 | AA64: 0 | AB64: 0 | AD64: 5879.39 | AE64: 5879.39 | AF64: 5879.39 | AG64: 5879.39 | AH64: 5879.39 | AI64: 5879.39 | AK64: FALSE
A65: 58 | B65: =IFERROR(IF(VLOOKUP(C65,Soggetti_proprietari!C:K,9,0)=0,"",VLOOKUP(C65,Soggetti_proprietari!C:K,9,0)),"") -> 1202_13989-058053- | C65: Mandela | D65: =IFERROR(IF(VLOOKUP(C65,Soggetti_proprietari!C:K,2,0)=0,"",VLOOKUP(C65,Soggetti_proprietari!C:K,2,0)),"") -> Comune | E65: =IFERROR(IF(VLOOKUP(C65,Soggetti_proprietari!C:K,3,0)=0,"",VLOOKUP(C65,Soggetti_proprietari!C:K,3,0)),"") ->  | F65: =IFERROR(IF(VLOOKUP(C65,Soggetti_proprietari!C:K,4,0)=0,"",VLOOKUP(C65,Soggetti_proprietari!C:K,4,0)),"") -> 058053 | G65: 0 | H65: 0 | I65: 0 | J65: 0 | K65: 0 | L65: 0 | M65: 0 | N65: 2002 | O65: NO | P65: 0 | Q65: 0 | R65: 0 | S65: 0 | T65: 0 | U65: 0 | W65: 0 | X65: 0 | Y65: 0 | Z65: 0 | AA65: 0 | AB65: 0 | AD65: 0 | AE65: 0 | AF65: 0 | AG65: 0 | AH65: 0 | AI65: 0 | AK65: FALSE
A66: 59 | B66: =IFERROR(IF(VLOOKUP(C66,Soggetti_proprietari!C:K,9,0)=0,"",VLOOKUP(C66,Soggetti_proprietari!C:K,9,0)),"") -> 1202_13989-058054- | C66: Manziana | D66: =IFERROR(IF(VLOOKUP(C66,Soggetti_proprietari!C:K,2,0)=0,"",VLOOKUP(C66,Soggetti_proprietari!C:K,2,0)),"") -> Comune | E66: =IFERROR(IF(VLOOKUP(C66,Soggetti_proprietari!C:K,3,0)=0,"",VLOOKUP(C66,Soggetti_proprietari!C:K,3,0)),"") ->  | F66: =IFERROR(IF(VLOOKUP(C66,Soggetti_proprietari!C:K,4,0)=0,"",VLOOKUP(C66,Soggetti_proprietari!C:K,4,0)),"") -> 058054 | G66: 2002 | H66: 127302.48 | I66: 127302.48 | J66: 66944.66 | K66: 66944.66 | L66: 66944.66 | M66: 66944.66 | N66: 2002 | O66: NO | P66: 0 | Q66: 0 | R66: 0 | S66: 0 | T66: 0 | U66: 0 | W66: 127302.48 | X66: 127302.48 | Y66: 66944.66 | Z66: 66944.66 | AA66: 66944.66 | AB66: 66944.66 | AD66: 0 | AE66: 0 | AF66: 0 | AG66: 0 | AH66: 0 | AI66: 0 | AK66: FALSE
A67: 60 | B67: =IFERROR(IF(VLOOKUP(C67,Soggetti_proprietari!C:K,9,0)=0,"",VLOOKUP(C67,Soggetti_proprietari!C:K,9,0)),"") -> 1202_13989-058055- | C67: Marano Equo | D67: =IFERROR(IF(VLOOKUP(C67,Soggetti_proprietari!C:K,2,0)=0,"",VLOOKUP(C67,Soggetti_proprietari!C:K,2,0)),"") -> Comune | E67: =IFERROR(IF(VLOOKUP(C67,Soggetti_proprietari!C:K,3,0)=0,"",VLOOKUP(C67,Soggetti_proprietari!C:K,3,0)),"") ->  | F67: =IFERROR(IF(VLOOKUP(C67,Soggetti_proprietari!C:K,4,0)=0,"",VLOOKUP(C67,Soggetti_proprietari!C:K,4,0)),"") -> 058055 | G67: 0 | H67: 0 | I67: 0 | J67: 0 | K67: 0 | L67: 0 | M67: 0 | N67: 2002 | O67: NO | P67: 4893.17 | Q67: 4893.17 | R67: 4893.17 | S67: 4893.17 | T67: 4893.17 | U67: 4893.17 | W67: 0 | X67: 0 | Y67: 0 | Z67: 0 | AA67: 0 | AB67: 0 | AD67: 4893.17 | AE67: 4893.17 | AF67: 4893.17 | AG67: 4893.17 | AH67: 4893.17 | AI67: 4893.17 | AK67: FALSE
A68: 61 | B68: =IFERROR(IF(VLOOKUP(C68,Soggetti_proprietari!C:K,9,0)=0,"",VLOOKUP(C68,Soggetti_proprietari!C:K,9,0)),"") -> 1202_13989-058056- | C68: Marcellina | D68: =IFERROR(IF(VLOOKUP(C68,Soggetti_proprietari!C:K,2,0)=0,"",VLOOKUP(C68,Soggetti_proprietari!C:K,2,0)),"") -> Comune | E68: =IFERROR(IF(VLOOKUP(C68,Soggetti_proprietari!C:K,3,0)=0,"",VLOOKUP(C68,Soggetti_proprietari!C:K,3,0)),"") ->  | F68: =IFERROR(IF(VLOOKUP(C68,Soggetti_proprietari!C:K,4,0)=0,"",VLOOKUP(C68,Soggetti_proprietari!C:K,4,0)),"") -> 058056 | G68: 0 | H68: 0 | I68: 0 | J68: 0 | K68: 0 | L68: 0 | M68: 0 | N68: 2002 | O68: NO | P68: 34094.15 | Q68: 34094.15 | R68: 34094.15 | S68: 34094.15 | T68: 34094.15 | U68: 34094.15 | W68: 0 | X68: 0 | Y68: 0 | Z68: 0 | AA68: 0 | AB68: 0 | AD68: 34094.15 | AE68: 34094.15 | AF68: 34094.15 | AG68: 34094.15 | AH68: 34094.15 | AI68: 34094.15 | AK68: FALSE
A69: 62 | B69: =IFERROR(IF(VLOOKUP(C69,Soggetti_proprietari!C:K,9,0)=0,"",VLOOKUP(C69,Soggetti_proprietari!C:K,9,0)),"") -> 1202_13989-058057- | C69: Marino | D69: =IFERROR(IF(VLOOKUP(C69,Soggetti_proprietari!C:K,2,0)=0,"",VLOOKUP(C69,Soggetti_proprietari!C:K,2,0)),"") -> Comune | E69: =IFERROR(IF(VLOOKUP(C69,Soggetti_proprietari!C:K,3,0)=0,"",VLOOKUP(C69,Soggetti_proprietari!C:K,3,0)),"") ->  | F69: =IFERROR(IF(VLOOKUP(C69,Soggetti_proprietari!C:K,4,0)=0,"",VLOOKUP(C69,Soggetti_proprietari!C:K,4,0)),"") -> 058057 | G69: 0 | H69: 0 | I69: 0 | J69: 0 | K69: 0 | L69: 0 | M69: 0 | N69: 2002 | O69: NO | P69: 225149.09 | Q69: 225149.09 | R69: 225149.09 | S69: 225149.09 | T69: 225149.09 | U69: 225149.09 | W69: 0 | X69: 0 | Y69: 0 | Z69: 0 | AA69: 0 | AB69: 0 | AD69: 225149.09 | AE69: 225149.09 | AF69: 225149.09 | AG69: 225149.09 | AH69: 225149.09 | AI69: 225149.09 | AK69: FALSE
A70: 63 | B70: =IFERROR(IF(VLOOKUP(C70,Soggetti_proprietari!C:K,9,0)=0,"",VLOOKUP(C70,Soggetti_proprietari!C:K,9,0)),"") -> 1202_13989-058059- | C70: Mentana | D70: =IFERROR(IF(VLOOKUP(C70,Soggetti_proprietari!C:K,2,0)=0,"",VLOOKUP(C70,Soggetti_proprietari!C:K,2,0)),"") -> Comune | E70: =IFERROR(IF(VLOOKUP(C70,Soggetti_proprietari!C:K,3,0)=0,"",VLOOKUP(C70,Soggetti_proprietari!C:K,3,0)),"") ->  | F70: =IFERROR(IF(VLOOKUP(C70,Soggetti_proprietari!C:K,4,0)=0,"",VLOOKUP(C70,Soggetti_proprietari!C:K,4,0)),"") -> 058059 | G70: 0 | H70: 0 | I70: 0 | J70: 0 | K70: 0 | L70: 0 | M70: 0 | N70: 2002 | O70: NO | P70: 113269.96 | Q70: 113269.96 | R70: 113269.96 | S70: 113269.96 | T70: 113269.96 | U70: 113269.96 | W70: 0 | X70: 0 | Y70: 0 | Z70: 0 | AA70: 0 | AB70: 0 | AD70: 113269.96 | AE70: 113269.96 | AF70: 113269.96 | AG70: 113269.96 | AH70: 113269.96 | AI70: 113269.96 | AK70: FALSE
A71: 64 | B71: =IFERROR(IF(VLOOKUP(C71,Soggetti_proprietari!C:K,9,0)=0,"",VLOOKUP(C71,Soggetti_proprietari!C:K,9,0)),"") -> 1202_13989-058064- | C71: Monte Porzio Catone | D71: =IFERROR(IF(VLOOKUP(C71,Soggetti_proprietari!C:K,2,0)=0,"",VLOOKUP(C71,Soggetti_proprietari!C:K,2,0)),"") -> Comune | E71: =IFERROR(IF(VLOOKUP(C71,Soggetti_proprietari!C:K,3,0)=0,"",VLOOKUP(C71,Soggetti_proprietari!C:K,3,0)),"") ->  | F71: =IFERROR(IF(VLOOKUP(C71,Soggetti_proprietari!C:K,4,0)=0,"",VLOOKUP(C71,Soggetti_proprietari!C:K,4,0)),"") -> 058064 | G71: 2002 | H71: 25370.1 | I71: 25370.1 | J71: 25370.1 | K71: 25370.1 | L71: 25370.1 | M71: 25370.1 | N71: 2002 | O71: NO | P71: 26096.71 | Q71: 26096.71 | R71: 26096.71 | S71: 26096.71 | T71: 26096.71 | U71: 26096.71 | W71: 25370.1 | X71: 25370.1 | Y71: 25370.1 | Z71: 25370.1 | AA71: 25370.1 | AB71: 25370.1 | AD71: 26096.71 | AE71: 26096.71 | AF71: 26096.71 | AG71: 26096.71 | AH71: 26096.71 | AI71: 26096.71 | AK71: FALSE
A72: 65 | B72: =IFERROR(IF(VLOOKUP(C72,Soggetti_proprietari!C:K,9,0)=0,"",VLOOKUP(C72,Soggetti_proprietari!C:K,9,0)),"") -> 1202_13989-058060- | C72: Monte Compatri | D72: =IFERROR(IF(VLOOKUP(C72,Soggetti_proprietari!C:K,2,0)=0,"",VLOOKUP(C72,Soggetti_proprietari!C:K,2,0)),"") -> Comune | E72: =IFERROR(IF(VLOOKUP(C72,Soggetti_proprietari!C:K,3,0)=0,"",VLOOKUP(C72,Soggetti_proprietari!C:K,3,0)),"") ->  | F72: =IFERROR(IF(VLOOKUP(C72,Soggetti_proprietari!C:K,4,0)=0,"",VLOOKUP(C72,Soggetti_proprietari!C:K,4,0)),"") -> 058060 | G72: 0 | H72: 0 | I72: 0 | J72: 0 | K72: 0 | L72: 0 | M72: 0 | N72: 2002 | O72: NO | P72: 50196.1 | Q72: 50196.1 | R72: 50196.1 | S72: 50196.1 | T72: 50196.1 | U72: 50196.1 | W72: 0 | X72: 0 | Y72: 0 | Z72: 0 | AA72: 0 | AB72: 0 | AD72: 50196.1 | AE72: 50196.1 | AF72: 50196.1 | AG72: 50196.1 | AH72: 50196.1 | AI72: 50196.1 | AK72: FALSE
A73: =+ROW(A73)-7 -> 66 | B73: =IFERROR(IF(VLOOKUP(C73,Soggetti_proprietari!C:K,9,0)=0,"",VLOOKUP(C73,Soggetti_proprietari!C:K,9,0)),"") -> 1202_13989-058062- | C73: Montelanico | D73: =IFERROR(IF(VLOOKUP(C73,Soggetti_proprietari!C:K,2,0)=0,"",VLOOKUP(C73,Soggetti_proprietari!C:K,2,0)),"") -> Comune | E73: =IFERROR(IF(VLOOKUP(C73,Soggetti_proprietari!C:K,3,0)=0,"",VLOOKUP(C73,Soggetti_proprietari!C:K,3,0)),"") ->  | F73: =IFERROR(IF(VLOOKUP(C73,Soggetti_proprietari!C:K,4,0)=0,"",VLOOKUP(C73,Soggetti_proprietari!C:K,4,0)),"") -> 058062 | G73: 0 | H73: 0 | I73: 0 | J73: 0 | K73: 0 | L73: 0 | M73: 0 | N73: 2002 | O73: NO | P73: 12036.95 | Q73: 12036.95 | R73: 12036.95 | S73: 12036.95 | T73: 12036.95 | U73: 12036.95 | W73: =+IF(AND($G73<=2023,$G73<>"",$D73<>"Altra società privata",$B73<>""),H73,0) -> 0 | X73: =+IF(AND($G73<=2023,$G73<>"",$D73<>"Altra società privata",$B73<>""),I73,0) -> 0 | Y73: =+IF(AND($G73<=2023,$G73<>"",$D73<>"Altra società privata",$B73<>""),J73,0) -> 0 | Z73: =+IF(AND($G73<=2023,$G73<>"",$D73<>"Altra società privata",$B73<>""),K73,0) -> 0 | AA73: =+IF(AND($G73<=2023,$G73<>"",$D73<>"Altra società privata",$B73<>""),L73,0) -> 0 | AB73: =+IF(AND($G73<=2023,$G73<>"",$D73<>"Altra società privata",$B73<>""),M73,0) -> 0 | AD73: =+IF(AND($N73<=2006,$N73<>"",$D73<>"Altra società privata",$B73<>""),P73,IF($O73="SI",P73,0)) -> 12036.95 | AE73: =+IF(AND($N73<=2006,$N73<>"",$D73<>"Altra società privata",$B73<>""),Q73,IF($O73="SI",Q73,0)) -> 12036.95 | AF73: =+IF(AND($N73<=2006,$N73<>"",$D73<>"Altra società privata",$B73<>""),R73,IF($O73="SI",R73,0)) -> 12036.95 | AG73: =+IF(AND($N73<=2006,$N73<>"",$D73<>"Altra società privata",$B73<>""),S73,IF($O73="SI",S73,0)) -> 12036.95 | AH73: =+IF(AND($N73<=2006,$N73<>"",$D73<>"Altra società privata",$B73<>""),T73,IF($O73="SI",T73,0)) -> 12036.95 | AI73: =+IF(AND($N73<=2006,$N73<>"",$D73<>"Altra società privata",$B73<>""),U73,IF($O73="SI",U73,0)) -> 12036.95 | AK73: =IF(COUNTIF(B:B,B73)>1,IF(AND(G73="",H73="",I73="",N73="",P73="",Q73="",C73=""),FALSE,TRUE),FALSE) -> FALSE
A74: 67 | B74: =IFERROR(IF(VLOOKUP(C74,Soggetti_proprietari!C:K,9,0)=0,"",VLOOKUP(C74,Soggetti_proprietari!C:K,9,0)),"") -> 1202_13989-058065- | C74: Monterotondo | D74: =IFERROR(IF(VLOOKUP(C74,Soggetti_proprietari!C:K,2,0)=0,"",VLOOKUP(C74,Soggetti_proprietari!C:K,2,0)),"") -> Comune | E74: =IFERROR(IF(VLOOKUP(C74,Soggetti_proprietari!C:K,3,0)=0,"",VLOOKUP(C74,Soggetti_proprietari!C:K,3,0)),"") ->  | F74: =IFERROR(IF(VLOOKUP(C74,Soggetti_proprietari!C:K,4,0)=0,"",VLOOKUP(C74,Soggetti_proprietari!C:K,4,0)),"") -> 058065 | G74: 0 | H74: 0 | I74: 0 | J74: 0 | K74: 0 | L74: 0 | M74: 0 | N74: 2002 | O74: NO | P74: 207555.17 | Q74: 207555.17 | R74: 207555.17 | S74: 207555.17 | T74: 207555.17 | U74: 207555.17 | W74: 0 | X74: 0 | Y74: 0 | Z74: 0 | AA74: 0 | AB74: 0 | AD74: 207555.17 | AE74: 207555.17 | AF74: 207555.17 | AG74: 207555.17 | AH74: 207555.17 | AI74: 207555.17 | AK74: FALSE
A75: 68 | B75: =IFERROR(IF(VLOOKUP(C75,Soggetti_proprietari!C:K,9,0)=0,"",VLOOKUP(C75,Soggetti_proprietari!C:K,9,0)),"") -> 1202_13989-058068- | C75: Morlupo | D75: =IFERROR(IF(VLOOKUP(C75,Soggetti_proprietari!C:K,2,0)=0,"",VLOOKUP(C75,Soggetti_proprietari!C:K,2,0)),"") -> Comune | E75: =IFERROR(IF(VLOOKUP(C75,Soggetti_proprietari!C:K,3,0)=0,"",VLOOKUP(C75,Soggetti_proprietari!C:K,3,0)),"") ->  | F75: =IFERROR(IF(VLOOKUP(C75,Soggetti_proprietari!C:K,4,0)=0,"",VLOOKUP(C75,Soggetti_proprietari!C:K,4,0)),"") -> 058068 | G75: 0 | H75: 0 | I75: 0 | J75: 0 | K75: 0 | L75: 0 | M75: 0 | N75: 2002 | O75: NO | P75: 41901.73 | Q75: 41901.73 | R75: 41901.73 | S75: 41901.73 | T75: 41901.73 | U75: 41901.73 | W75: 0 | X75: 0 | Y75: 0 | Z75: 0 | AA75: 0 | AB75: 0 | AD75: 41901.73 | AE75: 41901.73 | AF75: 41901.73 | AG75: 41901.73 | AH75: 41901.73 | AI75: 41901.73 | AK75: FALSE
A76: 69 | B76: =IFERROR(IF(VLOOKUP(C76,Soggetti_proprietari!C:K,9,0)=0,"",VLOOKUP(C76,Soggetti_proprietari!C:K,9,0)),"") -> 1202_13989-058069- | C76: Nazzano | D76: =IFERROR(IF(VLOOKUP(C76,Soggetti_proprietari!C:K,2,0)=0,"",VLOOKUP(C76,Soggetti_proprietari!C:K,2,0)),"") -> Comune | E76: =IFERROR(IF(VLOOKUP(C76,Soggetti_proprietari!C:K,3,0)=0,"",VLOOKUP(C76,Soggetti_proprietari!C:K,3,0)),"") ->  | F76: =IFERROR(IF(VLOOKUP(C76,Soggetti_proprietari!C:K,4,0)=0,"",VLOOKUP(C76,Soggetti_proprietari!C:K,4,0)),"") -> 058069 | G76: 0 | H76: 0 | I76: 0 | J76: 0 | K76: 0 | L76: 0 | M76: 0 | N76: 2002 | O76: NO | P76: 8009.89 | Q76: 8009.89 | R76: 8009.89 | S76: 8009.89 | T76: 8009.89 | U76: 8009.89 | W76: 0 | X76: 0 | Y76: 0 | Z76: 0 | AA76: 0 | AB76: 0 | AD76: 8009.89 | AE76: 8009.89 | AF76: 8009.89 | AG76: 8009.89 | AH76: 8009.89 | AI76: 8009.89 | AK76: FALSE
A77: 70 | B77: =IFERROR(IF(VLOOKUP(C77,Soggetti_proprietari!C:K,9,0)=0,"",VLOOKUP(C77,Soggetti_proprietari!C:K,9,0)),"") -> 1202_13989-058070- | C77: Nemi | D77: =IFERROR(IF(VLOOKUP(C77,Soggetti_proprietari!C:K,2,0)=0,"",VLOOKUP(C77,Soggetti_proprietari!C:K,2,0)),"") -> Comune | E77: =IFERROR(IF(VLOOKUP(C77,Soggetti_proprietari!C:K,3,0)=0,"",VLOOKUP(C77,Soggetti_proprietari!C:K,3,0)),"") ->  | F77: =IFERROR(IF(VLOOKUP(C77,Soggetti_proprietari!C:K,4,0)=0,"",VLOOKUP(C77,Soggetti_proprietari!C:K,4,0)),"") -> 058070 | G77: 0 | H77: 0 | I77: 0 | J77: 0 | K77: 0 | L77: 0 | M77: 0 | N77: 2002 | O77: NO | P77: 11145.56 | Q77: 11145.56 | R77: 11145.56 | S77: 11145.56 | T77: 11145.56 | U77: 11145.56 | W77: 0 | X77: 0 | Y77: 0 | Z77: 0 | AA77: 0 | AB77: 0 | AD77: 11145.56 | AE77: 11145.56 | AF77: 11145.56 | AG77: 11145.56 | AH77: 11145.56 | AI77: 11145.56 | AK77: FALSE
A78: 71 | B78: =IFERROR(IF(VLOOKUP(C78,Soggetti_proprietari!C:K,9,0)=0,"",VLOOKUP(C78,Soggetti_proprietari!C:K,9,0)),"") -> 1202_13989-058073- | C78: Olevano Romano | D78: =IFERROR(IF(VLOOKUP(C78,Soggetti_proprietari!C:K,2,0)=0,"",VLOOKUP(C78,Soggetti_proprietari!C:K,2,0)),"") -> Comune | E78: =IFERROR(IF(VLOOKUP(C78,Soggetti_proprietari!C:K,3,0)=0,"",VLOOKUP(C78,Soggetti_proprietari!C:K,3,0)),"") ->  | F78: =IFERROR(IF(VLOOKUP(C78,Soggetti_proprietari!C:K,4,0)=0,"",VLOOKUP(C78,Soggetti_proprietari!C:K,4,0)),"") -> 058073 | G78: 0 | H78: 0 | I78: 0 | J78: 0 | K78: 0 | L78: 0 | M78: 0 | N78: 2002 | O78: NO | P78: 39796.53 | Q78: 39796.53 | R78: 39796.53 | S78: 39796.53 | T78: 39796.53 | U78: 39796.53 | W78: 0 | X78: 0 | Y78: 0 | Z78: 0 | AA78: 0 | AB78: 0 | AD78: 39796.53 | AE78: 39796.53 | AF78: 39796.53 | AG78: 39796.53 | AH78: 39796.53 | AI78: 39796.53 | AK78: FALSE
A79: 72 | B79: =IFERROR(IF(VLOOKUP(C79,Soggetti_proprietari!C:K,9,0)=0,"",VLOOKUP(C79,Soggetti_proprietari!C:K,9,0)),"") -> 1202_13989-056041- | C79: Oriolo Romano | D79: =IFERROR(IF(VLOOKUP(C79,Soggetti_proprietari!C:K,2,0)=0,"",VLOOKUP(C79,Soggetti_proprietari!C:K,2,0)),"") -> Comune | E79: =IFERROR(IF(VLOOKUP(C79,Soggetti_proprietari!C:K,3,0)=0,"",VLOOKUP(C79,Soggetti_proprietari!C:K,3,0)),"") ->  | F79: =IFERROR(IF(VLOOKUP(C79,Soggetti_proprietari!C:K,4,0)=0,"",VLOOKUP(C79,Soggetti_proprietari!C:K,4,0)),"") -> 056041 | G79: 0 | H79: 0 | I79: 0 | J79: 0 | K79: 0 | L79: 0 | M79: 0 | N79: 2002 | O79: NO | P79: 17606.56 | Q79: 17606.56 | R79: 17606.56 | S79: 17606.56 | T79: 17606.56 | U79: 17606.56 | W79: 0 | X79: 0 | Y79: 0 | Z79: 0 | AA79: 0 | AB79: 0 | AD79: 17606.56 | AE79: 17606.56 | AF79: 17606.56 | AG79: 17606.56 | AH79: 17606.56 | AI79: 17606.56 | AK79: FALSE
A80: 73 | B80: =IFERROR(IF(VLOOKUP(C80,Soggetti_proprietari!C:K,9,0)=0,"",VLOOKUP(C80,Soggetti_proprietari!C:K,9,0)),"") -> 1202_13989-058074- | C80: Palestrina | D80: =IFERROR(IF(VLOOKUP(C80,Soggetti_proprietari!C:K,2,0)=0,"",VLOOKUP(C80,Soggetti_proprietari!C:K,2,0)),"") -> Comune | E80: =IFERROR(IF(VLOOKUP(C80,Soggetti_proprietari!C:K,3,0)=0,"",VLOOKUP(C80,Soggetti_proprietari!C:K,3,0)),"") ->  | F80: =IFERROR(IF(VLOOKUP(C80,Soggetti_proprietari!C:K,4,0)=0,"",VLOOKUP(C80,Soggetti_proprietari!C:K,4,0)),"") -> 058074 | G80: 0 | H80: 0 | I80: 0 | J80: 0 | K80: 0 | L80: 0 | M80: 0 | N80: 2002 | O80: NO | P80: 108863.57 | Q80: 108863.57 | R80: 108863.57 | S80: 108863.57 | T80: 108863.57 | U80: 108863.57 | W80: 0 | X80: 0 | Y80: 0 | Z80: 0 | AA80: 0 | AB80: 0 | AD80: 108863.57 | AE80: 108863.57 | AF80: 108863.57 | AG80: 108863.57 | AH80: 108863.57 | AI80: 108863.57 | AK80: FALSE
A81: 74 | B81: =IFERROR(IF(VLOOKUP(C81,Soggetti_proprietari!C:K,9,0)=0,"",VLOOKUP(C81,Soggetti_proprietari!C:K,9,0)),"") -> 1202_13989-058076- | C81: Percile | D81: =IFERROR(IF(VLOOKUP(C81,Soggetti_proprietari!C:K,2,0)=0,"",VLOOKUP(C81,Soggetti_proprietari!C:K,2,0)),"") -> Comune | E81: =IFERROR(IF(VLOOKUP(C81,Soggetti_proprietari!C:K,3,0)=0,"",VLOOKUP(C81,Soggetti_proprietari!C:K,3,0)),"") ->  | F81: =IFERROR(IF(VLOOKUP(C81,Soggetti_proprietari!C:K,4,0)=0,"",VLOOKUP(C81,Soggetti_proprietari!C:K,4,0)),"") -> 058076 | G81: 0 | H81: 0 | I81: 0 | J81: 0 | K81: 0 | L81: 0 | M81: 0 | N81: 2002 | O81: NO | P81: 1574.16 | Q81: 1574.16 | R81: 1574.16 | S81: 1574.16 | T81: 1574.16 | U81: 1574.16 | W81: 0 | X81: 0 | Y81: 0 | Z81: 0 | AA81: 0 | AB81: 0 | AD81: 1574.16 | AE81: 1574.16 | AF81: 1574.16 | AG81: 1574.16 | AH81: 1574.16 | AI81: 1574.16 | AK81: FALSE
A82: 75 | B82: =IFERROR(IF(VLOOKUP(C82,Soggetti_proprietari!C:K,9,0)=0,"",VLOOKUP(C82,Soggetti_proprietari!C:K,9,0)),"") -> 1202_13989-058077- | C82: Pisoniano | D82: =IFERROR(IF(VLOOKUP(C82,Soggetti_proprietari!C:K,2,0)=0,"",VLOOKUP(C82,Soggetti_proprietari!C:K,2,0)),"") -> Comune | E82: =IFERROR(IF(VLOOKUP(C82,Soggetti_proprietari!C:K,3,0)=0,"",VLOOKUP(C82,Soggetti_proprietari!C:K,3,0)),"") ->  | F82: =IFERROR(IF(VLOOKUP(C82,Soggetti_proprietari!C:K,4,0)=0,"",VLOOKUP(C82,Soggetti_proprietari!C:K,4,0)),"") -> 058077 | G82: 0 | H82: 0 | I82: 0 | J82: 0 | K82: 0 | L82: 0 | M82: 0 | N82: 2002 | O82: NO | P82: 5297.78 | Q82: 5297.78 | R82: 5297.78 | S82: 5297.78 | T82: 5297.78 | U82: 5297.78 | W82: 0 | X82: 0 | Y82: 0 | Z82: 0 | AA82: 0 | AB82: 0 | AD82: 5297.78 | AE82: 5297.78 | AF82: 5297.78 | AG82: 5297.78 | AH82: 5297.78 | AI82: 5297.78 | AK82: FALSE
A83: 76 | B83: =IFERROR(IF(VLOOKUP(C83,Soggetti_proprietari!C:K,9,0)=0,"",VLOOKUP(C83,Soggetti_proprietari!C:K,9,0)),"") -> 1202_13989-058078- | C83: Poli | D83: =IFERROR(IF(VLOOKUP(C83,Soggetti_proprietari!C:K,2,0)=0,"",VLOOKUP(C83,Soggetti_proprietari!C:K,2,0)),"") -> Comune | E83: =IFERROR(IF(VLOOKUP(C83,Soggetti_proprietari!C:K,3,0)=0,"",VLOOKUP(C83,Soggetti_proprietari!C:K,3,0)),"") ->  | F83: =IFERROR(IF(VLOOKUP(C83,Soggetti_proprietari!C:K,4,0)=0,"",VLOOKUP(C83,Soggetti_proprietari!C:K,4,0)),"") -> 058078 | G83: 0 | H83: 0 | I83: 0 | J83: 0 | K83: 0 | L83: 0 | M83: 0 | N83: 2002 | O83: NO | P83: 13775.47 | Q83: 13775.47 | R83: 13775.47 | S83: 13775.47 | T83: 13775.47 | U83: 13775.47 | W83: 0 | X83: 0 | Y83: 0 | Z83: 0 | AA83: 0 | AB83: 0 | AD83: 13775.47 | AE83: 13775.47 | AF83: 13775.47 | AG83: 13775.47 | AH83: 13775.47 | AI83: 13775.47 | AK83: FALSE
A84: 77 | B84: =IFERROR(IF(VLOOKUP(C84,Soggetti_proprietari!C:K,9,0)=0,"",VLOOKUP(C84,Soggetti_proprietari!C:K,9,0)),"") -> 1202_13989-058079- | C84: Pomezia | D84: =IFERROR(IF(VLOOKUP(C84,Soggetti_proprietari!C:K,2,0)=0,"",VLOOKUP(C84,Soggetti_proprietari!C:K,2,0)),"") -> Comune | E84: =IFERROR(IF(VLOOKUP(C84,Soggetti_proprietari!C:K,3,0)=0,"",VLOOKUP(C84,Soggetti_proprietari!C:K,3,0)),"") ->  | F84: =IFERROR(IF(VLOOKUP(C84,Soggetti_proprietari!C:K,4,0)=0,"",VLOOKUP(C84,Soggetti_proprietari!C:K,4,0)),"") -> 058079 | G84: 2002 | H84: 66937.74 | I84: 66937.74 | J84: 66937.74 | K84: 66937.74 | L84: 66937.74 | M84: 66937.74 | N84: 2002 | O84: NO | P84: 208963.78 | Q84: 208963.78 | R84: 208963.78 | S84: 208963.78 | T84: 208963.78 | U84: 208963.78 | W84: 66937.74 | X84: 66937.74 | Y84: 66937.74 | Z84: 66937.74 | AA84: 66937.74 | AB84: 66937.74 | AD84: 208963.78 | AE84: 208963.78 | AF84: 208963.78 | AG84: 208963.78 | AH84: 208963.78 | AI84: 208963.78 | AK84: FALSE
A85: 78 | B85: =IFERROR(IF(VLOOKUP(C85,Soggetti_proprietari!C:K,9,0)=0,"",VLOOKUP(C85,Soggetti_proprietari!C:K,9,0)),"") -> 1202_13989-058080- | C85: Ponzano Romano | D85: =IFERROR(IF(VLOOKUP(C85,Soggetti_proprietari!C:K,2,0)=0,"",VLOOKUP(C85,Soggetti_proprietari!C:K,2,0)),"") -> Comune | E85: =IFERROR(IF(VLOOKUP(C85,Soggetti_proprietari!C:K,3,0)=0,"",VLOOKUP(C85,Soggetti_proprietari!C:K,3,0)),"") ->  | F85: =IFERROR(IF(VLOOKUP(C85,Soggetti_proprietari!C:K,4,0)=0,"",VLOOKUP(C85,Soggetti_proprietari!C:K,4,0)),"") -> 058080 | G85: 0 | H85: 0 | I85: 0 | J85: 0 | K85: 0 | L85: 0 | M85: 0 | N85: 2002 | O85: NO | P85: 6562.16 | Q85: 6562.16 | R85: 6562.16 | S85: 6562.16 | T85: 6562.16 | U85: 6562.16 | W85: 0 | X85: 0 | Y85: 0 | Z85: 0 | AA85: 0 | AB85: 0 | AD85: 6562.16 | AE85: 6562.16 | AF85: 6562.16 | AG85: 6562.16 | AH85: 6562.16 | AI85: 6562.16 | AK85: FALSE
A86: 79 | B86: =IFERROR(IF(VLOOKUP(C86,Soggetti_proprietari!C:K,9,0)=0,"",VLOOKUP(C86,Soggetti_proprietari!C:K,9,0)),"") -> 1202_13989-058081- | C86: Riano | D86: =IFERROR(IF(VLOOKUP(C86,Soggetti_proprietari!C:K,2,0)=0,"",VLOOKUP(C86,Soggetti_proprietari!C:K,2,0)),"") -> Comune | E86: =IFERROR(IF(VLOOKUP(C86,Soggetti_proprietari!C:K,3,0)=0,"",VLOOKUP(C86,Soggetti_proprietari!C:K,3,0)),"") ->  | F86: =IFERROR(IF(VLOOKUP(C86,Soggetti_proprietari!C:K,4,0)=0,"",VLOOKUP(C86,Soggetti_proprietari!C:K,4,0)),"") -> 058081 | G86: 2002 | H86: 56487.36 | I86: 56487.36 | J86: 56487.36 | K86: 56487.36 | L86: 56487.36 | M86: 56487.36 | N86: 2002 | O86: NO | P86: 0 | Q86: 0 | R86: 0 | S86: 0 | T86: 0 | U86: 0 | W86: 56487.36 | X86: 56487.36 | Y86: 56487.36 | Z86: 56487.36 | AA86: 56487.36 | AB86: 56487.36 | AD86: 0 | AE86: 0 | AF86: 0 | AG86: 0 | AH86: 0 | AI86: 0 | AK86: FALSE
A87: 80 | B87: =IFERROR(IF(VLOOKUP(C87,Soggetti_proprietari!C:K,9,0)=0,"",VLOOKUP(C87,Soggetti_proprietari!C:K,9,0)),"") -> 1202_13989-058082- | C87: Rignano Flaminio | D87: =IFERROR(IF(VLOOKUP(C87,Soggetti_proprietari!C:K,2,0)=0,"",VLOOKUP(C87,Soggetti_proprietari!C:K,2,0)),"") -> Comune | E87: =IFERROR(IF(VLOOKUP(C87,Soggetti_proprietari!C:K,3,0)=0,"",VLOOKUP(C87,Soggetti_proprietari!C:K,3,0)),"") ->  | F87: =IFERROR(IF(VLOOKUP(C87,Soggetti_proprietari!C:K,4,0)=0,"",VLOOKUP(C87,Soggetti_proprietari!C:K,4,0)),"") -> 058082 | G87: 0 | H87: 0 | I87: 0 | J87: 0 | K87: 0 | L87: 0 | M87: 0 | N87: 2002 | O87: NO | P87: 41294.82 | Q87: 41294.82 | R87: 41294.82 | S87: 41294.82 | T87: 41294.82 | U87: 41294.82 | W87: 0 | X87: 0 | Y87: 0 | Z87: 0 | AA87: 0 | AB87: 0 | AD87: 41294.82 | AE87: 41294.82 | AF87: 41294.82 | AG87: 41294.82 | AH87: 41294.82 | AI87: 41294.82 | AK87: FALSE
A88: 81 | B88: =IFERROR(IF(VLOOKUP(C88,Soggetti_proprietari!C:K,9,0)=0,"",VLOOKUP(C88,Soggetti_proprietari!C:K,9,0)),"") -> 1202_13989-058083- | C88: Riofreddo | D88: =IFERROR(IF(VLOOKUP(C88,Soggetti_proprietari!C:K,2,0)=0,"",VLOOKUP(C88,Soggetti_proprietari!C:K,2,0)),"") -> Comune | E88: =IFERROR(IF(VLOOKUP(C88,Soggetti_proprietari!C:K,3,0)=0,"",VLOOKUP(C88,Soggetti_proprietari!C:K,3,0)),"") ->  | F88: =IFERROR(IF(VLOOKUP(C88,Soggetti_proprietari!C:K,4,0)=0,"",VLOOKUP(C88,Soggetti_proprietari!C:K,4,0)),"") -> 058083 | G88: 0 | H88: 0 | I88: 0 | J88: 0 | K88: 0 | L88: 0 | M88: 0 | N88: 2002 | O88: NO | P88: 0 | Q88: 0 | R88: 0 | S88: 0 | T88: 0 | U88: 0 | W88: 0 | X88: 0 | Y88: 0 | Z88: 0 | AA88: 0 | AB88: 0 | AD88: 0 | AE88: 0 | AF88: 0 | AG88: 0 | AH88: 0 | AI88: 0 | AK88: FALSE
A89: 82 | B89: =IFERROR(IF(VLOOKUP(C89,Soggetti_proprietari!C:K,9,0)=0,"",VLOOKUP(C89,Soggetti_proprietari!C:K,9,0)),"") -> 1202_13989-058084- | C89: Rocca Canterano | D89: =IFERROR(IF(VLOOKUP(C89,Soggetti_proprietari!C:K,2,0)=0,"",VLOOKUP(C89,Soggetti_proprietari!C:K,2,0)),"") -> Comune | E89: =IFERROR(IF(VLOOKUP(C89,Soggetti_proprietari!C:K,3,0)=0,"",VLOOKUP(C89,Soggetti_proprietari!C:K,3,0)),"") ->  | F89: =IFERROR(IF(VLOOKUP(C89,Soggetti_proprietari!C:K,4,0)=0,"",VLOOKUP(C89,Soggetti_proprietari!C:K,4,0)),"") -> 058084 | G89: 0 | H89: 0 | I89: 0 | J89: 0 | K89: 0 | L89: 0 | M89: 0 | N89: 2002 | O89: NO | P89: 1694.28 | Q89: 1694.28 | R89: 1694.28 | S89: 1694.28 | T89: 1694.28 | U89: 1694.28 | W89: 0 | X89: 0 | Y89: 0 | Z89: 0 | AA89: 0 | AB89: 0 | AD89: 1694.28 | AE89: 1694.28 | AF89: 1694.28 | AG89: 1694.28 | AH89: 1694.28 | AI89: 1694.28 | AK89: FALSE
A90: 83 | B90: =IFERROR(IF(VLOOKUP(C90,Soggetti_proprietari!C:K,9,0)=0,"",VLOOKUP(C90,Soggetti_proprietari!C:K,9,0)),"") -> 1202_13989-058085- | C90: Rocca di Cave | D90: =IFERROR(IF(VLOOKUP(C90,Soggetti_proprietari!C:K,2,0)=0,"",VLOOKUP(C90,Soggetti_proprietari!C:K,2,0)),"") -> Comune | E90: =IFERROR(IF(VLOOKUP(C90,Soggetti_proprietari!C:K,3,0)=0,"",VLOOKUP(C90,Soggetti_proprietari!C:K,3,0)),"") ->  | F90: =IFERROR(IF(VLOOKUP(C90,Soggetti_proprietari!C:K,4,0)=0,"",VLOOKUP(C90,Soggetti_proprietari!C:K,4,0)),"") -> 058085 | G90: 0 | H90: 0 | I90: 0 | J90: 0 | K90: 0 | L90: 0 | M90: 0 | N90: 2002 | O90: NO | P90: 2282.22 | Q90: 2282.22 | R90: 2282.22 | S90: 2282.22 | T90: 2282.22 | U90: 2282.22 | W90: 0 | X90: 0 | Y90: 0 | Z90: 0 | AA90: 0 | AB90: 0 | AD90: 2282.22 | AE90: 2282.22 | AF90: 2282.22 | AG90: 2282.22 | AH90: 2282.22 | AI90: 2282.22 | AK90: FALSE
A91: 84 | B91: =IFERROR(IF(VLOOKUP(C91,Soggetti_proprietari!C:K,9,0)=0,"",VLOOKUP(C91,Soggetti_proprietari!C:K,9,0)),"") -> 1202_13989-058086- | C91: Rocca di Papa | D91: =IFERROR(IF(VLOOKUP(C91,Soggetti_proprietari!C:K,2,0)=0,"",VLOOKUP(C91,Soggetti_proprietari!C:K,2,0)),"") -> Comune | E91: =IFERROR(IF(VLOOKUP(C91,Soggetti_proprietari!C:K,3,0)=0,"",VLOOKUP(C91,Soggetti_proprietari!C:K,3,0)),"") ->  | F91: =IFERROR(IF(VLOOKUP(C91,Soggetti_proprietari!C:K,4,0)=0,"",VLOOKUP(C91,Soggetti_proprietari!C:K,4,0)),"") -> 058086 | G91: 0 | H91: 0 | I91: 0 | J91: 0 | K91: 0 | L91: 0 | M91: 0 | N91: 2002 | O91: NO | P91: 79156.84 | Q91: 79156.84 | R91: 79156.84 | S91: 79156.84 | T91: 79156.84 | U91: 79156.84 | W91: 0 | X91: 0 | Y91: 0 | Z91: 0 | AA91: 0 | AB91: 0 | AD91: 79156.84 | AE91: 79156.84 | AF91: 79156.84 | AG91: 79156.84 | AH91: 79156.84 | AI91: 79156.84 | AK91: FALSE
A92: 85 | B92: =IFERROR(IF(VLOOKUP(C92,Soggetti_proprietari!C:K,9,0)=0,"",VLOOKUP(C92,Soggetti_proprietari!C:K,9,0)),"") -> 1202_13989-058088- | C92: Rocca Priora | D92: =IFERROR(IF(VLOOKUP(C92,Soggetti_proprietari!C:K,2,0)=0,"",VLOOKUP(C92,Soggetti_proprietari!C:K,2,0)),"") -> Comune | E92: =IFERROR(IF(VLOOKUP(C92,Soggetti_proprietari!C:K,3,0)=0,"",VLOOKUP(C92,Soggetti_proprietari!C:K,3,0)),"") ->  | F92: =IFERROR(IF(VLOOKUP(C92,Soggetti_proprietari!C:K,4,0)=0,"",VLOOKUP(C92,Soggetti_proprietari!C:K,4,0)),"") -> 058088 | G92: 0 | H92: 0 | I92: 0 | J92: 0 | K92: 0 | L92: 0 | M92: 0 | N92: 2002 | O92: NO | P92: 61284.76 | Q92: 61284.76 | R92: 61284.76 | S92: 61284.76 | T92: 61284.76 | U92: 61284.76 | W92: 0 | X92: 0 | Y92: 0 | Z92: 0 | AA92: 0 | AB92: 0 | AD92: 61284.76 | AE92: 61284.76 | AF92: 61284.76 | AG92: 61284.76 | AH92: 61284.76 | AI92: 61284.76 | AK92: FALSE
A93: 86 | B93: =IFERROR(IF(VLOOKUP(C93,Soggetti_proprietari!C:K,9,0)=0,"",VLOOKUP(C93,Soggetti_proprietari!C:K,9,0)),"") -> 1202_13989-058089- | C93: Rocca Santo Stefano | D93: =IFERROR(IF(VLOOKUP(C93,Soggetti_proprietari!C:K,2,0)=0,"",VLOOKUP(C93,Soggetti_proprietari!C:K,2,0)),"") -> Comune | E93: =IFERROR(IF(VLOOKUP(C93,Soggetti_proprietari!C:K,3,0)=0,"",VLOOKUP(C93,Soggetti_proprietari!C:K,3,0)),"") ->  | F93: =IFERROR(IF(VLOOKUP(C93,Soggetti_proprietari!C:K,4,0)=0,"",VLOOKUP(C93,Soggetti_proprietari!C:K,4,0)),"") -> 058089 | G93: 0 | H93: 0 | I93: 0 | J93: 0 | K93: 0 | L93: 0 | M93: 0 | N93: 2002 | O93: NO | P93: 6454.69 | Q93: 6454.69 | R93: 6454.69 | S93: 6454.69 | T93: 6454.69 | U93: 6454.69 | W93: 0 | X93: 0 | Y93: 0 | Z93: 0 | AA93: 0 | AB93: 0 | AD93: 6454.69 | AE93: 6454.69 | AF93: 6454.69 | AG93: 6454.69 | AH93: 6454.69 | AI93: 6454.69 | AK93: FALSE
A94: 87 | B94: =IFERROR(IF(VLOOKUP(C94,Soggetti_proprietari!C:K,9,0)=0,"",VLOOKUP(C94,Soggetti_proprietari!C:K,9,0)),"") -> 1202_13989-058087- | C94: Roccagiovine | D94: =IFERROR(IF(VLOOKUP(C94,Soggetti_proprietari!C:K,2,0)=0,"",VLOOKUP(C94,Soggetti_proprietari!C:K,2,0)),"") -> Comune | E94: =IFERROR(IF(VLOOKUP(C94,Soggetti_proprietari!C:K,3,0)=0,"",VLOOKUP(C94,Soggetti_proprietari!C:K,3,0)),"") ->  | F94: =IFERROR(IF(VLOOKUP(C94,Soggetti_proprietari!C:K,4,0)=0,"",VLOOKUP(C94,Soggetti_proprietari!C:K,4,0)),"") -> 058087 | G94: 0 | H94: 0 | I94: 0 | J94: 0 | K94: 0 | L94: 0 | M94: 0 | N94: 2002 | O94: NO | P94: 0 | Q94: 0 | R94: 0 | S94: 0 | T94: 0 | U94: 0 | W94: 0 | X94: 0 | Y94: 0 | Z94: 0 | AA94: 0 | AB94: 0 | AD94: 0 | AE94: 0 | AF94: 0 | AG94: 0 | AH94: 0 | AI94: 0 | AK94: FALSE
A95: 88 | B95: =IFERROR(IF(VLOOKUP(C95,Soggetti_proprietari!C:K,9,0)=0,"",VLOOKUP(C95,Soggetti_proprietari!C:K,9,0)),"") -> 1202_13989-058090- | C95: Roiate | D95: =IFERROR(IF(VLOOKUP(C95,Soggetti_proprietari!C:K,2,0)=0,"",VLOOKUP(C95,Soggetti_proprietari!C:K,2,0)),"") -> Comune | E95: =IFERROR(IF(VLOOKUP(C95,Soggetti_proprietari!C:K,3,0)=0,"",VLOOKUP(C95,Soggetti_proprietari!C:K,3,0)),"") ->  | F95: =IFERROR(IF(VLOOKUP(C95,Soggetti_proprietari!C:K,4,0)=0,"",VLOOKUP(C95,Soggetti_proprietari!C:K,4,0)),"") -> 058090 | G95: 0 | H95: 0 | I95: 0 | J95: 0 | K95: 0 | L95: 0 | M95: 0 | N95: 2002 | O95: NO | P95: 5165.02 | Q95: 5165.02 | R95: 5165.02 | S95: 5165.02 | T95: 5165.02 | U95: 5165.02 | W95: 0 | X95: 0 | Y95: 0 | Z95: 0 | AA95: 0 | AB95: 0 | AD95: 5165.02 | AE95: 5165.02 | AF95: 5165.02 | AG95: 5165.02 | AH95: 5165.02 | AI95: 5165.02 | AK95: FALSE
A96: 89 | B96: =IFERROR(IF(VLOOKUP(C96,Soggetti_proprietari!C:K,9,0)=0,"",VLOOKUP(C96,Soggetti_proprietari!C:K,9,0)),"") -> 1202_13989-058091- | C96: Roma | D96: =IFERROR(IF(VLOOKUP(C96,Soggetti_proprietari!C:K,2,0)=0,"",VLOOKUP(C96,Soggetti_proprietari!C:K,2,0)),"") -> Comune | E96: =IFERROR(IF(VLOOKUP(C96,Soggetti_proprietari!C:K,3,0)=0,"",VLOOKUP(C96,Soggetti_proprietari!C:K,3,0)),"") ->  | F96: =IFERROR(IF(VLOOKUP(C96,Soggetti_proprietari!C:K,4,0)=0,"",VLOOKUP(C96,Soggetti_proprietari!C:K,4,0)),"") -> 058091 | G96: 0 | H96: 0 | I96: 0 | J96: 0 | K96: 0 | L96: 0 | M96: 0 | N96: 2002 | O96: NO | P96: 25275916.99 | Q96: 25275916.99 | R96: 25275916.99 | S96: 25275916.99 | T96: 25275916.99 | U96: 25275916.99 | W96: 0 | X96: 0 | Y96: 0 | Z96: 0 | AA96: 0 | AB96: 0 | AD96: 25275916.99 | AE96: 25275916.99 | AF96: 25275916.99 | AG96: 25275916.99 | AH96: 25275916.99 | AI96: 25275916.99 | AK96: FALSE
A97: 90 | B97: =IFERROR(IF(VLOOKUP(C97,Soggetti_proprietari!C:K,9,0)=0,"",VLOOKUP(C97,Soggetti_proprietari!C:K,9,0)),"") -> 1202_13989-058092- | C97: Roviano | D97: =IFERROR(IF(VLOOKUP(C97,Soggetti_proprietari!C:K,2,0)=0,"",VLOOKUP(C97,Soggetti_proprietari!C:K,2,0)),"") -> Comune | E97: =IFERROR(IF(VLOOKUP(C97,Soggetti_proprietari!C:K,3,0)=0,"",VLOOKUP(C97,Soggetti_proprietari!C:K,3,0)),"") ->  | F97: =IFERROR(IF(VLOOKUP(C97,Soggetti_proprietari!C:K,4,0)=0,"",VLOOKUP(C97,Soggetti_proprietari!C:K,4,0)),"") -> 058092 | G97: 0 | H97: 0 | I97: 0 | J97: 0 | K97: 0 | L97: 0 | M97: 0 | N97: 2002 | O97: NO | P97: 9109.9 | Q97: 9109.9 | R97: 9109.9 | S97: 9109.9 | T97: 9109.9 | U97: 9109.9 | W97: 0 | X97: 0 | Y97: 0 | Z97: 0 | AA97: 0 | AB97: 0 | AD97: 9109.9 | AE97: 9109.9 | AF97: 9109.9 | AG97: 9109.9 | AH97: 9109.9 | AI97: 9109.9 | AK97: FALSE
A98: 91 | B98: =IFERROR(IF(VLOOKUP(C98,Soggetti_proprietari!C:K,9,0)=0,"",VLOOKUP(C98,Soggetti_proprietari!C:K,9,0)),"") -> 1202_13989-058093- | C98: Sacrofano | D98: =IFERROR(IF(VLOOKUP(C98,Soggetti_proprietari!C:K,2,0)=0,"",VLOOKUP(C98,Soggetti_proprietari!C:K,2,0)),"") -> Comune | E98: =IFERROR(IF(VLOOKUP(C98,Soggetti_proprietari!C:K,3,0)=0,"",VLOOKUP(C98,Soggetti_proprietari!C:K,3,0)),"") ->  | F98: =IFERROR(IF(VLOOKUP(C98,Soggetti_proprietari!C:K,4,0)=0,"",VLOOKUP(C98,Soggetti_proprietari!C:K,4,0)),"") -> 058093 | G98: 0 | H98: 0 | I98: 0 | J98: 0 | K98: 0 | L98: 0 | M98: 0 | N98: 2002 | O98: NO | P98: 34353.35 | Q98: 34353.35 | R98: 34353.35 | S98: 34353.35 | T98: 34353.35 | U98: 34353.35 | W98: 0 | X98: 0 | Y98: 0 | Z98: 0 | AA98: 0 | AB98: 0 | AD98: 34353.35 | AE98: 34353.35 | AF98: 34353.35 | AG98: 34353.35 | AH98: 34353.35 | AI98: 34353.35 | AK98: FALSE
A99: 92 | B99: =IFERROR(IF(VLOOKUP(C99,Soggetti_proprietari!C:K,9,0)=0,"",VLOOKUP(C99,Soggetti_proprietari!C:K,9,0)),"") -> 1202_13989-058094- | C99: Sambuci | D99: =IFERROR(IF(VLOOKUP(C99,Soggetti_proprietari!C:K,2,0)=0,"",VLOOKUP(C99,Soggetti_proprietari!C:K,2,0)),"") -> Comune | E99: =IFERROR(IF(VLOOKUP(C99,Soggetti_proprietari!C:K,3,0)=0,"",VLOOKUP(C99,Soggetti_proprietari!C:K,3,0)),"") ->  | F99: =IFERROR(IF(VLOOKUP(C99,Soggetti_proprietari!C:K,4,0)=0,"",VLOOKUP(C99,Soggetti_proprietari!C:K,4,0)),"") -> 058094 | G99: 0 | H99: 0 | I99: 0 | J99: 0 | K99: 0 | L99: 0 | M99: 0 | N99: 2002 | O99: NO | P99: 5658.13 | Q99: 5658.13 | R99: 5658.13 | S99: 5658.13 | T99: 5658.13 | U99: 5658.13 | W99: 0 | X99: 0 | Y99: 0 | Z99: 0 | AA99: 0 | AB99: 0 | AD99: 5658.13 | AE99: 5658.13 | AF99: 5658.13 | AG99: 5658.13 | AH99: 5658.13 | AI99: 5658.13 | AK99: FALSE
A100: 93 | B100: =IFERROR(IF(VLOOKUP(C100,Soggetti_proprietari!C:K,9,0)=0,"",VLOOKUP(C100,Soggetti_proprietari!C:K,9,0)),"") -> 1202_13989-058119- | C100: San Cesareo | D100: =IFERROR(IF(VLOOKUP(C100,Soggetti_proprietari!C:K,2,0)=0,"",VLOOKUP(C100,Soggetti_proprietari!C:K,2,0)),"") -> Comune | E100: =IFERROR(IF(VLOOKUP(C100,Soggetti_proprietari!C:K,3,0)=0,"",VLOOKUP(C100,Soggetti_proprietari!C:K,3,0)),"") ->  | F100: =IFERROR(IF(VLOOKUP(C100,Soggetti_proprietari!C:K,4,0)=0,"",VLOOKUP(C100,Soggetti_proprietari!C:K,4,0)),"") -> 058119 | G100: 0 | H100: 0 | I100: 0 | J100: 0 | K100: 0 | L100: 0 | M100: 0 | N100: 2002 | O100: NO | P100: 57320.91 | Q100: 57320.91 | R100: 57320.91 | S100: 57320.91 | T100: 57320.91 | U100: 57320.91 | W100: 0 | X100: 0 | Y100: 0 | Z100: 0 | AA100: 0 | AB100: 0 | AD100: 57320.91 | AE100: 57320.91 | AF100: 57320.91 | AG100: 57320.91 | AH100: 57320.91 | AI100: 57320.91 | AK100: FALSE
A101: 94 | B101: =IFERROR(IF(VLOOKUP(C101,Soggetti_proprietari!C:K,9,0)=0,"",VLOOKUP(C101,Soggetti_proprietari!C:K,9,0)),"") -> 1202_13989-058095- | C101: San Gregorio da Sassola | D101: =IFERROR(IF(VLOOKUP(C101,Soggetti_proprietari!C:K,2,0)=0,"",VLOOKUP(C101,Soggetti_proprietari!C:K,2,0)),"") -> Comune | E101: =IFERROR(IF(VLOOKUP(C101,Soggetti_proprietari!C:K,3,0)=0,"",VLOOKUP(C101,Soggetti_proprietari!C:K,3,0)),"") ->  | F101: =IFERROR(IF(VLOOKUP(C101,Soggetti_proprietari!C:K,4,0)=0,"",VLOOKUP(C101,Soggetti_proprietari!C:K,4,0)),"") -> 058095 | G101: 0 | H101: 0 | I101: 0 | J101: 0 | K101: 0 | L101: 0 | M101: 0 | N101: 2002 | O101: NO | P101: 9666.22 | Q101: 9666.22 | R101: 9666.22 | S101: 9666.22 | T101: 9666.22 | U101: 9666.22 | W101: 0 | X101: 0 | Y101: 0 | Z101: 0 | AA101: 0 | AB101: 0 | AD101: 9666.22 | AE101: 9666.22 | AF101: 9666.22 | AG101: 9666.22 | AH101: 9666.22 | AI101: 9666.22 | AK101: FALSE
A102: 95 | B102: =IFERROR(IF(VLOOKUP(C102,Soggetti_proprietari!C:K,9,0)=0,"",VLOOKUP(C102,Soggetti_proprietari!C:K,9,0)),"") -> 1202_13989-058096- | C102: San Polo dei Cavalieri | D102: =IFERROR(IF(VLOOKUP(C102,Soggetti_proprietari!C:K,2,0)=0,"",VLOOKUP(C102,Soggetti_proprietari!C:K,2,0)),"") -> Comune | E102: =IFERROR(IF(VLOOKUP(C102,Soggetti_proprietari!C:K,3,0)=0,"",VLOOKUP(C102,Soggetti_proprietari!C:K,3,0)),"") ->  | F102: =IFERROR(IF(VLOOKUP(C102,Soggetti_proprietari!C:K,4,0)=0,"",VLOOKUP(C102,Soggetti_proprietari!C:K,4,0)),"") -> 058096 | G102: 0 | H102: 0 | I102: 0 | J102: 0 | K102: 0 | L102: 0 | M102: 0 | N102: 2002 | O102: NO | P102: 14357.1 | Q102: 14357.1 | R102: 14357.1 | S102: 14357.1 | T102: 14357.1 | U102: 14357.1 | W102: 0 | X102: 0 | Y102: 0 | Z102: 0 | AA102: 0 | AB102: 0 | AD102: 14357.1 | AE102: 14357.1 | AF102: 14357.1 | AG102: 14357.1 | AH102: 14357.1 | AI102: 14357.1 | AK102: FALSE
A103: 96 | B103: =IFERROR(IF(VLOOKUP(C103,Soggetti_proprietari!C:K,9,0)=0,"",VLOOKUP(C103,Soggetti_proprietari!C:K,9,0)),"") -> 1202_13989-058100- | C103: San Vito Romano | D103: =IFERROR(IF(VLOOKUP(C103,Soggetti_proprietari!C:K,2,0)=0,"",VLOOKUP(C103,Soggetti_proprietari!C:K,2,0)),"") -> Comune | E103: =IFERROR(IF(VLOOKUP(C103,Soggetti_proprietari!C:K,3,0)=0,"",VLOOKUP(C103,Soggetti_proprietari!C:K,3,0)),"") ->  | F103: =IFERROR(IF(VLOOKUP(C103,Soggetti_proprietari!C:K,4,0)=0,"",VLOOKUP(C103,Soggetti_proprietari!C:K,4,0)),"") -> 058100 | G103: 0 | H103: 0 | I103: 0 | J103: 0 | K103: 0 | L103: 0 | M103: 0 | N103: 2002 | O103: NO | P103: 21285.92 | Q103: 21285.92 | R103: 21285.92 | S103: 21285.92 | T103: 21285.92 | U103: 21285.92 | W103: 0 | X103: 0 | Y103: 0 | Z103: 0 | AA103: 0 | AB103: 0 | AD103: 21285.92 | AE103: 21285.92 | AF103: 21285.92 | AG103: 21285.92 | AH103: 21285.92 | AI103: 21285.92 | AK103: FALSE
A104: 97 | B104: =IFERROR(IF(VLOOKUP(C104,Soggetti_proprietari!C:K,9,0)=0,"",VLOOKUP(C104,Soggetti_proprietari!C:K,9,0)),"") -> 1202_13989-058097- | C104: Santa Marinella | D104: =IFERROR(IF(VLOOKUP(C104,Soggetti_proprietari!C:K,2,0)=0,"",VLOOKUP(C104,Soggetti_proprietari!C:K,2,0)),"") -> Comune | E104: =IFERROR(IF(VLOOKUP(C104,Soggetti_proprietari!C:K,3,0)=0,"",VLOOKUP(C104,Soggetti_proprietari!C:K,3,0)),"") ->  | F104: =IFERROR(IF(VLOOKUP(C104,Soggetti_proprietari!C:K,4,0)=0,"",VLOOKUP(C104,Soggetti_proprietari!C:K,4,0)),"") -> 058097 | G104: 0 | H104: 0 | I104: 0 | J104: 0 | K104: 0 | L104: 0 | M104: 0 | N104: 2002 | O104: NO | P104: 98053.08 | Q104: 98053.08 | R104: 98053.08 | S104: 98053.08 | T104: 98053.08 | U104: 98053.08 | W104: 0 | X104: 0 | Y104: 0 | Z104: 0 | AA104: 0 | AB104: 0 | AD104: 98053.08 | AE104: 98053.08 | AF104: 98053.08 | AG104: 98053.08 | AH104: 98053.08 | AI104: 98053.08 | AK104: FALSE
A105: 98 | B105: =IFERROR(IF(VLOOKUP(C105,Soggetti_proprietari!C:K,9,0)=0,"",VLOOKUP(C105,Soggetti_proprietari!C:K,9,0)),"") -> 1202_13989-058098- | C105: Sant'Angelo Romano | D105: =IFERROR(IF(VLOOKUP(C105,Soggetti_proprietari!C:K,2,0)=0,"",VLOOKUP(C105,Soggetti_proprietari!C:K,2,0)),"") -> Comune | E105: =IFERROR(IF(VLOOKUP(C105,Soggetti_proprietari!C:K,3,0)=0,"",VLOOKUP(C105,Soggetti_proprietari!C:K,3,0)),"") ->  | F105: =IFERROR(IF(VLOOKUP(C105,Soggetti_proprietari!C:K,4,0)=0,"",VLOOKUP(C105,Soggetti_proprietari!C:K,4,0)),"") -> 058098 | G105: 0 | H105: 0 | I105: 0 | J105: 0 | K105: 0 | L105: 0 | M105: 0 | N105: 2002 | O105: NO | P105: 17808.87 | Q105: 17808.87 | R105: 17808.87 | S105: 17808.87 | T105: 17808.87 | U105: 17808.87 | W105: 0 | X105: 0 | Y105: 0 | Z105: 0 | AA105: 0 | AB105: 0 | AD105: 17808.87 | AE105: 17808.87 | AF105: 17808.87 | AG105: 17808.87 | AH105: 17808.87 | AI105: 17808.87 | AK105: FALSE
A106: 99 | B106: =IFERROR(IF(VLOOKUP(C106,Soggetti_proprietari!C:K,9,0)=0,"",VLOOKUP(C106,Soggetti_proprietari!C:K,9,0)),"") -> 1202_13989-058099- | C106: Sant'Oreste | D106: =IFERROR(IF(VLOOKUP(C106,Soggetti_proprietari!C:K,2,0)=0,"",VLOOKUP(C106,Soggetti_proprietari!C:K,2,0)),"") -> Comune | E106: =IFERROR(IF(VLOOKUP(C106,Soggetti_proprietari!C:K,3,0)=0,"",VLOOKUP(C106,Soggetti_proprietari!C:K,3,0)),"") ->  | F106: =IFERROR(IF(VLOOKUP(C106,Soggetti_proprietari!C:K,4,0)=0,"",VLOOKUP(C106,Soggetti_proprietari!C:K,4,0)),"") -> 058099 | G106: 0 | H106: 0 | I106: 0 | J106: 0 | K106: 0 | L106: 0 | M106: 0 | N106: 2002 | O106: NO | P106: 21842.26 | Q106: 21842.26 | R106: 21842.26 | S106: 21842.26 | T106: 21842.26 | U106: 21842.26 | W106: 0 | X106: 0 | Y106: 0 | Z106: 0 | AA106: 0 | AB106: 0 | AD106: 21842.26 | AE106: 21842.26 | AF106: 21842.26 | AG106: 21842.26 | AH106: 21842.26 | AI106: 21842.26 | AK106: FALSE
A107: 100 | B107: =IFERROR(IF(VLOOKUP(C107,Soggetti_proprietari!C:K,9,0)=0,"",VLOOKUP(C107,Soggetti_proprietari!C:K,9,0)),"") -> 1202_13989-058101- | C107: Saracinesco | D107: =IFERROR(IF(VLOOKUP(C107,Soggetti_proprietari!C:K,2,0)=0,"",VLOOKUP(C107,Soggetti_proprietari!C:K,2,0)),"") -> Comune | E107: =IFERROR(IF(VLOOKUP(C107,Soggetti_proprietari!C:K,3,0)=0,"",VLOOKUP(C107,Soggetti_proprietari!C:K,3,0)),"") ->  | F107: =IFERROR(IF(VLOOKUP(C107,Soggetti_proprietari!C:K,4,0)=0,"",VLOOKUP(C107,Soggetti_proprietari!C:K,4,0)),"") -> 058101 | G107: 0 | H107: 0 | I107: 0 | J107: 0 | K107: 0 | L107: 0 | M107: 0 | N107: 2002 | O107: NO | P107: 954.61 | Q107: 954.61 | R107: 954.61 | S107: 954.61 | T107: 954.61 | U107: 954.61 | W107: 0 | X107: 0 | Y107: 0 | Z107: 0 | AA107: 0 | AB107: 0 | AD107: 954.61 | AE107: 954.61 | AF107: 954.61 | AG107: 954.61 | AH107: 954.61 | AI107: 954.61 | AK107: FALSE
A108: 101 | B108: =IFERROR(IF(VLOOKUP(C108,Soggetti_proprietari!C:K,9,0)=0,"",VLOOKUP(C108,Soggetti_proprietari!C:K,9,0)),"") -> 1202_13989-058102- | C108: Segni | D108: =IFERROR(IF(VLOOKUP(C108,Soggetti_proprietari!C:K,2,0)=0,"",VLOOKUP(C108,Soggetti_proprietari!C:K,2,0)),"") -> Comune | E108: =IFERROR(IF(VLOOKUP(C108,Soggetti_proprietari!C:K,3,0)=0,"",VLOOKUP(C108,Soggetti_proprietari!C:K,3,0)),"") ->  | F108: =IFERROR(IF(VLOOKUP(C108,Soggetti_proprietari!C:K,4,0)=0,"",VLOOKUP(C108,Soggetti_proprietari!C:K,4,0)),"") -> 058102 | G108: 0 | H108: 0 | I108: 0 | J108: 0 | K108: 0 | L108: 0 | M108: 0 | N108: 2002 | O108: NO | P108: 55734.1 | Q108: 55734.1 | R108: 55734.1 | S108: 55734.1 | T108: 55734.1 | U108: 55734.1 | W108: 0 | X108: 0 | Y108: 0 | Z108: 0 | AA108: 0 | AB108: 0 | AD108: 55734.1 | AE108: 55734.1 | AF108: 55734.1 | AG108: 55734.1 | AH108: 55734.1 | AI108: 55734.1 | AK108: FALSE
A109: 102 | B109: =IFERROR(IF(VLOOKUP(C109,Soggetti_proprietari!C:K,9,0)=0,"",VLOOKUP(C109,Soggetti_proprietari!C:K,9,0)),"") -> 1202_13989-058103- | C109: Subiaco | D109: =IFERROR(IF(VLOOKUP(C109,Soggetti_proprietari!C:K,2,0)=0,"",VLOOKUP(C109,Soggetti_proprietari!C:K,2,0)),"") -> Comune | E109: =IFERROR(IF(VLOOKUP(C109,Soggetti_proprietari!C:K,3,0)=0,"",VLOOKUP(C109,Soggetti_proprietari!C:K,3,0)),"") ->  | F109: =IFERROR(IF(VLOOKUP(C109,Soggetti_proprietari!C:K,4,0)=0,"",VLOOKUP(C109,Soggetti_proprietari!C:K,4,0)),"") -> 058103 | G109: 0 | H109: 0 | I109: 0 | J109: 0 | K109: 0 | L109: 0 | M109: 0 | N109: 2002 | O109: NO | P109: 57548.5 | Q109: 57548.5 | R109: 57548.5 | S109: 57548.5 | T109: 57548.5 | U109: 57548.5 | W109: 0 | X109: 0 | Y109: 0 | Z109: 0 | AA109: 0 | AB109: 0 | AD109: 57548.5 | AE109: 57548.5 | AF109: 57548.5 | AG109: 57548.5 | AH109: 57548.5 | AI109: 57548.5 | AK109: FALSE
A110: 103 | B110: =IFERROR(IF(VLOOKUP(C110,Soggetti_proprietari!C:K,9,0)=0,"",VLOOKUP(C110,Soggetti_proprietari!C:K,9,0)),"") -> 1202_13989-058104- | C110: Tivoli | D110: =IFERROR(IF(VLOOKUP(C110,Soggetti_proprietari!C:K,2,0)=0,"",VLOOKUP(C110,Soggetti_proprietari!C:K,2,0)),"") -> Comune | E110: =IFERROR(IF(VLOOKUP(C110,Soggetti_proprietari!C:K,3,0)=0,"",VLOOKUP(C110,Soggetti_proprietari!C:K,3,0)),"") ->  | F110: =IFERROR(IF(VLOOKUP(C110,Soggetti_proprietari!C:K,4,0)=0,"",VLOOKUP(C110,Soggetti_proprietari!C:K,4,0)),"") -> 058104 | G110: 0 | H110: 0 | I110: 0 | J110: 0 | K110: 0 | L110: 0 | M110: 0 | N110: 2002 | O110: NO | P110: 333386.81 | Q110: 333386.81 | R110: 333386.81 | S110: 333386.81 | T110: 333386.81 | U110: 333386.81 | W110: 0 | X110: 0 | Y110: 0 | Z110: 0 | AA110: 0 | AB110: 0 | AD110: 333386.81 | AE110: 333386.81 | AF110: 333386.81 | AG110: 333386.81 | AH110: 333386.81 | AI110: 333386.81 | AK110: FALSE
A111: 104 | B111: =IFERROR(IF(VLOOKUP(C111,Soggetti_proprietari!C:K,9,0)=0,"",VLOOKUP(C111,Soggetti_proprietari!C:K,9,0)),"") -> 1202_13989-058105- | C111: Tolfa | D111: =IFERROR(IF(VLOOKUP(C111,Soggetti_proprietari!C:K,2,0)=0,"",VLOOKUP(C111,Soggetti_proprietari!C:K,2,0)),"") -> Comune | E111: =IFERROR(IF(VLOOKUP(C111,Soggetti_proprietari!C:K,3,0)=0,"",VLOOKUP(C111,Soggetti_proprietari!C:K,3,0)),"") ->  | F111: =IFERROR(IF(VLOOKUP(C111,Soggetti_proprietari!C:K,4,0)=0,"",VLOOKUP(C111,Soggetti_proprietari!C:K,4,0)),"") -> 058105 | G111: 0 | H111: 0 | I111: 0 | J111: 0 | K111: 0 | L111: 0 | M111: 0 | N111: 2002 | O111: NO | P111: 31502.17 | Q111: 31502.17 | R111: 31502.17 | S111: 31502.17 | T111: 31502.17 | U111: 31502.17 | W111: 0 | X111: 0 | Y111: 0 | Z111: 0 | AA111: 0 | AB111: 0 | AD111: 31502.17 | AE111: 31502.17 | AF111: 31502.17 | AG111: 31502.17 | AH111: 31502.17 | AI111: 31502.17 | AK111: FALSE
A112: 105 | B112: =IFERROR(IF(VLOOKUP(C112,Soggetti_proprietari!C:K,9,0)=0,"",VLOOKUP(C112,Soggetti_proprietari!C:K,9,0)),"") -> 1202_13989-058106- | C112: Torrita Tiberina | D112: =IFERROR(IF(VLOOKUP(C112,Soggetti_proprietari!C:K,2,0)=0,"",VLOOKUP(C112,Soggetti_proprietari!C:K,2,0)),"") -> Comune | E112: =IFERROR(IF(VLOOKUP(C112,Soggetti_proprietari!C:K,3,0)=0,"",VLOOKUP(C112,Soggetti_proprietari!C:K,3,0)),"") ->  | F112: =IFERROR(IF(VLOOKUP(C112,Soggetti_proprietari!C:K,4,0)=0,"",VLOOKUP(C112,Soggetti_proprietari!C:K,4,0)),"") -> 058106 | G112: 0 | H112: 0 | I112: 0 | J112: 0 | K112: 0 | L112: 0 | M112: 0 | N112: 2002 | O112: NO | P112: 5759.27 | Q112: 5759.27 | R112: 5759.27 | S112: 5759.27 | T112: 5759.27 | U112: 5759.27 | W112: 0 | X112: 0 | Y112: 0 | Z112: 0 | AA112: 0 | AB112: 0 | AD112: 5759.27 | AE112: 5759.27 | AF112: 5759.27 | AG112: 5759.27 | AH112: 5759.27 | AI112: 5759.27 | AK112: FALSE
A113: 106 | B113: =IFERROR(IF(VLOOKUP(C113,Soggetti_proprietari!C:K,9,0)=0,"",VLOOKUP(C113,Soggetti_proprietari!C:K,9,0)),"") -> 1202_13989-060080- | C113: Trevi nel Lazio | D113: =IFERROR(IF(VLOOKUP(C113,Soggetti_proprietari!C:K,2,0)=0,"",VLOOKUP(C113,Soggetti_proprietari!C:K,2,0)),"") -> Comune | E113: =IFERROR(IF(VLOOKUP(C113,Soggetti_proprietari!C:K,3,0)=0,"",VLOOKUP(C113,Soggetti_proprietari!C:K,3,0)),"") ->  | F113: =IFERROR(IF(VLOOKUP(C113,Soggetti_proprietari!C:K,4,0)=0,"",VLOOKUP(C113,Soggetti_proprietari!C:K,4,0)),"") -> 060080 | G113: 0 | H113: 0 | I113: 0 | J113: 0 | K113: 0 | L113: 0 | M113: 0 | N113: 2002 | O113: NO | P113: 12511.09 | Q113: 12511.09 | R113: 12511.09 | S113: 12511.09 | T113: 12511.09 | U113: 12511.09 | W113: 0 | X113: 0 | Y113: 0 | Z113: 0 | AA113: 0 | AB113: 0 | AD113: 12511.09 | AE113: 12511.09 | AF113: 12511.09 | AG113: 12511.09 | AH113: 12511.09 | AI113: 12511.09 | AK113: FALSE
A114: 107 | B114: =IFERROR(IF(VLOOKUP(C114,Soggetti_proprietari!C:K,9,0)=0,"",VLOOKUP(C114,Soggetti_proprietari!C:K,9,0)),"") -> 1202_13989-058107- | C114: Trevignano Romano | D114: =IFERROR(IF(VLOOKUP(C114,Soggetti_proprietari!C:K,2,0)=0,"",VLOOKUP(C114,Soggetti_proprietari!C:K,2,0)),"") -> Comune | E114: =IFERROR(IF(VLOOKUP(C114,Soggetti_proprietari!C:K,3,0)=0,"",VLOOKUP(C114,Soggetti_proprietari!C:K,3,0)),"") ->  | F114: =IFERROR(IF(VLOOKUP(C114,Soggetti_proprietari!C:K,4,0)=0,"",VLOOKUP(C114,Soggetti_proprietari!C:K,4,0)),"") -> 058107 | G114: 0 | H114: 0 | I114: 0 | J114: 0 | K114: 0 | L114: 0 | M114: 0 | N114: 2002 | O114: NO | P114: 27159 | Q114: 27159 | R114: 27159 | S114: 27159 | T114: 27159 | U114: 27159 | W114: 0 | X114: 0 | Y114: 0 | Z114: 0 | AA114: 0 | AB114: 0 | AD114: 27159 | AE114: 27159 | AF114: 27159 | AG114: 27159 | AH114: 27159 | AI114: 27159 | AK114: FALSE
A115: 108 | B115: =IFERROR(IF(VLOOKUP(C115,Soggetti_proprietari!C:K,9,0)=0,"",VLOOKUP(C115,Soggetti_proprietari!C:K,9,0)),"") -> 1202_13989-058108- | C115: Vallepietra | D115: =IFERROR(IF(VLOOKUP(C115,Soggetti_proprietari!C:K,2,0)=0,"",VLOOKUP(C115,Soggetti_proprietari!C:K,2,0)),"") -> Comune | E115: =IFERROR(IF(VLOOKUP(C115,Soggetti_proprietari!C:K,3,0)=0,"",VLOOKUP(C115,Soggetti_proprietari!C:K,3,0)),"") ->  | F115: =IFERROR(IF(VLOOKUP(C115,Soggetti_proprietari!C:K,4,0)=0,"",VLOOKUP(C115,Soggetti_proprietari!C:K,4,0)),"") -> 058108 | G115: 0 | H115: 0 | I115: 0 | J115: 0 | K115: 0 | L115: 0 | M115: 0 | N115: 2002 | O115: NO | P115: 0 | Q115: 0 | R115: 0 | S115: 0 | T115: 0 | U115: 0 | W115: 0 | X115: 0 | Y115: 0 | Z115: 0 | AA115: 0 | AB115: 0 | AD115: 0 | AE115: 0 | AF115: 0 | AG115: 0 | AH115: 0 | AI115: 0 | AK115: FALSE
A116: 109 | B116: =IFERROR(IF(VLOOKUP(C116,Soggetti_proprietari!C:K,9,0)=0,"",VLOOKUP(C116,Soggetti_proprietari!C:K,9,0)),"") -> 1202_13989-058110- | C116: Valmontone | D116: =IFERROR(IF(VLOOKUP(C116,Soggetti_proprietari!C:K,2,0)=0,"",VLOOKUP(C116,Soggetti_proprietari!C:K,2,0)),"") -> Comune | E116: =IFERROR(IF(VLOOKUP(C116,Soggetti_proprietari!C:K,3,0)=0,"",VLOOKUP(C116,Soggetti_proprietari!C:K,3,0)),"") ->  | F116: =IFERROR(IF(VLOOKUP(C116,Soggetti_proprietari!C:K,4,0)=0,"",VLOOKUP(C116,Soggetti_proprietari!C:K,4,0)),"") -> 058110 | G116: 0 | H116: 0 | I116: 0 | J116: 0 | K116: 0 | L116: 0 | M116: 0 | N116: 2002 | O116: NO | P116: 79909.15 | Q116: 79909.15 | R116: 79909.15 | S116: 79909.15 | T116: 79909.15 | U116: 79909.15 | W116: 0 | X116: 0 | Y116: 0 | Z116: 0 | AA116: 0 | AB116: 0 | AD116: 79909.15 | AE116: 79909.15 | AF116: 79909.15 | AG116: 79909.15 | AH116: 79909.15 | AI116: 79909.15 | AK116: FALSE
A117: 110 | B117: =IFERROR(IF(VLOOKUP(C117,Soggetti_proprietari!C:K,9,0)=0,"",VLOOKUP(C117,Soggetti_proprietari!C:K,9,0)),"") -> 1202_13989-056056- | C117: Vejano | D117: =IFERROR(IF(VLOOKUP(C117,Soggetti_proprietari!C:K,2,0)=0,"",VLOOKUP(C117,Soggetti_proprietari!C:K,2,0)),"") -> Comune | E117: =IFERROR(IF(VLOOKUP(C117,Soggetti_proprietari!C:K,3,0)=0,"",VLOOKUP(C117,Soggetti_proprietari!C:K,3,0)),"") ->  | F117: =IFERROR(IF(VLOOKUP(C117,Soggetti_proprietari!C:K,4,0)=0,"",VLOOKUP(C117,Soggetti_proprietari!C:K,4,0)),"") -> 056056 | G117: 0 | H117: 0 | I117: 0 | J117: 0 | K117: 0 | L117: 0 | M117: 0 | N117: 2002 | O117: NO | P117: 13434.09 | Q117: 13434.09 | R117: 13434.09 | S117: 13434.09 | T117: 13434.09 | U117: 13434.09 | W117: 0 | X117: 0 | Y117: 0 | Z117: 0 | AA117: 0 | AB117: 0 | AD117: 13434.09 | AE117: 13434.09 | AF117: 13434.09 | AG117: 13434.09 | AH117: 13434.09 | AI117: 13434.09 | AK117: FALSE
A118: 111 | B118: =IFERROR(IF(VLOOKUP(C118,Soggetti_proprietari!C:K,9,0)=0,"",VLOOKUP(C118,Soggetti_proprietari!C:K,9,0)),"") -> 1202_13989-058111- | C118: Velletri | D118: =IFERROR(IF(VLOOKUP(C118,Soggetti_proprietari!C:K,2,0)=0,"",VLOOKUP(C118,Soggetti_proprietari!C:K,2,0)),"") -> Comune | E118: =IFERROR(IF(VLOOKUP(C118,Soggetti_proprietari!C:K,3,0)=0,"",VLOOKUP(C118,Soggetti_proprietari!C:K,3,0)),"") ->  | F118: =IFERROR(IF(VLOOKUP(C118,Soggetti_proprietari!C:K,4,0)=0,"",VLOOKUP(C118,Soggetti_proprietari!C:K,4,0)),"") -> 058111 | G118: 0 | H118: 0 | I118: 0 | J118: 0 | K118: 0 | L118: 0 | M118: 0 | N118: 2002 | O118: NO | P118: 306341.6 | Q118: 306341.6 | R118: 306341.6 | S118: 306341.6 | T118: 306341.6 | U118: 306341.6 | W118: 0 | X118: 0 | Y118: 0 | Z118: 0 | AA118: 0 | AB118: 0 | AD118: 306341.6 | AE118: 306341.6 | AF118: 306341.6 | AG118: 306341.6 | AH118: 306341.6 | AI118: 306341.6 | AK118: FALSE
A119: 112 | B119: =IFERROR(IF(VLOOKUP(C119,Soggetti_proprietari!C:K,9,0)=0,"",VLOOKUP(C119,Soggetti_proprietari!C:K,9,0)),"") -> 1202_13989-058112- | C119: Vicovaro | D119: =IFERROR(IF(VLOOKUP(C119,Soggetti_proprietari!C:K,2,0)=0,"",VLOOKUP(C119,Soggetti_proprietari!C:K,2,0)),"") -> Comune | E119: =IFERROR(IF(VLOOKUP(C119,Soggetti_proprietari!C:K,3,0)=0,"",VLOOKUP(C119,Soggetti_proprietari!C:K,3,0)),"") ->  | F119: =IFERROR(IF(VLOOKUP(C119,Soggetti_proprietari!C:K,4,0)=0,"",VLOOKUP(C119,Soggetti_proprietari!C:K,4,0)),"") -> 058112 | G119: 0 | H119: 0 | I119: 0 | J119: 0 | K119: 0 | L119: 0 | M119: 0 | N119: 2002 | O119: NO | P119: 25344.6 | Q119: 25344.6 | R119: 25344.6 | S119: 25344.6 | T119: 25344.6 | U119: 25344.6 | W119: 0 | X119: 0 | Y119: 0 | Z119: 0 | AA119: 0 | AB119: 0 | AD119: 25344.6 | AE119: 25344.6 | AF119: 25344.6 | AG119: 25344.6 | AH119: 25344.6 | AI119: 25344.6 | AK119: FALSE
A120: 113 | B120: =IFERROR(IF(VLOOKUP(C120,Soggetti_proprietari!C:K,9,0)=0,"",VLOOKUP(C120,Soggetti_proprietari!C:K,9,0)),"") -> 1202_13989-058114- | C120: Zagarolo | D120: =IFERROR(IF(VLOOKUP(C120,Soggetti_proprietari!C:K,2,0)=0,"",VLOOKUP(C120,Soggetti_proprietari!C:K,2,0)),"") -> Comune | E120: =IFERROR(IF(VLOOKUP(C120,Soggetti_proprietari!C:K,3,0)=0,"",VLOOKUP(C120,Soggetti_proprietari!C:K,3,0)),"") ->  | F120: =IFERROR(IF(VLOOKUP(C120,Soggetti_proprietari!C:K,4,0)=0,"",VLOOKUP(C120,Soggetti_proprietari!C:K,4,0)),"") -> 058114 | G120: 0 | H120: 0 | I120: 0 | J120: 0 | K120: 0 | L120: 0 | M120: 0 | N120: 2002 | O120: NO | P120: 75818.86 | Q120: 75818.86 | R120: 75818.86 | S120: 75818.86 | T120: 75818.86 | U120: 75818.86 | W120: 0 | X120: 0 | Y120: 0 | Z120: 0 | AA120: 0 | AB120: 0 | AD120: 75818.86 | AE120: 75818.86 | AF120: 75818.86 | AG120: 75818.86 | AH120: 75818.86 | AI120: 75818.86 | AK120: FALSE

Sheet Soggetti_Scambio
B1: SCAMBI ALL'INGROSSO
Q2: Sono presenti errori
B3: per ciascun soggetto indicare almeno l'ID gestore oppure la Partita IVA | Q3: =+OR(INDEX(Soggetti_Elenco,0,13)) -> FALSE
B5: 1. Soggetti con cui si hanno scambi di Servizi all'ingrosso (Vendita e/o Acquisto)
B7: IDGestore | C7: Nome soggetto | D7: Partita Iva | H7: nome_soggetto | I7: id_gestore | J7: P.IVA | K7: errore idgestore | L7: errore P.IVA | M7: errore idgestore o Partita Iva
A8: =+ROW(A8)-7 -> 1 | B8: 1 | C8: AGENZIA REGIONALE PER LO SVILUPPO E L'INNOVAZIONE DELL'AGRICOLTURA DEL LAZIO | D8: 04838391003 | H8: =+IFERROR(VLOOKUP(I8,TT_Gestori!A:C,3,FALSE),IFERROR(VLOOKUP(D8,TT_Gestori!B:C,2,FALSE),+C8)) -> AGENZIA REGIONALE PER LO SVILUPPO E L'INNOVAZIONE DELL'AGRICOLTURA DEL LAZIO | I8: =IFERROR(VLOOKUP(B8,TT_Gestori!A:C,1,FALSE),IFERROR(VLOOKUP(D8,TT_Gestori!B:D,3,FALSE),B8)) -> 1 | J8: =IFERROR(VLOOKUP(D8,TT_Gestori!C:C,1,FALSE),IFERROR(VLOOKUP(I8,TT_Gestori!A:C,2,FALSE),D8)) -> 04838391003 | K8: =+OR(I8="",I8=0) -> FALSE | L8: =+OR(J8="",J8=0) -> FALSE | M8: =+IF(AND(B8="",C8="",D8="",ROW(B8)=8),FALSE,IF(OR(H8="",H8=0,K8=TRUE,L8=TRUE),TRUE,FALSE)) -> FALSE
A9: =+ROW(A9)-7 -> 2 | B9: 2 | C9: REGIONE LAZIO | D9: 80143490581 | H9: =+IFERROR(VLOOKUP(I9,TT_Gestori!A:C,3,FALSE),IFERROR(VLOOKUP(D9,TT_Gestori!B:C,2,FALSE),+C9)) -> REGIONE LAZIO | I9: =IFERROR(VLOOKUP(B9,TT_Gestori!A:C,1,FALSE),IFERROR(VLOOKUP(D9,TT_Gestori!B:D,3,FALSE),B9)) -> 2 | J9: =IFERROR(VLOOKUP(D9,TT_Gestori!C:C,1,FALSE),IFERROR(VLOOKUP(I9,TT_Gestori!A:C,2,FALSE),D9)) -> 80143490581 | K9: =+OR(I9="",I9=0) -> FALSE | L9: =+OR(J9="",J9=0) -> FALSE | M9: =+IF(AND(B9="",C9="",D9="",ROW(B9)=8),FALSE,IF(OR(H9="",H9=0,K9=TRUE,L9=TRUE),TRUE,FALSE)) -> FALSE
A10: 3 | B10: 3 | C10: CONSORZIO INTERCOMUNALE ACQUEDOTTO DEL PESCHIERA | D10: 90011590578 | H10: =+IFERROR(VLOOKUP(I10,TT_Gestori!A:C,3,FALSE),IFERROR(VLOOKUP(D10,TT_Gestori!B:C,2,FALSE),+C10)) -> CONSORZIO INTERCOMUNALE ACQUEDOTTO DEL PESCHIERA | I10: =IFERROR(VLOOKUP(B10,TT_Gestori!A:C,1,FALSE),IFERROR(VLOOKUP(D10,TT_Gestori!B:D,3,FALSE),B10)) -> 3 | J10: =IFERROR(VLOOKUP(D10,TT_Gestori!C:C,1,FALSE),IFERROR(VLOOKUP(I10,TT_Gestori!A:C,2,FALSE),D10)) -> 90011590578 | K10: FALSE | L10: FALSE | M10: FALSE
A11: 4 | B11: 4 | C11: COMUNE DI SANT'ANGELO ROMANO | D11: 86002210580 | H11: =+IFERROR(VLOOKUP(I11,TT_Gestori!A:C,3,FALSE),IFERROR(VLOOKUP(D11,TT_Gestori!B:C,2,FALSE),+C11)) -> COMUNE DI SANT'ANGELO ROMANO | I11: =IFERROR(VLOOKUP(B11,TT_Gestori!A:C,1,FALSE),IFERROR(VLOOKUP(D11,TT_Gestori!B:D,3,FALSE),B11)) -> 4 | J11: =IFERROR(VLOOKUP(D11,TT_Gestori!C:C,1,FALSE),IFERROR(VLOOKUP(I11,TT_Gestori!A:C,2,FALSE),D11)) -> 86002210580 | K11: FALSE | L11: FALSE | M11: FALSE
A12: 5 | B12: 6 | C12: COMUNE DI AGOSTA | D12: 86002070588 | H12: =+IFERROR(VLOOKUP(I12,TT_Gestori!A:C,3,FALSE),IFERROR(VLOOKUP(D12,TT_Gestori!B:C,2,FALSE),+C12)) -> COMUNE DI AGOSTA | I12: =IFERROR(VLOOKUP(B12,TT_Gestori!A:C,1,FALSE),IFERROR(VLOOKUP(D12,TT_Gestori!B:D,3,FALSE),B12)) -> 6 | J12: =IFERROR(VLOOKUP(D12,TT_Gestori!C:C,1,FALSE),IFERROR(VLOOKUP(I12,TT_Gestori!A:C,2,FALSE),D12)) -> 86002070588 | K12: FALSE | L12: FALSE | M12: FALSE
A13: 6 | B13: 7 | C13: CONSORZIO COMUNI DELLA MEDIA SABINA | D13: 00086470572 | H13: =+IFERROR(VLOOKUP(I13,TT_Gestori!A:C,3,FALSE),IFERROR(VLOOKUP(D13,TT_Gestori!B:C,2,FALSE),+C13)) -> CONSORZIO COMUNI DELLA MEDIA SABINA | I13: =IFERROR(VLOOKUP(B13,TT_Gestori!A:C,1,FALSE),IFERROR(VLOOKUP(D13,TT_Gestori!B:D,3,FALSE),B13)) -> 23865 | J13: =IFERROR(VLOOKUP(D13,TT_Gestori!C:C,1,FALSE),IFERROR(VLOOKUP(I13,TT_Gestori!A:C,2,FALSE),D13)) -> 00086470572 | K13: FALSE | L13: FALSE | M13: FALSE
A14: 7 | B14: 8 | C14: COMUNE DI MARANO EQUO | D14: 86001110583 | H14: =+IFERROR(VLOOKUP(I14,TT_Gestori!A:C,3,FALSE),IFERROR(VLOOKUP(D14,TT_Gestori!B:C,2,FALSE),+C14)) -> COMUNE DI MARANO EQUO | I14: =IFERROR(VLOOKUP(B14,TT_Gestori!A:C,1,FALSE),IFERROR(VLOOKUP(D14,TT_Gestori!B:D,3,FALSE),B14)) -> 8 | J14: =IFERROR(VLOOKUP(D14,TT_Gestori!C:C,1,FALSE),IFERROR(VLOOKUP(I14,TT_Gestori!A:C,2,FALSE),D14)) -> 86001110583 | K14: FALSE | L14: FALSE | M14: FALSE
A15: 8 | B15: 9 | C15: COMUNE DI ANGUILLARA SABAZIA | D15: 80071510582 | H15: =+IFERROR(VLOOKUP(I15,TT_Gestori!A:C,3,FALSE),IFERROR(VLOOKUP(D15,TT_Gestori!B:C,2,FALSE),+C15)) -> COMUNE DI ANGUILLARA SABAZIA | I15: =IFERROR(VLOOKUP(B15,TT_Gestori!A:C,1,FALSE),IFERROR(VLOOKUP(D15,TT_Gestori!B:D,3,FALSE),B15)) -> 9 | J15: =IFERROR(VLOOKUP(D15,TT_Gestori!C:C,1,FALSE),IFERROR(VLOOKUP(I15,TT_Gestori!A:C,2,FALSE),D15)) -> 80071510582 | K15: FALSE | L15: FALSE | M15: FALSE
A16: 9 | B16: 10 | C16: IDRICA S.P.A. | D16: 04881890588 | H16: =+IFERROR(VLOOKUP(I16,TT_Gestori!A:C,3,FALSE),IFERROR(VLOOKUP(D16,TT_Gestori!B:C,2,FALSE),+C16)) -> IDRICA S.P.A. | I16: =IFERROR(VLOOKUP(B16,TT_Gestori!A:C,1,FALSE),IFERROR(VLOOKUP(D16,TT_Gestori!B:D,3,FALSE),B16)) -> 10 | J16: =IFERROR(VLOOKUP(D16,TT_Gestori!C:C,1,FALSE),IFERROR(VLOOKUP(I16,TT_Gestori!A:C,2,FALSE),D16)) -> 04881890588 | K16: FALSE | L16: FALSE | M16: FALSE
A17: 10 | B17: 11 | C17: COMUNE DI CIVITELLA SAN PAOLO | D17: 02672190580 | H17: =+IFERROR(VLOOKUP(I17,TT_Gestori!A:C,3,FALSE),IFERROR(VLOOKUP(D17,TT_Gestori!B:C,2,FALSE),+C17)) -> COMUNE DI CIVITELLA SAN PAOLO | I17: =IFERROR(VLOOKUP(B17,TT_Gestori!A:C,1,FALSE),IFERROR(VLOOKUP(D17,TT_Gestori!B:D,3,FALSE),B17)) -> 11 | J17: =IFERROR(VLOOKUP(D17,TT_Gestori!C:C,1,FALSE),IFERROR(VLOOKUP(I17,TT_Gestori!A:C,2,FALSE),D17)) -> 02672190580 | K17: FALSE | L17: FALSE | M17: FALSE
A18: 11 | B18: 12 | C18: AMEA S.P.A. | D18: 02066710605 | H18: =+IFERROR(VLOOKUP(I18,TT_Gestori!A:C,3,FALSE),IFERROR(VLOOKUP(D18,TT_Gestori!B:C,2,FALSE),+C18)) -> AMEA S.P.A. | I18: =IFERROR(VLOOKUP(B18,TT_Gestori!A:C,1,FALSE),IFERROR(VLOOKUP(D18,TT_Gestori!B:D,3,FALSE),B18)) -> 335 | J18: =IFERROR(VLOOKUP(D18,TT_Gestori!C:C,1,FALSE),IFERROR(VLOOKUP(I18,TT_Gestori!A:C,2,FALSE),D18)) -> 02066710605 | K18: FALSE | L18: FALSE | M18: FALSE
A19: 12 | B19: 13 | C19: CONSORZIO DEGLI ALTIPIANI DI ARCINAZZO PER DISTRIB.ACQUA | D19: 97161360587 | H19: =+IFERROR(VLOOKUP(I19,TT_Gestori!A:C,3,FALSE),IFERROR(VLOOKUP(D19,TT_Gestori!B:C,2,FALSE),+C19)) -> CONSORZIO DEGLI ALTIPIANI DI ARCINAZZO PER DISTRIB.ACQUA | I19: =IFERROR(VLOOKUP(B19,TT_Gestori!A:C,1,FALSE),IFERROR(VLOOKUP(D19,TT_Gestori!B:D,3,FALSE),B19)) -> 13 | J19: =IFERROR(VLOOKUP(D19,TT_Gestori!C:C,1,FALSE),IFERROR(VLOOKUP(I19,TT_Gestori!A:C,2,FALSE),D19)) -> 97161360587 | K19: FALSE | L19: FALSE | M19: FALSE
A20: 13 | B20: 14 | C20: FLAVIA SERVIZI S.R.L. | D20: 07857381003 | H20: =+IFERROR(VLOOKUP(I20,TT_Gestori!A:C,3,FALSE),IFERROR(VLOOKUP(D20,TT_Gestori!B:C,2,FALSE),+C20)) -> FLAVIA SERVIZI S.R.L. | I20: =IFERROR(VLOOKUP(B20,TT_Gestori!A:C,1,FALSE),IFERROR(VLOOKUP(D20,TT_Gestori!B:D,3,FALSE),B20)) -> 14 | J20: =IFERROR(VLOOKUP(D20,TT_Gestori!C:C,1,FALSE),IFERROR(VLOOKUP(I20,TT_Gestori!A:C,2,FALSE),D20)) -> 07857381003 | K20: FALSE | L20: FALSE | M20: FALSE
A21: 14 | B21: 15 | C21: COMUNE DI LABICO | D21: 02786080586 | H21: =+IFERROR(VLOOKUP(I21,TT_Gestori!A:C,3,FALSE),IFERROR(VLOOKUP(D21,TT_Gestori!B:C,2,FALSE),+C21)) -> COMUNE DI LABICO | I21: =IFERROR(VLOOKUP(B21,TT_Gestori!A:C,1,FALSE),IFERROR(VLOOKUP(D21,TT_Gestori!B:D,3,FALSE),B21)) -> 15 | J21: =IFERROR(VLOOKUP(D21,TT_Gestori!C:C,1,FALSE),IFERROR(VLOOKUP(I21,TT_Gestori!A:C,2,FALSE),D21)) -> 02786080586 | K21: FALSE | L21: FALSE | M21: FALSE
A22: 15 | B22: 16 | C22: COMUNE DI TREVI NEL LAZIO | D22: 00300630605 | H22: =+IFERROR(VLOOKUP(I22,TT_Gestori!A:C,3,FALSE),IFERROR(VLOOKUP(D22,TT_Gestori!B:C,2,FALSE),+C22)) -> Comune di Trevi nel Lazio | I22: =IFERROR(VLOOKUP(B22,TT_Gestori!A:C,1,FALSE),IFERROR(VLOOKUP(D22,TT_Gestori!B:D,3,FALSE),B22)) -> 19749 | J22: =IFERROR(VLOOKUP(D22,TT_Gestori!C:C,1,FALSE),IFERROR(VLOOKUP(I22,TT_Gestori!A:C,2,FALSE),D22)) -> 00300630605 | K22: FALSE | L22: FALSE | M22: FALSE
A23: 16 | B23: 17 | C23: COMUNE DI CERRETO LAZIALE | D23: 86002150588 | H23: =+IFERROR(VLOOKUP(I23,TT_Gestori!A:C,3,FALSE),IFERROR(VLOOKUP(D23,TT_Gestori!B:C,2,FALSE),+C23)) -> COMUNE DI CERRETO LAZIALE | I23: =IFERROR(VLOOKUP(B23,TT_Gestori!A:C,1,FALSE),IFERROR(VLOOKUP(D23,TT_Gestori!B:D,3,FALSE),B23)) -> 17 | J23: =IFERROR(VLOOKUP(D23,TT_Gestori!C:C,1,FALSE),IFERROR(VLOOKUP(I23,TT_Gestori!A:C,2,FALSE),D23)) -> 86002150588 | K23: FALSE | L23: FALSE | M23: FALSE
A24: 17 | B24: 18 | C24: ACEA ATO5 SPA | D24: 02267050603 | H24: =+IFERROR(VLOOKUP(I24,TT_Gestori!A:C,3,FALSE),IFERROR(VLOOKUP(D24,TT_Gestori!B:C,2,FALSE),+C24)) -> ACEA ATO 5 SPA | I24: =IFERROR(VLOOKUP(B24,TT_Gestori!A:C,1,FALSE),IFERROR(VLOOKUP(D24,TT_Gestori!B:D,3,FALSE),B24)) -> 13805 | J24: =IFERROR(VLOOKUP(D24,TT_Gestori!C:C,1,FALSE),IFERROR(VLOOKUP(I24,TT_Gestori!A:C,2,FALSE),D24)) -> 02267050603 | K24: FALSE | L24: FALSE | M24: FALSE
A25: 18 | B25: 19 | C25: ACQUALATINA SPA | D25: 02111020596 | H25: =+IFERROR(VLOOKUP(I25,TT_Gestori!A:C,3,FALSE),IFERROR(VLOOKUP(D25,TT_Gestori!B:C,2,FALSE),+C25)) -> ACQUALATINA SPA | I25: =IFERROR(VLOOKUP(B25,TT_Gestori!A:C,1,FALSE),IFERROR(VLOOKUP(D25,TT_Gestori!B:D,3,FALSE),B25)) -> 13761 | J25: =IFERROR(VLOOKUP(D25,TT_Gestori!C:C,1,FALSE),IFERROR(VLOOKUP(I25,TT_Gestori!A:C,2,FALSE),D25)) -> 02111020596 | K25: FALSE | L25: FALSE | M25: FALSE
A26: 19 | B26: 20 | C26: ACQUA PUBBLICA SABINA S.P.A. | D26: 01138990575 | H26: =+IFERROR(VLOOKUP(I26,TT_Gestori!A:C,3,FALSE),IFERROR(VLOOKUP(D26,TT_Gestori!B:C,2,FALSE),+C26)) -> Acqua Pubblica Sabina S.P.A. | I26: =IFERROR(VLOOKUP(B26,TT_Gestori!A:C,1,FALSE),IFERROR(VLOOKUP(D26,TT_Gestori!B:D,3,FALSE),B26)) -> 25320 | J26: =IFERROR(VLOOKUP(D26,TT_Gestori!C:C,1,FALSE),IFERROR(VLOOKUP(I26,TT_Gestori!A:C,2,FALSE),D26)) -> 01138990575 | K26: FALSE | L26: FALSE | M26: FALSE
A27: 20 | B27: 21 | C27: CONSORZIO INDUSTRIALE DEL LAZIO | D27: 16452941004 | H27: =+IFERROR(VLOOKUP(I27,TT_Gestori!A:C,3,FALSE),IFERROR(VLOOKUP(D27,TT_Gestori!B:C,2,FALSE),+C27)) -> CONSORZIO INDUSTRIALE DEL LAZIO | I27: =IFERROR(VLOOKUP(B27,TT_Gestori!A:C,1,FALSE),IFERROR(VLOOKUP(D27,TT_Gestori!B:D,3,FALSE),B27)) -> 21 | J27: =IFERROR(VLOOKUP(D27,TT_Gestori!C:C,1,FALSE),IFERROR(VLOOKUP(I27,TT_Gestori!A:C,2,FALSE),D27)) -> 16452941004 | K27: FALSE | L27: FALSE | M27: FALSE
A28: 21 | B28: 22 | C28: A.E.A. SRL | D28: 00950990572 | H28: =+IFERROR(VLOOKUP(I28,TT_Gestori!A:C,3,FALSE),IFERROR(VLOOKUP(D28,TT_Gestori!B:C,2,FALSE),+C28)) -> A.E.A. SRL | I28: =IFERROR(VLOOKUP(B28,TT_Gestori!A:C,1,FALSE),IFERROR(VLOOKUP(D28,TT_Gestori!B:D,3,FALSE),B28)) -> 22 | J28: =IFERROR(VLOOKUP(D28,TT_Gestori!C:C,1,FALSE),IFERROR(VLOOKUP(I28,TT_Gestori!A:C,2,FALSE),D28)) -> 00950990572 | K28: FALSE | L28: FALSE | M28: FALSE
A29: 22 | B29: 23 | C29: COMUNE DI TIVOLI | D29: 02696630587 | H29: =+IFERROR(VLOOKUP(I29,TT_Gestori!A:C,3,FALSE),IFERROR(VLOOKUP(D29,TT_Gestori!B:C,2,FALSE),+C29)) -> COMUNE DI TIVOLI | I29: =IFERROR(VLOOKUP(B29,TT_Gestori!A:C,1,FALSE),IFERROR(VLOOKUP(D29,TT_Gestori!B:D,3,FALSE),B29)) -> 23 | J29: =IFERROR(VLOOKUP(D29,TT_Gestori!C:C,1,FALSE),IFERROR(VLOOKUP(I29,TT_Gestori!A:C,2,FALSE),D29)) -> 02696630587 | K29: FALSE | L29: FALSE | M29: FALSE
A30: 23 | B30: 24 | C30: MA.P.R.OL. DI GIORGI SRL | D30: 01672691001 | H30: =+IFERROR(VLOOKUP(I30,TT_Gestori!A:C,3,FALSE),IFERROR(VLOOKUP(D30,TT_Gestori!B:C,2,FALSE),+C30)) -> MA.P.R.OL. DI GIORGI SRL | I30: =IFERROR(VLOOKUP(B30,TT_Gestori!A:C,1,FALSE),IFERROR(VLOOKUP(D30,TT_Gestori!B:D,3,FALSE),B30)) -> 24 | J30: =IFERROR(VLOOKUP(D30,TT_Gestori!C:C,1,FALSE),IFERROR(VLOOKUP(I30,TT_Gestori!A:C,2,FALSE),D30)) -> 01672691001 | K30: FALSE | L30: FALSE | M30: FALSE
A31: 24 | B31: 25 | C31: TALETE SPA | D31: 01767320565 | H31: =+IFERROR(VLOOKUP(I31,TT_Gestori!A:C,3,FALSE),IFERROR(VLOOKUP(D31,TT_Gestori!B:C,2,FALSE),+C31)) -> TALETE S.P.A. | I31: =IFERROR(VLOOKUP(B31,TT_Gestori!A:C,1,FALSE),IFERROR(VLOOKUP(D31,TT_Gestori!B:D,3,FALSE),B31)) -> 15035 | J31: =IFERROR(VLOOKUP(D31,TT_Gestori!C:C,1,FALSE),IFERROR(VLOOKUP(I31,TT_Gestori!A:C,2,FALSE),D31)) -> 01767320565 | K31: FALSE | L31: FALSE | M31: FALSE
A32: 25 | B32: 26 | C32: COMUNE DI CAPENA | D32: 02652400587 | H32: =+IFERROR(VLOOKUP(I32,TT_Gestori!A:C,3,FALSE),IFERROR(VLOOKUP(D32,TT_Gestori!B:C,2,FALSE),+C32)) -> COMUNE DI CAPENA | I32: =IFERROR(VLOOKUP(B32,TT_Gestori!A:C,1,FALSE),IFERROR(VLOOKUP(D32,TT_Gestori!B:D,3,FALSE),B32)) -> 26 | J32: =IFERROR(VLOOKUP(D32,TT_Gestori!C:C,1,FALSE),IFERROR(VLOOKUP(I32,TT_Gestori!A:C,2,FALSE),D32)) -> 02652400587 | K32: FALSE | L32: FALSE | M32: FALSE
A33: 26 | B33: 27 | C33: CONSORZIO ACQUEDOTTO DEL MEDIO TIRRENO | D33: 01259061008 | H33: =+IFERROR(VLOOKUP(I33,TT_Gestori!A:C,3,FALSE),IFERROR(VLOOKUP(D33,TT_Gestori!B:C,2,FALSE),+C33)) -> Consorzio Acquedotto del Medio Tirreno in liquidazione | I33: =IFERROR(VLOOKUP(B33,TT_Gestori!A:C,1,FALSE),IFERROR(VLOOKUP(D33,TT_Gestori!B:D,3,FALSE),B33)) -> 37275 | J33: =IFERROR(VLOOKUP(D33,TT_Gestori!C:C,1,FALSE),IFERROR(VLOOKUP(I33,TT_Gestori!A:C,2,FALSE),D33)) -> 01259061008 | K33: FALSE | L33: FALSE | M33: FALSE

Sheet Vendita_Servizi_ingrosso
B1: SCAMBI ALL'INGROSSO
B3: 2. Ricavi da tariffe applicate nella Vendita all'ingrosso
F4: ANNO 2021 | L4: ANNO 2022 | R4: ANNO 2023 | Z4: J ANNO 2022 | AE4: J ANNO 2023
A5: N_riga | B5: Idgestore | C5: Soggetto a cui si vende | D5: ATO | E5: Servizio | F5: Volumi erogati / trattati (m3/anno) | G5: QV (Euro/m3) | H5: - | I5: Utenze (numero) | J5: QF (Euro/utente/anno) | K5: Importo (Euro/anno) | L5: Volumi erogati / trattati (m3/anno) | M5: QV (Euro/m3) | N5: - | O5: Utenze (numero) | P5: QF (Euro/utente/anno) | Q5: Importo (Euro/anno) | R5: Volumi erogati / trattati (m3/anno) | S5: QV (Euro/m3) | T5: - | U5: Utenze (numero) | V5: QF (Euro/utente/anno) | W5: Importo (Euro/anno) | X5: Le tariffe riportate per il 2022 includono l'applicazione del Teta? | Y5: Teta medio applicato nella fatturazione dell'anno 2022 | Z5: Teta approvato dal soggetto competente per l'anno 2022 | AA5: Teta approvato dall'Autorità per l'anno 2022 | AB5: delibera Autorità | AC5: Le tariffe riportate per il 2023 includono l'applicazione del Teta? | AD5: Teta medio applicato nella fatturazione dell'anno 2023 | AE5: Teta approvato dal soggetto competente per l'anno 2023 | AF5: Teta approvato dall'Autorità per l'anno 2023 | AG5: delibera Autorità | AI5: tar2021*vol2021 | AJ5: tar2022*vol2022 | AK5: tar2023*vol2023 | AL5: tar2023*vol2022
A6: =+ROW(A6)-5 -> 1 | B6: =+IF(ISNA(VLOOKUP(C6,soggetto_j,2,FALSE)),0,VLOOKUP(C6,soggetto_j,2,FALSE)) -> 13805 | C6: ACEA ATO 5 SPA | D6: ATO 5 - LAZIO MERIDIONALE FROSINONE | E6: Adduzione | F6: 4989716 | G6: 0.6490068092 | H6: 0 | I6: 7 | J6: 22.13142857 | K6: =+F6*G6+I6*J6 -> 3238514.58 | L6: 4537547 | M6: 0.6463653886 | N6: 0 | O6: 7 | P6: 23.35857143 | Q6: =+L6*M6+O6*P6 -> 2933076.84 | R6: 4425663 | S6: 0.6760960471 | T6: 0 | U6: 7 | V6: 26.53857143 | W6: =+U6*V6+R6*S6 -> 2992359.03 | X6: SI | Y6: 1.138871061 | Z6: 1.138871061 | AA6: =+Dati_Anni_precedenti!$E$5 -> 1.138903445 | AB6: =+Dati_Anni_precedenti!$G$4 -> 11/2023 | AC6: SI | AD6: 1.201859962 | AE6: 1.201859962 | AF6: =+Dati_Anni_precedenti!$F$5 -> 1.20187812 | AG6: =+Dati_Anni_precedenti!$G$4 -> 11/2023 | AI6: =+I6*$J6+F6*$G6 -> 3238514.58 | AJ6: =+O6*$P6+L6*$M6 -> 2933076.84 | AK6: =+S6*R6+V6*U6 -> 2992359.03 | AL6: =+S6*L6+V6*O6 -> 3068003.36
A7: =+ROW(A7)-5 -> 2 | B7: 25320 | C7: ACQUA PUBBLICA SABINA S.P.A. | D7: ATO 3 - LAZIO CENTRALE RIETI | E7: Adduzione | F7: 10038233 | G7: 0.1195934085 | H7: 0 | I7: 21 | J7: 22.12142857 | K7: =+F7*G7+I7*J7 -> 1200971.05 | L7: 9950140 | M7: 0.1265285906 | N7: 0 | O7: 21 | P7: 23.35904762 | Q7: =+L7*M7+O7*P7 -> 1259467.73 | R7: 10311123 | S7: 0.1353725031 | T7: 0 | U7: 21 | V7: 26.54952381 | W7: =+U7*V7+R7*S7 -> 1396400.07 | X7: SI | Y7: 1.138871061 | Z7: 1.138871061 | AA7: =+Dati_Anni_precedenti!$E$5 -> 1.138903445 | AB7: =+Dati_Anni_precedenti!$G$4 -> 11/2023 | AC7: SI | AD7: 1.201859962 | AE7: 1.201859962 | AF7: =+Dati_Anni_precedenti!$F$5 -> 1.20187812 | AG7: =+Dati_Anni_precedenti!$G$4 -> 11/2023 | AI7: =+I7*$J7+F7*$G7 -> 1200971.05 | AJ7: =+O7*$P7+L7*$M7 -> 1259467.73 | AK7: =+S7*R7+V7*U7 -> 1396400.07 | AL7: =+S7*L7+V7*O7 -> 1347532.898
A8: 3 | B8: 13761 | C8: ACQUALATINA SPA | D8: ATO 4 - LAZIO MERIDIONALE LATINA | E8: Adduzione | F8: 862737 | G8: 0.3473828177 | H8: 0 | I8: 2 | J8: 22.13 | K8: 299744.27 | L8: 870305 | M8: 0.3700243133 | N8: 0 | O8: 2 | P8: 23.37 | Q8: 322080.75 | R8: 897224 | S8: 0.3943778365 | T8: 0 | U8: 2 | V8: 26.55 | W8: 353898.36 | X8: SI | Y8: 1.138871061 | Z8: 1.138871061 | AA8: =+Dati_Anni_precedenti!$E$5 -> 1.138903445 | AB8: =+Dati_Anni_precedenti!$G$4 -> 11/2023 | AC8: SI | AD8: 1.201859962 | AE8: 1.201859962 | AF8: =+Dati_Anni_precedenti!$F$5 -> 1.20187812 | AG8: =+Dati_Anni_precedenti!$G$4 -> 11/2023 | AI8: 299744.27 | AJ8: 322080.75 | AK8: 353898.36 | AL8: 343282.103
A9: 4 | B9: 1 | C9: AGENZIA REGIONALE PER LO SVILUPPO E L'INNOVAZIONE DELL'AGRICOLTURA DEL LAZIO | D9: ATO 2 - LAZIO CENTRALE ROMA | E9: Adduzione | F9: 1434973 | G9: 0.3484094335 | H9: 0 | I9: 13 | J9: 22.11307692 | K9: 500245.6 | L9: 1391573 | M9: 0.3834624414 | N9: 0 | O9: 13 | P9: 20.34153846 | Q9: 533880.42 | R9: 1142599 | S9: 0.3974001115 | T9: 0 | U9: 10 | V9: 22.995 | W9: 454298.92 | X9: SI | Y9: 1.138871061 | Z9: 1.138871061 | AA9: =+Dati_Anni_precedenti!$E$5 -> 1.138903445 | AB9: =+Dati_Anni_precedenti!$G$4 -> 11/2023 | AC9: SI | AD9: 1.201859962 | AE9: 1.201859962 | AF9: =+Dati_Anni_precedenti!$F$5 -> 1.20187812 | AG9: =+Dati_Anni_precedenti!$G$4 -> 11/2023 | AI9: 500245.6 | AJ9: 533880.42 | AK9: 454298.92 | AL9: 553310.2004
A10: 5 | B10: 335 | C10: AMEA S.P.A. | D10: ATO 5 - LAZIO MERIDIONALE FROSINONE | E10: Adduzione | F10: 298490 | G10: 0.3473000101 | H10: 0 | I10: 1 | J10: 22.13 | K10: 103687.71 | L10: 289163 | M10: 0.3668000747 | N10: 0 | O10: 1 | P10: 23.36 | Q10: 106088.37 | R10: 277590 | S10: 0.387000036 | T10: 0 | U10: 1 | V10: 26.55 | W10: 107453.89 | X10: SI | Y10: 1.138871061 | Z10: 1.138871061 | AA10: =+Dati_Anni_precedenti!$E$5 -> 1.138903445 | AB10: =+Dati_Anni_precedenti!$G$4 -> 11/2023 | AC10: SI | AD10: 1.201859962 | AE10: 1.201859962 | AF10: =+Dati_Anni_precedenti!$F$5 -> 1.20187812 | AG10: =+Dati_Anni_precedenti!$G$4 -> 11/2023 | AI10: 103687.71 | AJ10: 106088.37 | AK10: 107453.89 | AL10: 111932.6414
A11: 6 | B11: 6 | C11: COMUNE DI AGOSTA | D11: ATO 2 - LAZIO CENTRALE ROMA | E11: Adduzione | F11: 357258 | G11: 0 | H11: 0 | I11: 1 | J11: 22.12 | K11: 22.12 | L11: 232957 | M11: 0 | N11: 0 | O11: 1 | P11: 14.53 | Q11: 14.53 | R11: 0 | S11: 0 | T11: 0 | U11: 0 | V11: 0 | W11: 0 | X11: SI | Y11: 1.138871061 | Z11: 1.138871061 | AA11: =+Dati_Anni_precedenti!$E$5 -> 1.138903445 | AB11: =+Dati_Anni_precedenti!$G$4 -> 11/2023 | AC11: SI | AD11: 1.201859962 | AE11: 1.201859962 | AF11: =+Dati_Anni_precedenti!$F$5 -> 1.20187812 | AG11: =+Dati_Anni_precedenti!$G$4 -> 11/2023 | AI11: 22.12 | AJ11: 14.53 | AK11: 0 | AL11: 0
A12: 7 | B12: 9 | C12: COMUNE DI ANGUILLARA SABAZIA | D12: ATO 2 - LAZIO CENTRALE ROMA | E12: Adduzione | F12: 463676 | G12: 0.2291954511 | H12: 0 | I12: 1 | J12: 22.13 | K12: 106294.56 | L12: 343354 | M12: 0.2412722438 | N12: 0 | O12: 1 | P12: 17.4 | Q12: 82859.19 | R12: 0 | S12: 0 | T12: 0 | U12: 0 | V12: 0 | W12: 0 | X12: SI | Y12: 1.138871061 | Z12: 1.138871061 | AA12: =+Dati_Anni_precedenti!$E$5 -> 1.138903445 | AB12: =+Dati_Anni_precedenti!$G$4 -> 11/2023 | AC12: SI | AD12: 1.201859962 | AE12: 1.201859962 | AF12: =+Dati_Anni_precedenti!$F$5 -> 1.20187812 | AG12: =+Dati_Anni_precedenti!$G$4 -> 11/2023 | AI12: 106294.56 | AJ12: 82859.19 | AK12: 0 | AL12: 0
A13: 8 | B13: 17 | C13: COMUNE DI CERRETO LAZIALE | D13: ATO 2 - LAZIO CENTRALE ROMA | E13: Adduzione | F13: 54009 | G13: 0.3984147087 | H13: 0 | I13: 1 | J13: 22.13 | K13: 21540.11 | L13: 47011 | M13: 0.4631992512 | N13: 0 | O13: 1 | P13: 17.41 | Q13: 21792.87 | R13: 0 | S13: 0 | T13: 0 | U13: 0 | V13: 0 | W13: 0 | X13: SI | Y13: 1.138871061 | Z13: 1.138871061 | AA13: =+Dati_Anni_precedenti!$E$5 -> 1.138903445 | AB13: =+Dati_Anni_precedenti!$G$4 -> 11/2023 | AC13: SI | AD13: 1.201859962 | AE13: 1.201859962 | AF13: =+Dati_Anni_precedenti!$F$5 -> 1.20187812 | AG13: =+Dati_Anni_precedenti!$G$4 -> 11/2023 | AI13: 21540.11 | AJ13: 21792.87 | AK13: 0 | AL13: 0
A14: 9 | B14: 11 | C14: COMUNE DI CIVITELLA SAN PAOLO | D14: ATO 2 - LAZIO CENTRALE ROMA | E14: Adduzione | F14: 98237 | G14: 0.347299999 | H14: 0 | I14: 1 | J14: 22.12 | K14: 34139.83 | L14: 66884 | M14: 0.3691078584 | N14: 0 | O14: 1 | P14: 17.41 | Q14: 24704.82 | R14: 0 | S14: 0 | T14: 0 | U14: 0 | V14: 0 | W14: 0 | X14: SI | Y14: 1.138871061 | Z14: 1.138871061 | AA14: =+Dati_Anni_precedenti!$E$5 -> 1.138903445 | AB14: =+Dati_Anni_precedenti!$G$4 -> 11/2023 | AC14: SI | AD14: 1.201859962 | AE14: 1.201859962 | AF14: =+Dati_Anni_precedenti!$F$5 -> 1.20187812 | AG14: =+Dati_Anni_precedenti!$G$4 -> 11/2023 | AI14: 34139.83 | AJ14: 24704.82 | AK14: 0 | AL14: 0
A15: 10 | B15: 15 | C15: COMUNE DI LABICO | D15: ATO 2 - LAZIO CENTRALE ROMA | E15: Adduzione | F15: 131002 | G15: 0.3550228241 | H15: 0 | I15: 1 | J15: 22.13 | K15: 46530.83 | L15: 102867 | M15: 0.3857487824 | N15: 0 | O15: 1 | P15: 17.41 | Q15: 39698.23 | R15: 0 | S15: 0 | T15: 0 | U15: 0 | V15: 0 | W15: 0 | X15: SI | Y15: 1.138871061 | Z15: 1.138871061 | AA15: =+Dati_Anni_precedenti!$E$5 -> 1.138903445 | AB15: =+Dati_Anni_precedenti!$G$4 -> 11/2023 | AC15: SI | AD15: 1.201859962 | AE15: 1.201859962 | AF15: =+Dati_Anni_precedenti!$F$5 -> 1.20187812 | AG15: =+Dati_Anni_precedenti!$G$4 -> 11/2023 | AI15: 46530.83 | AJ15: 39698.23 | AK15: 0 | AL15: 0
A16: 11 | B16: 8 | C16: COMUNE DI MARANO EQUO | D16: ATO 2 - LAZIO CENTRALE ROMA | E16: Adduzione | F16: 345258 | G16: 0.4033903342 | H16: 0 | I16: 1 | J16: 22.13 | K16: 139295.87 | L16: 87018 | M16: 0.4581279735 | N16: 0 | O16: 1 | P16: 5.76 | Q16: 39871.14 | R16: 0 | S16: 0 | T16: 0 | U16: 0 | V16: 0 | W16: 0 | X16: SI | Y16: 1.138871061 | Z16: 1.138871061 | AA16: =+Dati_Anni_precedenti!$E$5 -> 1.138903445 | AB16: =+Dati_Anni_precedenti!$G$4 -> 11/2023 | AC16: SI | AD16: 1.201859962 | AE16: 1.201859962 | AF16: =+Dati_Anni_precedenti!$F$5 -> 1.20187812 | AG16: =+Dati_Anni_precedenti!$G$4 -> 11/2023 | AI16: 139295.87 | AJ16: 39871.14 | AK16: 0 | AL16: 0
A17: 12 | B17: 4 | C17: COMUNE DI SANT'ANGELO ROMANO | D17: ATO 2 - LAZIO CENTRALE ROMA | E17: Adduzione | F17: 418240 | G17: 0.9246084306 | H17: 0 | I17: 2 | J17: 22.13 | K17: 386752.49 | L17: 269541 | M17: 0.9123328176 | N17: 0 | O17: 2 | P17: 17.395 | Q17: 245945.89 | R17: 0 | S17: 0 | T17: 0 | U17: 0 | V17: 0 | W17: 0 | X17: SI | Y17: 1.138871061 | Z17: 1.138871061 | AA17: =+Dati_Anni_precedenti!$E$5 -> 1.138903445 | AB17: =+Dati_Anni_precedenti!$G$4 -> 11/2023 | AC17: SI | AD17: 1.201859962 | AE17: 1.201859962 | AF17: =+Dati_Anni_precedenti!$F$5 -> 1.20187812 | AG17: =+Dati_Anni_precedenti!$G$4 -> 11/2023 | AI17: 386752.49 | AJ17: 245945.89 | AK17: 0 | AL17: 0
A18: 13 | B18: 19749 | C18: COMUNE DI TREVI NEL LAZIO | D18: ATO 2 - LAZIO CENTRALE ROMA | E18: Adduzione | F18: 261672 | G18: 0 | H18: 0 | I18: 1 | J18: 22.13 | K18: 22.13 | L18: 197387 | M18: 0 | N18: 0 | O18: 1 | P18: 17.41 | Q18: 17.41 | R18: 0 | S18: 0 | T18: 0 | U18: 0 | V18: 0 | W18: 0 | X18: SI | Y18: 1.138871061 | Z18: 1.138871061 | AA18: =+Dati_Anni_precedenti!$E$5 -> 1.138903445 | AB18: =+Dati_Anni_precedenti!$G$4 -> 11/2023 | AC18: SI | AD18: 1.201859962 | AE18: 1.201859962 | AF18: =+Dati_Anni_precedenti!$F$5 -> 1.20187812 | AG18: =+Dati_Anni_precedenti!$G$4 -> 11/2023 | AI18: 22.13 | AJ18: 17.41 | AK18: 0 | AL18: 0
A19: 14 | B19: 23865 | C19: CONSORZIO COMUNI DELLA MEDIA SABINA | D19: ATO 3 - LAZIO CENTRALE RIETI | E19: Adduzione | F19: 998428 | G19: 0.01733700377 | H19: 0 | I19: 1 | J19: 22.13 | K19: 17331.88 | L19: 1060131 | M19: 0.0279141823 | N19: 0 | O19: 1 | P19: 23.36 | Q19: 29616.05 | R19: 1131549 | S19: 0.04006653711 | T19: 0 | U19: 1 | V19: 26.55 | W19: 45363.8 | X19: SI | Y19: 1.138871061 | Z19: 1.138871061 | AA19: =+Dati_Anni_precedenti!$E$5 -> 1.138903445 | AB19: =+Dati_Anni_precedenti!$G$4 -> 11/2023 | AC19: SI | AD19: 1.201859962 | AE19: 1.201859962 | AF19: =+Dati_Anni_precedenti!$F$5 -> 1.20187812 | AG19: =+Dati_Anni_precedenti!$G$4 -> 11/2023 | AI19: 17331.88 | AJ19: 29616.05 | AK19: 45363.8 | AL19: 42502.32805
A20: 15 | B20: 13 | C20: CONSORZIO DEGLI ALTIPIANI DI ARCINAZZO PER DISTRIB.ACQUA | D20: ATO 2 - LAZIO CENTRALE ROMA | E20: Adduzione | F20: 25649 | G20: 0.4318702484 | H20: 0 | I20: 1 | J20: 22.13 | K20: 11099.17 | L20: 24561 | M20: 0.4341398966 | N20: 0 | O20: 1 | P20: 23.36 | Q20: 10686.27 | R20: 25413 | S20: 0.4419049305 | T20: 0 | U20: 1 | V20: 26.53 | W20: 11256.66 | X20: SI | Y20: 1.138871061 | Z20: 1.138871061 | AA20: =+Dati_Anni_precedenti!$E$5 -> 1.138903445 | AB20: =+Dati_Anni_precedenti!$G$4 -> 11/2023 | AC20: SI | AD20: 1.201859962 | AE20: 1.201859962 | AF20: =+Dati_Anni_precedenti!$F$5 -> 1.20187812 | AG20: =+Dati_Anni_precedenti!$G$4 -> 11/2023 | AI20: 11099.17 | AJ20: 10686.27 | AK20: 11256.66 | AL20: 10880.157
A21: 16 | B21: 21 | C21: CONSORZIO INDUSTRIALE DEL LAZIO | D21: ATO 5 - LAZIO MERIDIONALE FROSINONE | E21: Adduzione | F21: 1974257 | G21: 0.3767276803 | H21: 0 | I21: 2 | J21: 11.065 | K21: 743779.39 | L21: 2088939 | M21: 0.4077431222 | N21: 0 | O21: 1 | P21: 23.35 | Q21: 851773.86 | R21: 730058 | S21: 0.397068411 | T21: 0 | U21: 1 | V21: 12.51 | W21: 289895.48 | X21: SI | Y21: 1.138871061 | Z21: 1.138871061 | AA21: =+Dati_Anni_precedenti!$E$5 -> 1.138903445 | AB21: =+Dati_Anni_precedenti!$G$4 -> 11/2023 | AC21: SI | AD21: 1.201859962 | AE21: 1.201859962 | AF21: =+Dati_Anni_precedenti!$F$5 -> 1.20187812 | AG21: =+Dati_Anni_precedenti!$G$4 -> 11/2023 | AI21: 743779.39 | AJ21: 851773.86 | AK21: 289895.48 | AL21: 829464.1994
A22: 17 | B22: 3 | C22: CONSORZIO INTERCOMUNALE ACQUEDOTTO DEL PESCHIERA | D22: ATO 3 - LAZIO CENTRALE RIETI | E22: Adduzione | F22: 724459 | G22: 0.06784251421 | H22: 0 | I22: 1 | J22: 22.13 | K22: 49171.25 | L22: 734110 | M22: 0.07310018934 | N22: 0 | O22: 1 | P22: 23.36 | Q22: 53686.94 | R22: 380258 | S22: 0.08024341368 | T22: 0 | U22: 1 | V22: 12.42 | W22: 30525.62 | X22: SI | Y22: 1.138871061 | Z22: 1.138871061 | AA22: =+Dati_Anni_precedenti!$E$5 -> 1.138903445 | AB22: =+Dati_Anni_precedenti!$G$4 -> 11/2023 | AC22: SI | AD22: 1.201859962 | AE22: 1.201859962 | AF22: =+Dati_Anni_precedenti!$F$5 -> 1.20187812 | AG22: =+Dati_Anni_precedenti!$G$4 -> 11/2023 | AI22: 49171.25 | AJ22: 53686.94 | AK22: 30525.62 | AL22: 58919.91242
A23: 18 | B23: 14 | C23: FLAVIA SERVIZI S.R.L. | D23: ATO 2 - LAZIO CENTRALE ROMA | E23: Adduzione | F23: 852489 | G23: 0.3601173739 | H23: 0 | I23: 1 | J23: 22.12 | K23: 307018.22 | L23: 955629 | M23: 0.4785364823 | N23: 0 | O23: 1 | P23: 17.38 | Q23: 457320.72 | R23: 0 | S23: 0 | T23: 0 | U23: 0 | V23: 0 | W23: 0 | X23: SI | Y23: 1.138871061 | Z23: 1.138871061 | AA23: =+Dati_Anni_precedenti!$E$5 -> 1.138903445 | AB23: =+Dati_Anni_precedenti!$G$4 -> 11/2023 | AC23: SI | AD23: 1.201859962 | AE23: 1.201859962 | AF23: =+Dati_Anni_precedenti!$F$5 -> 1.20187812 | AG23: =+Dati_Anni_precedenti!$G$4 -> 11/2023 | AI23: 307018.22 | AJ23: 457320.72 | AK23: 0 | AL23: 0
A24: 19 | B24: 10 | C24: IDRICA S.P.A. | D24: ATO 2 - LAZIO CENTRALE ROMA | E24: Adduzione | F24: 4000421 | G24: 0.3909758598 | H24: 0 | I24: 2 | J24: 22.12 | K24: 1564112.28 | L24: 3735747 | M24: 0.4002418981 | N24: 0 | O24: 2 | P24: 23.39 | Q24: 1495249.25 | R24: 3857491 | S24: 0.4287004429 | T24: 0 | U24: 2 | V24: 26.56 | W24: 1653761.22 | X24: SI | Y24: 1.138871061 | Z24: 1.138871061 | AA24: =+Dati_Anni_precedenti!$E$5 -> 1.138903445 | AB24: =+Dati_Anni_precedenti!$G$4 -> 11/2023 | AC24: SI | AD24: 1.201859962 | AE24: 1.201859962 | AF24: =+Dati_Anni_precedenti!$F$5 -> 1.20187812 | AG24: =+Dati_Anni_precedenti!$G$4 -> 11/2023 | AI24: 1564112.28 | AJ24: 1495249.25 | AK24: 1653761.22 | AL24: 1601569.513
A25: 20 | B25: 2 | C25: REGIONE LAZIO | D25: ATO 2 - LAZIO CENTRALE ROMA | E25: Adduzione | F25: 9135 | G25: 0.3472993979 | H25: 0 | I25: 3 | J25: 22.11 | K25: 3238.91 | L25: 9387 | M25: 0.3667998296 | N25: 0 | O25: 3 | P25: 23.35333333 | Q25: 3513.21 | R25: 9707 | S25: 0.3870011332 | T25: 0 | U25: 3 | V25: 26.58 | W25: 3836.36 | X25: SI | Y25: 1.138871061 | Z25: 1.138871061 | AA25: =+Dati_Anni_precedenti!$E$5 -> 1.138903445 | AB25: =+Dati_Anni_precedenti!$G$4 -> 11/2023 | AC25: SI | AD25: 1.201859962 | AE25: 1.201859962 | AF25: =+Dati_Anni_precedenti!$F$5 -> 1.20187812 | AG25: =+Dati_Anni_precedenti!$G$4 -> 11/2023 | AI25: 3238.91 | AJ25: 3513.21 | AK25: 3836.36 | AL25: 3712.519637
A26: 21 | B26: 23 | C26: COMUNE DI TIVOLI | D26: ATO 2 - LAZIO CENTRALE ROMA | E26: Adduzione | F26: 475 | G26: 0.4822315789 | H26: 0 | I26: 2 | J26: 8.305 | K26: 245.67 | L26: 0 | M26: 0 | N26: 0 | O26: 0 | P26: 0 | Q26: 0 | R26: 0 | S26: 0 | T26: 0 | U26: 0 | V26: 0 | W26: 0 | X26: SI | Y26: 1.138871061 | Z26: 1.138871061 | AA26: =+Dati_Anni_precedenti!$E$5 -> 1.138903445 | AB26: =+Dati_Anni_precedenti!$G$4 -> 11/2023 | AC26: SI | AD26: 1.201859962 | AE26: 1.201859962 | AF26: =+Dati_Anni_precedenti!$F$5 -> 1.20187812 | AG26: =+Dati_Anni_precedenti!$G$4 -> 11/2023 | AI26: 245.67 | AJ26: 0 | AK26: 0 | AL26: 0
A27: 22 | B27: 22 | C27: A.E.A. SRL | D27: ATO 5 - LAZIO MERIDIONALE FROSINONE | E27: Adduzione | F27: 0 | G27: 0 | H27: 0 | I27: 0 | J27: 0 | K27: 0 | L27: 0 | M27: 0 | N27: 0 | O27: 0 | P27: 0 | Q27: 0 | R27: 517501 | S27: 0.3870000058 | T27: 0 | U27: 1 | V27: 14.05 | W27: 200286.94 | X27: 0 | Y27: 0 | Z27: 0 | AA27: =+Dati_Anni_precedenti!$E$5 -> 1.138903445 | AB27: =+Dati_Anni_precedenti!$G$4 -> 11/2023 | AC27: 0 | AD27: 0 | AE27: 0 | AF27: =+Dati_Anni_precedenti!$F$5 -> 1.20187812 | AG27: =+Dati_Anni_precedenti!$G$4 -> 11/2023 | AI27: 0 | AJ27: 0 | AK27: 200286.94 | AL27: 0

Sheet Acquisto_Servizi_ingrosso
B1: SCAMBI ALL'INGROSSO
B3: 3. Costi per acquisto all'ingrosso | G3: costi sostenuti di fornitura all'ingrosso, criterio di competenza | R3: costi a seguito dell'applicazione del J al grossista
G4: COeffettivo ai fini del COws comma 22.1 MTI-4 | M4: informazione sui J | R4: Coeffettivo ai fini del RCws comma 28.1 MTI-4
A5: N_riga | B5: Idgestore | C5: Soggetto da cui si acquista | D5: ATO | E5: Servizio | F5: Anno | G5: Volumi erogati / trattati (m3/anno) | H5: QV (Euro/m3) | I5: - | J5: Utenze (numero) | K5: QF (Euro/utente/anno) | L5: Importo (Euro/anno) | M5: Le tariffe applicate per la fatturazione includono l'applicazione del Teta? | N5: Teta medio applicato dal grossista nella fatturazione dell'anno indicato | O5: Teta approvato dal soggetto competente | P5: Teta approvato dall'Autorità | Q5: delibera Autorità | R5: Volumi erogati / trattati (m3/anno) | S5: QV (Euro/m3) | T5: - | U5: Utenze (numero) | V5: QF (Euro/utente/anno) | W5: Importo (Euro/anno) | Z5: check per RCws
A6: =+ROW(A6)-5 -> 1 | B6: =+IFERROR(VLOOKUP(C6,soggetto_j,2,FALSE),"") -> 24 | C6: MA.P.R.OL. DI GIORGI SRL | D6: ATO 2 - LAZIO CENTRALE ROMA | E6: Acquedotto distribuzione | F6: 2022 | G6: 543658 | H6: 0.4587658969 | I6: 0 | J6: 0 | K6: 0 | L6: =+G6*H6+J6*K6 -> 249411.75 | N6: 0 | O6: 0 | P6: 0 | Q6: 0 | R6: 543658 | S6: 0.4587658969 | T6: 0 | U6: 0 | V6: 0 | W6: =+R6*S6+U6*V6 -> 249411.75 | Z6: Verificare che i soggetti j ai fini del calcolo degli RC dell'anno a corrispondano a quelli dei Cows dell'anno a-2
A7: =+ROW(A7)-5 -> 2 | B7: 25320 | C7: Acqua Pubblica Sabina S.P.A. | D7: ATO 3 - LAZIO CENTRALE RIETI | E7: Acquedotto distribuzione | F7: 2022 | G7: 994629.76 | H7: 0.2286049132 | I7: 0 | J7: 0 | K7: 0 | L7: =+G7*H7+J7*K7 -> 227377.25 | N7: 0 | O7: 0 | P7: 0 | Q7: 0 | R7: 994629.76 | S7: 0.2286049132 | T7: 0 | U7: 0 | V7: 0 | W7: =+R7*S7+U7*V7 -> 227377.25 | Z7: Verificare che i soggetti j ai fini del calcolo degli RC dell'anno a corrispondano a quelli dei Cows dell'anno a-2
A8: =+ROW(A8)-5 -> 3 | B8: 37275 | C8: Consorzio Acquedotto del Medio Tirreno in liquidazione | D8: ATO 2 - LAZIO CENTRALE ROMA | E8: Acquedotto distribuzione | F8: 2022 | G8: 1837286.9 | H8: 0.2299031305 | I8: 0 | J8: 0 | K8: 0 | L8: =+G8*H8+J8*K8 -> 422398.01 | N8: 0 | O8: 0 | P8: 0 | Q8: 0 | R8: 1837286.9 | S8: 0.2299031305 | T8: 0 | U8: 0 | V8: 0 | W8: =+R8*S8+U8*V8 -> 422398.01 | Z8: Verificare che i soggetti j ai fini del calcolo degli RC dell'anno a corrispondano a quelli dei Cows dell'anno a-2
A9: 4 | B9: 26 | C9: COMUNE DI CAPENA | D9: ATO 2 - LAZIO CENTRALE ROMA | E9: Captazione | F9: 2022 | G9: 21000 | H9: 1 | I9: 0 | J9: 0 | K9: 0 | L9: 21000 | N9: 0 | O9: 0 | P9: 0 | Q9: 0 | R9: 21000 | S9: 1 | T9: 0 | U9: 0 | V9: 0 | W9: 21000 | Z9: Verificare che i soggetti j ai fini del calcolo degli RC dell'anno a corrispondano a quelli dei Cows dell'anno a-2
A10: 5 | B10: 15035 | C10: TALETE S.P.A. | D10: ATO 1 - LAZIO NORD VITERBO | E10: Acquedotto distribuzione | F10: 2022 | G10: 1609760 | H10: 0.7031442762 | I10: 0 | J10: 0 | K10: 0 | L10: 1131893.53 | N10: 0 | O10: 0 | P10: 0 | Q10: 0 | R10: 1609760 | S10: 0.7031442762 | T10: 0 | U10: 0 | V10: 0 | W10: 1131893.53 | Z10: Verificare che i soggetti j ai fini del calcolo degli RC dell'anno a corrispondano a quelli dei Cows dell'anno a-2
A11: 6 | B11: 13805 | C11: ACEA ATO 5 SPA | D11: ATO 5 - LAZIO MERIDIONALE FROSINONE | E11: Acquedotto distribuzione | F11: 2022 | G11: 1734480 | H11: 0.4351878274 | I11: 0 | J11: 0 | K11: 0 | L11: 754824.5829 | M11: SI | N11: 0 | O11: 1.14 | P11: 0 | Q11: 0 | R11: 1734480 | S11: 0.4351878274 | T11: 0 | U11: 0 | V11: 0 | W11: 754824.5829 | Z11: Verificare che i soggetti j ai fini del calcolo degli RC dell'anno a corrispondano a quelli dei Cows dell'anno a-2
A12: 7 | B12: 13805 | C12: ACEA ATO 5 SPA | D12: ATO 5 - LAZIO MERIDIONALE FROSINONE | E12: Acquedotto distribuzione | F12: 2022 | G12: 867240 | H12: 0.6438945486 | I12: 0 | J12: 0 | K12: 0 | L12: 558411.1083 | M12: SI | N12: 0 | O12: 1.14 | P12: 0 | Q12: 0 | R12: 867240 | S12: 0.6438945486 | T12: 0 | U12: 0 | V12: 0 | W12: 558411.1083 | Z12: Verificare che i soggetti j ai fini del calcolo degli RC dell'anno a corrispondano a quelli dei Cows dell'anno a-2
A13: 8 | B13: 13805 | C13: ACEA ATO 5 SPA | D13: ATO 5 - LAZIO MERIDIONALE FROSINONE | E13: Acquedotto distribuzione | F13: 2022 | G13: 842948.6766 | H13: 1.307200331 | I13: 0 | J13: 0 | K13: 0 | L13: 1101902.789 | M13: SI | N13: 0 | O13: 1.14 | P13: 0 | Q13: 0 | R13: 842948.6766 | S13: 1.307200331 | T13: 0 | U13: 0 | V13: 0 | W13: 1101902.789 | Z13: Verificare che i soggetti j ai fini del calcolo degli RC dell'anno a corrispondano a quelli dei Cows dell'anno a-2
A14: 9 | B14: 24 | C14: MA.P.R.OL. DI GIORGI SRL | D14: ATO 2 - LAZIO CENTRALE ROMA | E14: Acquedotto distribuzione | F14: 2023 | G14: 541250 | H14: 0.4620785219 | I14: 0 | J14: 0 | K14: 0 | L14: 250100 | N14: 0 | O14: 0 | P14: 0 | Q14: 0 | R14: 541250 | S14: 0.4620785219 | T14: 0 | U14: 0 | V14: 0 | W14: 250100 | Z14: Verificare che i soggetti j ai fini del calcolo degli RC dell'anno a corrispondano a quelli dei Cows dell'anno a-2
A15: 10 | B15: 25320 | C15: Acqua Pubblica Sabina S.P.A. | D15: ATO 3 - LAZIO CENTRALE RIETI | E15: Acquedotto distribuzione | F15: 2023 | G15: 832261 | H15: 0.3398929783 | I15: 0 | J15: 0 | K15: 0 | L15: 282879.67 | N15: 0 | O15: 0 | P15: 0 | Q15: 0 | R15: 832261 | S15: 0.3398929783 | T15: 0 | U15: 0 | V15: 0 | W15: 282879.67 | Z15: Verificare che i soggetti j ai fini del calcolo degli RC dell'anno a corrispondano a quelli dei Cows dell'anno a-2
A16: 11 | B16: 37275 | C16: Consorzio Acquedotto del Medio Tirreno in liquidazione | D16: ATO 2 - LAZIO CENTRALE ROMA | E16: Acquedotto distribuzione | F16: 2023 | G16: 1516185.2 | H16: 0.3471099837 | I16: 0 | J16: 0 | K16: 0 | L16: 526283.02 | N16: 0 | O16: 0 | P16: 0 | Q16: 0 | R16: 1516185.2 | S16: 0.3471099837 | T16: 0 | U16: 0 | V16: 0 | W16: 526283.02 | Z16: Verificare che i soggetti j ai fini del calcolo degli RC dell'anno a corrispondano a quelli dei Cows dell'anno a-2
A17: 12 | B17: 26 | C17: COMUNE DI CAPENA | D17: ATO 2 - LAZIO CENTRALE ROMA | E17: Captazione | F17: 2023 | G17: 21000 | H17: 1 | I17: 0 | J17: 0 | K17: 0 | L17: 21000 | N17: 0 | O17: 0 | P17: 0 | Q17: 0 | R17: 21000 | S17: 1 | T17: 0 | U17: 0 | V17: 0 | W17: 21000 | Z17: Verificare che i soggetti j ai fini del calcolo degli RC dell'anno a corrispondano a quelli dei Cows dell'anno a-2
A18: 13 | B18: 15035 | C18: TALETE S.P.A. | D18: ATO 1 - LAZIO NORD VITERBO | E18: Acquedotto distribuzione | F18: 2023 | G18: 1568670 | H18: 0.8633681845 | I18: 0 | J18: 0 | K18: 0 | L18: 1354339.77 | N18: 0 | O18: 0 | P18: 0 | Q18: 0 | R18: 1568670 | S18: 0.8633681845 | T18: 0 | U18: 0 | V18: 0 | W18: 1354339.77 | Z18: Verificare che i soggetti j ai fini del calcolo degli RC dell'anno a corrispondano a quelli dei Cows dell'anno a-2
A19: 14 | B19: 13805 | C19: ACEA ATO 5 SPA | D19: ATO 5 - LAZIO MERIDIONALE FROSINONE | E19: Acquedotto distribuzione | F19: 2023 | G19: 1734480 | H19: 0.4564912123 | I19: 0 | J19: 0 | K19: 0 | L19: 791774.8779 | M19: SI | N19: 0 | O19: 1.19 | P19: 0 | Q19: 0 | R19: 1734480 | S19: 0.4564912123 | T19: 0 | U19: 0 | V19: 0 | W19: 791774.8779 | Z19: Verificare che i soggetti j ai fini del calcolo degli RC dell'anno a corrispondano a quelli dei Cows dell'anno a-2
A20: 15 | B20: 13805 | C20: ACEA ATO 5 SPA | D20: ATO 5 - LAZIO MERIDIONALE FROSINONE | E20: Acquedotto distribuzione | F20: 2023 | G20: 787907.7741 | H20: 0.6721437705 | I20: 0 | J20: 0 | K20: 0 | L20: 529587.3021 | M20: SI | N20: 0 | O20: 1.19 | P20: 0 | Q20: 0 | R20: 787907.7741 | S20: 0.6721437705 | T20: 0 | U20: 0 | V20: 0 | W20: 529587.3021 | Z20: Verificare che i soggetti j ai fini del calcolo degli RC dell'anno a corrispondano a quelli dei Cows dell'anno a-2

Sheet Nuovi_Investimenti
B1: IMMOBILIZZAZIONI DEL GESTORE | G1: Tutti i valori si intendono a moneta dell'anno del cespite
A2: 1. LAVORI IN CORSO | M2: errori_compilazione | N2: errore_PdI | O2: Sono_presenti_errori
D3: 2022 | E3: 2023 | F3: 2024 | G3: 2025 | H3: 2026 | I3: 2027 | M3: =+OR(INDEX(Nuovi_Investimenti,0,29)) -> FALSE | N3: =+(D10+E10-'PdI-riepilogo'!F4-'PdI-riepilogo'!G4)<>0 -> TRUE | O3: =++OR(M3:N3) -> TRUE
C4: Saldo LICord (al netto dei saldi che risultino invariati da più di 4 anni) | D4: ='PdI-riepilogo'!C143 -> 188414040.2 | E4: ='PdI-riepilogo'!D143 -> 192935545.3 | F4: ='PdI-riepilogo'!E143 -> 160710756 | G4: ='PdI-riepilogo'!F143 -> 155694078 | H4: ='PdI-riepilogo'!G143 -> 160779629 | I4: ='PdI-riepilogo'!H143 -> 217031646
C5: Saldo LICpos (al netto dei saldi che risultino invariati da più di 5 anni) | D5: 114651513 | E5: 132067221.4 | F5: 236061373 | G5: 374256334.1 | H5: 217217176.7 | I5: 375290490.3
A7: 2. NUOVI INVESTIMENTI (2022-2023)
D8: 2022 | E8: 2023 | F8: 2024 | G8: 2025 | H8: 2026 | I8: 2027 | AA8: =+IF(OR(D8="Acquedotto",D8="Fognatura",D8="Depurazione",D8="Comune"),D8,"") -> 
C9: FoNI da riportare a CFP | D9: =Altri_dati_eco_fin!E55 -> 70004741.8 | E9: =Altri_dati_eco_fin!F55 -> 74458337.06
C10: Totale nuovi investimenti | D10: =+SUMIF($T:$T,D$8,$U:$U) -> 334742425.6 | E10: 378512766.1 | F10: =PdI_consolidamento!V4 -> 401273843.7 | G10: =PdI_consolidamento!W4 -> 400971069 | H10: =PdI_consolidamento!X4 -> 754194802.8 | I10: =PdI_consolidamento!Y4 -> 409179413.3 | K10: Valore | L10: Spazio per eventuale compilazione manuale del valore di incidenza
C11: incidenza ENV (%) su RAB MTI-4 | D11: =+IF($K11<>"",$K11,"") -> 0.1788899 | E11: 0.1788899 | F11: 0.1788899 | G11: 0.1788899 | H11: 0.1788899 | I11: 0.1788899 | K11: 0.1788899 | L11: incidenza ENV (%)
C12: incidenza RES (%) su RAB MTI-4 | D12: =+IF($K12<>"",$K12,"") -> 0.009254723059 | E12: 0.009254723059 | F12: 0.009254723059 | G12: 0.009254723059 | H12: 0.009254723059 | I12: 0.009254723059 | K12: 0.009254723059 | L12: incidenza RES (%)
C13: incidenza FoNI (%) | D13: =IFERROR(D9/D10,0) -> 0.2091301743 | E13: =IFERROR(E9/E10,0) -> 0.1967128819
A15: N_riga | B15: Categoria del cespite | C15: Categoria di Immobilizzazione | D15: Attività | E15: Tipologia di costo sotteso ("Env", "Res", "Non ERC") | F15: Anno cespite | G15: IP (Euro) | H15: CFP (Euro) | I15: CFP da FoNI | J15: CFP Totale | K15: IDATO | L15: IDGestore | M15: Gestore_Proprietario | N15: N_prop | O15: Fonte | P15: ID_Categoria_Cespite | Q15: CategoriaCespite | R15: ID_Immobilizzazione | S15: IMMOBILIZZAZIONE | T15: AnnoCespite | U15: IP | V15: FAIP | W15: CFP | X15: FACP | Y15: - | Z15: ERC | AA15: Attività | AB15: foglio di origine | AC15: controllo_errori
A16: =+ROW(A16)-15 -> 1 | B16: Terreni | C16: Servizio idrico integrato | D16: =+IFERROR(VLOOKUP(B16,TT_Tabelle_Riferimento!$G$127:$I$164,3,FALSE),"") -> Comune | E16: Env | F16: 2022 | G16: 151378.5 | H16: 0 | I16: =+IFERROR(HLOOKUP(F16,$D$8:$E$13,6,FALSE)*G16,0) -> 31657.81208 | J16: =+I16+H16 -> 31657.81208 | K16: =idato -> 1202 | L16: =idgestore -> 13989 | M16: Gestore | N16: 0 | O16: IP | P16: =+IFERROR(VLOOKUP(Q16,TT_Tabelle_Riferimento!$G$127:$K$164,5,0),0) -> 1 | Q16: =+IFERROR(VLOOKUP(B16,TT_Tabelle_Riferimento!$G$127:$K$164,1,0),0) -> Terreni | R16: =+IFERROR(VLOOKUP(S16,cat_imm_new,2,0),0) -> 1 | S16: =+IFERROR(VLOOKUP(C16,cat_imm_new,1,0),0) -> Servizio idrico integrato | T16: =F16 -> 2022 | U16: =G16 -> 151378.5 | V16: 0 | W16: =J16 -> 31657.81208 | X16: 0 | Z16: =+IF(OR(E16="Res",E16="Env",E16="Non ERC"),E16,"") -> Env | AA16: =+IF(OR(D16="Acquedotto",D16="Fognatura",D16="Depurazione",D16="Comune"),D16,"") -> Comune | AB16: Nuovi_Investimenti | AC16: =+IF(OR(K16:L16=0,P16=0,R16=0),TRUE,FALSE) -> FALSE
A17: =+ROW(A17)-15 -> 2 | B17: Terreni | C17: Servizio idrico integrato | D17: =+IFERROR(VLOOKUP(B17,TT_Tabelle_Riferimento!$G$127:$I$164,3,FALSE),"") -> Comune | E17: Non Erc | F17: 2022 | G17: 344573.9 | H17: 0 | I17: =+IFERROR(HLOOKUP(F17,$D$8:$E$13,6,FALSE)*G17,0) -> 72060.79975 | J17: =+I17+H17 -> 72060.79975 | K17: 1202 | L17: 13989 | M17: Gestore | N17: 0 | O17: IP | P17: =+IFERROR(VLOOKUP(Q17,TT_Tabelle_Riferimento!$G$127:$K$164,5,0),0) -> 1 | Q17: =+IFERROR(VLOOKUP(B17,TT_Tabelle_Riferimento!$G$127:$K$164,1,0),0) -> Terreni | R17: 1 | S17: Servizio idrico integrato | T17: =F17 -> 2022 | U17: =G17 -> 344573.9 | V17: 0 | W17: =J17 -> 72060.79975 | X17: 0 | Z17: =+IF(OR(E17="Res",E17="Env",E17="Non ERC"),E17,"") -> Non Erc | AA17: =+IF(OR(D17="Acquedotto",D17="Fognatura",D17="Depurazione",D17="Comune"),D17,"") -> Comune | AB17: Nuovi_Investimenti | AC17: =+IF(OR(K17:L17=0,P17=0,R17=0),TRUE,FALSE) -> FALSE
A18: 3 | B18: Terreni | C18: Servizio idrico integrato | D18: =+IFERROR(VLOOKUP(B18,TT_Tabelle_Riferimento!$G$127:$I$164,3,FALSE),"") -> Comune | E18: Res | F18: 2022 | G18: 30596.82 | H18: 0 | I18: 6398.718298 | J18: 6398.718298 | K18: 1202 | L18: 13989 | M18: Gestore | N18: 0 | O18: IP | P18: =+IFERROR(VLOOKUP(Q18,TT_Tabelle_Riferimento!$G$127:$K$164,5,0),0) -> 1 | Q18: =+IFERROR(VLOOKUP(B18,TT_Tabelle_Riferimento!$G$127:$K$164,1,0),0) -> Terreni | R18: 1 | S18: Servizio idrico integrato | T18: 2022 | U18: 30596.82 | V18: 0 | W18: 6398.718298 | X18: 0 | Z18: Res | AA18: Comune | AB18: Nuovi_Investimenti | AC18: =+IF(OR(K18:L18=0,P18=0,R18=0),TRUE,FALSE) -> FALSE
A19: 4 | B19: Condotte di acquedotto | C19: Altri servizi idrici | D19: =+IFERROR(VLOOKUP(B19,TT_Tabelle_Riferimento!$G$127:$I$164,3,FALSE),"") -> Acquedotto | E19: Non Erc | F19: 2022 | G19: 52025.25617 | H19: 0 | I19: 10880.05089 | J19: 10880.05089 | K19: 1202 | L19: 13989 | M19: Gestore | N19: 0 | O19: IP | P19: =+IFERROR(VLOOKUP(Q19,TT_Tabelle_Riferimento!$G$127:$K$164,5,0),0) -> 2 | Q19: =+IFERROR(VLOOKUP(B19,TT_Tabelle_Riferimento!$G$127:$K$164,1,0),0) -> Condotte di acquedotto | R19: 3 | S19: Altri servizi idrici | T19: 2022 | U19: 52025.25617 | V19: 0 | W19: 10880.05089 | X19: 0 | Z19: Non Erc | AA19: Acquedotto | AB19: Nuovi_Investimenti | AC19: =+IF(OR(K19:L19=0,P19=0,R19=0),TRUE,FALSE) -> FALSE
A20: 5 | B20: Condotte di acquedotto | C20: Servizio idrico integrato | D20: =+IFERROR(VLOOKUP(B20,TT_Tabelle_Riferimento!$G$127:$I$164,3,FALSE),"") -> Acquedotto | E20: Non Erc | F20: 2022 | G20: 107314458.4 | H20: 3634287.695 | I20: 22442691.38 | J20: 26076979.08 | K20: 1202 | L20: 13989 | M20: Gestore | N20: 0 | O20: IP | P20: =+IFERROR(VLOOKUP(Q20,TT_Tabelle_Riferimento!$G$127:$K$164,5,0),0) -> 2 | Q20: =+IFERROR(VLOOKUP(B20,TT_Tabelle_Riferimento!$G$127:$K$164,1,0),0) -> Condotte di acquedotto | R20: 1 | S20: Servizio idrico integrato | T20: 2022 | U20: 107314458.4 | V20: 0 | W20: 26076979.08 | X20: 0 | Z20: Non Erc | AA20: Acquedotto | AB20: Nuovi_Investimenti | AC20: =+IF(OR(K20:L20=0,P20=0,R20=0),TRUE,FALSE) -> FALSE
A21: 6 | B21: Condotte di acquedotto | C21: Servizio idrico integrato | D21: =+IFERROR(VLOOKUP(B21,TT_Tabelle_Riferimento!$G$127:$I$164,3,FALSE),"") -> Acquedotto | E21: Res | F21: 2022 | G21: 487.6285667 | H21: 0 | I21: 101.9778471 | J21: 101.9778471 | K21: 1202 | L21: 13989 | M21: Gestore | N21: 0 | O21: IP | P21: =+IFERROR(VLOOKUP(Q21,TT_Tabelle_Riferimento!$G$127:$K$164,5,0),0) -> 2 | Q21: =+IFERROR(VLOOKUP(B21,TT_Tabelle_Riferimento!$G$127:$K$164,1,0),0) -> Condotte di acquedotto | R21: 1 | S21: Servizio idrico integrato | T21: 2022 | U21: 487.6285667 | V21: 0 | W21: 101.9778471 | X21: 0 | Z21: Res | AA21: Acquedotto | AB21: Nuovi_Investimenti | AC21: =+IF(OR(K21:L21=0,P21=0,R21=0),TRUE,FALSE) -> FALSE
A22: 7 | B22: Opere idrauliche fisse di acquedotto | C22: Servizio idrico integrato | D22: =+IFERROR(VLOOKUP(B22,TT_Tabelle_Riferimento!$G$127:$I$164,3,FALSE),"") -> Acquedotto | E22: Non Erc | F22: 2022 | G22: 994340.4341 | H22: 0 | I22: 207946.5883 | J22: 207946.5883 | K22: 1202 | L22: 13989 | M22: Gestore | N22: 0 | O22: IP | P22: =+IFERROR(VLOOKUP(Q22,TT_Tabelle_Riferimento!$G$127:$K$164,5,0),0) -> 3 | Q22: =+IFERROR(VLOOKUP(B22,TT_Tabelle_Riferimento!$G$127:$K$164,1,0),0) -> Opere idrauliche fisse di acquedotto | R22: 1 | S22: Servizio idrico integrato | T22: 2022 | U22: 994340.4341 | V22: 0 | W22: 207946.5883 | X22: 0 | Z22: Non Erc | AA22: Acquedotto | AB22: Nuovi_Investimenti | AC22: =+IF(OR(K22:L22=0,P22=0,R22=0),TRUE,FALSE) -> FALSE
A23: 8 | B23: Opere idrauliche fisse di acquedotto | C23: Servizio idrico integrato | D23: =+IFERROR(VLOOKUP(B23,TT_Tabelle_Riferimento!$G$127:$I$164,3,FALSE),"") -> Acquedotto | E23: Res | F23: 2022 | G23: 43779.21177 | H23: 0 | I23: 9155.554187 | J23: 9155.554187 | K23: 1202 | L23: 13989 | M23: Gestore | N23: 0 | O23: IP | P23: =+IFERROR(VLOOKUP(Q23,TT_Tabelle_Riferimento!$G$127:$K$164,5,0),0) -> 3 | Q23: =+IFERROR(VLOOKUP(B23,TT_Tabelle_Riferimento!$G$127:$K$164,1,0),0) -> Opere idrauliche fisse di acquedotto | R23: 1 | S23: Servizio idrico integrato | T23: 2022 | U23: 43779.21177 | V23: 0 | W23: 9155.554187 | X23: 0 | Z23: Res | AA23: Acquedotto | AB23: Nuovi_Investimenti | AC23: =+IF(OR(K23:L23=0,P23=0,R23=0),TRUE,FALSE) -> FALSE
A24: 9 | B24: Serbatoi | C24: Servizio idrico integrato | D24: =+IFERROR(VLOOKUP(B24,TT_Tabelle_Riferimento!$G$127:$I$164,3,FALSE),"") -> Acquedotto | E24: Non Erc | F24: 2022 | G24: 4172419.369 | H24: 0 | I24: 872578.7898 | J24: 872578.7898 | K24: 1202 | L24: 13989 | M24: Gestore | N24: 0 | O24: IP | P24: =+IFERROR(VLOOKUP(Q24,TT_Tabelle_Riferimento!$G$127:$K$164,5,0),0) -> 4 | Q24: =+IFERROR(VLOOKUP(B24,TT_Tabelle_Riferimento!$G$127:$K$164,1,0),0) -> Serbatoi | R24: 1 | S24: Servizio idrico integrato | T24: 2022 | U24: 4172419.369 | V24: 0 | W24: 872578.7898 | X24: 0 | Z24: Non Erc | AA24: Acquedotto | AB24: Nuovi_Investimenti | AC24: =+IF(OR(K24:L24=0,P24=0,R24=0),TRUE,FALSE) -> FALSE
A25: 10 | B25: Impianti di sollevamento e pompaggio di acquedotto | C25: Altri servizi idrici | D25: =+IFERROR(VLOOKUP(B25,TT_Tabelle_Riferimento!$G$127:$I$164,3,FALSE),"") -> Acquedotto | E25: Non Erc | F25: 2022 | G25: 425655.0482 | H25: 0 | I25: 89017.3144 | J25: 89017.3144 | K25: 1202 | L25: 13989 | M25: Gestore | N25: 0 | O25: IP | P25: =+IFERROR(VLOOKUP(Q25,TT_Tabelle_Riferimento!$G$127:$K$164,5,0),0) -> 5 | Q25: =+IFERROR(VLOOKUP(B25,TT_Tabelle_Riferimento!$G$127:$K$164,1,0),0) -> Impianti di sollevamento e pompaggio di acquedotto | R25: 3 | S25: Altri servizi idrici | T25: 2022 | U25: 425655.0482 | V25: 0 | W25: 89017.3144 | X25: 0 | Z25: Non Erc | AA25: Acquedotto | AB25: Nuovi_Investimenti | AC25: =+IF(OR(K25:L25=0,P25=0,R25=0),TRUE,FALSE) -> FALSE
A26: 11 | B26: Impianti di sollevamento e pompaggio di acquedotto | C26: Servizio idrico integrato | D26: =+IFERROR(VLOOKUP(B26,TT_Tabelle_Riferimento!$G$127:$I$164,3,FALSE),"") -> Acquedotto | E26: Non Erc | F26: 2022 | G26: 34710727.19 | H26: 100496.21 | I26: 7259060.427 | J26: 7359556.637 | K26: 1202 | L26: 13989 | M26: Gestore | N26: 0 | O26: IP | P26: =+IFERROR(VLOOKUP(Q26,TT_Tabelle_Riferimento!$G$127:$K$164,5,0),0) -> 5 | Q26: =+IFERROR(VLOOKUP(B26,TT_Tabelle_Riferimento!$G$127:$K$164,1,0),0) -> Impianti di sollevamento e pompaggio di acquedotto | R26: 1 | S26: Servizio idrico integrato | T26: 2022 | U26: 34710727.19 | V26: 0 | W26: 7359556.637 | X26: 0 | Z26: Non Erc | AA26: Acquedotto | AB26: Nuovi_Investimenti | AC26: =+IF(OR(K26:L26=0,P26=0,R26=0),TRUE,FALSE) -> FALSE
A27: 12 | B27: Impianti di sollevamento e pompaggio di acquedotto | C27: Servizio idrico integrato | D27: =+IFERROR(VLOOKUP(B27,TT_Tabelle_Riferimento!$G$127:$I$164,3,FALSE),"") -> Acquedotto | E27: Res | F27: 2022 | G27: 1867257.348 | H27: 0 | I27: 390499.8545 | J27: 390499.8545 | K27: 1202 | L27: 13989 | M27: Gestore | N27: 0 | O27: IP | P27: =+IFERROR(VLOOKUP(Q27,TT_Tabelle_Riferimento!$G$127:$K$164,5,0),0) -> 5 | Q27: =+IFERROR(VLOOKUP(B27,TT_Tabelle_Riferimento!$G$127:$K$164,1,0),0) -> Impianti di sollevamento e pompaggio di acquedotto | R27: 1 | S27: Servizio idrico integrato | T27: 2022 | U27: 1867257.348 | V27: 0 | W27: 390499.8545 | X27: 0 | Z27: Res | AA27: Acquedotto | AB27: Nuovi_Investimenti | AC27: =+IF(OR(K27:L27=0,P27=0,R27=0),TRUE,FALSE) -> FALSE
A28: 13 | B28: Impianti di potabilizzazione | C28: Servizio idrico integrato | D28: =+IFERROR(VLOOKUP(B28,TT_Tabelle_Riferimento!$G$127:$I$164,3,FALSE),"") -> Acquedotto | E28: Non Erc | F28: 2022 | G28: 2307065.027 | H28: 0 | I28: 482476.9111 | J28: 482476.9111 | K28: 1202 | L28: 13989 | M28: Gestore | N28: 0 | O28: IP | P28: =+IFERROR(VLOOKUP(Q28,TT_Tabelle_Riferimento!$G$127:$K$164,5,0),0) -> 6 | Q28: =+IFERROR(VLOOKUP(B28,TT_Tabelle_Riferimento!$G$127:$K$164,1,0),0) -> Impianti di potabilizzazione | R28: 1 | S28: Servizio idrico integrato | T28: 2022 | U28: 2307065.027 | V28: 0 | W28: 482476.9111 | X28: 0 | Z28: Non Erc | AA28: Acquedotto | AB28: Nuovi_Investimenti | AC28: =+IF(OR(K28:L28=0,P28=0,R28=0),TRUE,FALSE) -> FALSE
A29: 14 | B29: Altri trattamenti di potabilizzazione (tra cui dispositivi di disinfezione, stacciatura, filtrazione, addolcimento) | C29: Servizio idrico integrato | D29: =+IFERROR(VLOOKUP(B29,TT_Tabelle_Riferimento!$G$127:$I$164,3,FALSE),"") -> Acquedotto | E29: Non Erc | F29: 2022 | G29: 4723757.43 | H29: 0 | I29: 987880.2145 | J29: 987880.2145 | K29: 1202 | L29: 13989 | M29: Gestore | N29: 0 | O29: IP | P29: =+IFERROR(VLOOKUP(Q29,TT_Tabelle_Riferimento!$G$127:$K$164,5,0),0) -> 7 | Q29: =+IFERROR(VLOOKUP(B29,TT_Tabelle_Riferimento!$G$127:$K$164,1,0),0) -> Altri trattamenti di potabilizzazione (tra cui dispositivi di disinfezione, stacciatura, filtrazione, addolcimento) | R29: 1 | S29: Servizio idrico integrato | T29: 2022 | U29: 4723757.43 | V29: 0 | W29: 987880.2145 | X29: 0 | Z29: Non Erc | AA29: Acquedotto | AB29: Nuovi_Investimenti | AC29: =+IF(OR(K29:L29=0,P29=0,R29=0),TRUE,FALSE) -> FALSE
A30: 15 | B30: Gruppi di misura - altre attrezzature di acquedotto | C30: Altri servizi idrici | D30: =+IFERROR(VLOOKUP(B30,TT_Tabelle_Riferimento!$G$127:$I$164,3,FALSE),"") -> Acquedotto | E30: Non Erc | F30: 2022 | G30: 2127.667492 | H30: 0 | I30: 444.9594733 | J30: 444.9594733 | K30: 1202 | L30: 13989 | M30: Gestore | N30: 0 | O30: IP | P30: =+IFERROR(VLOOKUP(Q30,TT_Tabelle_Riferimento!$G$127:$K$164,5,0),0) -> 8 | Q30: =+IFERROR(VLOOKUP(B30,TT_Tabelle_Riferimento!$G$127:$K$164,1,0),0) -> Gruppi di misura - altre attrezzature di acquedotto | R30: 3 | S30: Altri servizi idrici | T30: 2022 | U30: 2127.667492 | V30: 0 | W30: 444.9594733 | X30: 0 | Z30: Non Erc | AA30: Acquedotto | AB30: Nuovi_Investimenti | AC30: =+IF(OR(K30:L30=0,P30=0,R30=0),TRUE,FALSE) -> FALSE
A31: 16 | B31: Gruppi di misura - altre attrezzature di acquedotto | C31: Servizio idrico integrato | D31: =+IFERROR(VLOOKUP(B31,TT_Tabelle_Riferimento!$G$127:$I$164,3,FALSE),"") -> Acquedotto | E31: Non Erc | F31: 2022 | G31: 18282839.02 | H31: 104273.69 | I31: 3823493.311 | J31: 3927767.001 | K31: 1202 | L31: 13989 | M31: Gestore | N31: 0 | O31: IP | P31: =+IFERROR(VLOOKUP(Q31,TT_Tabelle_Riferimento!$G$127:$K$164,5,0),0) -> 8 | Q31: =+IFERROR(VLOOKUP(B31,TT_Tabelle_Riferimento!$G$127:$K$164,1,0),0) -> Gruppi di misura - altre attrezzature di acquedotto | R31: 1 | S31: Servizio idrico integrato | T31: 2022 | U31: 18282839.02 | V31: 0 | W31: 3927767.001 | X31: 0 | Z31: Non Erc | AA31: Acquedotto | AB31: Nuovi_Investimenti | AC31: =+IF(OR(K31:L31=0,P31=0,R31=0),TRUE,FALSE) -> FALSE
A32: 17 | B32: Gruppi di misura - altre attrezzature di acquedotto | C32: Servizio idrico integrato | D32: =+IFERROR(VLOOKUP(B32,TT_Tabelle_Riferimento!$G$127:$I$164,3,FALSE),"") -> Acquedotto | E32: Res | F32: 2022 | G32: 586747.5498 | H32: 0 | I32: 122706.6173 | J32: 122706.6173 | K32: 1202 | L32: 13989 | M32: Gestore | N32: 0 | O32: IP | P32: =+IFERROR(VLOOKUP(Q32,TT_Tabelle_Riferimento!$G$127:$K$164,5,0),0) -> 8 | Q32: =+IFERROR(VLOOKUP(B32,TT_Tabelle_Riferimento!$G$127:$K$164,1,0),0) -> Gruppi di misura - altre attrezzature di acquedotto | R32: 1 | S32: Servizio idrico integrato | T32: 2022 | U32: 586747.5498 | V32: 0 | W32: 122706.6173 | X32: 0 | Z32: Res | AA32: Acquedotto | AB32: Nuovi_Investimenti | AC32: =+IF(OR(K32:L32=0,P32=0,R32=0),TRUE,FALSE) -> FALSE
A33: 18 | B33: Sistemi informativi di acquedotto | C33: Servizio idrico integrato | D33: =+IFERROR(VLOOKUP(B33,TT_Tabelle_Riferimento!$G$127:$I$164,3,FALSE),"") -> Acquedotto | E33: Non Erc | F33: 2022 | G33: 411389.2818 | H33: 0 | I33: 86033.9122 | J33: 86033.9122 | K33: 1202 | L33: 13989 | M33: Gestore | N33: 0 | O33: IP | P33: =+IFERROR(VLOOKUP(Q33,TT_Tabelle_Riferimento!$G$127:$K$164,5,0),0) -> 9 | Q33: =+IFERROR(VLOOKUP(B33,TT_Tabelle_Riferimento!$G$127:$K$164,1,0),0) -> Sistemi informativi di acquedotto | R33: 1 | S33: Servizio idrico integrato | T33: 2022 | U33: 411389.2818 | V33: 0 | W33: 86033.9122 | X33: 0 | Z33: Non Erc | AA33: Acquedotto | AB33: Nuovi_Investimenti | AC33: =+IF(OR(K33:L33=0,P33=0,R33=0),TRUE,FALSE) -> FALSE
A34: 19 | B34: Sistemi informativi di acquedotto | C34: Servizio idrico integrato | D34: =+IFERROR(VLOOKUP(B34,TT_Tabelle_Riferimento!$G$127:$I$164,3,FALSE),"") -> Acquedotto | E34: Res | F34: 2022 | G34: 132929.7858 | H34: 0 | I34: 27799.62927 | J34: 27799.62927 | K34: 1202 | L34: 13989 | M34: Gestore | N34: 0 | O34: IP | P34: =+IFERROR(VLOOKUP(Q34,TT_Tabelle_Riferimento!$G$127:$K$164,5,0),0) -> 9 | Q34: =+IFERROR(VLOOKUP(B34,TT_Tabelle_Riferimento!$G$127:$K$164,1,0),0) -> Sistemi informativi di acquedotto | R34: 1 | S34: Servizio idrico integrato | T34: 2022 | U34: 132929.7858 | V34: 0 | W34: 27799.62927 | X34: 0 | Z34: Res | AA34: Acquedotto | AB34: Nuovi_Investimenti | AC34: =+IF(OR(K34:L34=0,P34=0,R34=0),TRUE,FALSE) -> FALSE
A35: 20 | B35: Telecontrollo e teletrasmissione di acquedotto | C35: Altri servizi idrici | D35: =+IFERROR(VLOOKUP(B35,TT_Tabelle_Riferimento!$G$127:$I$164,3,FALSE),"") -> Acquedotto | E35: Non Erc | F35: 2022 | G35: 12722.88337 | H35: 0 | I35: 2660.738817 | J35: 2660.738817 | K35: 1202 | L35: 13989 | M35: Gestore | N35: 0 | O35: IP | P35: =+IFERROR(VLOOKUP(Q35,TT_Tabelle_Riferimento!$G$127:$K$164,5,0),0) -> 10 | Q35: =+IFERROR(VLOOKUP(B35,TT_Tabelle_Riferimento!$G$127:$K$164,1,0),0) -> Telecontrollo e teletrasmissione di acquedotto | R35: 3 | S35: Altri servizi idrici | T35: 2022 | U35: 12722.88337 | V35: 0 | W35: 2660.738817 | X35: 0 | Z35: Non Erc | AA35: Acquedotto | AB35: Nuovi_Investimenti | AC35: =+IF(OR(K35:L35=0,P35=0,R35=0),TRUE,FALSE) -> FALSE
A36: 21 | B36: Telecontrollo e teletrasmissione di acquedotto | C36: Servizio idrico integrato | D36: =+IFERROR(VLOOKUP(B36,TT_Tabelle_Riferimento!$G$127:$I$164,3,FALSE),"") -> Acquedotto | E36: Non Erc | F36: 2022 | G36: 2762067.98 | H36: 0 | I36: 577631.7579 | J36: 577631.7579 | K36: 1202 | L36: 13989 | M36: Gestore | N36: 0 | O36: IP | P36: =+IFERROR(VLOOKUP(Q36,TT_Tabelle_Riferimento!$G$127:$K$164,5,0),0) -> 10 | Q36: =+IFERROR(VLOOKUP(B36,TT_Tabelle_Riferimento!$G$127:$K$164,1,0),0) -> Telecontrollo e teletrasmissione di acquedotto | R36: 1 | S36: Servizio idrico integrato | T36: 2022 | U36: 2762067.98 | V36: 0 | W36: 577631.7579 | X36: 0 | Z36: Non Erc | AA36: Acquedotto | AB36: Nuovi_Investimenti | AC36: =+IF(OR(K36:L36=0,P36=0,R36=0),TRUE,FALSE) -> FALSE
A37: 22 | B37: Telecontrollo e teletrasmissione di acquedotto | C37: Servizio idrico integrato | D37: =+IFERROR(VLOOKUP(B37,TT_Tabelle_Riferimento!$G$127:$I$164,3,FALSE),"") -> Acquedotto | E37: Res | F37: 2022 | G37: 216326.2728 | H37: 0 | I37: 45240.35113 | J37: 45240.35113 | K37: 1202 | L37: 13989 | M37: Gestore | N37: 0 | O37: IP | P37: =+IFERROR(VLOOKUP(Q37,TT_Tabelle_Riferimento!$G$127:$K$164,5,0),0) -> 10 | Q37: =+IFERROR(VLOOKUP(B37,TT_Tabelle_Riferimento!$G$127:$K$164,1,0),0) -> Telecontrollo e teletrasmissione di acquedotto | R37: 1 | S37: Servizio idrico integrato | T37: 2022 | U37: 216326.2728 | V37: 0 | W37: 45240.35113 | X37: 0 | Z37: Res | AA37: Acquedotto | AB37: Nuovi_Investimenti | AC37: =+IF(OR(K37:L37=0,P37=0,R37=0),TRUE,FALSE) -> FALSE
A38: 23 | B38: Condotte fognarie | C38: Servizio idrico integrato | D38: =+IFERROR(VLOOKUP(B38,TT_Tabelle_Riferimento!$G$127:$I$164,3,FALSE),"") -> Fognatura | E38: Non Erc | F38: 2022 | G38: 41326009.78 | H38: 55068.19 | I38: 8642515.626 | J38: 8697583.816 | K38: 1202 | L38: 13989 | M38: Gestore | N38: 0 | O38: IP | P38: =+IFERROR(VLOOKUP(Q38,TT_Tabelle_Riferimento!$G$127:$K$164,5,0),0) -> 11 | Q38: =+IFERROR(VLOOKUP(B38,TT_Tabelle_Riferimento!$G$127:$K$164,1,0),0) -> Condotte fognarie | R38: 1 | S38: Servizio idrico integrato | T38: 2022 | U38: 41326009.78 | V38: 0 | W38: 8697583.816 | X38: 0 | Z38: Non Erc | AA38: Fognatura | AB38: Nuovi_Investimenti | AC38: =+IF(OR(K38:L38=0,P38=0,R38=0),TRUE,FALSE) -> FALSE
A39: 24 | B39: Impianti di sollevamento e pompaggio di fognatura | C39: Servizio idrico integrato | D39: =+IFERROR(VLOOKUP(B39,TT_Tabelle_Riferimento!$G$127:$I$164,3,FALSE),"") -> Fognatura | E39: Non Erc | F39: 2022 | G39: 9295323.651 | H39: 0 | I39: 1943932.655 | J39: 1943932.655 | K39: 1202 | L39: 13989 | M39: Gestore | N39: 0 | O39: IP | P39: =+IFERROR(VLOOKUP(Q39,TT_Tabelle_Riferimento!$G$127:$K$164,5,0),0) -> 14 | Q39: =+IFERROR(VLOOKUP(B39,TT_Tabelle_Riferimento!$G$127:$K$164,1,0),0) -> Impianti di sollevamento e pompaggio di fognatura | R39: 1 | S39: Servizio idrico integrato | T39: 2022 | U39: 9295323.651 | V39: 0 | W39: 1943932.655 | X39: 0 | Z39: Non Erc | AA39: Fognatura | AB39: Nuovi_Investimenti | AC39: =+IF(OR(K39:L39=0,P39=0,R39=0),TRUE,FALSE) -> FALSE
A40: 25 | B40: Gruppi di misura - altre attrezzature di fognatura | C40: Servizio idrico integrato | D40: =+IFERROR(VLOOKUP(B40,TT_Tabelle_Riferimento!$G$127:$I$164,3,FALSE),"") -> Fognatura | E40: Non Erc | F40: 2022 | G40: 387022.4139 | H40: 0 | I40: 80938.06486 | J40: 80938.06486 | K40: 1202 | L40: 13989 | M40: Gestore | N40: 0 | O40: IP | P40: =+IFERROR(VLOOKUP(Q40,TT_Tabelle_Riferimento!$G$127:$K$164,5,0),0) -> 15 | Q40: =+IFERROR(VLOOKUP(B40,TT_Tabelle_Riferimento!$G$127:$K$164,1,0),0) -> Gruppi di misura - altre attrezzature di fognatura | R40: 1 | S40: Servizio idrico integrato | T40: 2022 | U40: 387022.4139 | V40: 0 | W40: 80938.06486 | X40: 0 | Z40: Non Erc | AA40: Fognatura | AB40: Nuovi_Investimenti | AC40: =+IF(OR(K40:L40=0,P40=0,R40=0),TRUE,FALSE) -> FALSE
A41: 26 | B41: Sistemi informativi di fognatura | C41: Servizio idrico integrato | D41: =+IFERROR(VLOOKUP(B41,TT_Tabelle_Riferimento!$G$127:$I$164,3,FALSE),"") -> Fognatura | E41: Non Erc | F41: 2022 | G41: 51910.61174 | H41: 0 | I41: 10856.07528 | J41: 10856.07528 | K41: 1202 | L41: 13989 | M41: Gestore | N41: 0 | O41: IP | P41: =+IFERROR(VLOOKUP(Q41,TT_Tabelle_Riferimento!$G$127:$K$164,5,0),0) -> 16 | Q41: =+IFERROR(VLOOKUP(B41,TT_Tabelle_Riferimento!$G$127:$K$164,1,0),0) -> Sistemi informativi di fognatura | R41: 1 | S41: Servizio idrico integrato | T41: 2022 | U41: 51910.61174 | V41: 0 | W41: 10856.07528 | X41: 0 | Z41: Non Erc | AA41: Fognatura | AB41: Nuovi_Investimenti | AC41: =+IF(OR(K41:L41=0,P41=0,R41=0),TRUE,FALSE) -> FALSE
A42: 27 | B42: Telecontrollo e teletrasmissione di fognatura | C42: Servizio idrico integrato | D42: =+IFERROR(VLOOKUP(B42,TT_Tabelle_Riferimento!$G$127:$I$164,3,FALSE),"") -> Fognatura | E42: Non Erc | F42: 2022 | G42: 446652.0175 | H42: 0 | I42: 93408.41425 | J42: 93408.41425 | K42: 1202 | L42: 13989 | M42: Gestore | N42: 0 | O42: IP | P42: =+IFERROR(VLOOKUP(Q42,TT_Tabelle_Riferimento!$G$127:$K$164,5,0),0) -> 18 | Q42: =+IFERROR(VLOOKUP(B42,TT_Tabelle_Riferimento!$G$127:$K$164,1,0),0) -> Telecontrollo e teletrasmissione di fognatura | R42: 1 | S42: Servizio idrico integrato | T42: 2022 | U42: 446652.0175 | V42: 0 | W42: 93408.41425 | X42: 0 | Z42: Non Erc | AA42: Fognatura | AB42: Nuovi_Investimenti | AC42: =+IF(OR(K42:L42=0,P42=0,R42=0),TRUE,FALSE) -> FALSE
A43: 28 | B43: Impianti di sollevamento e pompaggio di depurazione | C43: Servizio idrico integrato | D43: =+IFERROR(VLOOKUP(B43,TT_Tabelle_Riferimento!$G$127:$I$164,3,FALSE),"") -> Depurazione | E43: Env | F43: 2022 | G43: 54653760.37 | H43: 69481.24 | I43: 11429750.43 | J43: 11499231.67 | K43: 1202 | L43: 13989 | M43: Gestore | N43: 0 | O43: IP | P43: =+IFERROR(VLOOKUP(Q43,TT_Tabelle_Riferimento!$G$127:$K$164,5,0),0) -> 19 | Q43: =+IFERROR(VLOOKUP(B43,TT_Tabelle_Riferimento!$G$127:$K$164,1,0),0) -> Impianti di sollevamento e pompaggio di depurazione | R43: 1 | S43: Servizio idrico integrato | T43: 2022 | U43: 54653760.37 | V43: 0 | W43: 11499231.67 | X43: 0 | Z43: Env | AA43: Depurazione | AB43: Nuovi_Investimenti | AC43: =+IF(OR(K43:L43=0,P43=0,R43=0),TRUE,FALSE) -> FALSE
A44: 29 | B44: Tecniche naturali di depurazione (tra cui fitodepurazione e lagunaggio) | C44: Servizio idrico integrato | D44: =+IFERROR(VLOOKUP(B44,TT_Tabelle_Riferimento!$G$127:$I$164,3,FALSE),"") -> Depurazione | E44: Env | F44: 2022 | G44: 2382.499512 | H44: 0 | I44: 498.2525382 | J44: 498.2525382 | K44: 1202 | L44: 13989 | M44: Gestore | N44: 0 | O44: IP | P44: =+IFERROR(VLOOKUP(Q44,TT_Tabelle_Riferimento!$G$127:$K$164,5,0),0) -> 20 | Q44: =+IFERROR(VLOOKUP(B44,TT_Tabelle_Riferimento!$G$127:$K$164,1,0),0) -> Tecniche naturali di depurazione (tra cui fitodepurazione e lagunaggio) | R44: 1 | S44: Servizio idrico integrato | T44: 2022 | U44: 2382.499512 | V44: 0 | W44: 498.2525382 | X44: 0 | Z44: Env | AA44: Depurazione | AB44: Nuovi_Investimenti | AC44: =+IF(OR(K44:L44=0,P44=0,R44=0),TRUE,FALSE) -> FALSE
A45: 30 | B45: Impianti di depurazione – trattamenti sino al secondario | C45: Servizio idrico integrato | D45: =+IFERROR(VLOOKUP(B45,TT_Tabelle_Riferimento!$G$127:$I$164,3,FALSE),"") -> Depurazione | E45: Env | F45: 2022 | G45: 5202097.4 | H45: 53398.68 | I45: 1087915.536 | J45: 1141314.216 | K45: 1202 | L45: 13989 | M45: Gestore | N45: 0 | O45: IP | P45: =+IFERROR(VLOOKUP(Q45,TT_Tabelle_Riferimento!$G$127:$K$164,5,0),0) -> 22 | Q45: =+IFERROR(VLOOKUP(B45,TT_Tabelle_Riferimento!$G$127:$K$164,1,0),0) -> Impianti di depurazione – trattamenti sino al secondario | R45: 1 | S45: Servizio idrico integrato | T45: 2022 | U45: 5202097.4 | V45: 0 | W45: 1141314.216 | X45: 0 | Z45: Env | AA45: Depurazione | AB45: Nuovi_Investimenti | AC45: =+IF(OR(K45:L45=0,P45=0,R45=0),TRUE,FALSE) -> FALSE
A46: 31 | B46: Impianti di depurazione – trattamenti sino al terziario e terziario avanzato | C46: Servizio idrico integrato | D46: =+IFERROR(VLOOKUP(B46,TT_Tabelle_Riferimento!$G$127:$I$164,3,FALSE),"") -> Depurazione | E46: Env | F46: 2022 | G46: 8568256.956 | H46: 12139.99 | I46: 1791881.07 | J46: 1804021.06 | K46: 1202 | L46: 13989 | M46: Gestore | N46: 0 | O46: IP | P46: =+IFERROR(VLOOKUP(Q46,TT_Tabelle_Riferimento!$G$127:$K$164,5,0),0) -> 23 | Q46: =+IFERROR(VLOOKUP(B46,TT_Tabelle_Riferimento!$G$127:$K$164,1,0),0) -> Impianti di depurazione – trattamenti sino al terziario e terziario avanzato | R46: 1 | S46: Servizio idrico integrato | T46: 2022 | U46: 8568256.956 | V46: 0 | W46: 1804021.06 | X46: 0 | Z46: Env | AA46: Depurazione | AB46: Nuovi_Investimenti | AC46: =+IF(OR(K46:L46=0,P46=0,R46=0),TRUE,FALSE) -> FALSE
A47: 32 | B47: Gruppi di misura - altre attrezzature di depurazione | C47: Servizio idrico integrato | D47: =+IFERROR(VLOOKUP(B47,TT_Tabelle_Riferimento!$G$127:$I$164,3,FALSE),"") -> Depurazione | E47: Env | F47: 2022 | G47: 1485498.424 | H47: 0 | I47: 310662.5443 | J47: 310662.5443 | K47: 1202 | L47: 13989 | M47: Gestore | N47: 0 | O47: IP | P47: =+IFERROR(VLOOKUP(Q47,TT_Tabelle_Riferimento!$G$127:$K$164,5,0),0) -> 25 | Q47: =+IFERROR(VLOOKUP(B47,TT_Tabelle_Riferimento!$G$127:$K$164,1,0),0) -> Gruppi di misura - altre attrezzature di depurazione | R47: 1 | S47: Servizio idrico integrato | T47: 2022 | U47: 1485498.424 | V47: 0 | W47: 310662.5443 | X47: 0 | Z47: Env | AA47: Depurazione | AB47: Nuovi_Investimenti | AC47: =+IF(OR(K47:L47=0,P47=0,R47=0),TRUE,FALSE) -> FALSE
A48: 33 | B48: Sistemi informativi di depurazione | C48: Servizio idrico integrato | D48: =+IFERROR(VLOOKUP(B48,TT_Tabelle_Riferimento!$G$127:$I$164,3,FALSE),"") -> Depurazione | E48: Env | F48: 2022 | G48: 817.2412937 | H48: 0 | I48: 170.9098142 | J48: 170.9098142 | K48: =idato -> 1202 | L48: =idgestore -> 13989 | M48: Gestore | N48: 0 | O48: IP | P48: =+IFERROR(VLOOKUP(Q48,TT_Tabelle_Riferimento!$G$127:$K$164,5,0),0) -> 26 | Q48: =+IFERROR(VLOOKUP(B48,TT_Tabelle_Riferimento!$G$127:$K$164,1,0),0) -> Sistemi informativi di depurazione | R48: =+IFERROR(VLOOKUP(S48,cat_imm_new,2,0),0) -> 1 | S48: =+IFERROR(VLOOKUP(C48,cat_imm_new,1,0),0) -> Servizio idrico integrato | T48: 2022 | U48: 817.2412937 | V48: 0 | W48: 170.9098142 | X48: 0 | Z48: Env | AA48: Depurazione | AB48: Nuovi_Investimenti | AC48: =+IF(OR(K48:L48=0,P48=0,R48=0),TRUE,FALSE) -> FALSE
A49: 34 | B49: Telecontrollo e teletrasmissione di depurazione | C49: Servizio idrico integrato | D49: =+IFERROR(VLOOKUP(B49,TT_Tabelle_Riferimento!$G$127:$I$164,3,FALSE),"") -> Depurazione | E49: Env | F49: 2022 | G49: 1123887.929 | H49: 0 | I49: 235038.8785 | J49: 235038.8785 | K49: 1202 | L49: 13989 | M49: Gestore | N49: 0 | O49: IP | P49: =+IFERROR(VLOOKUP(Q49,TT_Tabelle_Riferimento!$G$127:$K$164,5,0),0) -> 27 | Q49: =+IFERROR(VLOOKUP(B49,TT_Tabelle_Riferimento!$G$127:$K$164,1,0),0) -> Telecontrollo e teletrasmissione di depurazione | R49: 1 | S49: Servizio idrico integrato | T49: 2022 | U49: 1123887.929 | V49: 0 | W49: 235038.8785 | X49: 0 | Z49: Env | AA49: Depurazione | AB49: Nuovi_Investimenti | AC49: =+IF(OR(K49:L49=0,P49=0,R49=0),TRUE,FALSE) -> FALSE
A50: 35 | B50: Altri impianti | C50: Servizio idrico integrato | D50: =+IFERROR(VLOOKUP(B50,TT_Tabelle_Riferimento!$G$127:$I$164,3,FALSE),"") -> Comune | E50: Non Erc | F50: 2022 | G50: 800433.3731 | H50: 0 | I50: 167394.7708 | J50: 167394.7708 | K50: 1202 | L50: 13989 | M50: Gestore | N50: 0 | O50: IP | P50: =+IFERROR(VLOOKUP(Q50,TT_Tabelle_Riferimento!$G$127:$K$164,5,0),0) -> 28 | Q50: =+IFERROR(VLOOKUP(B50,TT_Tabelle_Riferimento!$G$127:$K$164,1,0),0) -> Altri impianti | R50: 1 | S50: Servizio idrico integrato | T50: 2022 | U50: 800433.3731 | V50: 0 | W50: 167394.7708 | X50: 0 | Z50: Non Erc | AA50: Comune | AB50: Nuovi_Investimenti | AC50: =+IF(OR(K50:L50=0,P50=0,R50=0),TRUE,FALSE) -> FALSE
A51: 36 | B51: Laboratori e attrezzature | C51: Servizio idrico integrato | D51: =+IFERROR(VLOOKUP(B51,TT_Tabelle_Riferimento!$G$127:$I$164,3,FALSE),"") -> Comune | E51: Non Erc | F51: 2022 | G51: 1941104.32 | H51: 0 | I51: 405943.4846 | J51: 405943.4846 | K51: 1202 | L51: 13989 | M51: Gestore | N51: 0 | O51: IP | P51: =+IFERROR(VLOOKUP(Q51,TT_Tabelle_Riferimento!$G$127:$K$164,5,0),0) -> 29 | Q51: =+IFERROR(VLOOKUP(B51,TT_Tabelle_Riferimento!$G$127:$K$164,1,0),0) -> Laboratori e attrezzature | R51: 1 | S51: Servizio idrico integrato | T51: 2022 | U51: 1941104.32 | V51: 0 | W51: 405943.4846 | X51: 0 | Z51: Non Erc | AA51: Comune | AB51: Nuovi_Investimenti | AC51: =+IF(OR(K51:L51=0,P51=0,R51=0),TRUE,FALSE) -> FALSE
A52: 37 | B52: Sistemi informativi | C52: Servizio idrico integrato | D52: =+IFERROR(VLOOKUP(B52,TT_Tabelle_Riferimento!$G$127:$I$164,3,FALSE),"") -> Comune | E52: Non Erc | F52: 2022 | G52: 17757419.65 | H52: 0 | I52: 3713612.265 | J52: 3713612.265 | K52: 1202 | L52: 13989 | M52: Gestore | N52: 0 | O52: IP | P52: =+IFERROR(VLOOKUP(Q52,TT_Tabelle_Riferimento!$G$127:$K$164,5,0),0) -> 30 | Q52: =+IFERROR(VLOOKUP(B52,TT_Tabelle_Riferimento!$G$127:$K$164,1,0),0) -> Sistemi informativi | R52: 1 | S52: Servizio idrico integrato | T52: 2022 | U52: 17757419.65 | V52: 0 | W52: 3713612.265 | X52: 0 | Z52: Non Erc | AA52: Comune | AB52: Nuovi_Investimenti | AC52: =+IF(OR(K52:L52=0,P52=0,R52=0),TRUE,FALSE) -> FALSE
A53: 38 | B53: Telecontrollo e teletrasmissione | C53: Servizio idrico integrato | D53: =+IFERROR(VLOOKUP(B53,TT_Tabelle_Riferimento!$G$127:$I$164,3,FALSE),"") -> Comune | E53: Non Erc | F53: 2022 | G53: 129924.5168 | H53: 0 | I53: 27171.13684 | J53: 27171.13684 | K53: 1202 | L53: 13989 | M53: Gestore | N53: 0 | O53: IP | P53: =+IFERROR(VLOOKUP(Q53,TT_Tabelle_Riferimento!$G$127:$K$164,5,0),0) -> 31 | Q53: =+IFERROR(VLOOKUP(B53,TT_Tabelle_Riferimento!$G$127:$K$164,1,0),0) -> Telecontrollo e teletrasmissione | R53: 1 | S53: Servizio idrico integrato | T53: 2022 | U53: 129924.5168 | V53: 0 | W53: 27171.13684 | X53: 0 | Z53: Non Erc | AA53: Comune | AB53: Nuovi_Investimenti | AC53: =+IF(OR(K53:L53=0,P53=0,R53=0),TRUE,FALSE) -> FALSE
A54: 39 | B54: Autoveicoli - automezzi | C54: Servizio idrico integrato | D54: =+IFERROR(VLOOKUP(B54,TT_Tabelle_Riferimento!$G$127:$I$164,3,FALSE),"") -> Comune | E54: Non Erc | F54: 2022 | G54: 407126.182 | H54: 0 | I54: 85142.36938 | J54: 85142.36938 | K54: 1202 | L54: 13989 | M54: Gestore | N54: 0 | O54: IP | P54: =+IFERROR(VLOOKUP(Q54,TT_Tabelle_Riferimento!$G$127:$K$164,5,0),0) -> 32 | Q54: =+IFERROR(VLOOKUP(B54,TT_Tabelle_Riferimento!$G$127:$K$164,1,0),0) -> Autoveicoli - automezzi | R54: 1 | S54: Servizio idrico integrato | T54: 2022 | U54: 407126.182 | V54: 0 | W54: 85142.36938 | X54: 0 | Z54: Non Erc | AA54: Comune | AB54: Nuovi_Investimenti | AC54: =+IF(OR(K54:L54=0,P54=0,R54=0),TRUE,FALSE) -> FALSE
A55: 40 | B55: Fabbricati industriali | C55: Servizio idrico integrato | D55: =+IFERROR(VLOOKUP(B55,TT_Tabelle_Riferimento!$G$127:$I$164,3,FALSE),"") -> Comune | E55: Non Erc | F55: 2022 | G55: 1488113.57 | H55: 0 | I55: 311209.4503 | J55: 311209.4503 | K55: 1202 | L55: 13989 | M55: Gestore | N55: 0 | O55: IP | P55: =+IFERROR(VLOOKUP(Q55,TT_Tabelle_Riferimento!$G$127:$K$164,5,0),0) -> 34 | Q55: =+IFERROR(VLOOKUP(B55,TT_Tabelle_Riferimento!$G$127:$K$164,1,0),0) -> Fabbricati industriali | R55: 1 | S55: Servizio idrico integrato | T55: 2022 | U55: 1488113.57 | V55: 0 | W55: 311209.4503 | X55: 0 | Z55: Non Erc | AA55: Comune | AB55: Nuovi_Investimenti | AC55: =+IF(OR(K55:L55=0,P55=0,R55=0),TRUE,FALSE) -> FALSE
A56: 41 | B56: Studi, ricerche, brevetti, diritti di utilizzazione | C56: Servizio idrico integrato | D56: =+IFERROR(VLOOKUP(B56,TT_Tabelle_Riferimento!$G$127:$I$164,3,FALSE),"") -> Comune | E56: Non Erc | F56: 2022 | G56: 7758486.498 | H56: 0 | I56: 1622533.633 | J56: 1622533.633 | K56: 1202 | L56: 13989 | M56: Gestore | N56: 0 | O56: IP | P56: =+IFERROR(VLOOKUP(Q56,TT_Tabelle_Riferimento!$G$127:$K$164,5,0),0) -> 36 | Q56: =+IFERROR(VLOOKUP(B56,TT_Tabelle_Riferimento!$G$127:$K$164,1,0),0) -> Studi, ricerche, brevetti, diritti di utilizzazione | R56: 1 | S56: Servizio idrico integrato | T56: 2022 | U56: 7758486.498 | V56: 0 | W56: 1622533.633 | X56: 0 | Z56: Non Erc | AA56: Comune | AB56: Nuovi_Investimenti | AC56: =+IF(OR(K56:L56=0,P56=0,R56=0),TRUE,FALSE) -> FALSE
A57: 42 | B57: Altre immobilizzazioni materiali e immateriali | C57: Servizio idrico integrato | D57: =+IFERROR(VLOOKUP(B57,TT_Tabelle_Riferimento!$G$127:$I$164,3,FALSE),"") -> Comune | E57: Env | F57: 2022 | G57: 1503064.705 | H57: 0 | I57: 314336.1837 | J57: 314336.1837 | K57: 1202 | L57: 13989 | M57: Gestore | N57: 0 | O57: IP | P57: =+IFERROR(VLOOKUP(Q57,TT_Tabelle_Riferimento!$G$127:$K$164,5,0),0) -> 37 | Q57: =+IFERROR(VLOOKUP(B57,TT_Tabelle_Riferimento!$G$127:$K$164,1,0),0) -> Altre immobilizzazioni materiali e immateriali | R57: 1 | S57: Servizio idrico integrato | T57: 2022 | U57: 1503064.705 | V57: 0 | W57: 314336.1837 | X57: 0 | Z57: Env | AA57: Comune | AB57: Nuovi_Investimenti | AC57: =+IF(OR(K57:L57=0,P57=0,R57=0),TRUE,FALSE) -> FALSE
A58: 43 | B58: Altre immobilizzazioni materiali e immateriali | C58: Servizio idrico integrato | D58: =+IFERROR(VLOOKUP(B58,TT_Tabelle_Riferimento!$G$127:$I$164,3,FALSE),"") -> Comune | E58: Non Erc | F58: 2022 | G58: 867461.5297 | H58: 0 | I58: 181412.3809 | J58: 181412.3809 | K58: 1202 | L58: 13989 | M58: Gestore | N58: 0 | O58: IP | P58: =+IFERROR(VLOOKUP(Q58,TT_Tabelle_Riferimento!$G$127:$K$164,5,0),0) -> 37 | Q58: =+IFERROR(VLOOKUP(B58,TT_Tabelle_Riferimento!$G$127:$K$164,1,0),0) -> Altre immobilizzazioni materiali e immateriali | R58: 1 | S58: Servizio idrico integrato | T58: 2022 | U58: 867461.5297 | V58: 0 | W58: 181412.3809 | X58: 0 | Z58: Non Erc | AA58: Comune | AB58: Nuovi_Investimenti | AC58: =+IF(OR(K58:L58=0,P58=0,R58=0),TRUE,FALSE) -> FALSE
A59: 44 | B59: Terreni | C59: Servizio idrico integrato | D59: =+IFERROR(VLOOKUP(B59,TT_Tabelle_Riferimento!$G$127:$I$164,3,FALSE),"") -> Comune | E59: Env | F59: 2023 | G59: 12379.53 | H59: 0 | I59: 2435.213023 | J59: 2435.213023 | K59: 1202 | L59: 13989 | M59: Gestore | N59: 0 | O59: IP | P59: =+IFERROR(VLOOKUP(Q59,TT_Tabelle_Riferimento!$G$127:$K$164,5,0),0) -> 1 | Q59: =+IFERROR(VLOOKUP(B59,TT_Tabelle_Riferimento!$G$127:$K$164,1,0),0) -> Terreni | R59: 1 | S59: Servizio idrico integrato | T59: 2023 | U59: 12379.53 | V59: 0 | W59: 2435.213023 | X59: 0 | Z59: Env | AA59: Comune | AB59: Nuovi_Investimenti | AC59: =+IF(OR(K59:L59=0,P59=0,R59=0),TRUE,FALSE) -> FALSE
A60: 45 | B60: Terreni | C60: Servizio idrico integrato | D60: =+IFERROR(VLOOKUP(B60,TT_Tabelle_Riferimento!$G$127:$I$164,3,FALSE),"") -> Comune | E60: Non Erc | F60: 2023 | G60: 3001800.73 | H60: 0 | I60: 590492.8726 | J60: 590492.8726 | K60: 1202 | L60: 13989 | M60: Gestore | N60: 0 | O60: IP | P60: =+IFERROR(VLOOKUP(Q60,TT_Tabelle_Riferimento!$G$127:$K$164,5,0),0) -> 1 | Q60: =+IFERROR(VLOOKUP(B60,TT_Tabelle_Riferimento!$G$127:$K$164,1,0),0) -> Terreni | R60: 1 | S60: Servizio idrico integrato | T60: 2023 | U60: 3001800.73 | V60: 0 | W60: 590492.8726 | X60: 0 | Z60: Non Erc | AA60: Comune | AB60: Nuovi_Investimenti | AC60: =+IF(OR(K60:L60=0,P60=0,R60=0),TRUE,FALSE) -> FALSE
A61: 46 | B61: Terreni | C61: Servizio idrico integrato | D61: =+IFERROR(VLOOKUP(B61,TT_Tabelle_Riferimento!$G$127:$I$164,3,FALSE),"") -> Comune | E61: Res | F61: 2023 | G61: 171748.28 | H61: 0 | I61: 33785.09912 | J61: 33785.09912 | K61: 1202 | L61: 13989 | M61: Gestore | N61: 0 | O61: IP | P61: =+IFERROR(VLOOKUP(Q61,TT_Tabelle_Riferimento!$G$127:$K$164,5,0),0) -> 1 | Q61: =+IFERROR(VLOOKUP(B61,TT_Tabelle_Riferimento!$G$127:$K$164,1,0),0) -> Terreni | R61: 1 | S61: Servizio idrico integrato | T61: 2023 | U61: 171748.28 | V61: 0 | W61: 33785.09912 | X61: 0 | Z61: Res | AA61: Comune | AB61: Nuovi_Investimenti | AC61: =+IF(OR(K61:L61=0,P61=0,R61=0),TRUE,FALSE) -> FALSE
A62: 47 | B62: Condotte di acquedotto | C62: Altri servizi idrici | D62: =+IFERROR(VLOOKUP(B62,TT_Tabelle_Riferimento!$G$127:$I$164,3,FALSE),"") -> Acquedotto | E62: Non Erc | F62: 2023 | G62: 27861.516 | H62: 0 | I62: 5480.719107 | J62: 5480.719107 | K62: 1202 | L62: 13989 | M62: Gestore | N62: 0 | O62: IP | P62: =+IFERROR(VLOOKUP(Q62,TT_Tabelle_Riferimento!$G$127:$K$164,5,0),0) -> 2 | Q62: =+IFERROR(VLOOKUP(B62,TT_Tabelle_Riferimento!$G$127:$K$164,1,0),0) -> Condotte di acquedotto | R62: 3 | S62: Altri servizi idrici | T62: 2023 | U62: 27861.516 | V62: 0 | W62: 5480.719107 | X62: 0 | Z62: Non Erc | AA62: Acquedotto | AB62: Nuovi_Investimenti | AC62: =+IF(OR(K62:L62=0,P62=0,R62=0),TRUE,FALSE) -> FALSE
A63: 48 | B63: Condotte di acquedotto | C63: Servizio idrico integrato | D63: =+IFERROR(VLOOKUP(B63,TT_Tabelle_Riferimento!$G$127:$I$164,3,FALSE),"") -> Acquedotto | E63: Non Erc | F63: 2023 | G63: 111761237.1 | H63: 19307597.84 | I63: 21984875.04 | J63: 41292472.88 | K63: 1202 | L63: 13989 | M63: Gestore | N63: 0 | O63: IP | P63: =+IFERROR(VLOOKUP(Q63,TT_Tabelle_Riferimento!$G$127:$K$164,5,0),0) -> 2 | Q63: =+IFERROR(VLOOKUP(B63,TT_Tabelle_Riferimento!$G$127:$K$164,1,0),0) -> Condotte di acquedotto | R63: 1 | S63: Servizio idrico integrato | T63: 2023 | U63: 111761237.1 | V63: 0 | W63: 41292472.88 | X63: 0 | Z63: Non Erc | AA63: Acquedotto | AB63: Nuovi_Investimenti | AC63: =+IF(OR(K63:L63=0,P63=0,R63=0),TRUE,FALSE) -> FALSE
A64: 49 | B64: Opere idrauliche fisse di acquedotto | C64: Servizio idrico integrato | D64: =+IFERROR(VLOOKUP(B64,TT_Tabelle_Riferimento!$G$127:$I$164,3,FALSE),"") -> Acquedotto | E64: Non Erc | F64: 2023 | G64: 1848463.526 | H64: 106292.689 | I64: 363616.5874 | J64: 469909.2764 | K64: 1202 | L64: 13989 | M64: Gestore | N64: 0 | O64: IP | P64: =+IFERROR(VLOOKUP(Q64,TT_Tabelle_Riferimento!$G$127:$K$164,5,0),0) -> 3 | Q64: =+IFERROR(VLOOKUP(B64,TT_Tabelle_Riferimento!$G$127:$K$164,1,0),0) -> Opere idrauliche fisse di acquedotto | R64: 1 | S64: Servizio idrico integrato | T64: 2023 | U64: 1848463.526 | V64: 0 | W64: 469909.2764 | X64: 0 | Z64: Non Erc | AA64: Acquedotto | AB64: Nuovi_Investimenti | AC64: =+IF(OR(K64:L64=0,P64=0,R64=0),TRUE,FALSE) -> FALSE
A65: 50 | B65: Opere idrauliche fisse di acquedotto | C65: Servizio idrico integrato | D65: =+IFERROR(VLOOKUP(B65,TT_Tabelle_Riferimento!$G$127:$I$164,3,FALSE),"") -> Acquedotto | E65: Res | F65: 2023 | G65: 100974.2487 | H65: 0 | I65: 19862.93546 | J65: 19862.93546 | K65: 1202 | L65: 13989 | M65: Gestore | N65: 0 | O65: IP | P65: =+IFERROR(VLOOKUP(Q65,TT_Tabelle_Riferimento!$G$127:$K$164,5,0),0) -> 3 | Q65: =+IFERROR(VLOOKUP(B65,TT_Tabelle_Riferimento!$G$127:$K$164,1,0),0) -> Opere idrauliche fisse di acquedotto | R65: 1 | S65: Servizio idrico integrato | T65: 2023 | U65: 100974.2487 | V65: 0 | W65: 19862.93546 | X65: 0 | Z65: Res | AA65: Acquedotto | AB65: Nuovi_Investimenti | AC65: =+IF(OR(K65:L65=0,P65=0,R65=0),TRUE,FALSE) -> FALSE
A66: 51 | B66: Serbatoi | C66: Servizio idrico integrato | D66: =+IFERROR(VLOOKUP(B66,TT_Tabelle_Riferimento!$G$127:$I$164,3,FALSE),"") -> Acquedotto | E66: Non Erc | F66: 2023 | G66: 2813370.257 | H66: 451837.4114 | I66: 553426.1711 | J66: 1005263.583 | K66: 1202 | L66: 13989 | M66: Gestore | N66: 0 | O66: IP | P66: =+IFERROR(VLOOKUP(Q66,TT_Tabelle_Riferimento!$G$127:$K$164,5,0),0) -> 4 | Q66: =+IFERROR(VLOOKUP(B66,TT_Tabelle_Riferimento!$G$127:$K$164,1,0),0) -> Serbatoi | R66: 1 | S66: Servizio idrico integrato | T66: 2023 | U66: 2813370.257 | V66: 0 | W66: 1005263.583 | X66: 0 | Z66: Non Erc | AA66: Acquedotto | AB66: Nuovi_Investimenti | AC66: =+IF(OR(K66:L66=0,P66=0,R66=0),TRUE,FALSE) -> FALSE
A67: 52 | B67: Impianti di sollevamento e pompaggio di acquedotto | C67: Altri servizi idrici | D67: =+IFERROR(VLOOKUP(B67,TT_Tabelle_Riferimento!$G$127:$I$164,3,FALSE),"") -> Acquedotto | E67: Non Erc | F67: 2023 | G67: 468420.4838 | H67: 0 | I67: 92144.34333 | J67: 92144.34333 | K67: 1202 | L67: 13989 | M67: Gestore | N67: 0 | O67: IP | P67: =+IFERROR(VLOOKUP(Q67,TT_Tabelle_Riferimento!$G$127:$K$164,5,0),0) -> 5 | Q67: =+IFERROR(VLOOKUP(B67,TT_Tabelle_Riferimento!$G$127:$K$164,1,0),0) -> Impianti di sollevamento e pompaggio di acquedotto | R67: 3 | S67: Altri servizi idrici | T67: 2023 | U67: 468420.4838 | V67: 0 | W67: 92144.34333 | X67: 0 | Z67: Non Erc | AA67: Acquedotto | AB67: Nuovi_Investimenti | AC67: =+IF(OR(K67:L67=0,P67=0,R67=0),TRUE,FALSE) -> FALSE
A68: 53 | B68: Impianti di sollevamento e pompaggio di acquedotto | C68: Servizio idrico integrato | D68: =+IFERROR(VLOOKUP(B68,TT_Tabelle_Riferimento!$G$127:$I$164,3,FALSE),"") -> Acquedotto | E68: Non Erc | F68: 2023 | G68: 22318386.05 | H68: 1948626.515 | I68: 4390314.039 | J68: 6338940.554 | K68: 1202 | L68: 13989 | M68: Gestore | N68: 0 | O68: IP | P68: =+IFERROR(VLOOKUP(Q68,TT_Tabelle_Riferimento!$G$127:$K$164,5,0),0) -> 5 | Q68: =+IFERROR(VLOOKUP(B68,TT_Tabelle_Riferimento!$G$127:$K$164,1,0),0) -> Impianti di sollevamento e pompaggio di acquedotto | R68: 1 | S68: Servizio idrico integrato | T68: 2023 | U68: 22318386.05 | V68: 0 | W68: 6338940.554 | X68: 0 | Z68: Non Erc | AA68: Acquedotto | AB68: Nuovi_Investimenti | AC68: =+IF(OR(K68:L68=0,P68=0,R68=0),TRUE,FALSE) -> FALSE
A69: 54 | B69: Impianti di sollevamento e pompaggio di acquedotto | C69: Servizio idrico integrato | D69: =+IFERROR(VLOOKUP(B69,TT_Tabelle_Riferimento!$G$127:$I$164,3,FALSE),"") -> Acquedotto | E69: Res | F69: 2023 | G69: 2544682.185 | H69: 0 | I69: 500571.7661 | J69: 500571.7661 | K69: 1202 | L69: 13989 | M69: Gestore | N69: 0 | O69: IP | P69: =+IFERROR(VLOOKUP(Q69,TT_Tabelle_Riferimento!$G$127:$K$164,5,0),0) -> 5 | Q69: =+IFERROR(VLOOKUP(B69,TT_Tabelle_Riferimento!$G$127:$K$164,1,0),0) -> Impianti di sollevamento e pompaggio di acquedotto | R69: 1 | S69: Servizio idrico integrato | T69: 2023 | U69: 2544682.185 | V69: 0 | W69: 500571.7661 | X69: 0 | Z69: Res | AA69: Acquedotto | AB69: Nuovi_Investimenti | AC69: =+IF(OR(K69:L69=0,P69=0,R69=0),TRUE,FALSE) -> FALSE
A70: 55 | B70: Impianti di potabilizzazione | C70: Servizio idrico integrato | D70: =+IFERROR(VLOOKUP(B70,TT_Tabelle_Riferimento!$G$127:$I$164,3,FALSE),"") -> Acquedotto | E70: Non Erc | F70: 2023 | G70: 1787137.38 | H70: 54657.01352 | I70: 351552.9445 | J70: 406209.958 | K70: 1202 | L70: 13989 | M70: Gestore | N70: 0 | O70: IP | P70: =+IFERROR(VLOOKUP(Q70,TT_Tabelle_Riferimento!$G$127:$K$164,5,0),0) -> 6 | Q70: =+IFERROR(VLOOKUP(B70,TT_Tabelle_Riferimento!$G$127:$K$164,1,0),0) -> Impianti di potabilizzazione | R70: 1 | S70: Servizio idrico integrato | T70: 2023 | U70: 1787137.38 | V70: 0 | W70: 406209.958 | X70: 0 | Z70: Non Erc | AA70: Acquedotto | AB70: Nuovi_Investimenti | AC70: =+IF(OR(K70:L70=0,P70=0,R70=0),TRUE,FALSE) -> FALSE
A71: 56 | B71: Altri trattamenti di potabilizzazione (tra cui dispositivi di disinfezione, stacciatura, filtrazione, addolcimento) | C71: Servizio idrico integrato | D71: =+IFERROR(VLOOKUP(B71,TT_Tabelle_Riferimento!$G$127:$I$164,3,FALSE),"") -> Acquedotto | E71: Non Erc | F71: 2023 | G71: 925477.934 | H71: 932836.8612 | I71: 182053.4316 | J71: 1114890.293 | K71: 1202 | L71: 13989 | M71: Gestore | N71: 0 | O71: IP | P71: =+IFERROR(VLOOKUP(Q71,TT_Tabelle_Riferimento!$G$127:$K$164,5,0),0) -> 7 | Q71: =+IFERROR(VLOOKUP(B71,TT_Tabelle_Riferimento!$G$127:$K$164,1,0),0) -> Altri trattamenti di potabilizzazione (tra cui dispositivi di disinfezione, stacciatura, filtrazione, addolcimento) | R71: 1 | S71: Servizio idrico integrato | T71: 2023 | U71: 925477.934 | V71: 0 | W71: 1114890.293 | X71: 0 | Z71: Non Erc | AA71: Acquedotto | AB71: Nuovi_Investimenti | AC71: =+IF(OR(K71:L71=0,P71=0,R71=0),TRUE,FALSE) -> FALSE
A72: 57 | B72: Gruppi di misura - altre attrezzature di acquedotto | C72: Altri servizi idrici | D72: =+IFERROR(VLOOKUP(B72,TT_Tabelle_Riferimento!$G$127:$I$164,3,FALSE),"") -> Acquedotto | E72: Non Erc | F72: 2023 | G72: 826.165964 | H72: 0 | I72: 162.5174877 | J72: 162.5174877 | K72: 1202 | L72: 13989 | M72: Gestore | N72: 0 | O72: IP | P72: =+IFERROR(VLOOKUP(Q72,TT_Tabelle_Riferimento!$G$127:$K$164,5,0),0) -> 8 | Q72: =+IFERROR(VLOOKUP(B72,TT_Tabelle_Riferimento!$G$127:$K$164,1,0),0) -> Gruppi di misura - altre attrezzature di acquedotto | R72: 3 | S72: Altri servizi idrici | T72: 2023 | U72: 826.165964 | V72: 0 | W72: 162.5174877 | X72: 0 | Z72: Non Erc | AA72: Acquedotto | AB72: Nuovi_Investimenti | AC72: =+IF(OR(K72:L72=0,P72=0,R72=0),TRUE,FALSE) -> FALSE
A73: 58 | B73: Gruppi di misura - altre attrezzature di acquedotto | C73: Servizio idrico integrato | D73: =+IFERROR(VLOOKUP(B73,TT_Tabelle_Riferimento!$G$127:$I$164,3,FALSE),"") -> Acquedotto | E73: Non Erc | F73: 2023 | G73: 15821568.88 | H73: 473257.5423 | I73: 3112306.411 | J73: 3585563.953 | K73: 1202 | L73: 13989 | M73: Gestore | N73: 0 | O73: IP | P73: =+IFERROR(VLOOKUP(Q73,TT_Tabelle_Riferimento!$G$127:$K$164,5,0),0) -> 8 | Q73: =+IFERROR(VLOOKUP(B73,TT_Tabelle_Riferimento!$G$127:$K$164,1,0),0) -> Gruppi di misura - altre attrezzature di acquedotto | R73: 1 | S73: Servizio idrico integrato | T73: 2023 | U73: 15821568.88 | V73: 0 | W73: 3585563.953 | X73: 0 | Z73: Non Erc | AA73: Acquedotto | AB73: Nuovi_Investimenti | AC73: =+IF(OR(K73:L73=0,P73=0,R73=0),TRUE,FALSE) -> FALSE
A74: 59 | B74: Gruppi di misura - altre attrezzature di acquedotto | C74: Servizio idrico integrato | D74: =+IFERROR(VLOOKUP(B74,TT_Tabelle_Riferimento!$G$127:$I$164,3,FALSE),"") -> Acquedotto | E74: Res | F74: 2023 | G74: 555948.2095 | H74: 0 | I74: 109362.1745 | J74: 109362.1745 | K74: 1202 | L74: 13989 | M74: Gestore | N74: 0 | O74: IP | P74: =+IFERROR(VLOOKUP(Q74,TT_Tabelle_Riferimento!$G$127:$K$164,5,0),0) -> 8 | Q74: =+IFERROR(VLOOKUP(B74,TT_Tabelle_Riferimento!$G$127:$K$164,1,0),0) -> Gruppi di misura - altre attrezzature di acquedotto | R74: 1 | S74: Servizio idrico integrato | T74: 2023 | U74: 555948.2095 | V74: 0 | W74: 109362.1745 | X74: 0 | Z74: Res | AA74: Acquedotto | AB74: Nuovi_Investimenti | AC74: =+IF(OR(K74:L74=0,P74=0,R74=0),TRUE,FALSE) -> FALSE
A75: 60 | B75: Sistemi informativi di acquedotto | C75: Altri servizi idrici | D75: =+IFERROR(VLOOKUP(B75,TT_Tabelle_Riferimento!$G$127:$I$164,3,FALSE),"") -> Acquedotto | E75: Non Erc | F75: 2023 | G75: 531.0233984 | H75: 0 | I75: 104.4591431 | J75: 104.4591431 | K75: 1202 | L75: 13989 | M75: Gestore | N75: 0 | O75: IP | P75: =+IFERROR(VLOOKUP(Q75,TT_Tabelle_Riferimento!$G$127:$K$164,5,0),0) -> 9 | Q75: =+IFERROR(VLOOKUP(B75,TT_Tabelle_Riferimento!$G$127:$K$164,1,0),0) -> Sistemi informativi di acquedotto | R75: 3 | S75: Altri servizi idrici | T75: 2023 | U75: 531.0233984 | V75: 0 | W75: 104.4591431 | X75: 0 | Z75: Non Erc | AA75: Acquedotto | AB75: Nuovi_Investimenti | AC75: =+IF(OR(K75:L75=0,P75=0,R75=0),TRUE,FALSE) -> FALSE
A76: 61 | B76: Sistemi informativi di acquedotto | C76: Servizio idrico integrato | D76: =+IFERROR(VLOOKUP(B76,TT_Tabelle_Riferimento!$G$127:$I$164,3,FALSE),"") -> Acquedotto | E76: Non Erc | F76: 2023 | G76: 700598.7838 | H76: 3125.532063 | I76: 137816.8058 | J76: 140942.3379 | K76: 1202 | L76: 13989 | M76: Gestore | N76: 0 | O76: IP | P76: =+IFERROR(VLOOKUP(Q76,TT_Tabelle_Riferimento!$G$127:$K$164,5,0),0) -> 9 | Q76: =+IFERROR(VLOOKUP(B76,TT_Tabelle_Riferimento!$G$127:$K$164,1,0),0) -> Sistemi informativi di acquedotto | R76: 1 | S76: Servizio idrico integrato | T76: 2023 | U76: 700598.7838 | V76: 0 | W76: 140942.3379 | X76: 0 | Z76: Non Erc | AA76: Acquedotto | AB76: Nuovi_Investimenti | AC76: =+IF(OR(K76:L76=0,P76=0,R76=0),TRUE,FALSE) -> FALSE
A77: 62 | B77: Sistemi informativi di acquedotto | C77: Servizio idrico integrato | D77: =+IFERROR(VLOOKUP(B77,TT_Tabelle_Riferimento!$G$127:$I$164,3,FALSE),"") -> Acquedotto | E77: Res | F77: 2023 | G77: 45818.88749 | H77: 0 | I77: 9013.165404 | J77: 9013.165404 | K77: 1202 | L77: 13989 | M77: Gestore | N77: 0 | O77: IP | P77: =+IFERROR(VLOOKUP(Q77,TT_Tabelle_Riferimento!$G$127:$K$164,5,0),0) -> 9 | Q77: =+IFERROR(VLOOKUP(B77,TT_Tabelle_Riferimento!$G$127:$K$164,1,0),0) -> Sistemi informativi di acquedotto | R77: 1 | S77: Servizio idrico integrato | T77: 2023 | U77: 45818.88749 | V77: 0 | W77: 9013.165404 | X77: 0 | Z77: Res | AA77: Acquedotto | AB77: Nuovi_Investimenti | AC77: =+IF(OR(K77:L77=0,P77=0,R77=0),TRUE,FALSE) -> FALSE
A78: 63 | B78: Telecontrollo e teletrasmissione di acquedotto | C78: Altri servizi idrici | D78: =+IFERROR(VLOOKUP(B78,TT_Tabelle_Riferimento!$G$127:$I$164,3,FALSE),"") -> Acquedotto | E78: Non Erc | F78: 2023 | G78: 7586.149638 | H78: 0 | I78: 1492.293358 | J78: 1492.293358 | K78: 1202 | L78: 13989 | M78: Gestore | N78: 0 | O78: IP | P78: =+IFERROR(VLOOKUP(Q78,TT_Tabelle_Riferimento!$G$127:$K$164,5,0),0) -> 10 | Q78: =+IFERROR(VLOOKUP(B78,TT_Tabelle_Riferimento!$G$127:$K$164,1,0),0) -> Telecontrollo e teletrasmissione di acquedotto | R78: 3 | S78: Altri servizi idrici | T78: 2023 | U78: 7586.149638 | V78: 0 | W78: 1492.293358 | X78: 0 | Z78: Non Erc | AA78: Acquedotto | AB78: Nuovi_Investimenti | AC78: =+IF(OR(K78:L78=0,P78=0,R78=0),TRUE,FALSE) -> FALSE
A79: 64 | B79: Telecontrollo e teletrasmissione di acquedotto | C79: Servizio idrico integrato | D79: =+IFERROR(VLOOKUP(B79,TT_Tabelle_Riferimento!$G$127:$I$164,3,FALSE),"") -> Acquedotto | E79: Non Erc | F79: 2023 | G79: 2425162.452 | H79: 3906.609606 | I79: 477060.6951 | J79: 480967.3047 | K79: 1202 | L79: 13989 | M79: Gestore | N79: 0 | O79: IP | P79: =+IFERROR(VLOOKUP(Q79,TT_Tabelle_Riferimento!$G$127:$K$164,5,0),0) -> 10 | Q79: =+IFERROR(VLOOKUP(B79,TT_Tabelle_Riferimento!$G$127:$K$164,1,0),0) -> Telecontrollo e teletrasmissione di acquedotto | R79: 1 | S79: Servizio idrico integrato | T79: 2023 | U79: 2425162.452 | V79: 0 | W79: 480967.3047 | X79: 0 | Z79: Non Erc | AA79: Acquedotto | AB79: Nuovi_Investimenti | AC79: =+IF(OR(K79:L79=0,P79=0,R79=0),TRUE,FALSE) -> FALSE
A80: 65 | B80: Telecontrollo e teletrasmissione di acquedotto | C80: Servizio idrico integrato | D80: =+IFERROR(VLOOKUP(B80,TT_Tabelle_Riferimento!$G$127:$I$164,3,FALSE),"") -> Acquedotto | E80: Res | F80: 2023 | G80: 303682.8431 | H80: 0 | I80: 59738.32726 | J80: 59738.32726 | K80: =idato -> 1202 | L80: =idgestore -> 13989 | M80: Gestore | N80: 0 | O80: IP | P80: =+IFERROR(VLOOKUP(Q80,TT_Tabelle_Riferimento!$G$127:$K$164,5,0),0) -> 10 | Q80: =+IFERROR(VLOOKUP(B80,TT_Tabelle_Riferimento!$G$127:$K$164,1,0),0) -> Telecontrollo e teletrasmissione di acquedotto | R80: =+IFERROR(VLOOKUP(S80,cat_imm_new,2,0),0) -> 1 | S80: =+IFERROR(VLOOKUP(C80,cat_imm_new,1,0),0) -> Servizio idrico integrato | T80: 2023 | U80: 303682.8431 | V80: 0 | W80: 59738.32726 | X80: 0 | Z80: Res | AA80: Acquedotto | AB80: Nuovi_Investimenti | AC80: =+IF(OR(K80:L80=0,P80=0,R80=0),TRUE,FALSE) -> FALSE
A81: =+ROW(A81)-15 -> 66 | B81: Condotte fognarie | C81: Servizio idrico integrato | D81: =+IFERROR(VLOOKUP(B81,TT_Tabelle_Riferimento!$G$127:$I$164,3,FALSE),"") -> Fognatura | E81: Non Erc | F81: 2023 | G81: 120316117.7 | H81: 7899774.679 | I81: =+IFERROR(HLOOKUP(F81,$D$8:$E$13,6,FALSE)*G81,0) -> 23667730.25 | J81: =+I81+H81 -> 31567504.93 | K81: 1202 | L81: 13989 | M81: Gestore | N81: 0 | O81: IP | P81: =+IFERROR(VLOOKUP(Q81,TT_Tabelle_Riferimento!$G$127:$K$164,5,0),0) -> 11 | Q81: =+IFERROR(VLOOKUP(B81,TT_Tabelle_Riferimento!$G$127:$K$164,1,0),0) -> Condotte fognarie | R81: 1 | S81: Servizio idrico integrato | T81: =F81 -> 2023 | U81: =G81 -> 120316117.7 | V81: 0 | W81: =J81 -> 31567504.93 | X81: 0 | Z81: =+IF(OR(E81="Res",E81="Env",E81="Non ERC"),E81,"") -> Non Erc | AA81: =+IF(OR(D81="Acquedotto",D81="Fognatura",D81="Depurazione",D81="Comune"),D81,"") -> Fognatura | AB81: Nuovi_Investimenti | AC81: =+IF(OR(K81:L81=0,P81=0,R81=0),TRUE,FALSE) -> FALSE
A82: 67 | B82: Sifoni e scaricatori di piena e altre opere idrauliche fisse di fognatura | C82: Servizio idrico integrato | D82: =+IFERROR(VLOOKUP(B82,TT_Tabelle_Riferimento!$G$127:$I$164,3,FALSE),"") -> Fognatura | E82: Non Erc | F82: 2023 | G82: 1585.78457 | H82: 0 | I82: 311.9442529 | J82: 311.9442529 | K82: 1202 | L82: 13989 | M82: Gestore | N82: 0 | O82: IP | P82: =+IFERROR(VLOOKUP(Q82,TT_Tabelle_Riferimento!$G$127:$K$164,5,0),0) -> 12 | Q82: =+IFERROR(VLOOKUP(B82,TT_Tabelle_Riferimento!$G$127:$K$164,1,0),0) -> Sifoni e scaricatori di piena e altre opere idrauliche fisse di fognatura | R82: 1 | S82: Servizio idrico integrato | T82: 2023 | U82: 1585.78457 | V82: 0 | W82: 311.9442529 | X82: 0 | Z82: Non Erc | AA82: Fognatura | AB82: Nuovi_Investimenti | AC82: =+IF(OR(K82:L82=0,P82=0,R82=0),TRUE,FALSE) -> FALSE
A83: 68 | B83: Impianti di sollevamento e pompaggio di fognatura | C83: Servizio idrico integrato | D83: =+IFERROR(VLOOKUP(B83,TT_Tabelle_Riferimento!$G$127:$I$164,3,FALSE),"") -> Fognatura | E83: Non Erc | F83: 2023 | G83: 9248488.866 | H83: 266790.5039 | I83: 1819296.898 | J83: 2086087.402 | K83: 1202 | L83: 13989 | M83: Gestore | N83: 0 | O83: IP | P83: =+IFERROR(VLOOKUP(Q83,TT_Tabelle_Riferimento!$G$127:$K$164,5,0),0) -> 14 | Q83: =+IFERROR(VLOOKUP(B83,TT_Tabelle_Riferimento!$G$127:$K$164,1,0),0) -> Impianti di sollevamento e pompaggio di fognatura | R83: 1 | S83: Servizio idrico integrato | T83: 2023 | U83: 9248488.866 | V83: 0 | W83: 2086087.402 | X83: 0 | Z83: Non Erc | AA83: Fognatura | AB83: Nuovi_Investimenti | AC83: =+IF(OR(K83:L83=0,P83=0,R83=0),TRUE,FALSE) -> FALSE
A84: 69 | B84: Gruppi di misura - altre attrezzature di fognatura | C84: Servizio idrico integrato | D84: =+IFERROR(VLOOKUP(B84,TT_Tabelle_Riferimento!$G$127:$I$164,3,FALSE),"") -> Fognatura | E84: Non Erc | F84: 2023 | G84: 290367.561 | H84: 6940.706882 | I84: 57119.03973 | J84: 64059.74662 | K84: 1202 | L84: 13989 | M84: Gestore | N84: 0 | O84: IP | P84: =+IFERROR(VLOOKUP(Q84,TT_Tabelle_Riferimento!$G$127:$K$164,5,0),0) -> 15 | Q84: =+IFERROR(VLOOKUP(B84,TT_Tabelle_Riferimento!$G$127:$K$164,1,0),0) -> Gruppi di misura - altre attrezzature di fognatura | R84: 1 | S84: Servizio idrico integrato | T84: 2023 | U84: 290367.561 | V84: 0 | W84: 64059.74662 | X84: 0 | Z84: Non Erc | AA84: Fognatura | AB84: Nuovi_Investimenti | AC84: =+IF(OR(K84:L84=0,P84=0,R84=0),TRUE,FALSE) -> FALSE
A85: 70 | B85: Sistemi informativi di fognatura | C85: Servizio idrico integrato | D85: =+IFERROR(VLOOKUP(B85,TT_Tabelle_Riferimento!$G$127:$I$164,3,FALSE),"") -> Fognatura | E85: Non Erc | F85: 2023 | G85: 346961.9477 | H85: 400.8666751 | I85: 68251.88466 | J85: 68652.75133 | K85: 1202 | L85: 13989 | M85: Gestore | N85: 0 | O85: IP | P85: =+IFERROR(VLOOKUP(Q85,TT_Tabelle_Riferimento!$G$127:$K$164,5,0),0) -> 16 | Q85: =+IFERROR(VLOOKUP(B85,TT_Tabelle_Riferimento!$G$127:$K$164,1,0),0) -> Sistemi informativi di fognatura | R85: 1 | S85: Servizio idrico integrato | T85: 2023 | U85: 346961.9477 | V85: 0 | W85: 68652.75133 | X85: 0 | Z85: Non Erc | AA85: Fognatura | AB85: Nuovi_Investimenti | AC85: =+IF(OR(K85:L85=0,P85=0,R85=0),TRUE,FALSE) -> FALSE
A86: 71 | B86: Telecontrollo e teletrasmissione di fognatura | C86: Servizio idrico integrato | D86: =+IFERROR(VLOOKUP(B86,TT_Tabelle_Riferimento!$G$127:$I$164,3,FALSE),"") -> Fognatura | E86: Non Erc | F86: 2023 | G86: 783631.4183 | H86: 29611.35936 | I86: 154150.3947 | J86: 183761.754 | K86: 1202 | L86: 13989 | M86: Gestore | N86: 0 | O86: IP | P86: =+IFERROR(VLOOKUP(Q86,TT_Tabelle_Riferimento!$G$127:$K$164,5,0),0) -> 18 | Q86: =+IFERROR(VLOOKUP(B86,TT_Tabelle_Riferimento!$G$127:$K$164,1,0),0) -> Telecontrollo e teletrasmissione di fognatura | R86: 1 | S86: Servizio idrico integrato | T86: 2023 | U86: 783631.4183 | V86: 0 | W86: 183761.754 | X86: 0 | Z86: Non Erc | AA86: Fognatura | AB86: Nuovi_Investimenti | AC86: =+IF(OR(K86:L86=0,P86=0,R86=0),TRUE,FALSE) -> FALSE
A87: 72 | B87: Impianti di sollevamento e pompaggio di depurazione | C87: Servizio idrico integrato | D87: =+IFERROR(VLOOKUP(B87,TT_Tabelle_Riferimento!$G$127:$I$164,3,FALSE),"") -> Depurazione | E87: Env | F87: 2023 | G87: 42836984.96 | H87: 1318001.891 | I87: 8426586.764 | J87: 9744588.655 | K87: 1202 | L87: 13989 | M87: Gestore | N87: 0 | O87: IP | P87: =+IFERROR(VLOOKUP(Q87,TT_Tabelle_Riferimento!$G$127:$K$164,5,0),0) -> 19 | Q87: =+IFERROR(VLOOKUP(B87,TT_Tabelle_Riferimento!$G$127:$K$164,1,0),0) -> Impianti di sollevamento e pompaggio di depurazione | R87: 1 | S87: Servizio idrico integrato | T87: 2023 | U87: 42836984.96 | V87: 0 | W87: 9744588.655 | X87: 0 | Z87: Env | AA87: Depurazione | AB87: Nuovi_Investimenti | AC87: =+IF(OR(K87:L87=0,P87=0,R87=0),TRUE,FALSE) -> FALSE
A88: 73 | B88: Tecniche naturali di depurazione (tra cui fitodepurazione e lagunaggio) | C88: Servizio idrico integrato | D88: =+IFERROR(VLOOKUP(B88,TT_Tabelle_Riferimento!$G$127:$I$164,3,FALSE),"") -> Depurazione | E88: Env | F88: 2023 | G88: 4326.574931 | H88: 0 | I88: 851.0930236 | J88: 851.0930236 | K88: 1202 | L88: 13989 | M88: Gestore | N88: 0 | O88: IP | P88: =+IFERROR(VLOOKUP(Q88,TT_Tabelle_Riferimento!$G$127:$K$164,5,0),0) -> 20 | Q88: =+IFERROR(VLOOKUP(B88,TT_Tabelle_Riferimento!$G$127:$K$164,1,0),0) -> Tecniche naturali di depurazione (tra cui fitodepurazione e lagunaggio) | R88: 1 | S88: Servizio idrico integrato | T88: 2023 | U88: 4326.574931 | V88: 0 | W88: 851.0930236 | X88: 0 | Z88: Env | AA88: Depurazione | AB88: Nuovi_Investimenti | AC88: =+IF(OR(K88:L88=0,P88=0,R88=0),TRUE,FALSE) -> FALSE
A89: 74 | B89: Impianti di depurazione – trattamenti sino al secondario | C89: Servizio idrico integrato | D89: =+IFERROR(VLOOKUP(B89,TT_Tabelle_Riferimento!$G$127:$I$164,3,FALSE),"") -> Depurazione | E89: Env | F89: 2023 | G89: 2743559.178 | H89: 436774.6808 | I89: 539693.4326 | J89: 976468.1135 | K89: 1202 | L89: 13989 | M89: Gestore | N89: 0 | O89: IP | P89: =+IFERROR(VLOOKUP(Q89,TT_Tabelle_Riferimento!$G$127:$K$164,5,0),0) -> 22 | Q89: =+IFERROR(VLOOKUP(B89,TT_Tabelle_Riferimento!$G$127:$K$164,1,0),0) -> Impianti di depurazione – trattamenti sino al secondario | R89: 1 | S89: Servizio idrico integrato | T89: 2023 | U89: 2743559.178 | V89: 0 | W89: 976468.1135 | X89: 0 | Z89: Env | AA89: Depurazione | AB89: Nuovi_Investimenti | AC89: =+IF(OR(K89:L89=0,P89=0,R89=0),TRUE,FALSE) -> FALSE
A90: 75 | B90: Impianti di depurazione – trattamenti sino al terziario e terziario avanzato | C90: Servizio idrico integrato | D90: =+IFERROR(VLOOKUP(B90,TT_Tabelle_Riferimento!$G$127:$I$164,3,FALSE),"") -> Depurazione | E90: Env | F90: 2023 | G90: 3066553.024 | H90: 868519.7917 | I90: 603230.4829 | J90: 1471750.275 | K90: 1202 | L90: 13989 | M90: Gestore | N90: 0 | O90: IP | P90: =+IFERROR(VLOOKUP(Q90,TT_Tabelle_Riferimento!$G$127:$K$164,5,0),0) -> 23 | Q90: =+IFERROR(VLOOKUP(B90,TT_Tabelle_Riferimento!$G$127:$K$164,1,0),0) -> Impianti di depurazione – trattamenti sino al terziario e terziario avanzato | R90: 1 | S90: Servizio idrico integrato | T90: 2023 | U90: 3066553.024 | V90: 0 | W90: 1471750.275 | X90: 0 | Z90: Env | AA90: Depurazione | AB90: Nuovi_Investimenti | AC90: =+IF(OR(K90:L90=0,P90=0,R90=0),TRUE,FALSE) -> FALSE
A91: 76 | B91: Impianti di essiccamento fanghi e di valorizzazione dei fanghi (tra cui mono-incenerimento, pirolisi, gassificazione) | C91: Servizio idrico integrato | D91: =+IFERROR(VLOOKUP(B91,TT_Tabelle_Riferimento!$G$127:$I$164,3,FALSE),"") -> Depurazione | E91: Env | F91: 2023 | G91: 1289713.222 | H91: 78974.23454 | I91: 253703.2047 | J91: 332677.4392 | K91: 1202 | L91: 13989 | M91: Gestore | N91: 0 | O91: IP | P91: =+IFERROR(VLOOKUP(Q91,TT_Tabelle_Riferimento!$G$127:$K$164,5,0),0) -> 24 | Q91: =+IFERROR(VLOOKUP(B91,TT_Tabelle_Riferimento!$G$127:$K$164,1,0),0) -> Impianti di essiccamento fanghi e di valorizzazione dei fanghi (tra cui mono-incenerimento, pirolisi, gassificazione) | R91: 1 | S91: Servizio idrico integrato | T91: 2023 | U91: 1289713.222 | V91: 0 | W91: 332677.4392 | X91: 0 | Z91: Env | AA91: Depurazione | AB91: Nuovi_Investimenti | AC91: =+IF(OR(K91:L91=0,P91=0,R91=0),TRUE,FALSE) -> FALSE
A92: 77 | B92: Gruppi di misura - altre attrezzature di depurazione | C92: Servizio idrico integrato | D92: =+IFERROR(VLOOKUP(B92,TT_Tabelle_Riferimento!$G$127:$I$164,3,FALSE),"") -> Depurazione | E92: Env | F92: 2023 | G92: 926857.06 | H92: 0 | I92: 182324.7234 | J92: 182324.7234 | K92: 1202 | L92: 13989 | M92: Gestore | N92: 0 | O92: IP | P92: =+IFERROR(VLOOKUP(Q92,TT_Tabelle_Riferimento!$G$127:$K$164,5,0),0) -> 25 | Q92: =+IFERROR(VLOOKUP(B92,TT_Tabelle_Riferimento!$G$127:$K$164,1,0),0) -> Gruppi di misura - altre attrezzature di depurazione | R92: 1 | S92: Servizio idrico integrato | T92: 2023 | U92: 926857.06 | V92: 0 | W92: 182324.7234 | X92: 0 | Z92: Env | AA92: Depurazione | AB92: Nuovi_Investimenti | AC92: =+IF(OR(K92:L92=0,P92=0,R92=0),TRUE,FALSE) -> FALSE
A93: 78 | B93: Sistemi informativi di depurazione | C93: Servizio idrico integrato | D93: =+IFERROR(VLOOKUP(B93,TT_Tabelle_Riferimento!$G$127:$I$164,3,FALSE),"") -> Depurazione | E93: Env | F93: 2023 | G93: 2653.243261 | H93: 0 | I93: 521.9271282 | J93: 521.9271282 | K93: 1202 | L93: 13989 | M93: Gestore | N93: 0 | O93: IP | P93: =+IFERROR(VLOOKUP(Q93,TT_Tabelle_Riferimento!$G$127:$K$164,5,0),0) -> 26 | Q93: =+IFERROR(VLOOKUP(B93,TT_Tabelle_Riferimento!$G$127:$K$164,1,0),0) -> Sistemi informativi di depurazione | R93: 1 | S93: Servizio idrico integrato | T93: 2023 | U93: 2653.243261 | V93: 0 | W93: 521.9271282 | X93: 0 | Z93: Env | AA93: Depurazione | AB93: Nuovi_Investimenti | AC93: =+IF(OR(K93:L93=0,P93=0,R93=0),TRUE,FALSE) -> FALSE
A94: 79 | B94: Telecontrollo e teletrasmissione di depurazione | C94: Servizio idrico integrato | D94: =+IFERROR(VLOOKUP(B94,TT_Tabelle_Riferimento!$G$127:$I$164,3,FALSE),"") -> Depurazione | E94: Env | F94: 2023 | G94: 723034.662 | H94: 0 | I94: 142230.2321 | J94: 142230.2321 | K94: 1202 | L94: 13989 | M94: Gestore | N94: 0 | O94: IP | P94: =+IFERROR(VLOOKUP(Q94,TT_Tabelle_Riferimento!$G$127:$K$164,5,0),0) -> 27 | Q94: =+IFERROR(VLOOKUP(B94,TT_Tabelle_Riferimento!$G$127:$K$164,1,0),0) -> Telecontrollo e teletrasmissione di depurazione | R94: 1 | S94: Servizio idrico integrato | T94: 2023 | U94: 723034.662 | V94: 0 | W94: 142230.2321 | X94: 0 | Z94: Env | AA94: Depurazione | AB94: Nuovi_Investimenti | AC94: =+IF(OR(K94:L94=0,P94=0,R94=0),TRUE,FALSE) -> FALSE
A95: 80 | B95: Laboratori e attrezzature | C95: Servizio idrico integrato | D95: =+IFERROR(VLOOKUP(B95,TT_Tabelle_Riferimento!$G$127:$I$164,3,FALSE),"") -> Comune | E95: Non Erc | F95: 2023 | G95: 2130241.694 | H95: 133.15536 | I95: 419045.9829 | J95: 419179.1382 | K95: 1202 | L95: 13989 | M95: Gestore | N95: 0 | O95: IP | P95: =+IFERROR(VLOOKUP(Q95,TT_Tabelle_Riferimento!$G$127:$K$164,5,0),0) -> 29 | Q95: =+IFERROR(VLOOKUP(B95,TT_Tabelle_Riferimento!$G$127:$K$164,1,0),0) -> Laboratori e attrezzature | R95: 1 | S95: Servizio idrico integrato | T95: 2023 | U95: 2130241.694 | V95: 0 | W95: 419179.1382 | X95: 0 | Z95: Non Erc | AA95: Comune | AB95: Nuovi_Investimenti | AC95: =+IF(OR(K95:L95=0,P95=0,R95=0),TRUE,FALSE) -> FALSE
A96: 81 | B96: Sistemi informativi | C96: Servizio idrico integrato | D96: =+IFERROR(VLOOKUP(B96,TT_Tabelle_Riferimento!$G$127:$I$164,3,FALSE),"") -> Comune | E96: Non Erc | F96: 2023 | G96: 14121887.11 | H96: 1510.405716 | I96: 2777957.111 | J96: 2779467.516 | K96: 1202 | L96: 13989 | M96: Gestore | N96: 0 | O96: IP | P96: =+IFERROR(VLOOKUP(Q96,TT_Tabelle_Riferimento!$G$127:$K$164,5,0),0) -> 30 | Q96: =+IFERROR(VLOOKUP(B96,TT_Tabelle_Riferimento!$G$127:$K$164,1,0),0) -> Sistemi informativi | R96: 1 | S96: Servizio idrico integrato | T96: 2023 | U96: 14121887.11 | V96: 0 | W96: 2779467.516 | X96: 0 | Z96: Non Erc | AA96: Comune | AB96: Nuovi_Investimenti | AC96: =+IF(OR(K96:L96=0,P96=0,R96=0),TRUE,FALSE) -> FALSE
A97: 82 | B97: Telecontrollo e teletrasmissione | C97: Servizio idrico integrato | D97: =+IFERROR(VLOOKUP(B97,TT_Tabelle_Riferimento!$G$127:$I$164,3,FALSE),"") -> Comune | E97: Non Erc | F97: 2023 | G97: 128530.4761 | H97: 0 | I97: 25283.60036 | J97: 25283.60036 | K97: 1202 | L97: 13989 | M97: Gestore | N97: 0 | O97: IP | P97: =+IFERROR(VLOOKUP(Q97,TT_Tabelle_Riferimento!$G$127:$K$164,5,0),0) -> 31 | Q97: =+IFERROR(VLOOKUP(B97,TT_Tabelle_Riferimento!$G$127:$K$164,1,0),0) -> Telecontrollo e teletrasmissione | R97: 1 | S97: Servizio idrico integrato | T97: 2023 | U97: 128530.4761 | V97: 0 | W97: 25283.60036 | X97: 0 | Z97: Non Erc | AA97: Comune | AB97: Nuovi_Investimenti | AC97: =+IF(OR(K97:L97=0,P97=0,R97=0),TRUE,FALSE) -> FALSE
A98: 83 | B98: Autoveicoli - automezzi | C98: Servizio idrico integrato | D98: =+IFERROR(VLOOKUP(B98,TT_Tabelle_Riferimento!$G$127:$I$164,3,FALSE),"") -> Comune | E98: Non Erc | F98: 2023 | G98: 1587583.422 | H98: 0 | I98: 312298.1102 | J98: 312298.1102 | K98: 1202 | L98: 13989 | M98: Gestore | N98: 0 | O98: IP | P98: =+IFERROR(VLOOKUP(Q98,TT_Tabelle_Riferimento!$G$127:$K$164,5,0),0) -> 32 | Q98: =+IFERROR(VLOOKUP(B98,TT_Tabelle_Riferimento!$G$127:$K$164,1,0),0) -> Autoveicoli - automezzi | R98: 1 | S98: Servizio idrico integrato | T98: 2023 | U98: 1587583.422 | V98: 0 | W98: 312298.1102 | X98: 0 | Z98: Non Erc | AA98: Comune | AB98: Nuovi_Investimenti | AC98: =+IF(OR(K98:L98=0,P98=0,R98=0),TRUE,FALSE) -> FALSE
A99: 84 | B99: Fabbricati industriali | C99: Servizio idrico integrato | D99: =+IFERROR(VLOOKUP(B99,TT_Tabelle_Riferimento!$G$127:$I$164,3,FALSE),"") -> Comune | E99: Env | F99: 2023 | G99: 98508.16926 | H99: 111982.9054 | I99: 19377.82587 | J99: 131360.7313 | K99: 1202 | L99: 13989 | M99: Gestore | N99: 0 | O99: IP | P99: =+IFERROR(VLOOKUP(Q99,TT_Tabelle_Riferimento!$G$127:$K$164,5,0),0) -> 34 | Q99: =+IFERROR(VLOOKUP(B99,TT_Tabelle_Riferimento!$G$127:$K$164,1,0),0) -> Fabbricati industriali | R99: 1 | S99: Servizio idrico integrato | T99: 2023 | U99: 98508.16926 | V99: 0 | W99: 131360.7313 | X99: 0 | Z99: Env | AA99: Comune | AB99: Nuovi_Investimenti | AC99: =+IF(OR(K99:L99=0,P99=0,R99=0),TRUE,FALSE) -> FALSE
A100: 85 | B100: Fabbricati industriali | C100: Servizio idrico integrato | D100: =+IFERROR(VLOOKUP(B100,TT_Tabelle_Riferimento!$G$127:$I$164,3,FALSE),"") -> Comune | E100: Non Erc | F100: 2023 | G100: 186152.724 | H100: 0 | I100: 36618.63882 | J100: 36618.63882 | K100: 1202 | L100: 13989 | M100: Gestore | N100: 0 | O100: IP | P100: =+IFERROR(VLOOKUP(Q100,TT_Tabelle_Riferimento!$G$127:$K$164,5,0),0) -> 34 | Q100: =+IFERROR(VLOOKUP(B100,TT_Tabelle_Riferimento!$G$127:$K$164,1,0),0) -> Fabbricati industriali | R100: 1 | S100: Servizio idrico integrato | T100: 2023 | U100: 186152.724 | V100: 0 | W100: 36618.63882 | X100: 0 | Z100: Non Erc | AA100: Comune | AB100: Nuovi_Investimenti | AC100: =+IF(OR(K100:L100=0,P100=0,R100=0),TRUE,FALSE) -> FALSE
A101: 86 | B101: Costruzioni leggere | C101: Servizio idrico integrato | D101: =+IFERROR(VLOOKUP(B101,TT_Tabelle_Riferimento!$G$127:$I$164,3,FALSE),"") -> Comune | E101: Env | F101: 2023 | G101: 1946474.061 | H101: 0 | I101: 382896.5221 | J101: 382896.5221 | K101: 1202 | L101: 13989 | M101: Gestore | N101: 0 | O101: IP | P101: =+IFERROR(VLOOKUP(Q101,TT_Tabelle_Riferimento!$G$127:$K$164,5,0),0) -> 35 | Q101: =+IFERROR(VLOOKUP(B101,TT_Tabelle_Riferimento!$G$127:$K$164,1,0),0) -> Costruzioni leggere | R101: 1 | S101: Servizio idrico integrato | T101: 2023 | U101: 1946474.061 | V101: 0 | W101: 382896.5221 | X101: 0 | Z101: Env | AA101: Comune | AB101: Nuovi_Investimenti | AC101: =+IF(OR(K101:L101=0,P101=0,R101=0),TRUE,FALSE) -> FALSE
A102: 87 | B102: Studi, ricerche, brevetti, diritti di utilizzazione | C102: Servizio idrico integrato | D102: =+IFERROR(VLOOKUP(B102,TT_Tabelle_Riferimento!$G$127:$I$164,3,FALSE),"") -> Comune | E102: Non Erc | F102: 2023 | G102: 6638257.982 | H102: 0 | I102: 1305830.859 | J102: 1305830.859 | K102: 1202 | L102: 13989 | M102: Gestore | N102: 0 | O102: IP | P102: =+IFERROR(VLOOKUP(Q102,TT_Tabelle_Riferimento!$G$127:$K$164,5,0),0) -> 36 | Q102: =+IFERROR(VLOOKUP(B102,TT_Tabelle_Riferimento!$G$127:$K$164,1,0),0) -> Studi, ricerche, brevetti, diritti di utilizzazione | R102: 1 | S102: Servizio idrico integrato | T102: 2023 | U102: 6638257.982 | V102: 0 | W102: 1305830.859 | X102: 0 | Z102: Non Erc | AA102: Comune | AB102: Nuovi_Investimenti | AC102: =+IF(OR(K102:L102=0,P102=0,R102=0),TRUE,FALSE) -> FALSE
A103: 88 | B103: Altre immobilizzazioni materiali e immateriali | C103: Servizio idrico integrato | D103: =+IFERROR(VLOOKUP(B103,TT_Tabelle_Riferimento!$G$127:$I$164,3,FALSE),"") -> Comune | E103: Env | F103: 2023 | G103: 1251962.222 | H103: 0 | I103: 246277.0968 | J103: 246277.0968 | K103: 1202 | L103: 13989 | M103: Gestore | N103: 0 | O103: IP | P103: =+IFERROR(VLOOKUP(Q103,TT_Tabelle_Riferimento!$G$127:$K$164,5,0),0) -> 37 | Q103: =+IFERROR(VLOOKUP(B103,TT_Tabelle_Riferimento!$G$127:$K$164,1,0),0) -> Altre immobilizzazioni materiali e immateriali | R103: 1 | S103: Servizio idrico integrato | T103: 2023 | U103: 1251962.222 | V103: 0 | W103: 246277.0968 | X103: 0 | Z103: Env | AA103: Comune | AB103: Nuovi_Investimenti | AC103: =+IF(OR(K103:L103=0,P103=0,R103=0),TRUE,FALSE) -> FALSE
A104: 89 | B104: Altre immobilizzazioni materiali e immateriali | C104: Servizio idrico integrato | D104: =+IFERROR(VLOOKUP(B104,TT_Tabelle_Riferimento!$G$127:$I$164,3,FALSE),"") -> Comune | E104: Non Erc | F104: 2023 | G104: 198670.4246 | H104: 0 | I104: 39081.03177 | J104: 39081.03177 | K104: 1202 | L104: 13989 | M104: Gestore | N104: 0 | O104: IP | P104: =+IFERROR(VLOOKUP(Q104,TT_Tabelle_Riferimento!$G$127:$K$164,5,0),0) -> 37 | Q104: =+IFERROR(VLOOKUP(B104,TT_Tabelle_Riferimento!$G$127:$K$164,1,0),0) -> Altre immobilizzazioni materiali e immateriali | R104: 1 | S104: Servizio idrico integrato | T104: 2023 | U104: 198670.4246 | V104: 0 | W104: 39081.03177 | X104: 0 | Z104: Non Erc | AA104: Comune | AB104: Nuovi_Investimenti | AC104: =+IF(OR(K104:L104=0,P104=0,R104=0),TRUE,FALSE) -> FALSE

Sheet Dismissioni
B1: IMMOBILIZZAZIONI DEL GESTORE | G1: Tutti i valori si intendono a moneta dell'anno del cespite
A2: 3. DISMISSIONI
M3: Sono presenti errori
M4: =+OR(INDEX(Dismissioni,0,32)) -> FALSE
A7: N_riga | B7: Categoria del cespite | C7: Categoria di Immobilizzazione | D7: Attività | E7: Tipologia di costo sotteso ("Env", "Res", "Non ERC") | F7: Anno dismissione | G7: Anno cespite | H7: IP (Euro) | I7: FA (Euro) | J7: CFP (Euro) | K7: FA cfp (Euro) | M7: IDATO | N7: IDGESTORE | O7: Gestore_Proprietario | P7: N_prop | Q7: Fonte | R7: ID_Categoria_Cespite | S7: CategoriaCespite | T7: ID_Immobilizzazione | U7: IMMOBILIZZAZIONE | V7: AnnoDismissione | W7: IP | X7: FAIP | Y7: CFP | Z7: FACFP | AA7: - | AB7: ERC | AC7: Attività | AD7: foglio di origine | AE7: AnnoCespite | AF7: controllo_errori
A8: =+ROW(A8)-8 -> 0 | D8: =+IFERROR(IF(G8>=2020,VLOOKUP(B8,TT_Tabelle_Riferimento!$G$127:$I$164,3,FALSE),""),"") ->  | M8: =idato -> 1202 | N8: =idgestore -> 13989 | O8: Gestore | P8: 0 | Q8: IP | R8: =+IFERROR(IF(G8<2020,VLOOKUP(B8,id_cat_ces,2,FALSE),VLOOKUP(B8,TT_Tabelle_Riferimento!$G$127:$K$164,5,FALSE)),0) -> 0 | S8: =+IFERROR(IF(G8<2020,VLOOKUP(B8,id_cat_ces,1,FALSE),VLOOKUP(B8,TT_Tabelle_Riferimento!$G$127:$K$164,1,FALSE)),0) -> 0 | T8: =+IFERROR(VLOOKUP(U8,cat_imm_new,2,0),0) -> 0 | U8: =+IFERROR(VLOOKUP(C8,cat_imm_new,1,0),0) -> 0 | V8: =+F8 -> 0 | W8: =+IFERROR(IP(ABS($H8),$R8,$T8,$G8,V8+2,ifl),0)*-1 -> 0 | X8: =+IFERROR(FondoAmm(ABS($H8),ABS($I8),$G8,$R8,$T8,V8+2,IF($G8>=2020,vite_regolatorie_new,vite_regolatorie),ifl),0)*-1 -> 0 | Y8: =+IFERROR(CFP_A(ABS($J8),$R8,$T8,$G8,V8+2,ifl),0)*-1 -> 0 | Z8: =+IFERROR(FACFP(ABS($J8),ABS($K8),$G8,$R8,$T8,V8+2,IF($G8>=2020,vite_regolatorie_new,vite_regolatorie),ifl),0)*-1 -> 0 | AA8: =+G8 -> 0 | AB8: =+IF(OR(E8="Res",E8="Env",E8="Non ERC"),E8,"") ->  | AC8: =+IF(OR(D8="Acquedotto",D8="Fognatura",D8="Depurazione",D8="Comune"),D8,"") ->  | AD8: Dismissioni | AE8: =+G8 -> 0 | AF8: =+IF(OR(M8:N8=0,R8=0,T8=0),IF(COUNTA(A:A)>3,TRUE,FALSE),FALSE) -> FALSE

Sheet Ammortamento_Finanziario
B1: IMMOBILIZZAZIONI DEL GESTORE | H1: Verificare puntualmente le informazioni eventualmente precompilate e integrare fornendo le informazioni solo con riferimento alle annualità e ai cespiti per cui si ricorre all'ammortamento finanziario
A2: 3. Vite utili finanziarie
F3: 2022 | G3: 2023 | H3: 2024 | I3: 2025 | J3: 2026 | K3: 2027 | N3: Sono presenti errori
E4: Ammortamento finanziario | F4: =+IF(OR(iAF="SI",schema="IV",schema="V",schema="VI"),"SI","NO") -> SI | G4: =+IF(OR(iAF="SI",schema="IV",schema="V",schema="VI"),"SI","NO") -> SI | H4: =+IF(OR(iAF="SI",schema="IV",schema="V",schema="VI"),"SI","NO") -> SI | I4: =+IF(OR(iAF="SI",schema="IV",schema="V",schema="VI"),"SI","NO") -> SI | J4: =+IF(OR(iAF="SI",schema="IV",schema="V",schema="VI"),"SI","NO") -> SI | K4: =+IF(OR(iAF="SI",schema="IV",schema="V",schema="VI"),"SI","NO") -> SI | N4: =+OR(INDEX(AmmortamentoFinanziario,0,14)) -> FALSE
A7: n_riga | B7: Anno cespite RIF | C7: Anno calcolo | D7: Categoria | E7: Vita utile finanziaria | F7: Per dismissioni | G7: AnnoCespiteRIF | H7: AnnoCespiteRIF-AnnoCalcolo | I7: ID Categoria cespite | J7: Vita utile regolatoria | K7: Ammortamento finanziario (SI/NO) | L7: Vita utile ai fini del calcolo | N7: Controllo ERRORI
A8: =+ROW(A8)-7 -> 1 | B8: 1967-2011 | C8: 2012 | D8: Fabbricati non industriali | E8: 40 | F8: NO | G8: =+IF(B8="","",IF(F8="SI",C8-2,IF(B8="1967-2011",2011,B8))) -> 2011 | H8: =+IF(B8="","",G8&"-"&C8&"-"&I8&IF(OR(B8="1967-2011",B8<2020,F8="SI"),"_old","_new")) -> 2011-2012-2_old | I8: =+IFERROR(VLOOKUP(D8,IF(OR(IF(B8="1967-2011",2011,B8)<2020,F8="SI"),id_cat_ces,imm_nuovi_inv),IF(OR(IF(B8="1967-2011",2011,B8)<2020,F8="SI"),2,5),FALSE),"") -> 2 | J8: =+IFERROR(IF(RIGHT(H8,4)="_old",VLOOKUP(I8,TT_Tabelle_Riferimento!$H$31:$I$50,2,FALSE),VLOOKUP(I8,TT_Tabelle_Riferimento!$D$127:$H$164,5,FALSE)),"") -> 40 | K8: =+IFERROR(IF(VALUE(LEFT(H8,4))=2011,IF(iAF="","NO",iAF),IF(VLOOKUP(VALUE(LEFT(H8,4)),rif_metodo,3,FALSE)="","NO",VLOOKUP(VALUE(LEFT(H8,4)),rif_metodo,3,FALSE))),"") -> SI | L8: =+IFERROR(IF(AND(K8="SI",E8>0),E8,J8),"") -> 40 | N8: =+IF(COUNTIFS(A:A,">0",G:G,G8,H:H,H8,I:I,I8)<=1,FALSE,TRUE) -> FALSE
A9: =+ROW(A9)-7 -> 2 | B9: 1967-2011 | C9: 2012 | D9: Fabbricati industriali | E9: 40 | F9: NO | G9: =+IF(B9="","",IF(F9="SI",C9-2,IF(B9="1967-2011",2011,B9))) -> 2011 | H9: =+IF(B9="","",G9&"-"&C9&"-"&I9&IF(OR(B9="1967-2011",B9<2020,F9="SI"),"_old","_new")) -> 2011-2012-3_old | I9: 3 | J9: =+IFERROR(IF(RIGHT(H9,4)="_old",VLOOKUP(I9,TT_Tabelle_Riferimento!$H$31:$I$50,2,FALSE),VLOOKUP(I9,TT_Tabelle_Riferimento!$D$127:$H$164,5,FALSE)),"") -> 40 | K9: SI | L9: =+IFERROR(IF(AND(K9="SI",E9>0),E9,J9),"") -> 40 | N9: FALSE
A10: 3 | B10: 1967-2011 | C10: 2012 | D10: Costruzioni leggere | E10: 40 | F10: NO | G10: 2011 | H10: 2011-2012-4_old | I10: 4 | J10: =+IFERROR(IF(RIGHT(H10,4)="_old",VLOOKUP(I10,TT_Tabelle_Riferimento!$H$31:$I$50,2,FALSE),VLOOKUP(I10,TT_Tabelle_Riferimento!$D$127:$H$164,5,FALSE)),"") -> 40 | K10: SI | L10: 40 | N10: FALSE
A11: 4 | B11: 1967-2011 | C11: 2012 | D11: Condutture e opere idrauliche fisse | E11: 40 | F11: NO | G11: 2011 | H11: 2011-2012-5_old | I11: 5 | J11: =+IFERROR(IF(RIGHT(H11,4)="_old",VLOOKUP(I11,TT_Tabelle_Riferimento!$H$31:$I$50,2,FALSE),VLOOKUP(I11,TT_Tabelle_Riferimento!$D$127:$H$164,5,FALSE)),"") -> 40 | K11: SI | L11: 40 | N11: FALSE
A12: 5 | B12: 1967-2011 | C12: 2012 | D12: Serbatoi | E12: 50 | F12: NO | G12: 2011 | H12: 2011-2012-6_old | I12: 6 | J12: =+IFERROR(IF(RIGHT(H12,4)="_old",VLOOKUP(I12,TT_Tabelle_Riferimento!$H$31:$I$50,2,FALSE),VLOOKUP(I12,TT_Tabelle_Riferimento!$D$127:$H$164,5,FALSE)),"") -> 50 | K12: SI | L12: 50 | N12: FALSE
A13: 6 | B13: 1967-2011 | C13: 2012 | D13: Impianti di trattamento | E13: 12 | F13: NO | G13: 2011 | H13: 2011-2012-7_old | I13: 7 | J13: =+IFERROR(IF(RIGHT(H13,4)="_old",VLOOKUP(I13,TT_Tabelle_Riferimento!$H$31:$I$50,2,FALSE),VLOOKUP(I13,TT_Tabelle_Riferimento!$D$127:$H$164,5,FALSE)),"") -> 12 | K13: SI | L13: 12 | N13: FALSE
A14: 7 | B14: 1967-2011 | C14: 2012 | D14: Impianti di sollevamento e pompaggio | E14: 8 | F14: NO | G14: 2011 | H14: 2011-2012-8_old | I14: 8 | J14: =+IFERROR(IF(RIGHT(H14,4)="_old",VLOOKUP(I14,TT_Tabelle_Riferimento!$H$31:$I$50,2,FALSE),VLOOKUP(I14,TT_Tabelle_Riferimento!$D$127:$H$164,5,FALSE)),"") -> 8 | K14: SI | L14: 8 | N14: FALSE
A15: 8 | B15: 1967-2011 | C15: 2012 | D15: Gruppi di misura meccanici | E15: 15 | F15: NO | G15: 2011 | H15: 2011-2012-9_old | I15: 9 | J15: =+IFERROR(IF(RIGHT(H15,4)="_old",VLOOKUP(I15,TT_Tabelle_Riferimento!$H$31:$I$50,2,FALSE),VLOOKUP(I15,TT_Tabelle_Riferimento!$D$127:$H$164,5,FALSE)),"") -> 15 | K15: SI | L15: 15 | N15: FALSE
A16: 9 | B16: 1967-2011 | C16: 2012 | D16: Gruppi di misura elettronici | E16: 15 | F16: NO | G16: 2011 | H16: 2011-2012-10_old | I16: 10 | J16: =+IFERROR(IF(RIGHT(H16,4)="_old",VLOOKUP(I16,TT_Tabelle_Riferimento!$H$31:$I$50,2,FALSE),VLOOKUP(I16,TT_Tabelle_Riferimento!$D$127:$H$164,5,FALSE)),"") -> 15 | K16: SI | L16: 15 | N16: FALSE
A17: 10 | B17: 1967-2011 | C17: 2012 | D17: Altri impianti | E17: 20 | F17: NO | G17: 2011 | H17: 2011-2012-11_old | I17: 11 | J17: =+IFERROR(IF(RIGHT(H17,4)="_old",VLOOKUP(I17,TT_Tabelle_Riferimento!$H$31:$I$50,2,FALSE),VLOOKUP(I17,TT_Tabelle_Riferimento!$D$127:$H$164,5,FALSE)),"") -> 20 | K17: SI | L17: 20 | N17: FALSE
A18: 11 | B18: 1967-2011 | C18: 2012 | D18: Laboratori | E18: 10 | F18: NO | G18: 2011 | H18: 2011-2012-12_old | I18: 12 | J18: =+IFERROR(IF(RIGHT(H18,4)="_old",VLOOKUP(I18,TT_Tabelle_Riferimento!$H$31:$I$50,2,FALSE),VLOOKUP(I18,TT_Tabelle_Riferimento!$D$127:$H$164,5,FALSE)),"") -> 10 | K18: SI | L18: 10 | N18: FALSE
A19: 12 | B19: 1967-2011 | C19: 2012 | D19: Telecontrollo | E19: 8 | F19: NO | G19: 2011 | H19: 2011-2012-13_old | I19: 13 | J19: =+IFERROR(IF(RIGHT(H19,4)="_old",VLOOKUP(I19,TT_Tabelle_Riferimento!$H$31:$I$50,2,FALSE),VLOOKUP(I19,TT_Tabelle_Riferimento!$D$127:$H$164,5,FALSE)),"") -> 8 | K19: SI | L19: 8 | N19: FALSE
A20: 13 | B20: 1967-2011 | C20: 2012 | D20: Autoveicoli | E20: 5 | F20: NO | G20: 2011 | H20: 2011-2012-14_old | I20: 14 | J20: =+IFERROR(IF(RIGHT(H20,4)="_old",VLOOKUP(I20,TT_Tabelle_Riferimento!$H$31:$I$50,2,FALSE),VLOOKUP(I20,TT_Tabelle_Riferimento!$D$127:$H$164,5,FALSE)),"") -> 5 | K20: SI | L20: 5 | N20: FALSE
A21: 14 | B21: 1967-2011 | C21: 2012 | D21: Studi, ricerche, brevetti, diritti di utilizzazione | E21: 5 | F21: NO | G21: 2011 | H21: 2011-2012-15_old | I21: 15 | J21: =+IFERROR(IF(RIGHT(H21,4)="_old",VLOOKUP(I21,TT_Tabelle_Riferimento!$H$31:$I$50,2,FALSE),VLOOKUP(I21,TT_Tabelle_Riferimento!$D$127:$H$164,5,FALSE)),"") -> 5 | K21: SI | L21: 5 | N21: FALSE
A22: 15 | B22: 1967-2011 | C22: 2012 | D22: Altre immobilizzazioni materiali e immateriali | E22: 7 | F22: NO | G22: 2011 | H22: 2011-2012-16_old | I22: 16 | J22: =+IFERROR(IF(RIGHT(H22,4)="_old",VLOOKUP(I22,TT_Tabelle_Riferimento!$H$31:$I$50,2,FALSE),VLOOKUP(I22,TT_Tabelle_Riferimento!$D$127:$H$164,5,FALSE)),"") -> 7 | K22: SI | L22: 7 | N22: FALSE
A23: 16 | B23: 1967-2011 | C23: 2013 | D23: Fabbricati non industriali | E23: 40 | F23: NO | G23: 2011 | H23: 2011-2013-2_old | I23: 2 | J23: =+IFERROR(IF(RIGHT(H23,4)="_old",VLOOKUP(I23,TT_Tabelle_Riferimento!$H$31:$I$50,2,FALSE),VLOOKUP(I23,TT_Tabelle_Riferimento!$D$127:$H$164,5,FALSE)),"") -> 40 | K23: SI | L23: 40 | N23: FALSE
A24: 17 | B24: 1967-2011 | C24: 2013 | D24: Fabbricati industriali | E24: 40 | F24: NO | G24: 2011 | H24: 2011-2013-3_old | I24: 3 | J24: =+IFERROR(IF(RIGHT(H24,4)="_old",VLOOKUP(I24,TT_Tabelle_Riferimento!$H$31:$I$50,2,FALSE),VLOOKUP(I24,TT_Tabelle_Riferimento!$D$127:$H$164,5,FALSE)),"") -> 40 | K24: SI | L24: 40 | N24: FALSE
A25: 18 | B25: 1967-2011 | C25: 2013 | D25: Costruzioni leggere | E25: 40 | F25: NO | G25: 2011 | H25: 2011-2013-4_old | I25: 4 | J25: =+IFERROR(IF(RIGHT(H25,4)="_old",VLOOKUP(I25,TT_Tabelle_Riferimento!$H$31:$I$50,2,FALSE),VLOOKUP(I25,TT_Tabelle_Riferimento!$D$127:$H$164,5,FALSE)),"") -> 40 | K25: SI | L25: 40 | N25: FALSE
A26: 19 | B26: 1967-2011 | C26: 2013 | D26: Condutture e opere idrauliche fisse | E26: 40 | F26: NO | G26: 2011 | H26: 2011-2013-5_old | I26: 5 | J26: =+IFERROR(IF(RIGHT(H26,4)="_old",VLOOKUP(I26,TT_Tabelle_Riferimento!$H$31:$I$50,2,FALSE),VLOOKUP(I26,TT_Tabelle_Riferimento!$D$127:$H$164,5,FALSE)),"") -> 40 | K26: SI | L26: 40 | N26: FALSE
A27: 20 | B27: 1967-2011 | C27: 2013 | D27: Serbatoi | E27: 50 | F27: NO | G27: 2011 | H27: 2011-2013-6_old | I27: 6 | J27: =+IFERROR(IF(RIGHT(H27,4)="_old",VLOOKUP(I27,TT_Tabelle_Riferimento!$H$31:$I$50,2,FALSE),VLOOKUP(I27,TT_Tabelle_Riferimento!$D$127:$H$164,5,FALSE)),"") -> 50 | K27: SI | L27: 50 | N27: FALSE
A28: 21 | B28: 1967-2011 | C28: 2013 | D28: Impianti di trattamento | E28: 12 | F28: NO | G28: 2011 | H28: 2011-2013-7_old | I28: 7 | J28: =+IFERROR(IF(RIGHT(H28,4)="_old",VLOOKUP(I28,TT_Tabelle_Riferimento!$H$31:$I$50,2,FALSE),VLOOKUP(I28,TT_Tabelle_Riferimento!$D$127:$H$164,5,FALSE)),"") -> 12 | K28: SI | L28: 12 | N28: FALSE
A29: 22 | B29: 1967-2011 | C29: 2013 | D29: Impianti di sollevamento e pompaggio | E29: 8 | F29: NO | G29: 2011 | H29: 2011-2013-8_old | I29: 8 | J29: =+IFERROR(IF(RIGHT(H29,4)="_old",VLOOKUP(I29,TT_Tabelle_Riferimento!$H$31:$I$50,2,FALSE),VLOOKUP(I29,TT_Tabelle_Riferimento!$D$127:$H$164,5,FALSE)),"") -> 8 | K29: SI | L29: 8 | N29: FALSE
A30: 23 | B30: 1967-2011 | C30: 2013 | D30: Gruppi di misura meccanici | E30: 15 | F30: NO | G30: 2011 | H30: 2011-2013-9_old | I30: 9 | J30: =+IFERROR(IF(RIGHT(H30,4)="_old",VLOOKUP(I30,TT_Tabelle_Riferimento!$H$31:$I$50,2,FALSE),VLOOKUP(I30,TT_Tabelle_Riferimento!$D$127:$H$164,5,FALSE)),"") -> 15 | K30: SI | L30: 15 | N30: FALSE
A31: 24 | B31: 1967-2011 | C31: 2013 | D31: Gruppi di misura elettronici | E31: 15 | F31: NO | G31: 2011 | H31: 2011-2013-10_old | I31: 10 | J31: =+IFERROR(IF(RIGHT(H31,4)="_old",VLOOKUP(I31,TT_Tabelle_Riferimento!$H$31:$I$50,2,FALSE),VLOOKUP(I31,TT_Tabelle_Riferimento!$D$127:$H$164,5,FALSE)),"") -> 15 | K31: SI | L31: 15 | N31: FALSE
A32: 25 | B32: 1967-2011 | C32: 2013 | D32: Altri impianti | E32: 20 | F32: NO | G32: 2011 | H32: 2011-2013-11_old | I32: 11 | J32: =+IFERROR(IF(RIGHT(H32,4)="_old",VLOOKUP(I32,TT_Tabelle_Riferimento!$H$31:$I$50,2,FALSE),VLOOKUP(I32,TT_Tabelle_Riferimento!$D$127:$H$164,5,FALSE)),"") -> 20 | K32: SI | L32: 20 | N32: FALSE
A33: 26 | B33: 1967-2011 | C33: 2013 | D33: Laboratori | E33: 10 | F33: NO | G33: 2011 | H33: 2011-2013-12_old | I33: 12 | J33: =+IFERROR(IF(RIGHT(H33,4)="_old",VLOOKUP(I33,TT_Tabelle_Riferimento!$H$31:$I$50,2,FALSE),VLOOKUP(I33,TT_Tabelle_Riferimento!$D$127:$H$164,5,FALSE)),"") -> 10 | K33: SI | L33: 10 | N33: FALSE
A34: 27 | B34: 1967-2011 | C34: 2013 | D34: Telecontrollo | E34: 8 | F34: NO | G34: 2011 | H34: 2011-2013-13_old | I34: 13 | J34: =+IFERROR(IF(RIGHT(H34,4)="_old",VLOOKUP(I34,TT_Tabelle_Riferimento!$H$31:$I$50,2,FALSE),VLOOKUP(I34,TT_Tabelle_Riferimento!$D$127:$H$164,5,FALSE)),"") -> 8 | K34: SI | L34: 8 | N34: FALSE
A35: 28 | B35: 1967-2011 | C35: 2013 | D35: Autoveicoli | E35: 5 | F35: NO | G35: 2011 | H35: 2011-2013-14_old | I35: 14 | J35: =+IFERROR(IF(RIGHT(H35,4)="_old",VLOOKUP(I35,TT_Tabelle_Riferimento!$H$31:$I$50,2,FALSE),VLOOKUP(I35,TT_Tabelle_Riferimento!$D$127:$H$164,5,FALSE)),"") -> 5 | K35: SI | L35: 5 | N35: FALSE
A36: 29 | B36: 1967-2011 | C36: 2013 | D36: Studi, ricerche, brevetti, diritti di utilizzazione | E36: 5 | F36: NO | G36: 2011 | H36: 2011-2013-15_old | I36: 15 | J36: =+IFERROR(IF(RIGHT(H36,4)="_old",VLOOKUP(I36,TT_Tabelle_Riferimento!$H$31:$I$50,2,FALSE),VLOOKUP(I36,TT_Tabelle_Riferimento!$D$127:$H$164,5,FALSE)),"") -> 5 | K36: SI | L36: 5 | N36: FALSE
A37: 30 | B37: 1967-2011 | C37: 2013 | D37: Altre immobilizzazioni materiali e immateriali | E37: 7 | F37: NO | G37: 2011 | H37: 2011-2013-16_old | I37: 16 | J37: =+IFERROR(IF(RIGHT(H37,4)="_old",VLOOKUP(I37,TT_Tabelle_Riferimento!$H$31:$I$50,2,FALSE),VLOOKUP(I37,TT_Tabelle_Riferimento!$D$127:$H$164,5,FALSE)),"") -> 7 | K37: SI | L37: 7 | N37: FALSE
A38: 31 | B38: 1967-2011 | C38: 2014 | D38: Fabbricati non industriali | E38: 40 | F38: NO | G38: 2011 | H38: 2011-2014-2_old | I38: 2 | J38: =+IFERROR(IF(RIGHT(H38,4)="_old",VLOOKUP(I38,TT_Tabelle_Riferimento!$H$31:$I$50,2,FALSE),VLOOKUP(I38,TT_Tabelle_Riferimento!$D$127:$H$164,5,FALSE)),"") -> 40 | K38: SI | L38: 40 | N38: FALSE
A39: 32 | B39: 1967-2011 | C39: 2014 | D39: Fabbricati industriali | E39: 40 | F39: NO | G39: 2011 | H39: 2011-2014-3_old | I39: 3 | J39: =+IFERROR(IF(RIGHT(H39,4)="_old",VLOOKUP(I39,TT_Tabelle_Riferimento!$H$31:$I$50,2,FALSE),VLOOKUP(I39,TT_Tabelle_Riferimento!$D$127:$H$164,5,FALSE)),"") -> 40 | K39: SI | L39: 40 | N39: FALSE
A40: 33 | B40: 1967-2011 | C40: 2014 | D40: Costruzioni leggere | E40: 40 | F40: NO | G40: 2011 | H40: 2011-2014-4_old | I40: 4 | J40: =+IFERROR(IF(RIGHT(H40,4)="_old",VLOOKUP(I40,TT_Tabelle_Riferimento!$H$31:$I$50,2,FALSE),VLOOKUP(I40,TT_Tabelle_Riferimento!$D$127:$H$164,5,FALSE)),"") -> 40 | K40: SI | L40: 40 | N40: FALSE
A41: 34 | B41: 1967-2011 | C41: 2014 | D41: Condutture e opere idrauliche fisse | E41: 40 | F41: NO | G41: 2011 | H41: 2011-2014-5_old | I41: 5 | J41: =+IFERROR(IF(RIGHT(H41,4)="_old",VLOOKUP(I41,TT_Tabelle_Riferimento!$H$31:$I$50,2,FALSE),VLOOKUP(I41,TT_Tabelle_Riferimento!$D$127:$H$164,5,FALSE)),"") -> 40 | K41: SI | L41: 40 | N41: FALSE
A42: 35 | B42: 1967-2011 | C42: 2014 | D42: Serbatoi | E42: 50 | F42: NO | G42: 2011 | H42: 2011-2014-6_old | I42: 6 | J42: =+IFERROR(IF(RIGHT(H42,4)="_old",VLOOKUP(I42,TT_Tabelle_Riferimento!$H$31:$I$50,2,FALSE),VLOOKUP(I42,TT_Tabelle_Riferimento!$D$127:$H$164,5,FALSE)),"") -> 50 | K42: SI | L42: 50 | N42: FALSE
A43: 36 | B43: 1967-2011 | C43: 2014 | D43: Impianti di trattamento | E43: 12 | F43: NO | G43: 2011 | H43: 2011-2014-7_old | I43: 7 | J43: =+IFERROR(IF(RIGHT(H43,4)="_old",VLOOKUP(I43,TT_Tabelle_Riferimento!$H$31:$I$50,2,FALSE),VLOOKUP(I43,TT_Tabelle_Riferimento!$D$127:$H$164,5,FALSE)),"") -> 12 | K43: SI | L43: 12 | N43: FALSE
A44: 37 | B44: 1967-2011 | C44: 2014 | D44: Impianti di sollevamento e pompaggio | E44: 8 | F44: NO | G44: 2011 | H44: 2011-2014-8_old | I44: 8 | J44: =+IFERROR(IF(RIGHT(H44,4)="_old",VLOOKUP(I44,TT_Tabelle_Riferimento!$H$31:$I$50,2,FALSE),VLOOKUP(I44,TT_Tabelle_Riferimento!$D$127:$H$164,5,FALSE)),"") -> 8 | K44: SI | L44: 8 | N44: FALSE
A45: 38 | B45: 1967-2011 | C45: 2014 | D45: Gruppi di misura meccanici | E45: 15 | F45: NO | G45: 2011 | H45: 2011-2014-9_old | I45: 9 | J45: =+IFERROR(IF(RIGHT(H45,4)="_old",VLOOKUP(I45,TT_Tabelle_Riferimento!$H$31:$I$50,2,FALSE),VLOOKUP(I45,TT_Tabelle_Riferimento!$D$127:$H$164,5,FALSE)),"") -> 15 | K45: SI | L45: 15 | N45: FALSE
A46: 39 | B46: 1967-2011 | C46: 2014 | D46: Gruppi di misura elettronici | E46: 15 | F46: NO | G46: 2011 | H46: 2011-2014-10_old | I46: 10 | J46: =+IFERROR(IF(RIGHT(H46,4)="_old",VLOOKUP(I46,TT_Tabelle_Riferimento!$H$31:$I$50,2,FALSE),VLOOKUP(I46,TT_Tabelle_Riferimento!$D$127:$H$164,5,FALSE)),"") -> 15 | K46: SI | L46: 15 | N46: FALSE
A47: 40 | B47: 1967-2011 | C47: 2014 | D47: Altri impianti | E47: 20 | F47: NO | G47: 2011 | H47: 2011-2014-11_old | I47: 11 | J47: =+IFERROR(IF(RIGHT(H47,4)="_old",VLOOKUP(I47,TT_Tabelle_Riferimento!$H$31:$I$50,2,FALSE),VLOOKUP(I47,TT_Tabelle_Riferimento!$D$127:$H$164,5,FALSE)),"") -> 20 | K47: SI | L47: 20 | N47: FALSE
A48: 41 | B48: 1967-2011 | C48: 2014 | D48: Laboratori | E48: 10 | F48: NO | G48: 2011 | H48: 2011-2014-12_old | I48: 12 | J48: =+IFERROR(IF(RIGHT(H48,4)="_old",VLOOKUP(I48,TT_Tabelle_Riferimento!$H$31:$I$50,2,FALSE),VLOOKUP(I48,TT_Tabelle_Riferimento!$D$127:$H$164,5,FALSE)),"") -> 10 | K48: SI | L48: 10 | N48: FALSE
A49: 42 | B49: 1967-2011 | C49: 2014 | D49: Telecontrollo | E49: 8 | F49: NO | G49: 2011 | H49: 2011-2014-13_old | I49: 13 | J49: =+IFERROR(IF(RIGHT(H49,4)="_old",VLOOKUP(I49,TT_Tabelle_Riferimento!$H$31:$I$50,2,FALSE),VLOOKUP(I49,TT_Tabelle_Riferimento!$D$127:$H$164,5,FALSE)),"") -> 8 | K49: SI | L49: 8 | N49: FALSE
A50: 43 | B50: 1967-2011 | C50: 2014 | D50: Autoveicoli | E50: 5 | F50: NO | G50: 2011 | H50: 2011-2014-14_old | I50: 14 | J50: =+IFERROR(IF(RIGHT(H50,4)="_old",VLOOKUP(I50,TT_Tabelle_Riferimento!$H$31:$I$50,2,FALSE),VLOOKUP(I50,TT_Tabelle_Riferimento!$D$127:$H$164,5,FALSE)),"") -> 5 | K50: SI | L50: 5 | N50: FALSE
A51: 44 | B51: 1967-2011 | C51: 2014 | D51: Studi, ricerche, brevetti, diritti di utilizzazione | E51: 5 | F51: NO | G51: 2011 | H51: 2011-2014-15_old | I51: 15 | J51: =+IFERROR(IF(RIGHT(H51,4)="_old",VLOOKUP(I51,TT_Tabelle_Riferimento!$H$31:$I$50,2,FALSE),VLOOKUP(I51,TT_Tabelle_Riferimento!$D$127:$H$164,5,FALSE)),"") -> 5 | K51: SI | L51: 5 | N51: FALSE
A52: 45 | B52: 1967-2011 | C52: 2014 | D52: Altre immobilizzazioni materiali e immateriali | E52: 7 | F52: NO | G52: 2011 | H52: 2011-2014-16_old | I52: 16 | J52: =+IFERROR(IF(RIGHT(H52,4)="_old",VLOOKUP(I52,TT_Tabelle_Riferimento!$H$31:$I$50,2,FALSE),VLOOKUP(I52,TT_Tabelle_Riferimento!$D$127:$H$164,5,FALSE)),"") -> 7 | K52: SI | L52: 7 | N52: FALSE
A53: 46 | B53: 1967-2011 | C53: 2015 | D53: Fabbricati non industriali | E53: 40 | F53: NO | G53: 2011 | H53: 2011-2015-2_old | I53: 2 | J53: =+IFERROR(IF(RIGHT(H53,4)="_old",VLOOKUP(I53,TT_Tabelle_Riferimento!$H$31:$I$50,2,FALSE),VLOOKUP(I53,TT_Tabelle_Riferimento!$D$127:$H$164,5,FALSE)),"") -> 40 | K53: SI | L53: 40 | N53: FALSE
A54: 47 | B54: 1967-2011 | C54: 2015 | D54: Fabbricati industriali | E54: 22.222222 | F54: NO | G54: 2011 | H54: 2011-2015-3_old | I54: 3 | J54: =+IFERROR(IF(RIGHT(H54,4)="_old",VLOOKUP(I54,TT_Tabelle_Riferimento!$H$31:$I$50,2,FALSE),VLOOKUP(I54,TT_Tabelle_Riferimento!$D$127:$H$164,5,FALSE)),"") -> 40 | K54: SI | L54: 22.222222 | N54: FALSE
A55: 48 | B55: 1967-2011 | C55: 2015 | D55: Costruzioni leggere | E55: 40 | F55: NO | G55: 2011 | H55: 2011-2015-4_old | I55: 4 | J55: =+IFERROR(IF(RIGHT(H55,4)="_old",VLOOKUP(I55,TT_Tabelle_Riferimento!$H$31:$I$50,2,FALSE),VLOOKUP(I55,TT_Tabelle_Riferimento!$D$127:$H$164,5,FALSE)),"") -> 40 | K55: SI | L55: 40 | N55: FALSE
